Workbook

Sheet Summary
A1: 2025 Hackers Golf League
A2: Standings
E4: Best 10 | L4: Average per round | T4: Best | W4: Worst | Z4: Difference
A5: Position | B5: Name | C5: Matches Used | D5: Matches Played | E5: Points | F5: Average | G5: Previous | I5: Eagle | J5: Birdie | K5: Par | L5: Bogey | M5: D Bogey | N5: Other | O5: Avg over | P5: Rounded | T5: Front | U5: Back | V5: Total | W5: Front | X5: Back | Y5: Total
B6: =INDIRECT(CONCATENATE(S6,"!A1")) -> Andy Linton | C6: =D6 -> 0 | D6: =IFERROR(INDIRECT(CONCATENATE(S6,"!e44")),0) -> 0 | E6: =IFERROR(INDIRECT(CONCATENATE(S6,"!D44")),0) -> 0 | F6: =IFERROR(E6/C6,0) -> 0 | I6: =IFERROR(INDIRECT(CONCATENATE(S6,"!C47"))/D6,0) -> 0 | J6: =IFERROR(INDIRECT(CONCATENATE(S6,"!C48"))/D6,0) -> 0 | K6: =IFERROR(INDIRECT(CONCATENATE(S6,"!C49"))/D6,0) -> 0 | L6: =IFERROR(INDIRECT(CONCATENATE(S6,"!C50"))/C6,0) -> 0 | M6: =IFERROR(INDIRECT(CONCATENATE(S6,"!C51"))/D6,0) -> 0 | N6: =IFERROR(INDIRECT(CONCATENATE(S6,"!C52"))/D6,0) -> 0 | O6: =L6+(M6*2)+(N6*3)-J6 -> 0 | P6: =ROUND(O6,0) -> 0 | Q6: =B6 -> Andy Linton | R6: =FIND(" ",Q6) -> 5 | S6: Linton | T6: =INDIRECT(CONCATENATE(S6,"!k38")) -> 0 | U6: =INDIRECT(CONCATENATE(S6,"!k49")) -> 0 | V6: =SUM(T6:U6) -> 0 | W6: =INDIRECT(CONCATENATE(S6,"!l38")) -> 0 | X6: =INDIRECT(CONCATENATE(S6,"!l49")) -> 0 | Y6: =SUM(W6:X6) -> 0 | Z6: =+Y6-V6 -> 0
B7: =INDIRECT(CONCATENATE(S7,"!A1")) -> Bette Mohsinger | C7: =D7 -> 0 | D7: =IFERROR(INDIRECT(CONCATENATE(S7,"!e44")),0) -> 0 | E7: =IFERROR(INDIRECT(CONCATENATE(S7,"!D44")),0) -> 0 | F7: =IFERROR(E7/C7,0) -> 0 | I7: =IFERROR(INDIRECT(CONCATENATE(S7,"!C47"))/D7,0) -> 0 | J7: =IFERROR(INDIRECT(CONCATENATE(S7,"!C48"))/D7,0) -> 0 | K7: =IFERROR(INDIRECT(CONCATENATE(S7,"!C49"))/D7,0) -> 0 | L7: =IFERROR(INDIRECT(CONCATENATE(S7,"!C50"))/C7,0) -> 0 | M7: =IFERROR(INDIRECT(CONCATENATE(S7,"!C51"))/D7,0) -> 0 | N7: =IFERROR(INDIRECT(CONCATENATE(S7,"!C52"))/D7,0) -> 0 | O7: =L7+(M7*2)+(N7*3)-J7 -> 0 | P7: =ROUND(O7,0) -> 0 | Q7: =B7 -> Bette Mohsinger | R7: =FIND(" ",Q7) -> 6 | S7: Mohsinger_B | T7: =INDIRECT(CONCATENATE(S7,"!k38")) -> 0 | U7: =INDIRECT(CONCATENATE(S7,"!k49")) -> 0 | V7: =SUM(T7:U7) -> 0 | W7: =INDIRECT(CONCATENATE(S7,"!l38")) -> 0 | X7: =INDIRECT(CONCATENATE(S7,"!l49")) -> 0 | Y7: =SUM(W7:X7) -> 0 | Z7: =+Y7-V7 -> 0
B8: =INDIRECT(CONCATENATE(S8,"!A1")) -> Bob Templeton | C8: =D8 -> 0 | D8: =IFERROR(INDIRECT(CONCATENATE(S8,"!e44")),0) -> 0 | E8: =IFERROR(INDIRECT(CONCATENATE(S8,"!D44")),0) -> 0 | F8: =IFERROR(E8/C8,0) -> 0 | I8: =IFERROR(INDIRECT(CONCATENATE(S8,"!C47"))/D8,0) -> 0 | J8: =IFERROR(INDIRECT(CONCATENATE(S8,"!C48"))/D8,0) -> 0 | K8: =IFERROR(INDIRECT(CONCATENATE(S8,"!C49"))/D8,0) -> 0 | L8: =IFERROR(INDIRECT(CONCATENATE(S8,"!C50"))/C8,0) -> 0 | M8: =IFERROR(INDIRECT(CONCATENATE(S8,"!C51"))/D8,0) -> 0 | N8: =IFERROR(INDIRECT(CONCATENATE(S8,"!C52"))/D8,0) -> 0 | O8: =L8+(M8*2)+(N8*3)-J8 -> 0 | P8: =ROUND(O8,0) -> 0 | Q8: =B8 -> Bob Templeton | R8: =FIND(" ",Q8) -> 4 | S8: Templeton | T8: =INDIRECT(CONCATENATE(S8,"!k38")) -> 0 | U8: =INDIRECT(CONCATENATE(S8,"!k49")) -> 0 | V8: =SUM(T8:U8) -> 0 | W8: =INDIRECT(CONCATENATE(S8,"!l38")) -> 0 | X8: =INDIRECT(CONCATENATE(S8,"!l49")) -> 0 | Y8: =SUM(W8:X8) -> 0 | Z8: =+Y8-V8 -> 0
B9: =INDIRECT(CONCATENATE(S9,"!A1")) -> Brian McGlaughlin | C9: =D9 -> 0 | D9: =IFERROR(INDIRECT(CONCATENATE(S9,"!e44")),0) -> 0 | E9: =IFERROR(INDIRECT(CONCATENATE(S9,"!D44")),0) -> 0 | F9: =IFERROR(E9/C9,0) -> 0 | I9: =IFERROR(INDIRECT(CONCATENATE(S9,"!C47"))/D9,0) -> 0 | J9: =IFERROR(INDIRECT(CONCATENATE(S9,"!C48"))/D9,0) -> 0 | K9: =IFERROR(INDIRECT(CONCATENATE(S9,"!C49"))/D9,0) -> 0 | L9: =IFERROR(INDIRECT(CONCATENATE(S9,"!C50"))/C9,0) -> 0 | M9: =IFERROR(INDIRECT(CONCATENATE(S9,"!C51"))/D9,0) -> 0 | N9: =IFERROR(INDIRECT(CONCATENATE(S9,"!C52"))/D9,0) -> 0 | O9: =L9+(M9*2)+(N9*3)-J9 -> 0 | P9: =ROUND(O9,0) -> 0 | Q9: =B9 -> Brian McGlaughlin | R9: =FIND(" ",Q9) -> 6 | S9: McLaughlin | T9: =INDIRECT(CONCATENATE(S9,"!k38")) -> 0 | U9: =INDIRECT(CONCATENATE(S9,"!k49")) -> 0 | V9: =SUM(T9:U9) -> 0 | W9: =INDIRECT(CONCATENATE(S9,"!l38")) -> 0 | X9: =INDIRECT(CONCATENATE(S9,"!l49")) -> 0 | Y9: =SUM(W9:X9) -> 0 | Z9: =+Y9-V9 -> 0
B10: =INDIRECT(CONCATENATE(S10,"!A1")) -> Dan Fusco | C10: =D10 -> 0 | D10: =IFERROR(INDIRECT(CONCATENATE(S10,"!e44")),0) -> 0 | E10: =IFERROR(INDIRECT(CONCATENATE(S10,"!D44")),0) -> 0 | F10: =IFERROR(E10/C10,0) -> 0 | I10: =IFERROR(INDIRECT(CONCATENATE(S10,"!C47"))/D10,0) -> 0 | J10: =IFERROR(INDIRECT(CONCATENATE(S10,"!C48"))/D10,0) -> 0 | K10: =IFERROR(INDIRECT(CONCATENATE(S10,"!C49"))/D10,0) -> 0 | L10: =IFERROR(INDIRECT(CONCATENATE(S10,"!C50"))/C10,0) -> 0 | M10: =IFERROR(INDIRECT(CONCATENATE(S10,"!C51"))/D10,0) -> 0 | N10: =IFERROR(INDIRECT(CONCATENATE(S10,"!C52"))/D10,0) -> 0 | O10: =L10+(M10*2)+(N10*3)-J10 -> 0 | P10: =ROUND(O10,0) -> 0 | Q10: =B10 -> Dan Fusco | R10: =FIND(" ",Q10) -> 4 | S10: Fusco_D | T10: =INDIRECT(CONCATENATE(S10,"!k38")) -> 0 | U10: =INDIRECT(CONCATENATE(S10,"!k49")) -> 0 | V10: =SUM(T10:U10) -> 0 | W10: =INDIRECT(CONCATENATE(S10,"!l38")) -> 0 | X10: =INDIRECT(CONCATENATE(S10,"!l49")) -> 0 | Y10: =SUM(W10:X10) -> 0 | Z10: =+Y10-V10 -> 0
B11: =INDIRECT(CONCATENATE(S11,"!A1")) -> Dan Palmerino | C11: =D11 -> 0 | D11: =IFERROR(INDIRECT(CONCATENATE(S11,"!e44")),0) -> 0 | E11: =IFERROR(INDIRECT(CONCATENATE(S11,"!D44")),0) -> 0 | F11: =IFERROR(E11/C11,0) -> 0 | I11: =IFERROR(INDIRECT(CONCATENATE(S11,"!C47"))/D11,0) -> 0 | J11: =IFERROR(INDIRECT(CONCATENATE(S11,"!C48"))/D11,0) -> 0 | K11: =IFERROR(INDIRECT(CONCATENATE(S11,"!C49"))/D11,0) -> 0 | L11: =IFERROR(INDIRECT(CONCATENATE(S11,"!C50"))/C11,0) -> 0 | M11: =IFERROR(INDIRECT(CONCATENATE(S11,"!C51"))/D11,0) -> 0 | N11: =IFERROR(INDIRECT(CONCATENATE(S11,"!C52"))/D11,0) -> 0 | O11: =L11+(M11*2)+(N11*3)-J11 -> 0 | P11: =ROUND(O11,0) -> 0 | Q11: =B11 -> Dan Palmerino | R11: =FIND(" ",Q11) -> 4 | S11: Palmerino | T11: =INDIRECT(CONCATENATE(S11,"!k38")) -> 0 | U11: =INDIRECT(CONCATENATE(S11,"!k49")) -> 0 | V11: =SUM(T11:U11) -> 0 | W11: =INDIRECT(CONCATENATE(S11,"!l38")) -> 0 | X11: =INDIRECT(CONCATENATE(S11,"!l49")) -> 0 | Y11: =SUM(W11:X11) -> 0 | Z11: =+Y11-V11 -> 0
B12: =INDIRECT(CONCATENATE(S12,"!A1")) -> Dave Taylor | C12: =D12 -> 0 | D12: =IFERROR(INDIRECT(CONCATENATE(S12,"!e44")),0) -> 0 | E12: =IFERROR(INDIRECT(CONCATENATE(S12,"!D44")),0) -> 0 | F12: =IFERROR(E12/C12,0) -> 0 | I12: =IFERROR(INDIRECT(CONCATENATE(S12,"!C47"))/D12,0) -> 0 | J12: =IFERROR(INDIRECT(CONCATENATE(S12,"!C48"))/D12,0) -> 0 | K12: =IFERROR(INDIRECT(CONCATENATE(S12,"!C49"))/D12,0) -> 0 | L12: =IFERROR(INDIRECT(CONCATENATE(S12,"!C50"))/C12,0) -> 0 | M12: =IFERROR(INDIRECT(CONCATENATE(S12,"!C51"))/D12,0) -> 0 | N12: =IFERROR(INDIRECT(CONCATENATE(S12,"!C52"))/D12,0) -> 0 | O12: =L12+(M12*2)+(N12*3)-J12 -> 0 | P12: =ROUND(O12,0) -> 0 | Q12: =B12 -> Dave Taylor | R12: =FIND(" ",Q12) -> 5 | S12: Taylor | T12: =INDIRECT(CONCATENATE(S12,"!k38")) -> 0 | U12: =INDIRECT(CONCATENATE(S12,"!k49")) -> 0 | V12: =SUM(T12:U12) -> 0 | W12: =INDIRECT(CONCATENATE(S12,"!l38")) -> 0 | X12: =INDIRECT(CONCATENATE(S12,"!l49")) -> 0 | Y12: =SUM(W12:X12) -> 0 | Z12: =+Y12-V12 -> 0
B13: =INDIRECT(CONCATENATE(S13,"!A1")) -> Glenn Kreig | C13: =D13 -> 0 | D13: =IFERROR(INDIRECT(CONCATENATE(S13,"!e44")),0) -> 0 | E13: =IFERROR(INDIRECT(CONCATENATE(S13,"!D44")),0) -> 0 | F13: =IFERROR(E13/C13,0) -> 0 | I13: =IFERROR(INDIRECT(CONCATENATE(S13,"!C47"))/D13,0) -> 0 | J13: =IFERROR(INDIRECT(CONCATENATE(S13,"!C48"))/D13,0) -> 0 | K13: =IFERROR(INDIRECT(CONCATENATE(S13,"!C49"))/D13,0) -> 0 | L13: =IFERROR(INDIRECT(CONCATENATE(S13,"!C50"))/C13,0) -> 0 | M13: =IFERROR(INDIRECT(CONCATENATE(S13,"!C51"))/D13,0) -> 0 | N13: =IFERROR(INDIRECT(CONCATENATE(S13,"!C52"))/D13,0) -> 0 | O13: =L13+(M13*2)+(N13*3)-J13 -> 0 | P13: =ROUND(O13,0) -> 0 | Q13: =B13 -> Glenn Kreig | R13: =FIND(" ",Q13) -> 6 | S13: Kreig | T13: =INDIRECT(CONCATENATE(S13,"!k38")) -> 0 | U13: =INDIRECT(CONCATENATE(S13,"!k49")) -> 0 | V13: =SUM(T13:U13) -> 0 | W13: =INDIRECT(CONCATENATE(S13,"!l38")) -> 0 | X13: =INDIRECT(CONCATENATE(S13,"!l49")) -> 0 | Y13: =SUM(W13:X13) -> 0 | Z13: =+Y13-V13 -> 0
B14: =INDIRECT(CONCATENATE(S14,"!A1")) -> Jim Daviero | C14: =D14 -> 0 | D14: =IFERROR(INDIRECT(CONCATENATE(S14,"!e44")),0) -> 0 | E14: =IFERROR(INDIRECT(CONCATENATE(S14,"!D44")),0) -> 0 | F14: =IFERROR(E14/C14,0) -> 0 | I14: =IFERROR(INDIRECT(CONCATENATE(S14,"!C47"))/D14,0) -> 0 | J14: =IFERROR(INDIRECT(CONCATENATE(S14,"!C48"))/D14,0) -> 0 | K14: =IFERROR(INDIRECT(CONCATENATE(S14,"!C49"))/D14,0) -> 0 | L14: =IFERROR(INDIRECT(CONCATENATE(S14,"!C50"))/C14,0) -> 0 | M14: =IFERROR(INDIRECT(CONCATENATE(S14,"!C51"))/D14,0) -> 0 | N14: =IFERROR(INDIRECT(CONCATENATE(S14,"!C52"))/D14,0) -> 0 | O14: =L14+(M14*2)+(N14*3)-J14 -> 0 | P14: =ROUND(O14,0) -> 0 | Q14: =B14 -> Jim Daviero | R14: =FIND(" ",Q14) -> 4 | S14: Daviero | T14: =INDIRECT(CONCATENATE(S14,"!k38")) -> 0 | U14: =INDIRECT(CONCATENATE(S14,"!k49")) -> 0 | V14: =SUM(T14:U14) -> 0 | W14: =INDIRECT(CONCATENATE(S14,"!l38")) -> 0 | X14: =INDIRECT(CONCATENATE(S14,"!l49")) -> 0 | Y14: =SUM(W14:X14) -> 0 | Z14: =+Y14-V14 -> 0
B15: =INDIRECT(CONCATENATE(S15,"!A1")) -> Mark Rusnak | C15: =D15 -> 0 | D15: =IFERROR(INDIRECT(CONCATENATE(S15,"!e44")),0) -> 0 | E15: =IFERROR(INDIRECT(CONCATENATE(S15,"!D44")),0) -> 0 | F15: =IFERROR(E15/C15,0) -> 0 | I15: =IFERROR(INDIRECT(CONCATENATE(S15,"!C47"))/D15,0) -> 0 | J15: =IFERROR(INDIRECT(CONCATENATE(S15,"!C48"))/D15,0) -> 0 | K15: =IFERROR(INDIRECT(CONCATENATE(S15,"!C49"))/D15,0) -> 0 | L15: =IFERROR(INDIRECT(CONCATENATE(S15,"!C50"))/C15,0) -> 0 | M15: =IFERROR(INDIRECT(CONCATENATE(S15,"!C51"))/D15,0) -> 0 | N15: =IFERROR(INDIRECT(CONCATENATE(S15,"!C52"))/D15,0) -> 0 | O15: =L15+(M15*2)+(N15*3)-J15 -> 0 | P15: =ROUND(O15,0) -> 0 | Q15: =B15 -> Mark Rusnak | R15: =FIND(" ",Q15) -> 5 | S15: Rusnak | T15: =INDIRECT(CONCATENATE(S15,"!k38")) -> 0 | U15: =INDIRECT(CONCATENATE(S15,"!k49")) -> 0 | V15: =SUM(T15:U15) -> 0 | W15: =INDIRECT(CONCATENATE(S15,"!l38")) -> 0 | X15: =INDIRECT(CONCATENATE(S15,"!l49")) -> 0 | Y15: =SUM(W15:X15) -> 0 | Z15: =+Y15-V15 -> 0
B16: =INDIRECT(CONCATENATE(S16,"!A1")) -> Pete Michalski | C16: =D16 -> 0 | D16: =IFERROR(INDIRECT(CONCATENATE(S16,"!e44")),0) -> 0 | E16: =IFERROR(INDIRECT(CONCATENATE(S16,"!D44")),0) -> 0 | F16: =IFERROR(E16/C16,0) -> 0 | I16: =IFERROR(INDIRECT(CONCATENATE(S16,"!C47"))/D16,0) -> 0 | J16: =IFERROR(INDIRECT(CONCATENATE(S16,"!C48"))/D16,0) -> 0 | K16: =IFERROR(INDIRECT(CONCATENATE(S16,"!C49"))/D16,0) -> 0 | L16: =IFERROR(INDIRECT(CONCATENATE(S16,"!C50"))/C16,0) -> 0 | M16: =IFERROR(INDIRECT(CONCATENATE(S16,"!C51"))/D16,0) -> 0 | N16: =IFERROR(INDIRECT(CONCATENATE(S16,"!C52"))/D16,0) -> 0 | O16: =L16+(M16*2)+(N16*3)-J16 -> 0 | P16: =ROUND(O16,0) -> 0 | Q16: =B16 -> Pete Michalski | R16: =FIND(" ",Q16) -> 5 | S16: Michalski_P | T16: =INDIRECT(CONCATENATE(S16,"!k38")) -> 0 | U16: =INDIRECT(CONCATENATE(S16,"!k49")) -> 0 | V16: =SUM(T16:U16) -> 0 | W16: =INDIRECT(CONCATENATE(S16,"!l38")) -> 0 | X16: =INDIRECT(CONCATENATE(S16,"!l49")) -> 0 | Y16: =SUM(W16:X16) -> 0 | Z16: =+Y16-V16 -> 0
B17: =INDIRECT(CONCATENATE(S17,"!A1")) -> Steve Fusco | C17: =D17 -> 0 | D17: =IFERROR(INDIRECT(CONCATENATE(S17,"!e44")),0) -> 0 | E17: =IFERROR(INDIRECT(CONCATENATE(S17,"!D44")),0) -> 0 | F17: =IFERROR(E17/C17,0) -> 0 | I17: =IFERROR(INDIRECT(CONCATENATE(S17,"!C47"))/D17,0) -> 0 | J17: =IFERROR(INDIRECT(CONCATENATE(S17,"!C48"))/D17,0) -> 0 | K17: =IFERROR(INDIRECT(CONCATENATE(S17,"!C49"))/D17,0) -> 0 | L17: =IFERROR(INDIRECT(CONCATENATE(S17,"!C50"))/C17,0) -> 0 | M17: =IFERROR(INDIRECT(CONCATENATE(S17,"!C51"))/D17,0) -> 0 | N17: =IFERROR(INDIRECT(CONCATENATE(S17,"!C52"))/D17,0) -> 0 | O17: =L17+(M17*2)+(N17*3)-J17 -> 0 | P17: =ROUND(O17,0) -> 0 | Q17: =B17 -> Steve Fusco | R17: =FIND(" ",Q17) -> 6 | S17: Fusco_S | T17: =INDIRECT(CONCATENATE(S17,"!k38")) -> 0 | U17: =INDIRECT(CONCATENATE(S17,"!k49")) -> 0 | V17: =SUM(T17:U17) -> 0 | W17: =INDIRECT(CONCATENATE(S17,"!l38")) -> 0 | X17: =INDIRECT(CONCATENATE(S17,"!l49")) -> 0 | Y17: =SUM(W17:X17) -> 0 | Z17: =+Y17-V17 -> 0
B18: =INDIRECT(CONCATENATE(S18,"!A1")) -> Sue Michalski | C18: =D18 -> 0 | D18: =IFERROR(INDIRECT(CONCATENATE(S18,"!e44")),0) -> 0 | E18: =IFERROR(INDIRECT(CONCATENATE(S18,"!D44")),0) -> 0 | F18: =IFERROR(E18/C18,0) -> 0 | I18: =IFERROR(INDIRECT(CONCATENATE(S18,"!C47"))/D18,0) -> 0 | J18: =IFERROR(INDIRECT(CONCATENATE(S18,"!C48"))/D18,0) -> 0 | K18: =IFERROR(INDIRECT(CONCATENATE(S18,"!C49"))/D18,0) -> 0 | L18: =IFERROR(INDIRECT(CONCATENATE(S18,"!C50"))/C18,0) -> 0 | M18: =IFERROR(INDIRECT(CONCATENATE(S18,"!C51"))/D18,0) -> 0 | N18: =IFERROR(INDIRECT(CONCATENATE(S18,"!C52"))/D18,0) -> 0 | O18: =L18+(M18*2)+(N18*3)-J18 -> 0 | P18: =ROUND(O18,0) -> 0 | Q18: =B18 -> Sue Michalski | R18: =FIND(" ",Q18) -> 4 | S18: Michalski_S | T18: =INDIRECT(CONCATENATE(S18,"!k38")) -> 0 | U18: =INDIRECT(CONCATENATE(S18,"!k49")) -> 0 | V18: =SUM(T18:U18) -> 0 | W18: =INDIRECT(CONCATENATE(S18,"!l38")) -> 0 | X18: =INDIRECT(CONCATENATE(S18,"!l49")) -> 0 | Y18: =SUM(W18:X18) -> 0 | Z18: =+Y18-V18 -> 0
B19: =INDIRECT(CONCATENATE(S19,"!A1")) -> Tim Hobbs | C19: =D19 -> 0 | D19: =IFERROR(INDIRECT(CONCATENATE(S19,"!e44")),0) -> 0 | E19: =IFERROR(INDIRECT(CONCATENATE(S19,"!D44")),0) -> 0 | F19: =IFERROR(E19/C19,0) -> 0 | I19: =IFERROR(INDIRECT(CONCATENATE(S19,"!C47"))/D19,0) -> 0 | J19: =IFERROR(INDIRECT(CONCATENATE(S19,"!C48"))/D19,0) -> 0 | K19: =IFERROR(INDIRECT(CONCATENATE(S19,"!C49"))/D19,0) -> 0 | L19: =IFERROR(INDIRECT(CONCATENATE(S19,"!C50"))/C19,0) -> 0 | M19: =IFERROR(INDIRECT(CONCATENATE(S19,"!C51"))/D19,0) -> 0 | N19: =IFERROR(INDIRECT(CONCATENATE(S19,"!C52"))/D19,0) -> 0 | O19: =L19+(M19*2)+(N19*3)-J19 -> 0 | P19: =ROUND(O19,0) -> 0 | Q19: =B19 -> Tim Hobbs | R19: =FIND(" ",Q19) -> 4 | S19: Hobbs | T19: =INDIRECT(CONCATENATE(S19,"!k38")) -> 0 | U19: =INDIRECT(CONCATENATE(S19,"!k49")) -> 0 | V19: =SUM(T19:U19) -> 0 | W19: =INDIRECT(CONCATENATE(S19,"!l38")) -> 0 | X19: =INDIRECT(CONCATENATE(S19,"!l49")) -> 0 | Y19: =SUM(W19:X19) -> 0 | Z19: =+Y19-V19 -> 0
B20: =INDIRECT(CONCATENATE(S20,"!A1")) -> Tom Mohsinger | C20: =D20 -> 0 | D20: =IFERROR(INDIRECT(CONCATENATE(S20,"!e44")),0) -> 0 | E20: =IFERROR(INDIRECT(CONCATENATE(S20,"!D44")),0) -> 0 | F20: =IFERROR(E20/C20,0) -> 0 | I20: =IFERROR(INDIRECT(CONCATENATE(S20,"!C47"))/D20,0) -> 0 | J20: =IFERROR(INDIRECT(CONCATENATE(S20,"!C48"))/D20,0) -> 0 | K20: =IFERROR(INDIRECT(CONCATENATE(S20,"!C49"))/D20,0) -> 0 | L20: =IFERROR(INDIRECT(CONCATENATE(S20,"!C50"))/C20,0) -> 0 | M20: =IFERROR(INDIRECT(CONCATENATE(S20,"!C51"))/D20,0) -> 0 | N20: =IFERROR(INDIRECT(CONCATENATE(S20,"!C52"))/D20,0) -> 0 | O20: =L20+(M20*2)+(N20*3)-J20 -> 0 | P20: =ROUND(O20,0) -> 0 | Q20: =B20 -> Tom Mohsinger | R20: =FIND(" ",Q20) -> 4 | S20: Mohsinger_T | T20: =INDIRECT(CONCATENATE(S20,"!k38")) -> 0 | U20: =INDIRECT(CONCATENATE(S20,"!k49")) -> 0 | V20: =SUM(T20:U20) -> 0 | W20: =INDIRECT(CONCATENATE(S20,"!l38")) -> 0 | X20: =INDIRECT(CONCATENATE(S20,"!l49")) -> 0 | Y20: =SUM(W20:X20) -> 0 | Z20: =+Y20-V20 -> 0
B21: =INDIRECT(CONCATENATE(S21,"!A1")) -> Vincent Daviero | C21: =D21 -> 0 | D21: =IFERROR(INDIRECT(CONCATENATE(S21,"!e44")),0) -> 0 | E21: =IFERROR(INDIRECT(CONCATENATE(S21,"!D44")),0) -> 0 | F21: =IFERROR(E21/C21,0) -> 0 | I21: =IFERROR(INDIRECT(CONCATENATE(S21,"!C47"))/D21,0) -> 0 | J21: =IFERROR(INDIRECT(CONCATENATE(S21,"!C48"))/D21,0) -> 0 | K21: =IFERROR(INDIRECT(CONCATENATE(S21,"!C49"))/D21,0) -> 0 | L21: =IFERROR(INDIRECT(CONCATENATE(S21,"!C50"))/C21,0) -> 0 | M21: =IFERROR(INDIRECT(CONCATENATE(S21,"!C51"))/D21,0) -> 0 | N21: =IFERROR(INDIRECT(CONCATENATE(S21,"!C52"))/D21,0) -> 0 | O21: =L21+(M21*2)+(N21*3)-J21 -> 0 | P21: =ROUND(O21,0) -> 0 | Q21: =B21 -> Vincent Daviero | R21: =FIND(" ",Q21) -> 8 | S21: daviero_v | T21: =INDIRECT(CONCATENATE(S21,"!k38")) -> 0 | U21: =INDIRECT(CONCATENATE(S21,"!k49")) -> 0 | V21: =SUM(T21:U21) -> 0 | W21: =INDIRECT(CONCATENATE(S21,"!l38")) -> 0 | X21: =INDIRECT(CONCATENATE(S21,"!l49")) -> 0 | Y21: =SUM(W21:X21) -> 0 | Z21: =+Y21-V21 -> 0
I23: =AVERAGE(I6:I21) -> 0 | J23: 0 | K23: 0 | L23: 0 | M23: 0 | N23: 0 | O23: =L23+(M23*2)+(N23*3)-J23 -> 0 | P23: =ROUND(O23,0) -> 0
E28: =SUM(E6:E25) -> 0
B31: Good Lists and Bad Lists
I32: Eagles
I35: Birdies
B36: Andy Linton | I36: 0
B37: Bette Mohsinger | I37: 0
B38: Bob Templeton | I38: 0
B39: Brian McGlaughlin | I39: 0
B40: Dan Fusco | I40: 0
B41: Dan Palmerino | I41: 0
B42: Dave Taylor | I42: 0
B43: Glenn Kreig | I43: 0
B44: Jim Daviero | I44: 0
B45: Mark Rusnak | I45: 0
B46: Pete Michalski | I46: 0
B47: Steve Fusco | I47: 0
B48: Sue Michalski | I48: 0
B49: Tim Hobbs | I49: 0
B50: Tom Mohsinger | I50: 0
B51: Vincent Daviero | I51: 0
I53: Pars
B54: Andy Linton | I54: 0
B55: Bette Mohsinger | I55: 0
B56: Bob Templeton | I56: 0
B57: Brian McGlaughlin | I57: 0
B58: Dan Fusco | I58: 0
B59: Dan Palmerino | I59: 0
B60: Dave Taylor | I60: 0
B61: Glenn Kreig | I61: 0
B62: Jim Daviero | I62: 0
B63: Mark Rusnak | I63: 0
B64: Pete Michalski | I64: 0
B65: Steve Fusco | I65: 0
B66: Sue Michalski | I66: 0
B67: Tim Hobbs | I67: 0
B68: Tom Mohsinger | I68: 0
B69: Vincent Daviero | I69: 0
I71: Bogeys
B72: Andy Linton | I72: 0
B73: Bette Mohsinger | I73: 0
B74: Bob Templeton | I74: 0
B75: Brian McGlaughlin | I75: 0
B76: Dan Fusco | I76: 0
B77: Dan Palmerino | I77: 0
B78: Dave Taylor | I78: 0
B79: Glenn Kreig | I79: 0
B80: Jim Daviero | I80: 0
B81: Mark Rusnak | I81: 0
B82: Pete Michalski | I82: 0
B83: Steve Fusco | I83: 0
B84: Sue Michalski | I84: 0
B85: Tim Hobbs | I85: 0
B86: Tom Mohsinger | I86: 0
B87: Vincent Daviero | I87: 0
I89: Dbl Bogeys
B90: Andy Linton | I90: 0
B91: Bette Mohsinger | I91: 0
B92: Bob Templeton | I92: 0
B93: Brian McGlaughlin | I93: 0
B94: Dan Fusco | I94: 0
B95: Dan Palmerino | I95: 0
B96: Dave Taylor | I96: 0
B97: Glenn Kreig | I97: 0
B98: Jim Daviero | I98: 0
B99: Mark Rusnak | I99: 0
B100: Pete Michalski | I100: 0
B101: Steve Fusco | I101: 0
B102: Sue Michalski | I102: 0
B103: Tim Hobbs | I103: 0
B104: Tom Mohsinger | I104: 0
B105: Vincent Daviero | I105: 0
I107: Others
B108: Andy Linton | I108: 0
B109: Bette Mohsinger | I109: 0
B110: Bob Templeton | I110: 0
B111: Brian McGlaughlin | I111: 0
B112: Dan Fusco | I112: 0
B113: Dan Palmerino | I113: 0
B114: Dave Taylor | I114: 0
B115: Glenn Kreig | I115: 0
B116: Jim Daviero | I116: 0
B117: Mark Rusnak | I117: 0
B118: Pete Michalski | I118: 0
B119: Steve Fusco | I119: 0
B120: Sue Michalski | I120: 0
B121: Tim Hobbs | I121: 0
B122: Tom Mohsinger | I122: 0
B123: Vincent Daviero | I123: 0
I125: Avg over Par | K125: Rounded
B126: Andy Linton | I126: 0 | K126: 0
B127: Bette Mohsinger | I127: 0 | K127: 0
B128: Bob Templeton | I128: 0 | K128: 0
B129: Brian McGlaughlin | I129: 0 | K129: 0
B130: Dan Fusco | I130: 0 | K130: 0
B131: Dan Palmerino | I131: 0 | K131: 0
B132: Dave Taylor | I132: 0 | K132: 0
B133: Glenn Kreig | I133: 0 | K133: 0
B134: Jim Daviero | I134: 0 | K134: 0
B135: Mark Rusnak | I135: 0 | K135: 0
B136: Pete Michalski | I136: 0 | K136: 0
B137: Steve Fusco | I137: 0 | K137: 0
B138: Sue Michalski | I138: 0 | K138: 0
B139: Tim Hobbs | I139: 0 | K139: 0
B140: Tom Mohsinger | I140: 0 | K140: 0
B141: Vincent Daviero | I141: 0 | K141: 0

Sheet Sum of Scores
A1: Summary of Scores | G1: d16 | K1: j16 | O1: p16 | S1: v16 | W1: ab16 | AA1: ah16 | AE1: an16 | AI1: at16 | AM1: az16 | AQ1: bf16 | AU1: bl16 | AY1: br16 | BC1: bx16 | BG1: cd16 | BK1: cj16 | CA1: Lows | CD1: Highs
BO2: Bonus | BQ2: Match | BS2: Total
B3: Current Week | G3: Week #1 | I3: Week #1 | K3: Week #2 | M3: Week #2 | O3: Week #3 | Q3: Week #3 | S3: Week #4 | U3: Week #4 | W3: Week #5 | Y3: Week #5 | AA3: Week #6 | AC3: Week #6 | AE3: Week #7 | AG3: Week #7 | AI3: Week #8 | AK3: Week #8 | AM3: Week #9 | AO3: Week #9 | AQ3: Week #10 | AS3: Week #10 | AU3: Week #11 | AW3: Week #11 | AY3: Week #12 | BA3: Week #12 | BC3: Week #13 | BE3: Week #13 | BG3: Week #14 | BI3: Week #14 | BK3: Week #15 | BM3: Week #15 | BO3: Points | BQ3: Points | BS3: Points | BT3: Matches | BU3: Average
B4: Gross | C4: Handicap | D4: Net | E4: Cup | G4: Gross | H4: Handicap | I4: Net | K4: Gross | L4: Handicap | M4: Net | O4: Gross | P4: Handicap | Q4: Net | S4: Gross | T4: Handicap | U4: Net | W4: Gross | X4: Handicap | Y4: Net | AA4: Gross | AB4: Handicap | AC4: Net | AE4: Gross | AF4: Handicap | AG4: Net | AI4: Gross | AJ4: Handicap | AK4: Net | AM4: Gross | AN4: Handicap | AO4: Net | AQ4: Gross | AR4: Handicap | AS4: Net | AU4: Gross | AV4: Handicap | AW4: Net | AY4: Gross | AZ4: Handicap | BA4: Net | BC4: Gross | BD4: Handicap | BE4: Net | BG4: Gross | BH4: Handicap | BI4: Net | BK4: Gross | BL4: Handicap | BM4: Net
A5: =INDIRECT(CONCATENATE(BY5,"!A1")) -> Andy Linton | F5: 800 | G5: =INDIRECT(CONCATENATE($BY5,"!",G$1)) -> 0 | H5: =LOOKUP($BY5,HandicapLookup) -> 5 | I5: =G5-H5 -> -5 | K5: =INDIRECT(CONCATENATE($BY5,"!",K$1)) -> 0 | L5: =LOOKUP($BY5,HandicapLookup) -> 5 | M5: =K5-L5 -> -5 | O5: =INDIRECT(CONCATENATE($BY5,"!",O$1)) -> 0 | P5: =LOOKUP($BY5,HandicapLookup) -> 5 | Q5: =O5-P5 -> -5 | S5: =INDIRECT(CONCATENATE($BY5,"!",S$1)) -> 0 | T5: =LOOKUP($BY5,HandicapLookup) -> 5 | U5: =S5-T5 -> -5 | W5: =INDIRECT(CONCATENATE($BY5,"!",W$1)) -> 0 | X5: =LOOKUP($BY5,HandicapLookup) -> 5 | Y5: =W5-X5 -> -5 | AA5: =INDIRECT(CONCATENATE($BY5,"!",AA$1)) -> 0 | AB5: =LOOKUP($BY5,HandicapLookup) -> 5 | AC5: =AA5-AB5 -> -5 | AE5: =INDIRECT(CONCATENATE($BY5,"!",AE$1)) -> 0 | AF5: =LOOKUP($BY5,HandicapLookup) -> 5 | AG5: =AE5-AF5 -> -5 | AI5: =INDIRECT(CONCATENATE($BY5,"!",AI$1)) -> 0 | AJ5: =LOOKUP($BY5,HandicapLookup) -> 5 | AK5: =AI5-AJ5 -> -5 | AM5: =INDIRECT(CONCATENATE($BY5,"!",AM$1)) -> 0 | AN5: =LOOKUP($BY5,HandicapLookup) -> 5 | AO5: =AM5-AN5 -> -5 | AQ5: =INDIRECT(CONCATENATE($BY5,"!",AQ$1)) -> 0 | AR5: =LOOKUP($BY5,HandicapLookup) -> 5 | AS5: =AQ5-AR5 -> -5 | AU5: =INDIRECT(CONCATENATE($BY5,"!",AU$1)) -> 0 | AV5: =LOOKUP($BY5,HandicapLookup) -> 5 | AW5: =AU5-AV5 -> -5 | AY5: =INDIRECT(CONCATENATE($BY5,"!",AY$1)) -> 0 | AZ5: =LOOKUP($BY5,HandicapLookup) -> 5 | BA5: =AY5-AZ5 -> -5 | BC5: =INDIRECT(CONCATENATE($BY5,"!",BC$1)) -> 0 | BD5: =LOOKUP($BY5,HandicapLookup) -> 5 | BE5: =BC5-BD5 -> -5 | BG5: =INDIRECT(CONCATENATE($BY5,"!",BG$1)) -> 0 | BH5: =LOOKUP($BY5,HandicapLookup) -> 5 | BI5: =BG5-BH5 -> -5 | BK5: =INDIRECT(CONCATENATE($BY5,"!",BK$1)) -> 0 | BL5: =LOOKUP($BY5,HandicapLookup) -> 5 | BM5: =BK5-BL5 -> -5 | BO5: =J5+N5+R5+V5+Z5+AD5+AH5+AL5+AP5+AT5+AX5+BB5+BF5+BJ5+BN5 -> 0 | BQ5: =Linton!C44 -> 0 | BS5: =BO5+BQ5 -> 0 | BT5: =Linton!E44 -> 0 | BU5: =IFERROR((BO5+BQ5)/BT5,0) -> 0 | BV5: =A5 -> Andy Linton | BW5: =FIND(" ",BV5) -> 5 | BX5: =MID(BV5,BW5,99) -> Linton | BY5: linton | CA5: =MIN(G5,K5,O5,S5,W5,AA5,AE5,AI5,AM5,AQ5,AU5,AY5,BC5,BG5,BK5) -> 0 | CB5: =MIN(H5,L5,P5,T5,X5,AB5,AF5,AJ5,AN5,AR5,AV5,AZ5,BD5,BH5,BL5) -> 5 | CC5: =MIN(I5,M5,Q5,U5,Y5,AC5,AG5,AK5,AO5,AS5,AW5,BA5,BE5,BI5,BM5) -> -5 | CD5: =MAX(G5,K5,O5,S5,W5,AA5,AE5,AI5,AM5,AQ5,AU5,AY5,BC5,BG5,BK5) -> 0 | CE5: =MAX(H5,L5,P5,T5,X5,AB5,AF5,AJ5,AN5,AR5,AV5,AZ5,BD5,BH5,BL5) -> 5 | CF5: =MAX(I5,M5,Q5,U5,Y5,AC5,AG5,AK5,AO5,AS5,AW5,BA5,BE5,BI5,BM5) -> -5
A6: =INDIRECT(CONCATENATE(BY6,"!A1")) -> Bette Mohsinger | F6: 3000 | G6: =INDIRECT(CONCATENATE($BY6,"!",G$1)) -> 0 | H6: =LOOKUP($BY6,HandicapLookup) -> 12 | I6: =G6-H6 -> -12 | K6: =INDIRECT(CONCATENATE($BY6,"!",K$1)) -> 0 | L6: =LOOKUP($BY6,HandicapLookup) -> 12 | M6: =K6-L6 -> -12 | O6: =INDIRECT(CONCATENATE($BY6,"!",O$1)) -> 0 | P6: =LOOKUP($BY6,HandicapLookup) -> 12 | Q6: =O6-P6 -> -12 | S6: =INDIRECT(CONCATENATE($BY6,"!",S$1)) -> 0 | T6: =LOOKUP($BY6,HandicapLookup) -> 12 | U6: =S6-T6 -> -12 | W6: =INDIRECT(CONCATENATE($BY6,"!",W$1)) -> 0 | X6: =LOOKUP($BY6,HandicapLookup) -> 12 | Y6: =W6-X6 -> -12 | AA6: =INDIRECT(CONCATENATE($BY6,"!",AA$1)) -> 0 | AB6: =LOOKUP($BY6,HandicapLookup) -> 12 | AC6: =AA6-AB6 -> -12 | AE6: =INDIRECT(CONCATENATE($BY6,"!",AE$1)) -> 0 | AF6: =LOOKUP($BY6,HandicapLookup) -> 12 | AG6: =AE6-AF6 -> -12 | AI6: =INDIRECT(CONCATENATE($BY6,"!",AI$1)) -> 0 | AJ6: =LOOKUP($BY6,HandicapLookup) -> 12 | AK6: =AI6-AJ6 -> -12 | AM6: =INDIRECT(CONCATENATE($BY6,"!",AM$1)) -> 0 | AN6: =LOOKUP($BY6,HandicapLookup) -> 12 | AO6: =AM6-AN6 -> -12 | AQ6: =INDIRECT(CONCATENATE($BY6,"!",AQ$1)) -> 0 | AR6: =LOOKUP($BY6,HandicapLookup) -> 12 | AS6: =AQ6-AR6 -> -12 | AU6: =INDIRECT(CONCATENATE($BY6,"!",AU$1)) -> 0 | AV6: =LOOKUP($BY6,HandicapLookup) -> 12 | AW6: =AU6-AV6 -> -12 | AY6: =INDIRECT(CONCATENATE($BY6,"!",AY$1)) -> 0 | AZ6: =LOOKUP($BY6,HandicapLookup) -> 12 | BA6: =AY6-AZ6 -> -12 | BC6: =INDIRECT(CONCATENATE($BY6,"!",BC$1)) -> 0 | BD6: =LOOKUP($BY6,HandicapLookup) -> 12 | BE6: =BC6-BD6 -> -12 | BG6: =INDIRECT(CONCATENATE($BY6,"!",BG$1)) -> 0 | BH6: =LOOKUP($BY6,HandicapLookup) -> 12 | BI6: =BG6-BH6 -> -12 | BK6: =INDIRECT(CONCATENATE($BY6,"!",BK$1)) -> 0 | BL6: =LOOKUP($BY6,HandicapLookup) -> 12 | BM6: =BK6-BL6 -> -12 | BO6: =J6+N6+R6+V6+Z6+AD6+AH6+AL6+AP6+AT6+AX6+BB6+BF6+BJ6+BN6 -> 0 | BQ6: =Mohsinger_T!C44 -> 0 | BS6: =BO6+BQ6 -> 0 | BT6: =Mohsinger_T!E44 -> 0 | BU6: =IFERROR((BO6+BQ6)/BT6,0) -> 0 | BV6: =A6 -> Bette Mohsinger | BW6: =FIND(" ",BV6) -> 6 | BX6: =MID(BV6,BW6,99) -> Mohsinger | BY6: mohsinger_b | CA6: =MIN(G6,K6,O6,S6,W6,AA6,AE6,AI6,AM6,AQ6,AU6,AY6,BC6,BG6,BK6) -> 0 | CB6: =MIN(H6,L6,P6,T6,X6,AB6,AF6,AJ6,AN6,AR6,AV6,AZ6,BD6,BH6,BL6) -> 12 | CC6: =MIN(I6,M6,Q6,U6,Y6,AC6,AG6,AK6,AO6,AS6,AW6,BA6,BE6,BI6,BM6) -> -12 | CD6: =MAX(G6,K6,O6,S6,W6,AA6,AE6,AI6,AM6,AQ6,AU6,AY6,BC6,BG6,BK6) -> 0 | CE6: =MAX(H6,L6,P6,T6,X6,AB6,AF6,AJ6,AN6,AR6,AV6,AZ6,BD6,BH6,BL6) -> 12 | CF6: =MAX(I6,M6,Q6,U6,Y6,AC6,AG6,AK6,AO6,AS6,AW6,BA6,BE6,BI6,BM6) -> -12
A7: =INDIRECT(CONCATENATE(BY7,"!A1")) -> Bob Templeton | F7: 1500 | G7: =INDIRECT(CONCATENATE($BY7,"!",G$1)) -> 0 | H7: =LOOKUP($BY7,HandicapLookup) -> 20 | I7: =G7-H7 -> -20 | K7: =INDIRECT(CONCATENATE($BY7,"!",K$1)) -> 0 | L7: =LOOKUP($BY7,HandicapLookup) -> 20 | M7: =K7-L7 -> -20 | O7: =INDIRECT(CONCATENATE($BY7,"!",O$1)) -> 0 | P7: =LOOKUP($BY7,HandicapLookup) -> 20 | Q7: =O7-P7 -> -20 | S7: =INDIRECT(CONCATENATE($BY7,"!",S$1)) -> 0 | T7: =LOOKUP($BY7,HandicapLookup) -> 20 | U7: =S7-T7 -> -20 | W7: =INDIRECT(CONCATENATE($BY7,"!",W$1)) -> 0 | X7: =LOOKUP($BY7,HandicapLookup) -> 20 | Y7: =W7-X7 -> -20 | AA7: =INDIRECT(CONCATENATE($BY7,"!",AA$1)) -> 0 | AB7: =LOOKUP($BY7,HandicapLookup) -> 20 | AC7: =AA7-AB7 -> -20 | AE7: =INDIRECT(CONCATENATE($BY7,"!",AE$1)) -> 0 | AF7: =LOOKUP($BY7,HandicapLookup) -> 20 | AG7: =AE7-AF7 -> -20 | AI7: =INDIRECT(CONCATENATE($BY7,"!",AI$1)) -> 0 | AJ7: =LOOKUP($BY7,HandicapLookup) -> 20 | AK7: =AI7-AJ7 -> -20 | AM7: =INDIRECT(CONCATENATE($BY7,"!",AM$1)) -> 0 | AN7: =LOOKUP($BY7,HandicapLookup) -> 20 | AO7: =AM7-AN7 -> -20 | AQ7: =INDIRECT(CONCATENATE($BY7,"!",AQ$1)) -> 0 | AR7: =LOOKUP($BY7,HandicapLookup) -> 20 | AS7: =AQ7-AR7 -> -20 | AU7: =INDIRECT(CONCATENATE($BY7,"!",AU$1)) -> 0 | AV7: =LOOKUP($BY7,HandicapLookup) -> 20 | AW7: =AU7-AV7 -> -20 | AY7: =INDIRECT(CONCATENATE($BY7,"!",AY$1)) -> 0 | AZ7: =LOOKUP($BY7,HandicapLookup) -> 20 | BA7: =AY7-AZ7 -> -20 | BC7: =INDIRECT(CONCATENATE($BY7,"!",BC$1)) -> 0 | BD7: =LOOKUP($BY7,HandicapLookup) -> 20 | BE7: =BC7-BD7 -> -20 | BG7: =INDIRECT(CONCATENATE($BY7,"!",BG$1)) -> 0 | BH7: =LOOKUP($BY7,HandicapLookup) -> 20 | BI7: =BG7-BH7 -> -20 | BK7: =INDIRECT(CONCATENATE($BY7,"!",BK$1)) -> 0 | BL7: =LOOKUP($BY7,HandicapLookup) -> 20 | BM7: =BK7-BL7 -> -20 | BO7: =J7+N7+R7+V7+Z7+AD7+AH7+AL7+AP7+AT7+AX7+BB7+BF7+BJ7+BN7 -> 0 | BQ7: =Templeton!C44 -> 0 | BS7: =BO7+BQ7 -> 0 | BT7: =Templeton!E44 -> 0 | BU7: =IFERROR((BO7+BQ7)/BT7,0) -> 0 | BV7: =A7 -> Bob Templeton | BW7: =FIND(" ",BV7) -> 4 | BX7: =MID(BV7,BW7,99) -> Templeton | BY7: templeton | CA7: =MIN(G7,K7,O7,S7,W7,AA7,AE7,AI7,AM7,AQ7,AU7,AY7,BC7,BG7,BK7) -> 0 | CB7: =MIN(H7,L7,P7,T7,X7,AB7,AF7,AJ7,AN7,AR7,AV7,AZ7,BD7,BH7,BL7) -> 20 | CC7: =MIN(I7,M7,Q7,U7,Y7,AC7,AG7,AK7,AO7,AS7,AW7,BA7,BE7,BI7,BM7) -> -20 | CD7: =MAX(G7,K7,O7,S7,W7,AA7,AE7,AI7,AM7,AQ7,AU7,AY7,BC7,BG7,BK7) -> 0 | CE7: =MAX(H7,L7,P7,T7,X7,AB7,AF7,AJ7,AN7,AR7,AV7,AZ7,BD7,BH7,BL7) -> 20 | CF7: =MAX(I7,M7,Q7,U7,Y7,AC7,AG7,AK7,AO7,AS7,AW7,BA7,BE7,BI7,BM7) -> -20
A8: =INDIRECT(CONCATENATE(BY8,"!A1")) -> Brian McGlaughlin | F8: 2000 | G8: =INDIRECT(CONCATENATE($BY8,"!",G$1)) -> 0 | H8: =LOOKUP($BY8,HandicapLookup) -> 12 | I8: =G8-H8 -> -12 | K8: =INDIRECT(CONCATENATE($BY8,"!",K$1)) -> 0 | L8: =LOOKUP($BY8,HandicapLookup) -> 12 | M8: =K8-L8 -> -12 | O8: =INDIRECT(CONCATENATE($BY8,"!",O$1)) -> 0 | P8: =LOOKUP($BY8,HandicapLookup) -> 12 | Q8: =O8-P8 -> -12 | S8: =INDIRECT(CONCATENATE($BY8,"!",S$1)) -> 0 | T8: =LOOKUP($BY8,HandicapLookup) -> 12 | U8: =S8-T8 -> -12 | W8: =INDIRECT(CONCATENATE($BY8,"!",W$1)) -> 0 | X8: =LOOKUP($BY8,HandicapLookup) -> 12 | Y8: =W8-X8 -> -12 | AA8: =INDIRECT(CONCATENATE($BY8,"!",AA$1)) -> 0 | AB8: =LOOKUP($BY8,HandicapLookup) -> 12 | AC8: =AA8-AB8 -> -12 | AE8: =INDIRECT(CONCATENATE($BY8,"!",AE$1)) -> 0 | AF8: =LOOKUP($BY8,HandicapLookup) -> 12 | AG8: =AE8-AF8 -> -12 | AI8: =INDIRECT(CONCATENATE($BY8,"!",AI$1)) -> 0 | AJ8: =LOOKUP($BY8,HandicapLookup) -> 12 | AK8: =AI8-AJ8 -> -12 | AM8: =INDIRECT(CONCATENATE($BY8,"!",AM$1)) -> 0 | AN8: =LOOKUP($BY8,HandicapLookup) -> 12 | AO8: =AM8-AN8 -> -12 | AQ8: =INDIRECT(CONCATENATE($BY8,"!",AQ$1)) -> 0 | AR8: =LOOKUP($BY8,HandicapLookup) -> 12 | AS8: =AQ8-AR8 -> -12 | AU8: =INDIRECT(CONCATENATE($BY8,"!",AU$1)) -> 0 | AV8: =LOOKUP($BY8,HandicapLookup) -> 12 | AW8: =AU8-AV8 -> -12 | AY8: =INDIRECT(CONCATENATE($BY8,"!",AY$1)) -> 0 | AZ8: =LOOKUP($BY8,HandicapLookup) -> 12 | BA8: =AY8-AZ8 -> -12 | BC8: =INDIRECT(CONCATENATE($BY8,"!",BC$1)) -> 0 | BD8: =LOOKUP($BY8,HandicapLookup) -> 12 | BE8: =BC8-BD8 -> -12 | BG8: =INDIRECT(CONCATENATE($BY8,"!",BG$1)) -> 0 | BH8: =LOOKUP($BY8,HandicapLookup) -> 12 | BI8: =BG8-BH8 -> -12 | BK8: =INDIRECT(CONCATENATE($BY8,"!",BK$1)) -> 0 | BL8: =LOOKUP($BY8,HandicapLookup) -> 12 | BM8: =BK8-BL8 -> -12 | BO8: =J8+N8+R8+V8+Z8+AD8+AH8+AL8+AP8+AT8+AX8+BB8+BF8+BJ8+BN8 -> 0 | BQ8: =McLaughlin!C44 -> 0 | BS8: =BO8+BQ8 -> 0 | BT8: =McLaughlin!E44 -> 0 | BU8: =IFERROR((BO8+BQ8)/BT8,0) -> 0 | BV8: =A8 -> Brian McGlaughlin | BW8: =FIND(" ",BV8) -> 6 | BX8: =MID(BV8,BW8,99) -> McGlaughlin | BY8: mclaughlin | CA8: =MIN(G8,K8,O8,S8,W8,AA8,AE8,AI8,AM8,AQ8,AU8,AY8,BC8,BG8,BK8) -> 0 | CB8: =MIN(H8,L8,P8,T8,X8,AB8,AF8,AJ8,AN8,AR8,AV8,AZ8,BD8,BH8,BL8) -> 12 | CC8: =MIN(I8,M8,Q8,U8,Y8,AC8,AG8,AK8,AO8,AS8,AW8,BA8,BE8,BI8,BM8) -> -12 | CD8: =MAX(G8,K8,O8,S8,W8,AA8,AE8,AI8,AM8,AQ8,AU8,AY8,BC8,BG8,BK8) -> 0 | CE8: =MAX(H8,L8,P8,T8,X8,AB8,AF8,AJ8,AN8,AR8,AV8,AZ8,BD8,BH8,BL8) -> 12 | CF8: =MAX(I8,M8,Q8,U8,Y8,AC8,AG8,AK8,AO8,AS8,AW8,BA8,BE8,BI8,BM8) -> -12
A9: =INDIRECT(CONCATENATE(BY9,"!A1")) -> Dan Fusco | F9: 600 | G9: =INDIRECT(CONCATENATE($BY9,"!",G$1)) -> 0 | H9: =LOOKUP($BY9,HandicapLookup) -> 8 | I9: =G9-H9 -> -8 | K9: =INDIRECT(CONCATENATE($BY9,"!",K$1)) -> 0 | L9: =LOOKUP($BY9,HandicapLookup) -> 8 | M9: =K9-L9 -> -8 | O9: =INDIRECT(CONCATENATE($BY9,"!",O$1)) -> 0 | P9: =LOOKUP($BY9,HandicapLookup) -> 8 | Q9: =O9-P9 -> -8 | S9: =INDIRECT(CONCATENATE($BY9,"!",S$1)) -> 0 | T9: =LOOKUP($BY9,HandicapLookup) -> 8 | U9: =S9-T9 -> -8 | W9: =INDIRECT(CONCATENATE($BY9,"!",W$1)) -> 0 | X9: =LOOKUP($BY9,HandicapLookup) -> 8 | Y9: =W9-X9 -> -8 | AA9: =INDIRECT(CONCATENATE($BY9,"!",AA$1)) -> 0 | AB9: =LOOKUP($BY9,HandicapLookup) -> 8 | AC9: =AA9-AB9 -> -8 | AE9: =INDIRECT(CONCATENATE($BY9,"!",AE$1)) -> 0 | AF9: =LOOKUP($BY9,HandicapLookup) -> 8 | AG9: =AE9-AF9 -> -8 | AI9: =INDIRECT(CONCATENATE($BY9,"!",AI$1)) -> 0 | AJ9: =LOOKUP($BY9,HandicapLookup) -> 8 | AK9: =AI9-AJ9 -> -8 | AM9: =INDIRECT(CONCATENATE($BY9,"!",AM$1)) -> 0 | AN9: =LOOKUP($BY9,HandicapLookup) -> 8 | AO9: =AM9-AN9 -> -8 | AQ9: =INDIRECT(CONCATENATE($BY9,"!",AQ$1)) -> 0 | AR9: =LOOKUP($BY9,HandicapLookup) -> 8 | AS9: =AQ9-AR9 -> -8 | AU9: =INDIRECT(CONCATENATE($BY9,"!",AU$1)) -> 0 | AV9: =LOOKUP($BY9,HandicapLookup) -> 8 | AW9: =AU9-AV9 -> -8 | AY9: =INDIRECT(CONCATENATE($BY9,"!",AY$1)) -> 0 | AZ9: =LOOKUP($BY9,HandicapLookup) -> 8 | BA9: =AY9-AZ9 -> -8 | BC9: =INDIRECT(CONCATENATE($BY9,"!",BC$1)) -> 0 | BD9: =LOOKUP($BY9,HandicapLookup) -> 8 | BE9: =BC9-BD9 -> -8 | BG9: =INDIRECT(CONCATENATE($BY9,"!",BG$1)) -> 0 | BH9: =LOOKUP($BY9,HandicapLookup) -> 8 | BI9: =BG9-BH9 -> -8 | BK9: =INDIRECT(CONCATENATE($BY9,"!",BK$1)) -> 0 | BL9: =LOOKUP($BY9,HandicapLookup) -> 8 | BM9: =BK9-BL9 -> -8 | BO9: =J9+N9+R9+V9+Z9+AD9+AH9+AL9+AP9+AT9+AX9+BB9+BF9+BJ9+BN9 -> 0 | BQ9: =Fusco_D!C44 -> 0 | BS9: =BO9+BQ9 -> 0 | BT9: =Fusco_D!E44 -> 0 | BU9: =IFERROR((BO9+BQ9)/BT9,0) -> 0 | BV9: =A9 -> Dan Fusco | BW9: =FIND(" ",BV9) -> 4 | BX9: =MID(BV9,BW9,99) -> Fusco | BY9: fusco_d | CA9: =MIN(G9,K9,O9,S9,W9,AA9,AE9,AI9,AM9,AQ9,AU9,AY9,BC9,BG9,BK9) -> 0 | CB9: =MIN(H9,L9,P9,T9,X9,AB9,AF9,AJ9,AN9,AR9,AV9,AZ9,BD9,BH9,BL9) -> 8 | CC9: =MIN(I9,M9,Q9,U9,Y9,AC9,AG9,AK9,AO9,AS9,AW9,BA9,BE9,BI9,BM9) -> -8 | CD9: =MAX(G9,K9,O9,S9,W9,AA9,AE9,AI9,AM9,AQ9,AU9,AY9,BC9,BG9,BK9) -> 0 | CE9: =MAX(H9,L9,P9,T9,X9,AB9,AF9,AJ9,AN9,AR9,AV9,AZ9,BD9,BH9,BL9) -> 8 | CF9: =MAX(I9,M9,Q9,U9,Y9,AC9,AG9,AK9,AO9,AS9,AW9,BA9,BE9,BI9,BM9) -> -8
A10: =INDIRECT(CONCATENATE(BY10,"!A1")) -> Dan Palmerino | F10: 500 | G10: =INDIRECT(CONCATENATE($BY10,"!",G$1)) -> 0 | H10: =LOOKUP($BY10,HandicapLookup) -> 8 | I10: =G10-H10 -> -8 | K10: =INDIRECT(CONCATENATE($BY10,"!",K$1)) -> 0 | L10: =LOOKUP($BY10,HandicapLookup) -> 8 | M10: =K10-L10 -> -8 | O10: =INDIRECT(CONCATENATE($BY10,"!",O$1)) -> 0 | P10: =LOOKUP($BY10,HandicapLookup) -> 8 | Q10: =O10-P10 -> -8 | S10: =INDIRECT(CONCATENATE($BY10,"!",S$1)) -> 0 | T10: =LOOKUP($BY10,HandicapLookup) -> 8 | U10: =S10-T10 -> -8 | W10: =INDIRECT(CONCATENATE($BY10,"!",W$1)) -> 0 | X10: =LOOKUP($BY10,HandicapLookup) -> 8 | Y10: =W10-X10 -> -8 | AA10: =INDIRECT(CONCATENATE($BY10,"!",AA$1)) -> 0 | AB10: =LOOKUP($BY10,HandicapLookup) -> 8 | AC10: =AA10-AB10 -> -8 | AE10: =INDIRECT(CONCATENATE($BY10,"!",AE$1)) -> 0 | AF10: =LOOKUP($BY10,HandicapLookup) -> 8 | AG10: =AE10-AF10 -> -8 | AI10: =INDIRECT(CONCATENATE($BY10,"!",AI$1)) -> 0 | AJ10: =LOOKUP($BY10,HandicapLookup) -> 8 | AK10: =AI10-AJ10 -> -8 | AM10: =INDIRECT(CONCATENATE($BY10,"!",AM$1)) -> 0 | AN10: =LOOKUP($BY10,HandicapLookup) -> 8 | AO10: =AM10-AN10 -> -8 | AQ10: =INDIRECT(CONCATENATE($BY10,"!",AQ$1)) -> 0 | AR10: =LOOKUP($BY10,HandicapLookup) -> 8 | AS10: =AQ10-AR10 -> -8 | AU10: =INDIRECT(CONCATENATE($BY10,"!",AU$1)) -> 0 | AV10: =LOOKUP($BY10,HandicapLookup) -> 8 | AW10: =AU10-AV10 -> -8 | AY10: =INDIRECT(CONCATENATE($BY10,"!",AY$1)) -> 0 | AZ10: =LOOKUP($BY10,HandicapLookup) -> 8 | BA10: =AY10-AZ10 -> -8 | BC10: =INDIRECT(CONCATENATE($BY10,"!",BC$1)) -> 0 | BD10: =LOOKUP($BY10,HandicapLookup) -> 8 | BE10: =BC10-BD10 -> -8 | BG10: =INDIRECT(CONCATENATE($BY10,"!",BG$1)) -> 0 | BH10: =LOOKUP($BY10,HandicapLookup) -> 8 | BI10: =BG10-BH10 -> -8 | BK10: =INDIRECT(CONCATENATE($BY10,"!",BK$1)) -> 0 | BL10: =LOOKUP($BY10,HandicapLookup) -> 8 | BM10: =BK10-BL10 -> -8 | BO10: =J10+N10+R10+V10+Z10+AD10+AH10+AL10+AP10+AT10+AX10+BB10+BF10+BJ10+BN10 -> 0 | BQ10: =Palmerino!C44 -> 0 | BS10: =BO10+BQ10 -> 0 | BT10: =Palmerino!E44 -> 0 | BU10: =IFERROR((BO10+BQ10)/BT10,0) -> 0 | BV10: =A10 -> Dan Palmerino | BW10: =FIND(" ",BV10) -> 4 | BX10: =MID(BV10,BW10,99) -> Palmerino | BY10: palmerino | CA10: =MIN(G10,K10,O10,S10,W10,AA10,AE10,AI10,AM10,AQ10,AU10,AY10,BC10,BG10,BK10) -> 0 | CB10: =MIN(H10,L10,P10,T10,X10,AB10,AF10,AJ10,AN10,AR10,AV10,AZ10,BD10,BH10,BL10) -> 8 | CC10: =MIN(I10,M10,Q10,U10,Y10,AC10,AG10,AK10,AO10,AS10,AW10,BA10,BE10,BI10,BM10) -> -8 | CD10: =MAX(G10,K10,O10,S10,W10,AA10,AE10,AI10,AM10,AQ10,AU10,AY10,BC10,BG10,BK10) -> 0 | CE10: =MAX(H10,L10,P10,T10,X10,AB10,AF10,AJ10,AN10,AR10,AV10,AZ10,BD10,BH10,BL10) -> 8 | CF10: =MAX(I10,M10,Q10,U10,Y10,AC10,AG10,AK10,AO10,AS10,AW10,BA10,BE10,BI10,BM10) -> -8
A11: =INDIRECT(CONCATENATE(BY11,"!A1")) -> Dave Taylor | F11: 450 | G11: =INDIRECT(CONCATENATE($BY11,"!",G$1)) -> 0 | H11: =LOOKUP($BY11,HandicapLookup) -> 13 | I11: =G11-H11 -> -13 | K11: =INDIRECT(CONCATENATE($BY11,"!",K$1)) -> 0 | L11: =LOOKUP($BY11,HandicapLookup) -> 13 | M11: =K11-L11 -> -13 | O11: =INDIRECT(CONCATENATE($BY11,"!",O$1)) -> 0 | P11: =LOOKUP($BY11,HandicapLookup) -> 13 | Q11: =O11-P11 -> -13 | S11: =INDIRECT(CONCATENATE($BY11,"!",S$1)) -> 0 | T11: =LOOKUP($BY11,HandicapLookup) -> 13 | U11: =S11-T11 -> -13 | W11: =INDIRECT(CONCATENATE($BY11,"!",W$1)) -> 0 | X11: =LOOKUP($BY11,HandicapLookup) -> 13 | Y11: =W11-X11 -> -13 | AA11: =INDIRECT(CONCATENATE($BY11,"!",AA$1)) -> 0 | AB11: =LOOKUP($BY11,HandicapLookup) -> 13 | AC11: =AA11-AB11 -> -13 | AE11: =INDIRECT(CONCATENATE($BY11,"!",AE$1)) -> 0 | AF11: =LOOKUP($BY11,HandicapLookup) -> 13 | AG11: =AE11-AF11 -> -13 | AI11: =INDIRECT(CONCATENATE($BY11,"!",AI$1)) -> 0 | AJ11: =LOOKUP($BY11,HandicapLookup) -> 13 | AK11: =AI11-AJ11 -> -13 | AM11: =INDIRECT(CONCATENATE($BY11,"!",AM$1)) -> 0 | AN11: =LOOKUP($BY11,HandicapLookup) -> 13 | AO11: =AM11-AN11 -> -13 | AQ11: =INDIRECT(CONCATENATE($BY11,"!",AQ$1)) -> 0 | AR11: =LOOKUP($BY11,HandicapLookup) -> 13 | AS11: =AQ11-AR11 -> -13 | AU11: =INDIRECT(CONCATENATE($BY11,"!",AU$1)) -> 0 | AV11: =LOOKUP($BY11,HandicapLookup) -> 13 | AW11: =AU11-AV11 -> -13 | AY11: =INDIRECT(CONCATENATE($BY11,"!",AY$1)) -> 0 | AZ11: =LOOKUP($BY11,HandicapLookup) -> 13 | BA11: =AY11-AZ11 -> -13 | BC11: =INDIRECT(CONCATENATE($BY11,"!",BC$1)) -> 0 | BD11: =LOOKUP($BY11,HandicapLookup) -> 13 | BE11: =BC11-BD11 -> -13 | BG11: =INDIRECT(CONCATENATE($BY11,"!",BG$1)) -> 0 | BH11: =LOOKUP($BY11,HandicapLookup) -> 13 | BI11: =BG11-BH11 -> -13 | BK11: =INDIRECT(CONCATENATE($BY11,"!",BK$1)) -> 0 | BL11: =LOOKUP($BY11,HandicapLookup) -> 13 | BM11: =BK11-BL11 -> -13 | BO11: =J11+N11+R11+V11+Z11+AD11+AH11+AL11+AP11+AT11+AX11+BB11+BF11+BJ11+BN11 -> 0 | BQ11: =Taylor!C44 -> 0 | BS11: =BO11+BQ11 -> 0 | BT11: =Taylor!E44 -> 0 | BU11: =IFERROR((BO11+BQ11)/BT11,0) -> 0 | BV11: =A11 -> Dave Taylor | BW11: =FIND(" ",BV11) -> 5 | BX11: =MID(BV11,BW11,99) -> Taylor | BY11: taylor | CA11: =MIN(G11,K11,O11,S11,W11,AA11,AE11,AI11,AM11,AQ11,AU11,AY11,BC11,BG11,BK11) -> 0 | CB11: =MIN(H11,L11,P11,T11,X11,AB11,AF11,AJ11,AN11,AR11,AV11,AZ11,BD11,BH11,BL11) -> 13 | CC11: =MIN(I11,M11,Q11,U11,Y11,AC11,AG11,AK11,AO11,AS11,AW11,BA11,BE11,BI11,BM11) -> -13 | CD11: =MAX(G11,K11,O11,S11,W11,AA11,AE11,AI11,AM11,AQ11,AU11,AY11,BC11,BG11,BK11) -> 0 | CE11: =MAX(H11,L11,P11,T11,X11,AB11,AF11,AJ11,AN11,AR11,AV11,AZ11,BD11,BH11,BL11) -> 13 | CF11: =MAX(I11,M11,Q11,U11,Y11,AC11,AG11,AK11,AO11,AS11,AW11,BA11,BE11,BI11,BM11) -> -13
A12: =INDIRECT(CONCATENATE(BY12,"!A1")) -> Glenn Kreig | F12: 1000 | G12: =INDIRECT(CONCATENATE($BY12,"!",G$1)) -> 0 | H12: =LOOKUP($BY12,HandicapLookup) -> 13 | I12: =G12-H12 -> -13 | K12: =INDIRECT(CONCATENATE($BY12,"!",K$1)) -> 0 | L12: =LOOKUP($BY12,HandicapLookup) -> 13 | M12: =K12-L12 -> -13 | O12: =INDIRECT(CONCATENATE($BY12,"!",O$1)) -> 0 | P12: =LOOKUP($BY12,HandicapLookup) -> 13 | Q12: =O12-P12 -> -13 | S12: =INDIRECT(CONCATENATE($BY12,"!",S$1)) -> 0 | T12: =LOOKUP($BY12,HandicapLookup) -> 13 | U12: =S12-T12 -> -13 | W12: =INDIRECT(CONCATENATE($BY12,"!",W$1)) -> 0 | X12: =LOOKUP($BY12,HandicapLookup) -> 13 | Y12: =W12-X12 -> -13 | AA12: =INDIRECT(CONCATENATE($BY12,"!",AA$1)) -> 0 | AB12: =LOOKUP($BY12,HandicapLookup) -> 13 | AC12: =AA12-AB12 -> -13 | AE12: =INDIRECT(CONCATENATE($BY12,"!",AE$1)) -> 0 | AF12: =LOOKUP($BY12,HandicapLookup) -> 13 | AG12: =AE12-AF12 -> -13 | AI12: =INDIRECT(CONCATENATE($BY12,"!",AI$1)) -> 0 | AJ12: =LOOKUP($BY12,HandicapLookup) -> 13 | AK12: =AI12-AJ12 -> -13 | AM12: =INDIRECT(CONCATENATE($BY12,"!",AM$1)) -> 0 | AN12: =LOOKUP($BY12,HandicapLookup) -> 13 | AO12: =AM12-AN12 -> -13 | AQ12: =INDIRECT(CONCATENATE($BY12,"!",AQ$1)) -> 0 | AR12: =LOOKUP($BY12,HandicapLookup) -> 13 | AS12: =AQ12-AR12 -> -13 | AU12: =INDIRECT(CONCATENATE($BY12,"!",AU$1)) -> 0 | AV12: =LOOKUP($BY12,HandicapLookup) -> 13 | AW12: =AU12-AV12 -> -13 | AY12: =INDIRECT(CONCATENATE($BY12,"!",AY$1)) -> 0 | AZ12: =LOOKUP($BY12,HandicapLookup) -> 13 | BA12: =AY12-AZ12 -> -13 | BC12: =INDIRECT(CONCATENATE($BY12,"!",BC$1)) -> 0 | BD12: =LOOKUP($BY12,HandicapLookup) -> 13 | BE12: =BC12-BD12 -> -13 | BG12: =INDIRECT(CONCATENATE($BY12,"!",BG$1)) -> 0 | BH12: =LOOKUP($BY12,HandicapLookup) -> 13 | BI12: =BG12-BH12 -> -13 | BK12: =INDIRECT(CONCATENATE($BY12,"!",BK$1)) -> 0 | BL12: =LOOKUP($BY12,HandicapLookup) -> 13 | BM12: =BK12-BL12 -> -13 | BO12: =J12+N12+R12+V12+Z12+AD12+AH12+AL12+AP12+AT12+AX12+BB12+BF12+BJ12+BN12 -> 0 | BQ12: =Kreig!C44 -> 0 | BS12: =BO12+BQ12 -> 0 | BT12: =Kreig!E44 -> 0 | BU12: =IFERROR((BO12+BQ12)/BT12,0) -> 0 | BV12: =A12 -> Glenn Kreig | BW12: =FIND(" ",BV12) -> 6 | BX12: =MID(BV12,BW12,99) -> Kreig | BY12: kreig | CA12: =MIN(G12,K12,O12,S12,W12,AA12,AE12,AI12,AM12,AQ12,AU12,AY12,BC12,BG12,BK12) -> 0 | CB12: =MIN(H12,L12,P12,T12,X12,AB12,AF12,AJ12,AN12,AR12,AV12,AZ12,BD12,BH12,BL12) -> 13 | CC12: =MIN(I12,M12,Q12,U12,Y12,AC12,AG12,AK12,AO12,AS12,AW12,BA12,BE12,BI12,BM12) -> -13 | CD12: =MAX(G12,K12,O12,S12,W12,AA12,AE12,AI12,AM12,AQ12,AU12,AY12,BC12,BG12,BK12) -> 0 | CE12: =MAX(H12,L12,P12,T12,X12,AB12,AF12,AJ12,AN12,AR12,AV12,AZ12,BD12,BH12,BL12) -> 13 | CF12: =MAX(I12,M12,Q12,U12,Y12,AC12,AG12,AK12,AO12,AS12,AW12,BA12,BE12,BI12,BM12) -> -13
A13: =INDIRECT(CONCATENATE(BY13,"!A1")) -> Jim Daviero | F13: 300 | G13: =INDIRECT(CONCATENATE($BY13,"!",G$1)) -> 0 | H13: =LOOKUP($BY13,HandicapLookup) -> 9 | I13: =G13-H13 -> -9 | K13: =INDIRECT(CONCATENATE($BY13,"!",K$1)) -> 0 | L13: =LOOKUP($BY13,HandicapLookup) -> 9 | M13: =K13-L13 -> -9 | O13: =INDIRECT(CONCATENATE($BY13,"!",O$1)) -> 0 | P13: =LOOKUP($BY13,HandicapLookup) -> 9 | Q13: =O13-P13 -> -9 | S13: =INDIRECT(CONCATENATE($BY13,"!",S$1)) -> 0 | T13: =LOOKUP($BY13,HandicapLookup) -> 9 | U13: =S13-T13 -> -9 | W13: =INDIRECT(CONCATENATE($BY13,"!",W$1)) -> 0 | X13: =LOOKUP($BY13,HandicapLookup) -> 9 | Y13: =W13-X13 -> -9 | AA13: =INDIRECT(CONCATENATE($BY13,"!",AA$1)) -> 0 | AB13: =LOOKUP($BY13,HandicapLookup) -> 9 | AC13: =AA13-AB13 -> -9 | AE13: =INDIRECT(CONCATENATE($BY13,"!",AE$1)) -> 0 | AF13: =LOOKUP($BY13,HandicapLookup) -> 9 | AG13: =AE13-AF13 -> -9 | AI13: =INDIRECT(CONCATENATE($BY13,"!",AI$1)) -> 0 | AJ13: =LOOKUP($BY13,HandicapLookup) -> 9 | AK13: =AI13-AJ13 -> -9 | AM13: =INDIRECT(CONCATENATE($BY13,"!",AM$1)) -> 0 | AN13: =LOOKUP($BY13,HandicapLookup) -> 9 | AO13: =AM13-AN13 -> -9 | AQ13: =INDIRECT(CONCATENATE($BY13,"!",AQ$1)) -> 0 | AR13: =LOOKUP($BY13,HandicapLookup) -> 9 | AS13: =AQ13-AR13 -> -9 | AU13: =INDIRECT(CONCATENATE($BY13,"!",AU$1)) -> 0 | AV13: =LOOKUP($BY13,HandicapLookup) -> 9 | AW13: =AU13-AV13 -> -9 | AY13: =INDIRECT(CONCATENATE($BY13,"!",AY$1)) -> 0 | AZ13: =LOOKUP($BY13,HandicapLookup) -> 9 | BA13: =AY13-AZ13 -> -9 | BC13: =INDIRECT(CONCATENATE($BY13,"!",BC$1)) -> 0 | BD13: =LOOKUP($BY13,HandicapLookup) -> 9 | BE13: =BC13-BD13 -> -9 | BG13: =INDIRECT(CONCATENATE($BY13,"!",BG$1)) -> 0 | BH13: =LOOKUP($BY13,HandicapLookup) -> 9 | BI13: =BG13-BH13 -> -9 | BK13: =INDIRECT(CONCATENATE($BY13,"!",BK$1)) -> 0 | BL13: =LOOKUP($BY13,HandicapLookup) -> 9 | BM13: =BK13-BL13 -> -9 | BO13: =J13+N13+R13+V13+Z13+AD13+AH13+AL13+AP13+AT13+AX13+BB13+BF13+BJ13+BN13 -> 0 | BQ13: =Daviero!C44 -> 0 | BS13: =BO13+BQ13 -> 0 | BT13: =Daviero!E44 -> 0 | BU13: =IFERROR((BO13+BQ13)/BT13,0) -> 0 | BV13: =A13 -> Jim Daviero | BW13: =FIND(" ",BV13) -> 4 | BX13: =MID(BV13,BW13,99) -> Daviero | BY13: daviero | CA13: =MIN(G13,K13,O13,S13,W13,AA13,AE13,AI13,AM13,AQ13,AU13,AY13,BC13,BG13,BK13) -> 0 | CB13: =MIN(H13,L13,P13,T13,X13,AB13,AF13,AJ13,AN13,AR13,AV13,AZ13,BD13,BH13,BL13) -> 9 | CC13: =MIN(I13,M13,Q13,U13,Y13,AC13,AG13,AK13,AO13,AS13,AW13,BA13,BE13,BI13,BM13) -> -9 | CD13: =MAX(G13,K13,O13,S13,W13,AA13,AE13,AI13,AM13,AQ13,AU13,AY13,BC13,BG13,BK13) -> 0 | CE13: =MAX(H13,L13,P13,T13,X13,AB13,AF13,AJ13,AN13,AR13,AV13,AZ13,BD13,BH13,BL13) -> 9 | CF13: =MAX(I13,M13,Q13,U13,Y13,AC13,AG13,AK13,AO13,AS13,AW13,BA13,BE13,BI13,BM13) -> -9
A14: =INDIRECT(CONCATENATE(BY14,"!A1")) -> Mark Rusnak | F14: 2500 | G14: =INDIRECT(CONCATENATE($BY14,"!",G$1)) -> 0 | H14: =LOOKUP($BY14,HandicapLookup) -> 3 | I14: =G14-H14 -> -3 | K14: =INDIRECT(CONCATENATE($BY14,"!",K$1)) -> 0 | L14: =LOOKUP($BY14,HandicapLookup) -> 3 | M14: =K14-L14 -> -3 | O14: =INDIRECT(CONCATENATE($BY14,"!",O$1)) -> 0 | P14: =LOOKUP($BY14,HandicapLookup) -> 3 | Q14: =O14-P14 -> -3 | S14: =INDIRECT(CONCATENATE($BY14,"!",S$1)) -> 0 | T14: =LOOKUP($BY14,HandicapLookup) -> 3 | U14: =S14-T14 -> -3 | W14: =INDIRECT(CONCATENATE($BY14,"!",W$1)) -> 0 | X14: =LOOKUP($BY14,HandicapLookup) -> 3 | Y14: =W14-X14 -> -3 | AA14: =INDIRECT(CONCATENATE($BY14,"!",AA$1)) -> 0 | AB14: =LOOKUP($BY14,HandicapLookup) -> 3 | AC14: =AA14-AB14 -> -3 | AE14: =INDIRECT(CONCATENATE($BY14,"!",AE$1)) -> 0 | AF14: =LOOKUP($BY14,HandicapLookup) -> 3 | AG14: =AE14-AF14 -> -3 | AI14: =INDIRECT(CONCATENATE($BY14,"!",AI$1)) -> 0 | AJ14: =LOOKUP($BY14,HandicapLookup) -> 3 | AK14: =AI14-AJ14 -> -3 | AM14: =INDIRECT(CONCATENATE($BY14,"!",AM$1)) -> 0 | AN14: =LOOKUP($BY14,HandicapLookup) -> 3 | AO14: =AM14-AN14 -> -3 | AQ14: =INDIRECT(CONCATENATE($BY14,"!",AQ$1)) -> 0 | AR14: =LOOKUP($BY14,HandicapLookup) -> 3 | AS14: =AQ14-AR14 -> -3 | AU14: =INDIRECT(CONCATENATE($BY14,"!",AU$1)) -> 0 | AV14: =LOOKUP($BY14,HandicapLookup) -> 3 | AW14: =AU14-AV14 -> -3 | AY14: =INDIRECT(CONCATENATE($BY14,"!",AY$1)) -> 0 | AZ14: =LOOKUP($BY14,HandicapLookup) -> 3 | BA14: =AY14-AZ14 -> -3 | BC14: =INDIRECT(CONCATENATE($BY14,"!",BC$1)) -> 0 | BD14: =LOOKUP($BY14,HandicapLookup) -> 3 | BE14: =BC14-BD14 -> -3 | BG14: =INDIRECT(CONCATENATE($BY14,"!",BG$1)) -> 0 | BH14: =LOOKUP($BY14,HandicapLookup) -> 3 | BI14: =BG14-BH14 -> -3 | BK14: =INDIRECT(CONCATENATE($BY14,"!",BK$1)) -> 0 | BL14: =LOOKUP($BY14,HandicapLookup) -> 3 | BM14: =BK14-BL14 -> -3 | BO14: =J14+N14+R14+V14+Z14+AD14+AH14+AL14+AP14+AT14+AX14+BB14+BF14+BJ14+BN14 -> 0 | BQ14: =Rusnak!C44 -> 0 | BS14: =BO14+BQ14 -> 0 | BT14: =Rusnak!E44 -> 0 | BU14: =IFERROR((BO14+BQ14)/BT14,0) -> 0 | BV14: =A14 -> Mark Rusnak | BW14: =FIND(" ",BV14) -> 5 | BX14: =MID(BV14,BW14,99) -> Rusnak | BY14: rusnak | CA14: =MIN(G14,K14,O14,S14,W14,AA14,AE14,AI14,AM14,AQ14,AU14,AY14,BC14,BG14,BK14) -> 0 | CB14: =MIN(H14,L14,P14,T14,X14,AB14,AF14,AJ14,AN14,AR14,AV14,AZ14,BD14,BH14,BL14) -> 3 | CC14: =MIN(I14,M14,Q14,U14,Y14,AC14,AG14,AK14,AO14,AS14,AW14,BA14,BE14,BI14,BM14) -> -3 | CD14: =MAX(G14,K14,O14,S14,W14,AA14,AE14,AI14,AM14,AQ14,AU14,AY14,BC14,BG14,BK14) -> 0 | CE14: =MAX(H14,L14,P14,T14,X14,AB14,AF14,AJ14,AN14,AR14,AV14,AZ14,BD14,BH14,BL14) -> 3 | CF14: =MAX(I14,M14,Q14,U14,Y14,AC14,AG14,AK14,AO14,AS14,AW14,BA14,BE14,BI14,BM14) -> -3
A15: =INDIRECT(CONCATENATE(BY15,"!A1")) -> Pete Michalski | F15: 250 | G15: =INDIRECT(CONCATENATE($BY15,"!",G$1)) -> 0 | H15: =LOOKUP($BY15,HandicapLookup) -> 19 | I15: =G15-H15 -> -19 | K15: =INDIRECT(CONCATENATE($BY15,"!",K$1)) -> 0 | L15: =LOOKUP($BY15,HandicapLookup) -> 19 | M15: =K15-L15 -> -19 | O15: =INDIRECT(CONCATENATE($BY15,"!",O$1)) -> 0 | P15: =LOOKUP($BY15,HandicapLookup) -> 19 | Q15: =O15-P15 -> -19 | S15: =INDIRECT(CONCATENATE($BY15,"!",S$1)) -> 0 | T15: =LOOKUP($BY15,HandicapLookup) -> 19 | U15: =S15-T15 -> -19 | W15: =INDIRECT(CONCATENATE($BY15,"!",W$1)) -> 0 | X15: =LOOKUP($BY15,HandicapLookup) -> 19 | Y15: =W15-X15 -> -19 | AA15: =INDIRECT(CONCATENATE($BY15,"!",AA$1)) -> 0 | AB15: =LOOKUP($BY15,HandicapLookup) -> 19 | AC15: =AA15-AB15 -> -19 | AE15: =INDIRECT(CONCATENATE($BY15,"!",AE$1)) -> 0 | AF15: =LOOKUP($BY15,HandicapLookup) -> 19 | AG15: =AE15-AF15 -> -19 | AI15: =INDIRECT(CONCATENATE($BY15,"!",AI$1)) -> 0 | AJ15: =LOOKUP($BY15,HandicapLookup) -> 19 | AK15: =AI15-AJ15 -> -19 | AM15: =INDIRECT(CONCATENATE($BY15,"!",AM$1)) -> 0 | AN15: =LOOKUP($BY15,HandicapLookup) -> 19 | AO15: =AM15-AN15 -> -19 | AQ15: =INDIRECT(CONCATENATE($BY15,"!",AQ$1)) -> 0 | AR15: =LOOKUP($BY15,HandicapLookup) -> 19 | AS15: =AQ15-AR15 -> -19 | AU15: =INDIRECT(CONCATENATE($BY15,"!",AU$1)) -> 0 | AV15: =LOOKUP($BY15,HandicapLookup) -> 19 | AW15: =AU15-AV15 -> -19 | AY15: =INDIRECT(CONCATENATE($BY15,"!",AY$1)) -> 0 | AZ15: =LOOKUP($BY15,HandicapLookup) -> 19 | BA15: =AY15-AZ15 -> -19 | BC15: =INDIRECT(CONCATENATE($BY15,"!",BC$1)) -> 0 | BD15: =LOOKUP($BY15,HandicapLookup) -> 19 | BE15: =BC15-BD15 -> -19 | BG15: =INDIRECT(CONCATENATE($BY15,"!",BG$1)) -> 0 | BH15: =LOOKUP($BY15,HandicapLookup) -> 19 | BI15: =BG15-BH15 -> -19 | BK15: =INDIRECT(CONCATENATE($BY15,"!",BK$1)) -> 0 | BL15: =LOOKUP($BY15,HandicapLookup) -> 19 | BM15: =BK15-BL15 -> -19 | BO15: =J15+N15+R15+V15+Z15+AD15+AH15+AL15+AP15+AT15+AX15+BB15+BF15+BJ15+BN15 -> 0 | BQ15: =Michalski_P!C44 -> 0 | BS15: =BO15+BQ15 -> 0 | BT15: =Michalski_P!E44 -> 0 | BU15: =IFERROR((BO15+BQ15)/BT15,0) -> 0 | BV15: =A15 -> Pete Michalski | BW15: =FIND(" ",BV15) -> 5 | BX15: =MID(BV15,BW15,99) -> Michalski | BY15: michalski_p | CA15: =MIN(G15,K15,O15,S15,W15,AA15,AE15,AI15,AM15,AQ15,AU15,AY15,BC15,BG15,BK15) -> 0 | CB15: =MIN(H15,L15,P15,T15,X15,AB15,AF15,AJ15,AN15,AR15,AV15,AZ15,BD15,BH15,BL15) -> 19 | CC15: =MIN(I15,M15,Q15,U15,Y15,AC15,AG15,AK15,AO15,AS15,AW15,BA15,BE15,BI15,BM15) -> -19 | CD15: =MAX(G15,K15,O15,S15,W15,AA15,AE15,AI15,AM15,AQ15,AU15,AY15,BC15,BG15,BK15) -> 0 | CE15: =MAX(H15,L15,P15,T15,X15,AB15,AF15,AJ15,AN15,AR15,AV15,AZ15,BD15,BH15,BL15) -> 19 | CF15: =MAX(I15,M15,Q15,U15,Y15,AC15,AG15,AK15,AO15,AS15,AW15,BA15,BE15,BI15,BM15) -> -19
A16: =INDIRECT(CONCATENATE(BY16,"!A1")) -> Steve Fusco | F16: 700 | G16: =INDIRECT(CONCATENATE($BY16,"!",G$1)) -> 0 | H16: =LOOKUP($BY16,HandicapLookup) -> 12 | I16: =G16-H16 -> -12 | K16: =INDIRECT(CONCATENATE($BY16,"!",K$1)) -> 0 | L16: =LOOKUP($BY16,HandicapLookup) -> 12 | M16: =K16-L16 -> -12 | O16: =INDIRECT(CONCATENATE($BY16,"!",O$1)) -> 0 | P16: =LOOKUP($BY16,HandicapLookup) -> 12 | Q16: =O16-P16 -> -12 | S16: =INDIRECT(CONCATENATE($BY16,"!",S$1)) -> 0 | T16: =LOOKUP($BY16,HandicapLookup) -> 12 | U16: =S16-T16 -> -12 | W16: =INDIRECT(CONCATENATE($BY16,"!",W$1)) -> 0 | X16: =LOOKUP($BY16,HandicapLookup) -> 12 | Y16: =W16-X16 -> -12 | AA16: =INDIRECT(CONCATENATE($BY16,"!",AA$1)) -> 0 | AB16: =LOOKUP($BY16,HandicapLookup) -> 12 | AC16: =AA16-AB16 -> -12 | AE16: =INDIRECT(CONCATENATE($BY16,"!",AE$1)) -> 0 | AF16: =LOOKUP($BY16,HandicapLookup) -> 12 | AG16: =AE16-AF16 -> -12 | AI16: =INDIRECT(CONCATENATE($BY16,"!",AI$1)) -> 0 | AJ16: =LOOKUP($BY16,HandicapLookup) -> 12 | AK16: =AI16-AJ16 -> -12 | AM16: =INDIRECT(CONCATENATE($BY16,"!",AM$1)) -> 0 | AN16: =LOOKUP($BY16,HandicapLookup) -> 12 | AO16: =AM16-AN16 -> -12 | AQ16: =INDIRECT(CONCATENATE($BY16,"!",AQ$1)) -> 0 | AR16: =LOOKUP($BY16,HandicapLookup) -> 12 | AS16: =AQ16-AR16 -> -12 | AU16: =INDIRECT(CONCATENATE($BY16,"!",AU$1)) -> 0 | AV16: =LOOKUP($BY16,HandicapLookup) -> 12 | AW16: =AU16-AV16 -> -12 | AY16: =INDIRECT(CONCATENATE($BY16,"!",AY$1)) -> 0 | AZ16: =LOOKUP($BY16,HandicapLookup) -> 12 | BA16: =AY16-AZ16 -> -12 | BC16: =INDIRECT(CONCATENATE($BY16,"!",BC$1)) -> 0 | BD16: =LOOKUP($BY16,HandicapLookup) -> 12 | BE16: =BC16-BD16 -> -12 | BG16: =INDIRECT(CONCATENATE($BY16,"!",BG$1)) -> 0 | BH16: =LOOKUP($BY16,HandicapLookup) -> 12 | BI16: =BG16-BH16 -> -12 | BK16: =INDIRECT(CONCATENATE($BY16,"!",BK$1)) -> 0 | BL16: =LOOKUP($BY16,HandicapLookup) -> 12 | BM16: =BK16-BL16 -> -12 | BO16: =J16+N16+R16+V16+Z16+AD16+AH16+AL16+AP16+AT16+AX16+BB16+BF16+BJ16+BN16 -> 0 | BQ16: =Fusco_S!C44 -> 0 | BS16: =BO16+BQ16 -> 0 | BT16: =Fusco_S!E44 -> 0 | BU16: =IFERROR((BO16+BQ16)/BT16,0) -> 0 | BV16: =A16 -> Steve Fusco | BW16: =FIND(" ",BV16) -> 6 | BX16: =MID(BV16,BW16,99) -> Fusco | BY16: fusco_s | CA16: =MIN(G16,K16,O16,S16,W16,AA16,AE16,AI16,AM16,AQ16,AU16,AY16,BC16,BG16,BK16) -> 0 | CB16: =MIN(H16,L16,P16,T16,X16,AB16,AF16,AJ16,AN16,AR16,AV16,AZ16,BD16,BH16,BL16) -> 12 | CC16: =MIN(I16,M16,Q16,U16,Y16,AC16,AG16,AK16,AO16,AS16,AW16,BA16,BE16,BI16,BM16) -> -12 | CD16: =MAX(G16,K16,O16,S16,W16,AA16,AE16,AI16,AM16,AQ16,AU16,AY16,BC16,BG16,BK16) -> 0 | CE16: =MAX(H16,L16,P16,T16,X16,AB16,AF16,AJ16,AN16,AR16,AV16,AZ16,BD16,BH16,BL16) -> 12 | CF16: =MAX(I16,M16,Q16,U16,Y16,AC16,AG16,AK16,AO16,AS16,AW16,BA16,BE16,BI16,BM16) -> -12
A17: =INDIRECT(CONCATENATE(BY17,"!A1")) -> Sue Michalski | F17: 200 | G17: =INDIRECT(CONCATENATE($BY17,"!",G$1)) -> 0 | H17: =LOOKUP($BY17,HandicapLookup) -> 21 | I17: =G17-H17 -> -21 | K17: =INDIRECT(CONCATENATE($BY17,"!",K$1)) -> 0 | L17: =LOOKUP($BY17,HandicapLookup) -> 21 | M17: =K17-L17 -> -21 | O17: =INDIRECT(CONCATENATE($BY17,"!",O$1)) -> 0 | P17: =LOOKUP($BY17,HandicapLookup) -> 21 | Q17: =O17-P17 -> -21 | S17: =INDIRECT(CONCATENATE($BY17,"!",S$1)) -> 0 | T17: =LOOKUP($BY17,HandicapLookup) -> 21 | U17: =S17-T17 -> -21 | W17: =INDIRECT(CONCATENATE($BY17,"!",W$1)) -> 0 | X17: =LOOKUP($BY17,HandicapLookup) -> 21 | Y17: =W17-X17 -> -21 | AA17: =INDIRECT(CONCATENATE($BY17,"!",AA$1)) -> 0 | AB17: =LOOKUP($BY17,HandicapLookup) -> 21 | AC17: =AA17-AB17 -> -21 | AE17: =INDIRECT(CONCATENATE($BY17,"!",AE$1)) -> 0 | AF17: =LOOKUP($BY17,HandicapLookup) -> 21 | AG17: =AE17-AF17 -> -21 | AI17: =INDIRECT(CONCATENATE($BY17,"!",AI$1)) -> 0 | AJ17: =LOOKUP($BY17,HandicapLookup) -> 21 | AK17: =AI17-AJ17 -> -21 | AM17: =INDIRECT(CONCATENATE($BY17,"!",AM$1)) -> 0 | AN17: =LOOKUP($BY17,HandicapLookup) -> 21 | AO17: =AM17-AN17 -> -21 | AQ17: =INDIRECT(CONCATENATE($BY17,"!",AQ$1)) -> 0 | AR17: =LOOKUP($BY17,HandicapLookup) -> 21 | AS17: =AQ17-AR17 -> -21 | AU17: =INDIRECT(CONCATENATE($BY17,"!",AU$1)) -> 0 | AV17: =LOOKUP($BY17,HandicapLookup) -> 21 | AW17: =AU17-AV17 -> -21 | AY17: =INDIRECT(CONCATENATE($BY17,"!",AY$1)) -> 0 | AZ17: =LOOKUP($BY17,HandicapLookup) -> 21 | BA17: =AY17-AZ17 -> -21 | BC17: =INDIRECT(CONCATENATE($BY17,"!",BC$1)) -> 0 | BD17: =LOOKUP($BY17,HandicapLookup) -> 21 | BE17: =BC17-BD17 -> -21 | BG17: =INDIRECT(CONCATENATE($BY17,"!",BG$1)) -> 0 | BH17: =LOOKUP($BY17,HandicapLookup) -> 21 | BI17: =BG17-BH17 -> -21 | BK17: =INDIRECT(CONCATENATE($BY17,"!",BK$1)) -> 0 | BL17: =LOOKUP($BY17,HandicapLookup) -> 21 | BM17: =BK17-BL17 -> -21 | BO17: =J17+N17+R17+V17+Z17+AD17+AH17+AL17+AP17+AT17+AX17+BB17+BF17+BJ17+BN17 -> 0 | BQ17: =Michalski_S!C44 -> 0 | BS17: =BO17+BQ17 -> 0 | BT17: =Michalski_S!E44 -> 0 | BU17: =IFERROR((BO17+BQ17)/BT17,0) -> 0 | BV17: =A17 -> Sue Michalski | BW17: =FIND(" ",BV17) -> 4 | BX17: =MID(BV17,BW17,99) -> Michalski | BY17: michalski_s | CA17: =MIN(G17,K17,O17,S17,W17,AA17,AE17,AI17,AM17,AQ17,AU17,AY17,BC17,BG17,BK17) -> 0 | CB17: =MIN(H17,L17,P17,T17,X17,AB17,AF17,AJ17,AN17,AR17,AV17,AZ17,BD17,BH17,BL17) -> 21 | CC17: =MIN(I17,M17,Q17,U17,Y17,AC17,AG17,AK17,AO17,AS17,AW17,BA17,BE17,BI17,BM17) -> -21 | CD17: =MAX(G17,K17,O17,S17,W17,AA17,AE17,AI17,AM17,AQ17,AU17,AY17,BC17,BG17,BK17) -> 0 | CE17: =MAX(H17,L17,P17,T17,X17,AB17,AF17,AJ17,AN17,AR17,AV17,AZ17,BD17,BH17,BL17) -> 21 | CF17: =MAX(I17,M17,Q17,U17,Y17,AC17,AG17,AK17,AO17,AS17,AW17,BA17,BE17,BI17,BM17) -> -21
A18: =INDIRECT(CONCATENATE(BY18,"!A1")) -> Tim Hobbs | F18: 400 | G18: =INDIRECT(CONCATENATE($BY18,"!",G$1)) -> 0 | H18: =LOOKUP($BY18,HandicapLookup) -> 11 | I18: =G18-H18 -> -11 | K18: =INDIRECT(CONCATENATE($BY18,"!",K$1)) -> 0 | L18: =LOOKUP($BY18,HandicapLookup) -> 11 | M18: =K18-L18 -> -11 | O18: =INDIRECT(CONCATENATE($BY18,"!",O$1)) -> 0 | P18: =LOOKUP($BY18,HandicapLookup) -> 11 | Q18: =O18-P18 -> -11 | S18: =INDIRECT(CONCATENATE($BY18,"!",S$1)) -> 0 | T18: =LOOKUP($BY18,HandicapLookup) -> 11 | U18: =S18-T18 -> -11 | W18: =INDIRECT(CONCATENATE($BY18,"!",W$1)) -> 0 | X18: =LOOKUP($BY18,HandicapLookup) -> 11 | Y18: =W18-X18 -> -11 | AA18: =INDIRECT(CONCATENATE($BY18,"!",AA$1)) -> 0 | AB18: =LOOKUP($BY18,HandicapLookup) -> 11 | AC18: =AA18-AB18 -> -11 | AE18: =INDIRECT(CONCATENATE($BY18,"!",AE$1)) -> 0 | AF18: =LOOKUP($BY18,HandicapLookup) -> 11 | AG18: =AE18-AF18 -> -11 | AI18: =INDIRECT(CONCATENATE($BY18,"!",AI$1)) -> 0 | AJ18: =LOOKUP($BY18,HandicapLookup) -> 11 | AK18: =AI18-AJ18 -> -11 | AM18: =INDIRECT(CONCATENATE($BY18,"!",AM$1)) -> 0 | AN18: =LOOKUP($BY18,HandicapLookup) -> 11 | AO18: =AM18-AN18 -> -11 | AQ18: =INDIRECT(CONCATENATE($BY18,"!",AQ$1)) -> 0 | AR18: =LOOKUP($BY18,HandicapLookup) -> 11 | AS18: =AQ18-AR18 -> -11 | AU18: =INDIRECT(CONCATENATE($BY18,"!",AU$1)) -> 0 | AV18: =LOOKUP($BY18,HandicapLookup) -> 11 | AW18: =AU18-AV18 -> -11 | AY18: =INDIRECT(CONCATENATE($BY18,"!",AY$1)) -> 0 | AZ18: =LOOKUP($BY18,HandicapLookup) -> 11 | BA18: =AY18-AZ18 -> -11 | BC18: =INDIRECT(CONCATENATE($BY18,"!",BC$1)) -> 0 | BD18: =LOOKUP($BY18,HandicapLookup) -> 11 | BE18: =BC18-BD18 -> -11 | BG18: =INDIRECT(CONCATENATE($BY18,"!",BG$1)) -> 0 | BH18: =LOOKUP($BY18,HandicapLookup) -> 11 | BI18: =BG18-BH18 -> -11 | BK18: =INDIRECT(CONCATENATE($BY18,"!",BK$1)) -> 0 | BL18: =LOOKUP($BY18,HandicapLookup) -> 11 | BM18: =BK18-BL18 -> -11 | BO18: =J18+N18+R18+V18+Z18+AD18+AH18+AL18+AP18+AT18+AX18+BB18+BF18+BJ18+BN18 -> 0 | BQ18: =Hobbs!C44 -> 0 | BS18: =BO18+BQ18 -> 0 | BT18: =Hobbs!E44 -> 0 | BU18: =IFERROR((BO18+BQ18)/BT18,0) -> 0 | BV18: =A18 -> Tim Hobbs | BW18: =FIND(" ",BV18) -> 4 | BX18: =MID(BV18,BW18,99) -> Hobbs | BY18: hobbs | CA18: =MIN(G18,K18,O18,S18,W18,AA18,AE18,AI18,AM18,AQ18,AU18,AY18,BC18,BG18,BK18) -> 0 | CB18: =MIN(H18,L18,P18,T18,X18,AB18,AF18,AJ18,AN18,AR18,AV18,AZ18,BD18,BH18,BL18) -> 11 | CC18: =MIN(I18,M18,Q18,U18,Y18,AC18,AG18,AK18,AO18,AS18,AW18,BA18,BE18,BI18,BM18) -> -11 | CD18: =MAX(G18,K18,O18,S18,W18,AA18,AE18,AI18,AM18,AQ18,AU18,AY18,BC18,BG18,BK18) -> 0 | CE18: =MAX(H18,L18,P18,T18,X18,AB18,AF18,AJ18,AN18,AR18,AV18,AZ18,BD18,BH18,BL18) -> 11 | CF18: =MAX(I18,M18,Q18,U18,Y18,AC18,AG18,AK18,AO18,AS18,AW18,BA18,BE18,BI18,BM18) -> -11
A19: =INDIRECT(CONCATENATE(BY19,"!A1")) -> Tom Mohsinger | F19: 900 | G19: =INDIRECT(CONCATENATE($BY19,"!",G$1)) -> 0 | H19: =LOOKUP($BY19,HandicapLookup) -> 14 | I19: =G19-H19 -> -14 | K19: =INDIRECT(CONCATENATE($BY19,"!",K$1)) -> 0 | L19: =LOOKUP($BY19,HandicapLookup) -> 14 | M19: =K19-L19 -> -14 | O19: =INDIRECT(CONCATENATE($BY19,"!",O$1)) -> 0 | P19: =LOOKUP($BY19,HandicapLookup) -> 14 | Q19: =O19-P19 -> -14 | S19: =INDIRECT(CONCATENATE($BY19,"!",S$1)) -> 0 | T19: =LOOKUP($BY19,HandicapLookup) -> 14 | U19: =S19-T19 -> -14 | W19: =INDIRECT(CONCATENATE($BY19,"!",W$1)) -> 0 | X19: =LOOKUP($BY19,HandicapLookup) -> 14 | Y19: =W19-X19 -> -14 | AA19: =INDIRECT(CONCATENATE($BY19,"!",AA$1)) -> 0 | AB19: =LOOKUP($BY19,HandicapLookup) -> 14 | AC19: =AA19-AB19 -> -14 | AE19: =INDIRECT(CONCATENATE($BY19,"!",AE$1)) -> 0 | AF19: =LOOKUP($BY19,HandicapLookup) -> 14 | AG19: =AE19-AF19 -> -14 | AI19: =INDIRECT(CONCATENATE($BY19,"!",AI$1)) -> 0 | AJ19: =LOOKUP($BY19,HandicapLookup) -> 14 | AK19: =AI19-AJ19 -> -14 | AM19: =INDIRECT(CONCATENATE($BY19,"!",AM$1)) -> 0 | AN19: =LOOKUP($BY19,HandicapLookup) -> 14 | AO19: =AM19-AN19 -> -14 | AQ19: =INDIRECT(CONCATENATE($BY19,"!",AQ$1)) -> 0 | AR19: =LOOKUP($BY19,HandicapLookup) -> 14 | AS19: =AQ19-AR19 -> -14 | AU19: =INDIRECT(CONCATENATE($BY19,"!",AU$1)) -> 0 | AV19: =LOOKUP($BY19,HandicapLookup) -> 14 | AW19: =AU19-AV19 -> -14 | AY19: =INDIRECT(CONCATENATE($BY19,"!",AY$1)) -> 0 | AZ19: =LOOKUP($BY19,HandicapLookup) -> 14 | BA19: =AY19-AZ19 -> -14 | BC19: =INDIRECT(CONCATENATE($BY19,"!",BC$1)) -> 0 | BD19: =LOOKUP($BY19,HandicapLookup) -> 14 | BE19: =BC19-BD19 -> -14 | BG19: =INDIRECT(CONCATENATE($BY19,"!",BG$1)) -> 0 | BH19: =LOOKUP($BY19,HandicapLookup) -> 14 | BI19: =BG19-BH19 -> -14 | BK19: =INDIRECT(CONCATENATE($BY19,"!",BK$1)) -> 0 | BL19: =LOOKUP($BY19,HandicapLookup) -> 14 | BM19: =BK19-BL19 -> -14 | BO19: =J19+N19+R19+V19+Z19+AD19+AH19+AL19+AP19+AT19+AX19+BB19+BF19+BJ19+BN19 -> 0 | BQ19: =Mohsinger_B!C44 -> 0 | BS19: =BO19+BQ19 -> 0 | BT19: =Mohsinger_B!E44 -> 0 | BU19: =IFERROR((BO19+BQ19)/BT19,0) -> 0 | BV19: =A19 -> Tom Mohsinger | BW19: =FIND(" ",BV19) -> 4 | BX19: =MID(BV19,BW19,99) -> Mohsinger | BY19: mohsinger_t | CA19: =MIN(G19,K19,O19,S19,W19,AA19,AE19,AI19,AM19,AQ19,AU19,AY19,BC19,BG19,BK19) -> 0 | CB19: =MIN(H19,L19,P19,T19,X19,AB19,AF19,AJ19,AN19,AR19,AV19,AZ19,BD19,BH19,BL19) -> 14 | CC19: =MIN(I19,M19,Q19,U19,Y19,AC19,AG19,AK19,AO19,AS19,AW19,BA19,BE19,BI19,BM19) -> -14 | CD19: =MAX(G19,K19,O19,S19,W19,AA19,AE19,AI19,AM19,AQ19,AU19,AY19,BC19,BG19,BK19) -> 0 | CE19: =MAX(H19,L19,P19,T19,X19,AB19,AF19,AJ19,AN19,AR19,AV19,AZ19,BD19,BH19,BL19) -> 14 | CF19: =MAX(I19,M19,Q19,U19,Y19,AC19,AG19,AK19,AO19,AS19,AW19,BA19,BE19,BI19,BM19) -> -14
A20: =INDIRECT(CONCATENATE(BY20,"!A1")) -> Vincent Daviero | F20: 350 | G20: =INDIRECT(CONCATENATE($BY20,"!",G$1)) -> 0 | H20: =LOOKUP($BY20,HandicapLookup) -> 9 | I20: =G20-H20 -> -9 | K20: =INDIRECT(CONCATENATE($BY20,"!",K$1)) -> 0 | L20: =LOOKUP($BY20,HandicapLookup) -> 9 | M20: =K20-L20 -> -9 | O20: =INDIRECT(CONCATENATE($BY20,"!",O$1)) -> 0 | P20: =LOOKUP($BY20,HandicapLookup) -> 9 | Q20: =O20-P20 -> -9 | S20: =INDIRECT(CONCATENATE($BY20,"!",S$1)) -> 0 | T20: =LOOKUP($BY20,HandicapLookup) -> 9 | U20: =S20-T20 -> -9 | W20: =INDIRECT(CONCATENATE($BY20,"!",W$1)) -> 0 | X20: =LOOKUP($BY20,HandicapLookup) -> 9 | Y20: =W20-X20 -> -9 | AA20: =INDIRECT(CONCATENATE($BY20,"!",AA$1)) -> 0 | AB20: =LOOKUP($BY20,HandicapLookup) -> 9 | AC20: =AA20-AB20 -> -9 | AE20: =INDIRECT(CONCATENATE($BY20,"!",AE$1)) -> 0 | AF20: =LOOKUP($BY20,HandicapLookup) -> 9 | AG20: =AE20-AF20 -> -9 | AI20: =INDIRECT(CONCATENATE($BY20,"!",AI$1)) -> 0 | AJ20: =LOOKUP($BY20,HandicapLookup) -> 9 | AK20: =AI20-AJ20 -> -9 | AM20: =INDIRECT(CONCATENATE($BY20,"!",AM$1)) -> 0 | AN20: =LOOKUP($BY20,HandicapLookup) -> 9 | AO20: =AM20-AN20 -> -9 | AQ20: =INDIRECT(CONCATENATE($BY20,"!",AQ$1)) -> 0 | AR20: =LOOKUP($BY20,HandicapLookup) -> 9 | AS20: =AQ20-AR20 -> -9 | AU20: =INDIRECT(CONCATENATE($BY20,"!",AU$1)) -> 0 | AV20: =LOOKUP($BY20,HandicapLookup) -> 9 | AW20: =AU20-AV20 -> -9 | AY20: =INDIRECT(CONCATENATE($BY20,"!",AY$1)) -> 0 | AZ20: =LOOKUP($BY20,HandicapLookup) -> 9 | BA20: =AY20-AZ20 -> -9 | BC20: =INDIRECT(CONCATENATE($BY20,"!",BC$1)) -> 0 | BD20: =LOOKUP($BY20,HandicapLookup) -> 9 | BE20: =BC20-BD20 -> -9 | BG20: =INDIRECT(CONCATENATE($BY20,"!",BG$1)) -> 0 | BH20: =LOOKUP($BY20,HandicapLookup) -> 9 | BI20: =BG20-BH20 -> -9 | BK20: =INDIRECT(CONCATENATE($BY20,"!",BK$1)) -> 0 | BL20: =LOOKUP($BY20,HandicapLookup) -> 9 | BM20: =BK20-BL20 -> -9 | BO20: =J20+N20+R20+V20+Z20+AD20+AH20+AL20+AP20+AT20+AX20+BB20+BF20+BJ20+BN20 -> 0 | BQ20: =Daviero_V!C44 -> 0 | BS20: =BO20+BQ20 -> 0 | BT20: =Daviero_V!E44 -> 0 | BU20: =IFERROR((BO20+BQ20)/BT20,0) -> 0 | BV20: =A20 -> Vincent Daviero | BW20: =FIND(" ",BV20) -> 8 | BX20: =MID(BV20,BW20,99) -> Daviero | BY20: daviero_v | CA20: =MIN(G20,K20,O20,S20,W20,AA20,AE20,AI20,AM20,AQ20,AU20,AY20,BC20,BG20,BK20) -> 0 | CB20: =MIN(H20,L20,P20,T20,X20,AB20,AF20,AJ20,AN20,AR20,AV20,AZ20,BD20,BH20,BL20) -> 9 | CC20: =MIN(I20,M20,Q20,U20,Y20,AC20,AG20,AK20,AO20,AS20,AW20,BA20,BE20,BI20,BM20) -> -9 | CD20: =MAX(G20,K20,O20,S20,W20,AA20,AE20,AI20,AM20,AQ20,AU20,AY20,BC20,BG20,BK20) -> 0 | CE20: =MAX(H20,L20,P20,T20,X20,AB20,AF20,AJ20,AN20,AR20,AV20,AZ20,BD20,BH20,BL20) -> 9 | CF20: =MAX(I20,M20,Q20,U20,Y20,AC20,AG20,AK20,AO20,AS20,AW20,BA20,BE20,BI20,BM20) -> -9
A22: SUBS
A25: =INDIRECT(CONCATENATE(BY25,"!A1")) ->  | BV25: =A25 ->  | BW25: =FIND(" ",BV25) ->  | BX25: =MID(BV25,BW25,99) ->  | BY25: sheridan
A26: =INDIRECT(CONCATENATE(BY26,"!A1")) ->  | BV26: =A26 ->  | BW26: =FIND(" ",BV26) ->  | BX26: =MID(BV26,BW26,99) ->  | BY26: kauffman
A27: =INDIRECT(CONCATENATE(BY27,"!A1")) ->  | BV27: =A27 ->  | BW27: =FIND(" ",BV27) ->  | BX27: =MID(BV27,BW27,99) ->  | BY27: richardson
A28: =INDIRECT(CONCATENATE(BY28,"!A1")) ->  | BV28: =A28 ->  | BW28: =FIND(" ",BV28) ->  | BX28: =MID(BV28,BW28,99) ->  | BY28: archambault
A29: =INDIRECT(CONCATENATE(BY29,"!A1")) ->  | BY29: roschinsky
A30: =INDIRECT(CONCATENATE(BY30,"!A1")) ->  | BV30: =A30 ->  | BY30: palmerino_l
A31: =INDIRECT(CONCATENATE(BY31,"!A1")) -> Glenn Kreig | BV31: =A31 -> Glenn Kreig | BW31: 6 | BX31: Kreig | BY31: kreig
A42: Average | B42: =AVERAGE(B5:B39) ->  | G42: 0 | H42: 11.8125 | I42: -11.8125 | K42: =AVERAGE(K5:K39) -> 0 | L42: =AVERAGE(L5:L39) -> 11.8125 | M42: =AVERAGE(M5:M39) -> -11.8125 | O42: =AVERAGE(O5:O39) -> 0 | P42: =AVERAGE(P5:P39) -> 11.8125 | Q42: =AVERAGE(Q5:Q39) -> -11.8125 | S42: =AVERAGE(S5:S39) -> 0 | T42: =AVERAGE(T5:T39) -> 11.8125 | U42: =AVERAGE(U5:U39) -> -11.8125 | W42: =AVERAGE(W5:W39) -> 0 | X42: =AVERAGE(X5:X39) -> 11.8125 | Y42: =AVERAGE(Y5:Y39) -> -11.8125 | AA42: =AVERAGE(AA5:AA39) -> 0 | AB42: =AVERAGE(AB5:AB39) -> 11.8125 | AC42: =AVERAGE(AC5:AC39) -> -11.8125 | AE42: =AVERAGE(AE5:AE39) -> 0 | AF42: =AVERAGE(AF5:AF39) -> 11.8125 | AG42: =AVERAGE(AG5:AG39) -> -11.8125 | AI42: =AVERAGE(AI5:AI39) -> 0 | AJ42: =AVERAGE(AJ5:AJ39) -> 11.8125 | AK42: =AVERAGE(AK5:AK39) -> -11.8125 | AM42: =AVERAGE(AM5:AM39) -> 0 | AN42: =AVERAGE(AN5:AN39) -> 11.8125 | AO42: =AVERAGE(AO5:AO39) -> -11.8125 | AQ42: =AVERAGE(AQ5:AQ39) -> 0 | AR42: =AVERAGE(AR5:AR39) -> 11.8125 | AS42: =AVERAGE(AS5:AS39) -> -11.8125 | AU42: =AVERAGE(AU5:AU39) -> 0 | AV42: =AVERAGE(AV5:AV39) -> 11.8125 | AW42: =AVERAGE(AW5:AW39) -> -11.8125 | AY42: =AVERAGE(AY5:AY39) -> 0 | AZ42: =AVERAGE(AZ5:AZ39) -> 11.8125 | BA42: =AVERAGE(BA5:BA39) -> -11.8125 | BC42: =AVERAGE(BC5:BC39) -> 0 | BD42: =AVERAGE(BD5:BD39) -> 11.8125 | BE42: =AVERAGE(BE5:BE39) -> -11.8125 | BG42: =AVERAGE(BG5:BG39) -> 0 | BH42: =AVERAGE(BH5:BH39) -> 11.8125 | BI42: =AVERAGE(BI5:BI39) -> -11.8125 | BK42: =AVERAGE(BK5:BK39) -> 0 | BL42: =AVERAGE(BL5:BL39) -> 11.8125 | BM42: =AVERAGE(BM5:BM39) -> -11.8125

Sheet Hacker_Cup_Standings
B1: Week | C1: Points Back | D1: Playoffs
A2: Previous | B2: Player | E2: Start | F2: 1 | G2: 2 | H2: 3 | I2: 4 | J2: 5
B3: Andy Linton | C3: =+D3-$D$3 -> 0 | D3: =SUM(E3:J3)-SUM(L3:M3) -> 0 | E3: 0 | F3: 0 | G3: 0 | H3: 0 | I3: 0 | J3: 0 | L3: =IF(T3>1,M3,MIN(N3:R3)) -> 0 | M3: =MIN(F3:J3) -> 0 | N3: =IF(F3=$M3,99999,F3) -> 99999 | O3: =IF(G3=$M3,99999,G3) -> 99999 | P3: 99999 | Q3: 99999 | R3: 99999 | T3: =COUNTIF(F3:J3,MIN(F3:J3)) -> 5
B4: Dan Fusco | C4: 0 | D4: =SUM(E4:J4)-SUM(L4:M4) -> 0 | E4: 0 | F4: 0 | G4: 0 | H4: 0 | I4: 0 | J4: 0 | L4: =IF(T4>1,M4,MIN(N4:R4)) -> 0 | M4: =MIN(F4:J4) -> 0 | N4: =IF(F4=$M4,99999,F4) -> 99999 | O4: =IF(G4=$M4,99999,G4) -> 99999 | P4: =IF(H4=$M4,99999,H4) -> 99999 | Q4: =IF(I4=$M4,99999,I4) -> 99999 | R4: =IF(J4=$M4,99999,J4) -> 99999 | T4: =COUNTIF(F4:J4,MIN(F4:J4)) -> 5
B5: Dan Palmerino | C5: 0 | D5: 0 | E5: 0 | F5: 0 | G5: 0 | H5: 0 | I5: 0 | J5: 0 | L5: 0 | M5: 0 | N5: 99999 | O5: 99999 | P5: 99999 | Q5: 99999 | R5: 99999 | T5: 5
B6: Jim Daviero | C6: 0 | D6: 0 | E6: 0 | F6: 0 | G6: 0 | H6: 0 | I6: 0 | J6: 0 | L6: 0 | M6: 0 | N6: 99999 | O6: 99999 | P6: 99999 | Q6: 99999 | R6: 99999 | T6: 5
B7: Tim Hobbs | C7: 0 | D7: 0 | E7: 0 | F7: 0 | G7: 0 | H7: 0 | I7: 0 | J7: 0 | L7: 0 | M7: 0 | N7: 99999 | O7: 99999 | P7: 99999 | Q7: 99999 | R7: 99999 | T7: 5
B8: Steve Fusco | C8: 0 | D8: 0 | E8: 0 | F8: 0 | G8: 0 | H8: 0 | I8: 0 | J8: 0 | L8: 0 | M8: 0 | N8: 99999 | O8: 99999 | P8: 99999 | Q8: 99999 | R8: 99999 | T8: 5
B9: Bette Mohsinger | C9: 0 | D9: 0 | E9: 0 | F9: 0 | G9: 0 | H9: 0 | I9: 0 | J9: 0 | L9: 0 | M9: 0 | N9: 99999 | O9: 99999 | P9: 99999 | Q9: 99999 | R9: 99999 | T9: 5
B10: Dave Taylor | C10: 0 | D10: 0 | E10: 0 | F10: 0 | G10: 0 | H10: 0 | I10: 0 | J10: 0 | L10: 0 | M10: 0 | N10: 99999 | O10: 99999 | P10: 99999 | Q10: 99999 | R10: 99999 | T10: 5
B11: Brian McGlaughlin | C11: 0 | D11: 0 | E11: 0 | F11: 0 | G11: 0 | H11: 0 | I11: 0 | J11: 0 | L11: 0 | M11: 0 | N11: 99999 | O11: 99999 | P11: 99999 | Q11: 99999 | R11: 99999 | T11: 5
B12: Bob Templeton | C12: 0 | D12: 0 | E12: 0 | F12: 0 | G12: 0 | H12: 0 | I12: 0 | J12: 0 | L12: 0 | M12: 0 | N12: 99999 | O12: 99999 | P12: 99999 | Q12: 99999 | R12: 99999 | T12: 5
B13: Tom Mohsinger | C13: 0 | D13: 0 | E13: 0 | F13: 0 | G13: 0 | H13: 0 | I13: 0 | J13: 0 | L13: 0 | M13: 0 | N13: 99999 | O13: 99999 | P13: 99999 | Q13: 99999 | R13: 99999 | T13: 5
B14: Mark Rusnak | C14: 0 | D14: 0 | E14: 0 | F14: 0 | G14: 0 | H14: 0 | I14: 0 | J14: 0 | L14: 0 | M14: 0 | N14: 99999 | O14: 99999 | P14: 99999 | Q14: 99999 | R14: 99999 | T14: 5
B15: OPEN OPEN | C15: 0 | D15: 0 | E15: 0 | F15: 0 | G15: 0 | H15: 0 | I15: 0 | J15: 0 | L15: 0 | M15: 0 | N15: 99999 | O15: 99999 | P15: 99999 | Q15: 99999 | R15: 99999 | T15: 5
B16: Pete Michalski | C16: 0 | D16: 0 | E16: 0 | F16: 0 | G16: 0 | H16: 0 | I16: 0 | J16: 0 | L16: 0 | M16: 0 | N16: 99999 | O16: 99999 | P16: 99999 | Q16: 99999 | R16: 99999 | T16: 5
B17: Sue Michalski | C17: 0 | D17: 0 | E17: 0 | F17: 0 | G17: 0 | H17: 0 | I17: 0 | J17: 0 | L17: 0 | M17: 0 | N17: 99999 | O17: 99999 | P17: 99999 | Q17: 99999 | R17: 99999 | T17: 5
B18: Glenn Kreig | C18: 0 | D18: 0 | E18: 0 | F18: 0 | G18: 0 | H18: 0 | I18: 0 | J18: 0 | L18: 0 | M18: 0 | N18: 99999 | O18: 99999 | P18: 99999 | Q18: 99999 | R18: 99999 | T18: 5
A44: Previous | B44: Week | C44: Points Back | D44: Regular Season | E44: 1 | F44: 2 | G44: 3 | H44: 4 | I44: 5 | J44: 6 | K44: 7 | L44: 8 | M44: 9 | N44: 10
B45: Player
B46: Andy Linton | C46: =$D$46-D46 -> 0 | D46: =SUM(E46:N46) -> 0
B47: Dan Fusco | C47: 0 | D47: =SUM(E47:N47) -> 0
B48: Dan Palmerino | C48: 0 | D48: 0
B49: Jim Daviero | C49: 0 | D49: 0
B50: Tim Hobbs | C50: 0 | D50: 0
B51: Steve Fusco | C51: 0 | D51: 0
B52: Bette Mohsinger | C52: 0 | D52: 0
B53: Dave Taylor | C53: 0 | D53: 0
B54: Brian McGlaughlin | C54: 0 | D54: 0
B55: Bob Templeton | C55: 0 | D55: 0
B56: Tom Mohsinger | C56: 0 | D56: 0
B57: Mark Rusnak | C57: 0 | D57: 0
B58: Vincent Daviero | C58: 0 | D58: 0
B59: Pete Michalski | C59: 0 | D59: 0
B60: Sue Michalski | C60: 0 | D60: 0
B61: Glenn Kreig | C61: 0 | D61: 0
D76: Playoffs | E76: Seed | F76: 1 | G76: 2 | H76: 3 | I76: 4
B78: Andy Linton | D78: =SUM(E78:I78) -> 0
B79: Bob Bush | D79: 0
B80: Mike Smith | D80: 0
B81: Marty Reed | D81: 0
B82: Randy Gauthier | D82: 0
B83: Tom Mohsinger | D83: 0
B84: Gloria Poston | D84: 0
B85: Steve Fusco | D85: 0
B86: Dan Richardson | D86: 0
B87: Ken Lakich | D87: 0
B88: Todd Templeton | D88: 0
B89: Matt Rielly | D89: 0
B90: George Calder | D90: 0
B91: Bob Templeton | D91: 0
B92: Dave Taylor | D92: 0
B93: Ev Kauffman | D93: 0

Sheet HC History
C1: Season | D1: 2025 | T1: 2024 | AL1: Rounded
C2: Current | D2: 15 | E2: 14 | F2: 13 | G2: 12 | H2: 11 | I2: 10 | J2: 9 | K2: 8 | L2: 7 | M2: 6 | N2: 5 | O2: 4 | P2: 3 | Q2: 2 | R2: 1 | T2: 15 | U2: 14 | V2: 13 | W2: 12 | X2: 11 | Y2: 10 | AJ2: Total | AK2: Handicap | AL2: at .5
A3: PLAYER
A4: Andy Linton | B4: linton | C4: =MIN(AL5,25) -> 5 | D4: =INDIRECT(CONCATENATE(B4,"!CL22")) -> 0 | E4: =INDIRECT(CONCATENATE(B4,"!CF22")) -> 0 | F4: =INDIRECT(CONCATENATE(B4,"!BZ22")) -> 0 | G4: =INDIRECT(CONCATENATE(B4,"!BT22")) -> 0 | H4: =INDIRECT(CONCATENATE(B4,"!BN22")) -> 0 | I4: =INDIRECT(CONCATENATE(B4,"!BH22")) -> 0 | J4: =INDIRECT(CONCATENATE(B4,"!BB22")) -> 0 | K4: =INDIRECT(CONCATENATE(B4,"!AV22")) -> 0 | L4: =INDIRECT(CONCATENATE(B4,"!AP22")) -> 0 | M4: =INDIRECT(CONCATENATE(B4,"!AJ22")) -> 0 | N4: =INDIRECT(CONCATENATE(B4,"!AD22")) -> 0 | O4: =INDIRECT(CONCATENATE(B4,"!X22")) -> 0 | P4: =INDIRECT(CONCATENATE(B4,"!R22")) -> 0 | Q4: =INDIRECT(CONCATENATE(B4,"!L22")) -> 0 | R4: =INDIRECT(CONCATENATE(B4,"!F22")) -> 0 | T4: 6 | U4: 6 | V4: 4 | W4: 7 | X4: 5 | Y4: 8 | AM4: =COUNT(C4:AI4) -> 22
T5: 6 | U5: 6 | V5: 4 | X5: 5 | AJ5: =SUM(C5:AI5) -> 21 | AK5: =+AJ5/AM5 -> 5.25 | AL5: =ROUND(SUM(AK5),0) -> 5 | AM5: 4
A6: Bette Mohsinger | B6: mohsinger_b | C6: =MIN(AL7,25) -> 12 | D6: =INDIRECT(CONCATENATE(B6,"!CL22")) -> 0 | E6: =INDIRECT(CONCATENATE(B6,"!CF22")) -> 0 | F6: =INDIRECT(CONCATENATE(B6,"!BZ22")) -> 0 | G6: =INDIRECT(CONCATENATE(B6,"!BT22")) -> 0 | H6: =INDIRECT(CONCATENATE(B6,"!BN22")) -> 0 | I6: =INDIRECT(CONCATENATE(B6,"!BH22")) -> 0 | J6: =INDIRECT(CONCATENATE(B6,"!BB22")) -> 0 | K6: =INDIRECT(CONCATENATE(B6,"!AV22")) -> 0 | L6: =INDIRECT(CONCATENATE(B6,"!AP22")) -> 0 | M6: =INDIRECT(CONCATENATE(B6,"!AJ22")) -> 0 | N6: =INDIRECT(CONCATENATE(B6,"!AD22")) -> 0 | O6: =INDIRECT(CONCATENATE(B6,"!X22")) -> 0 | P6: =INDIRECT(CONCATENATE(B6,"!R22")) -> 0 | Q6: =INDIRECT(CONCATENATE(B6,"!L22")) -> 0 | R6: =INDIRECT(CONCATENATE(B6,"!F22")) -> 0 | T6: 13 | U6: 10 | V6: 18 | W6: 12 | X6: 20 | Y6: 11 | AM6: 22
T7: 13 | U7: 10 | W7: 12 | Y7: 11 | AJ7: =SUM(C7:AI7) -> 46 | AK7: =+AJ7/AM7 -> 11.5 | AL7: =ROUND(SUM(AK7),0) -> 12 | AM7: 4
A8: Bob Templeton | B8: templeton | C8: =MIN(AL9,25) -> 20 | D8: =INDIRECT(CONCATENATE(B8,"!CL22")) -> 0 | E8: =INDIRECT(CONCATENATE(B8,"!CF22")) -> 0 | F8: =INDIRECT(CONCATENATE(B8,"!BZ22")) -> 0 | G8: =INDIRECT(CONCATENATE(B8,"!BT22")) -> 0 | H8: =INDIRECT(CONCATENATE(B8,"!BN22")) -> 0 | I8: =INDIRECT(CONCATENATE(B8,"!BH22")) -> 0 | J8: =INDIRECT(CONCATENATE(B8,"!BB22")) -> 0 | K8: =INDIRECT(CONCATENATE(B8,"!AV22")) -> 0 | L8: =INDIRECT(CONCATENATE(B8,"!AP22")) -> 0 | M8: =INDIRECT(CONCATENATE(B8,"!AJ22")) -> 0 | N8: =INDIRECT(CONCATENATE(B8,"!AD22")) -> 0 | O8: =INDIRECT(CONCATENATE(B8,"!X22")) -> 0 | P8: =INDIRECT(CONCATENATE(B8,"!R22")) -> 0 | Q8: =INDIRECT(CONCATENATE(B8,"!L22")) -> 0 | R8: =INDIRECT(CONCATENATE(B8,"!F22")) -> 0 | T8: 24 | U8: 21 | V8: 22 | W8: 22 | X8: 22 | Y8: 14 | AM8: 22
U9: 21 | V9: 22 | W9: 22 | Y9: 14 | AJ9: =SUM(C9:AI9) -> 79 | AK9: =+AJ9/AM9 -> 19.75 | AL9: =ROUND(SUM(AK9),0) -> 20 | AM9: 4
A10: Brian McLaughlin | B10: mclaughlin | C10: =MIN(AL11,25) -> 12 | D10: =INDIRECT(CONCATENATE(B10,"!CL22")) -> 0 | E10: =INDIRECT(CONCATENATE(B10,"!CF22")) -> 0 | F10: =INDIRECT(CONCATENATE(B10,"!BZ22")) -> 0 | G10: =INDIRECT(CONCATENATE(B10,"!BT22")) -> 0 | H10: =INDIRECT(CONCATENATE(B10,"!BN22")) -> 0 | I10: =INDIRECT(CONCATENATE(B10,"!BH22")) -> 0 | J10: =INDIRECT(CONCATENATE(B10,"!BB22")) -> 0 | K10: =INDIRECT(CONCATENATE(B10,"!AV22")) -> 0 | L10: =INDIRECT(CONCATENATE(B10,"!AP22")) -> 0 | M10: =INDIRECT(CONCATENATE(B10,"!AJ22")) -> 0 | N10: =INDIRECT(CONCATENATE(B10,"!AD22")) -> 0 | O10: =INDIRECT(CONCATENATE(B10,"!X22")) -> 0 | P10: =INDIRECT(CONCATENATE(B10,"!R22")) -> 0 | Q10: =INDIRECT(CONCATENATE(B10,"!L22")) -> 0 | R10: =INDIRECT(CONCATENATE(B10,"!F22")) -> 0 | T10: 14 | U10: 11 | V10: 18 | W10: 11 | X10: 12 | Y10: 16 | AM10: 22
T11: 14 | U11: 11 | W11: 11 | X11: 12 | AJ11: =SUM(C11:AI11) -> 48 | AK11: =+AJ11/AM11 -> 12 | AL11: =ROUND(SUM(AK11),0) -> 12 | AM11: 4
A12: Dan Fusco | B12: fusco_d | C12: =MIN(AL13,25) -> 8 | D12: =INDIRECT(CONCATENATE(B12,"!CL22")) -> 0 | E12: =INDIRECT(CONCATENATE(B12,"!CF22")) -> 0 | F12: =INDIRECT(CONCATENATE(B12,"!BZ22")) -> 0 | G12: =INDIRECT(CONCATENATE(B12,"!BT22")) -> 0 | H12: =INDIRECT(CONCATENATE(B12,"!BN22")) -> 0 | I12: =INDIRECT(CONCATENATE(B12,"!BH22")) -> 0 | J12: =INDIRECT(CONCATENATE(B12,"!BB22")) -> 0 | K12: =INDIRECT(CONCATENATE(B12,"!AV22")) -> 0 | L12: =INDIRECT(CONCATENATE(B12,"!AP22")) -> 0 | M12: =INDIRECT(CONCATENATE(B12,"!AJ22")) -> 0 | N12: =INDIRECT(CONCATENATE(B12,"!AD22")) -> 0 | O12: =INDIRECT(CONCATENATE(B12,"!X22")) -> 0 | P12: =INDIRECT(CONCATENATE(B12,"!R22")) -> 0 | Q12: =INDIRECT(CONCATENATE(B12,"!L22")) -> 0 | R12: =INDIRECT(CONCATENATE(B12,"!F22")) -> 0 | T12: 11 | U12: 9 | V12: 6 | W12: 8 | X12: 9 | Y12: 10 | AM12: 22
U13: 9 | V13: 6 | W13: 8 | X13: 9 | AJ13: =SUM(C13:AI13) -> 32 | AK13: =+AJ13/AM13 -> 8 | AL13: =ROUND(SUM(AK13),0) -> 8 | AM13: 4
A14: Dan Palmerino | B14: palmerino | C14: =MIN(AL15,25) -> 8 | D14: =INDIRECT(CONCATENATE(B14,"!CL22")) -> 0 | E14: =INDIRECT(CONCATENATE(B14,"!CF22")) -> 0 | F14: =INDIRECT(CONCATENATE(B14,"!BZ22")) -> 0 | G14: =INDIRECT(CONCATENATE(B14,"!BT22")) -> 0 | H14: =INDIRECT(CONCATENATE(B14,"!BN22")) -> 0 | I14: =INDIRECT(CONCATENATE(B14,"!BH22")) -> 0 | J14: =INDIRECT(CONCATENATE(B14,"!BB22")) -> 0 | K14: =INDIRECT(CONCATENATE(B14,"!AV22")) -> 0 | L14: =INDIRECT(CONCATENATE(B14,"!AP22")) -> 0 | M14: =INDIRECT(CONCATENATE(B14,"!AJ22")) -> 0 | N14: =INDIRECT(CONCATENATE(B14,"!AD22")) -> 0 | O14: =INDIRECT(CONCATENATE(B14,"!X22")) -> 0 | P14: =INDIRECT(CONCATENATE(B14,"!R22")) -> 0 | Q14: =INDIRECT(CONCATENATE(B14,"!L22")) -> 0 | R14: =INDIRECT(CONCATENATE(B14,"!F22")) -> 0 | T14: 11 | U14: 12 | V14: 8 | W14: 10 | X14: 9 | Y14: 6 | AM14: 22
V15: 8 | W15: 10 | X15: 9 | Y15: 6 | AJ15: =SUM(C15:AI15) -> 33 | AK15: =+AJ15/AM15 -> 8.25 | AL15: =ROUND(SUM(AK15),0) -> 8 | AM15: 4
A16: Dave Taylor | B16: taylor | C16: =MIN(AL17,25) -> 13 | D16: =INDIRECT(CONCATENATE(B16,"!CL22")) -> 0 | E16: =INDIRECT(CONCATENATE(B16,"!CF22")) -> 0 | F16: =INDIRECT(CONCATENATE(B16,"!BZ22")) -> 0 | G16: =INDIRECT(CONCATENATE(B16,"!BT22")) -> 0 | H16: =INDIRECT(CONCATENATE(B16,"!BN22")) -> 0 | I16: =INDIRECT(CONCATENATE(B16,"!BH22")) -> 0 | J16: =INDIRECT(CONCATENATE(B16,"!BB22")) -> 0 | K16: =INDIRECT(CONCATENATE(B16,"!AV22")) -> 0 | L16: =INDIRECT(CONCATENATE(B16,"!AP22")) -> 0 | M16: =INDIRECT(CONCATENATE(B16,"!AJ22")) -> 0 | N16: =INDIRECT(CONCATENATE(B16,"!AD22")) -> 0 | O16: =INDIRECT(CONCATENATE(B16,"!X22")) -> 0 | P16: =INDIRECT(CONCATENATE(B16,"!R22")) -> 0 | Q16: =INDIRECT(CONCATENATE(B16,"!L22")) -> 0 | R16: =INDIRECT(CONCATENATE(B16,"!F22")) -> 0 | T16: 16 | U16: 17 | V16: 13 | W16: 13 | X16: 11 | Y16: 17 | AM16: 22
T17: 16 | V17: 13 | W17: 13 | X17: 11 | AJ17: =SUM(C17:AI17) -> 53 | AK17: =+AJ17/AM17 -> 13.25 | AL17: =ROUND(SUM(AK17),0) -> 13 | AM17: 4
A18: Steve Fusco | B18: fusco_s | C18: =MIN(AL19,25) -> 12 | D18: =INDIRECT(CONCATENATE(B18,"!CL22")) -> 0 | E18: =INDIRECT(CONCATENATE(B18,"!CF22")) -> 0 | F18: =INDIRECT(CONCATENATE(B18,"!BZ22")) -> 0 | G18: =INDIRECT(CONCATENATE(B18,"!BT22")) -> 0 | H18: =INDIRECT(CONCATENATE(B18,"!BN22")) -> 0 | I18: =INDIRECT(CONCATENATE(B18,"!BH22")) -> 0 | J18: =INDIRECT(CONCATENATE(B18,"!BB22")) -> 0 | K18: =INDIRECT(CONCATENATE(B18,"!AV22")) -> 0 | L18: =INDIRECT(CONCATENATE(B18,"!AP22")) -> 0 | M18: =INDIRECT(CONCATENATE(B18,"!AJ22")) -> 0 | N18: =INDIRECT(CONCATENATE(B18,"!AD22")) -> 0 | O18: =INDIRECT(CONCATENATE(B18,"!X22")) -> 0 | P18: =INDIRECT(CONCATENATE(B18,"!R22")) -> 0 | Q18: =INDIRECT(CONCATENATE(B18,"!L22")) -> 0 | R18: =INDIRECT(CONCATENATE(B18,"!F22")) -> 0 | T18: 12 | U18: 17 | V18: 15 | W18: 10 | X18: 14 | Y18: 11 | AM18: 22
T19: 12 | W19: 10 | X19: 14 | Y19: 11 | AJ19: =SUM(C19:AI19) -> 47 | AK19: =+AJ19/AM19 -> 11.75 | AL19: =ROUND(SUM(AK19),0) -> 12 | AM19: 4
A20: Jim Daviero | B20: daviero | C20: =MIN(AL21,25) -> 9 | D20: =INDIRECT(CONCATENATE(B20,"!CL22")) -> 0 | E20: =INDIRECT(CONCATENATE(B20,"!CF22")) -> 0 | F20: =INDIRECT(CONCATENATE(B20,"!BZ22")) -> 0 | G20: =INDIRECT(CONCATENATE(B20,"!BT22")) -> 0 | H20: =INDIRECT(CONCATENATE(B20,"!BN22")) -> 0 | I20: =INDIRECT(CONCATENATE(B20,"!BH22")) -> 0 | J20: =INDIRECT(CONCATENATE(B20,"!BB22")) -> 0 | K20: =INDIRECT(CONCATENATE(B20,"!AV22")) -> 0 | L20: =INDIRECT(CONCATENATE(B20,"!AP22")) -> 0 | M20: =INDIRECT(CONCATENATE(B20,"!AJ22")) -> 0 | N20: =INDIRECT(CONCATENATE(B20,"!AD22")) -> 0 | O20: =INDIRECT(CONCATENATE(B20,"!X22")) -> 0 | P20: =INDIRECT(CONCATENATE(B20,"!R22")) -> 0 | Q20: =INDIRECT(CONCATENATE(B20,"!L22")) -> 0 | R20: =INDIRECT(CONCATENATE(B20,"!F22")) -> 0 | T20: 10 | U20: 11 | V20: 9 | W20: 9 | X20: 9 | Y20: 7 | AM20: 22
V21: 9 | W21: 9 | X21: 9 | Y21: 7 | AJ21: =SUM(C21:AI21) -> 34 | AK21: =+AJ21/AM21 -> 8.5 | AL21: =ROUND(SUM(AK21),0) -> 9 | AM21: 4
A22: Mark Rusnak | B22: rusnak | C22: =MIN(AL23,25) -> 3 | D22: =INDIRECT(CONCATENATE(B22,"!CL22")) -> 0 | E22: =INDIRECT(CONCATENATE(B22,"!CF22")) -> 0 | F22: =INDIRECT(CONCATENATE(B22,"!BZ22")) -> 0 | G22: =INDIRECT(CONCATENATE(B22,"!BT22")) -> 0 | H22: =INDIRECT(CONCATENATE(B22,"!BN22")) -> 0 | I22: =INDIRECT(CONCATENATE(B22,"!BH22")) -> 0 | J22: =INDIRECT(CONCATENATE(B22,"!BB22")) -> 0 | K22: =INDIRECT(CONCATENATE(B22,"!AV22")) -> 0 | L22: =INDIRECT(CONCATENATE(B22,"!AP22")) -> 0 | M22: =INDIRECT(CONCATENATE(B22,"!AJ22")) -> 0 | N22: =INDIRECT(CONCATENATE(B22,"!AD22")) -> 0 | O22: =INDIRECT(CONCATENATE(B22,"!X22")) -> 0 | P22: =INDIRECT(CONCATENATE(B22,"!R22")) -> 0 | Q22: =INDIRECT(CONCATENATE(B22,"!L22")) -> 0 | R22: =INDIRECT(CONCATENATE(B22,"!F22")) -> 0 | T22: 2 | U22: 5 | V22: 1 | W22: 6 | X22: 2 | Y22: 11 | AM22: 22
T23: 2 | U23: 5 | V23: 1 | X23: 2 | AJ23: =SUM(C23:AI23) -> 10 | AK23: =+AJ23/AM23 -> 2.5 | AL23: =ROUND(SUM(AK23),0) -> 3 | AM23: 4
A24: Glenn Kreig | B24: kreig | C24: =MIN(AL25,25) -> 13 | D24: =INDIRECT(CONCATENATE(B24,"!CL22")) -> 0 | E24: =INDIRECT(CONCATENATE(B24,"!CF22")) -> 0 | F24: =INDIRECT(CONCATENATE(B24,"!BZ22")) -> 0 | G24: =INDIRECT(CONCATENATE(B24,"!BT22")) -> 0 | H24: =INDIRECT(CONCATENATE(B24,"!BN22")) -> 0 | I24: =INDIRECT(CONCATENATE(B24,"!BH22")) -> 0 | J24: =INDIRECT(CONCATENATE(B24,"!BB22")) -> 0 | K24: =INDIRECT(CONCATENATE(B24,"!AV22")) -> 0 | L24: =INDIRECT(CONCATENATE(B24,"!AP22")) -> 0 | M24: =INDIRECT(CONCATENATE(B24,"!AJ22")) -> 0 | N24: =INDIRECT(CONCATENATE(B24,"!AD22")) -> 0 | O24: =INDIRECT(CONCATENATE(B24,"!X22")) -> 0 | P24: =INDIRECT(CONCATENATE(B24,"!R22")) -> 0 | Q24: =INDIRECT(CONCATENATE(B24,"!L22")) -> 0 | R24: =INDIRECT(CONCATENATE(B24,"!F22")) -> 0 | T24: 17 | U24: 13 | V24: 14 | W24: 18 | X24: 10 | Y24: 15 | AM24: 22
U25: 13 | V25: 14 | X25: 10 | Y25: 15 | AJ25: =SUM(C25:AI25) -> 52 | AK25: =+AJ25/AM25 -> 13 | AL25: =ROUND(SUM(AK25),0) -> 13 | AM25: 4
A26: Vincent Daviero | B26: daviero_v | C26: =MIN(AL27,25) -> 9 | D26: =INDIRECT(CONCATENATE(B26,"!CL22")) -> 0 | E26: =INDIRECT(CONCATENATE(B26,"!CF22")) -> 0 | F26: =INDIRECT(CONCATENATE(B26,"!BZ22")) -> 0 | G26: =INDIRECT(CONCATENATE(B26,"!BT22")) -> 0 | H26: =INDIRECT(CONCATENATE(B26,"!BN22")) -> 0 | I26: =INDIRECT(CONCATENATE(B26,"!BH22")) -> 0 | J26: =INDIRECT(CONCATENATE(B26,"!BB22")) -> 0 | K26: =INDIRECT(CONCATENATE(B26,"!AV22")) -> 0 | L26: =INDIRECT(CONCATENATE(B26,"!AP22")) -> 0 | M26: =INDIRECT(CONCATENATE(B26,"!AJ22")) -> 0 | N26: =INDIRECT(CONCATENATE(B26,"!AD22")) -> 0 | O26: =INDIRECT(CONCATENATE(B26,"!X22")) -> 0 | P26: =INDIRECT(CONCATENATE(B26,"!R22")) -> 0 | Q26: =INDIRECT(CONCATENATE(B26,"!L22")) -> 0 | R26: =INDIRECT(CONCATENATE(B26,"!F22")) -> 0 | T26: 9 | U26: 8 | V26: 9 | W26: 8 | X26: 9 | Y26: 9 | AH26: 0 | AM26: 23
T27: 9 | U27: 8 | V27: 9 | W27: 8 | AJ27: =SUM(C27:AI27) -> 34 | AK27: =+AJ27/AM27 -> 8.5 | AL27: =ROUND(SUM(AK27),0) -> 9 | AM27: 4
A28: Pete Michalski | B28: michalski_p | C28: =MIN(AL29,25) -> 19 | D28: =INDIRECT(CONCATENATE(B28,"!CL22")) -> 0 | E28: =INDIRECT(CONCATENATE(B28,"!CF22")) -> 0 | F28: =INDIRECT(CONCATENATE(B28,"!BZ22")) -> 0 | G28: =INDIRECT(CONCATENATE(B28,"!BT22")) -> 0 | H28: =INDIRECT(CONCATENATE(B28,"!BN22")) -> 0 | I28: =INDIRECT(CONCATENATE(B28,"!BH22")) -> 0 | J28: =INDIRECT(CONCATENATE(B28,"!BB22")) -> 0 | K28: =INDIRECT(CONCATENATE(B28,"!AV22")) -> 0 | L28: =INDIRECT(CONCATENATE(B28,"!AP22")) -> 0 | M28: =INDIRECT(CONCATENATE(B28,"!AJ22")) -> 0 | N28: =INDIRECT(CONCATENATE(B28,"!AD22")) -> 0 | O28: =INDIRECT(CONCATENATE(B28,"!X22")) -> 0 | P28: =INDIRECT(CONCATENATE(B28,"!R22")) -> 0 | Q28: =INDIRECT(CONCATENATE(B28,"!L22")) -> 0 | R28: =INDIRECT(CONCATENATE(B28,"!F22")) -> 0 | T28: 25 | U28: 19 | V28: 19 | W28: 18 | X28: 20 | Y28: 19 | AM28: 22
U29: 19 | V29: 19 | W29: 18 | Y29: 19 | AJ29: =SUM(C29:AI29) -> 75 | AK29: =+AJ29/AM29 -> 18.75 | AL29: =ROUND(SUM(AK29),0) -> 19 | AM29: 4
A30: Sue Michalski | B30: michalski_s | C30: =MIN(AL31,25) -> 21 | D30: =INDIRECT(CONCATENATE(B30,"!CL22")) -> 0 | E30: =INDIRECT(CONCATENATE(B30,"!CF22")) -> 0 | F30: =INDIRECT(CONCATENATE(B30,"!BZ22")) -> 0 | G30: =INDIRECT(CONCATENATE(B30,"!BT22")) -> 0 | H30: =INDIRECT(CONCATENATE(B30,"!BN22")) -> 0 | I30: =INDIRECT(CONCATENATE(B30,"!BH22")) -> 0 | J30: =INDIRECT(CONCATENATE(B30,"!BB22")) -> 0 | K30: =INDIRECT(CONCATENATE(B30,"!AV22")) -> 0 | L30: =INDIRECT(CONCATENATE(B30,"!AP22")) -> 0 | M30: =INDIRECT(CONCATENATE(B30,"!AJ22")) -> 0 | N30: =INDIRECT(CONCATENATE(B30,"!AD22")) -> 0 | O30: =INDIRECT(CONCATENATE(B30,"!X22")) -> 0 | P30: =INDIRECT(CONCATENATE(B30,"!R22")) -> 0 | Q30: =INDIRECT(CONCATENATE(B30,"!L22")) -> 0 | R30: =INDIRECT(CONCATENATE(B30,"!F22")) -> 0 | T30: 26 | U30: 22 | V30: 22 | W30: 18 | X30: 25 | Y30: 23 | AM30: 22
U31: 22 | V31: 22 | W31: 18 | Y31: 23 | AJ31: =SUM(C31:AI31) -> 85 | AK31: =+AJ31/AM31 -> 21.25 | AL31: =ROUND(SUM(AK31),0) -> 21 | AM31: 4
A32: Tim Hobbs | B32: hobbs | C32: =MIN(AL33,25) -> 11 | D32: =INDIRECT(CONCATENATE(B32,"!CL22")) -> 0 | E32: =INDIRECT(CONCATENATE(B32,"!CF22")) -> 0 | F32: =INDIRECT(CONCATENATE(B32,"!BZ22")) -> 0 | G32: =INDIRECT(CONCATENATE(B32,"!BT22")) -> 0 | H32: =INDIRECT(CONCATENATE(B32,"!BN22")) -> 0 | I32: =INDIRECT(CONCATENATE(B32,"!BH22")) -> 0 | J32: =INDIRECT(CONCATENATE(B32,"!BB22")) -> 0 | K32: =INDIRECT(CONCATENATE(B32,"!AV22")) -> 0 | L32: =INDIRECT(CONCATENATE(B32,"!AP22")) -> 0 | M32: =INDIRECT(CONCATENATE(B32,"!AJ22")) -> 0 | N32: =INDIRECT(CONCATENATE(B32,"!AD22")) -> 0 | O32: =INDIRECT(CONCATENATE(B32,"!X22")) -> 0 | P32: =INDIRECT(CONCATENATE(B32,"!R22")) -> 0 | Q32: =INDIRECT(CONCATENATE(B32,"!L22")) -> 0 | R32: =INDIRECT(CONCATENATE(B32,"!F22")) -> 0 | T32: 7 | U32: 17 | V32: 12 | W32: 12 | X32: 19 | Y32: 13 | AM32: 22
T33: 7 | V33: 12 | W33: 12 | Y33: 13 | AJ33: =SUM(C33:AI33) -> 44 | AK33: =+AJ33/AM33 -> 11 | AL33: =ROUND(SUM(AK33),0) -> 11 | AM33: 4
A34: Tom Mohsinger | B34: mohsinger_t | C34: =MIN(AL35,25) -> 14 | D34: =INDIRECT(CONCATENATE(B34,"!CL22")) -> 0 | E34: =INDIRECT(CONCATENATE(B34,"!CF22")) -> 0 | F34: =INDIRECT(CONCATENATE(B34,"!BZ22")) -> 0 | G34: =INDIRECT(CONCATENATE(B34,"!BT22")) -> 0 | H34: =INDIRECT(CONCATENATE(B34,"!BN22")) -> 0 | I34: =INDIRECT(CONCATENATE(B34,"!BH22")) -> 0 | J34: =INDIRECT(CONCATENATE(B34,"!BB22")) -> 0 | K34: =INDIRECT(CONCATENATE(B34,"!AV22")) -> 0 | L34: =INDIRECT(CONCATENATE(B34,"!AP22")) -> 0 | M34: =INDIRECT(CONCATENATE(B34,"!AJ22")) -> 0 | N34: =INDIRECT(CONCATENATE(B34,"!AD22")) -> 0 | O34: =INDIRECT(CONCATENATE(B34,"!X22")) -> 0 | P34: =INDIRECT(CONCATENATE(B34,"!R22")) -> 0 | Q34: =INDIRECT(CONCATENATE(B34,"!L22")) -> 0 | R34: =INDIRECT(CONCATENATE(B34,"!F22")) -> 0 | T34: 17 | U34: 20 | V34: 13 | W34: 15 | X34: 15 | Y34: 13 | AM34: 22
V35: 13 | W35: 15 | X35: 15 | Y35: 13 | AJ35: =SUM(C35:AI35) -> 56 | AK35: =+AJ35/AM35 -> 14 | AL35: =ROUND(SUM(AK35),0) -> 14 | AM35: 4
AM40: =COUNT(C40:AI40) -> 0
AM41: =COUNT(C41:AI41) -> 0
AM45: 0
AM46: 0
A47: Subs
A50: Sub | B50: subx | C50: =MIN(AL51,25) -> 0 | D50: =IFERROR(INDIRECT(CONCATENATE(B50,"!CL22")),0) -> 0 | E50: =IFERROR(INDIRECT(CONCATENATE(B50,"!CF22")),0) -> 0 | F50: =IFERROR(INDIRECT(CONCATENATE(B50,"!BZ22")),0) -> 0 | G50: =IFERROR(INDIRECT(CONCATENATE(B50,"!BT22")),0) -> 0 | H50: =IFERROR(INDIRECT(CONCATENATE(B50,"!BN22")),0) -> 0 | I50: =IFERROR(INDIRECT(CONCATENATE(B50,"!BH22")),0) -> 0 | J50: =IFERROR(INDIRECT(CONCATENATE(B50,"!BB22")),0) -> 0 | K50: =IFERROR(INDIRECT(CONCATENATE(B50,"!AV22")),0) -> 0 | L50: =IFERROR(INDIRECT(CONCATENATE(B50,"!AP22")),0) -> 0 | M50: =IFERROR(INDIRECT(CONCATENATE(B50,"!AJ22")),0) -> 0 | N50: =IFERROR(INDIRECT(CONCATENATE(B50,"!AD22")),0) -> 0 | O50: =IFERROR(INDIRECT(CONCATENATE(B50,"!X22")),0) -> 0 | P50: =IFERROR(INDIRECT(CONCATENATE(B50,"!R22")),0) -> 0 | Q50: =IFERROR(INDIRECT(CONCATENATE(B50,"!L22")),0) -> 0 | R50: =IFERROR(INDIRECT(CONCATENATE(B50,"!F22")),0) -> 0 | T50: 0 | U50: 0 | V50: 0 | W50: 0 | X50: 0 | Y50: 0 | AM50: =COUNT(C50:AI50) -> 22
T51: 0 | U51: 0 | V51: 0 | W51: 0 | X51: 0 | Y51: 0 | AJ51: =SUM(C51:AI51) -> 0 | AK51: =+AJ51/AM51 -> 0 | AL51: =ROUND(SUM(AK51),0) -> 0 | AM51: 6
A52: Ev Kauffman | B52: kauffman | C52: =MIN(AL53,25) -> 14 | D52: =IFERROR(INDIRECT(CONCATENATE(B52,"!CL22")),0) -> 0 | E52: =IFERROR(INDIRECT(CONCATENATE(B52,"!CF22")),0) -> 0 | F52: =IFERROR(INDIRECT(CONCATENATE(B52,"!BZ22")),0) -> 0 | G52: =IFERROR(INDIRECT(CONCATENATE(B52,"!BT22")),0) -> 0 | H52: =IFERROR(INDIRECT(CONCATENATE(B52,"!BN22")),0) -> 0 | I52: =IFERROR(INDIRECT(CONCATENATE(B52,"!BH22")),0) -> 0 | J52: =IFERROR(INDIRECT(CONCATENATE(B52,"!BB22")),0) -> 0 | K52: =IFERROR(INDIRECT(CONCATENATE(B52,"!AV22")),0) -> 0 | L52: =IFERROR(INDIRECT(CONCATENATE(B52,"!AP22")),0) -> 0 | M52: =IFERROR(INDIRECT(CONCATENATE(B52,"!AJ22")),0) -> 0 | N52: =IFERROR(INDIRECT(CONCATENATE(B52,"!AD22")),0) -> 0 | O52: =IFERROR(INDIRECT(CONCATENATE(B52,"!X22")),0) -> 0 | P52: =IFERROR(INDIRECT(CONCATENATE(B52,"!R22")),0) -> 0 | Q52: =IFERROR(INDIRECT(CONCATENATE(B52,"!L22")),0) -> 0 | R52: =IFERROR(INDIRECT(CONCATENATE(B52,"!F22")),0) -> 0 | T52: 16 | U52: 20 | V52: 8 | W52: 17 | X52: 16 | Y52: 21 | AM52: 22
T53: 16 | V53: 8 | W53: 17 | X53: 16 | AJ53: =SUM(C53:AI53) -> 57 | AK53: =+AJ53/AM53 -> 14.25 | AL53: =ROUND(SUM(AK53),0) -> 14 | AM53: 4
A54: Dick Vosko | B54: vosko | C54: =MIN(AL55,25) ->  | D54: =INDIRECT(CONCATENATE(B54,"!CL22")) ->  | E54: =INDIRECT(CONCATENATE(B54,"!CF22")) ->  | F54: =INDIRECT(CONCATENATE(B54,"!BZ22")) ->  | G54: =INDIRECT(CONCATENATE(B54,"!BT22")) ->  | H54: =INDIRECT(CONCATENATE(B54,"!BN22")) ->  | I54: =INDIRECT(CONCATENATE(B54,"!BH22")) ->  | J54: =INDIRECT(CONCATENATE(B54,"!BB22")) ->  | K54: =INDIRECT(CONCATENATE(B54,"!AV22")) ->  | L54: =INDIRECT(CONCATENATE(B54,"!AP22")) ->  | M54: =INDIRECT(CONCATENATE(B54,"!AJ22")) ->  | N54: =INDIRECT(CONCATENATE(B54,"!AD22")) ->  | O54: =INDIRECT(CONCATENATE(B54,"!X22")) ->  | P54: =INDIRECT(CONCATENATE(B54,"!R22")) ->  | Q54: =INDIRECT(CONCATENATE(B54,"!L22")) ->  | R54: =INDIRECT(CONCATENATE(B54,"!F22")) ->  | AM54: 0
AJ55: =SUM(C55:AI55) -> 0 | AK55: =+AJ55/AM55 ->  | AL55: =ROUND(SUM(AK55),0) ->  | AM55: 0
A56: Dan Richardson | B56: richardson | C56: =MIN(AL57,25) -> 10 | D56: =IFERROR(INDIRECT(CONCATENATE(B56,"!CL22")),0) -> 0 | E56: =IFERROR(INDIRECT(CONCATENATE(B56,"!CF22")),0) -> 0 | F56: =IFERROR(INDIRECT(CONCATENATE(B56,"!BZ22")),0) -> 0 | G56: =IFERROR(INDIRECT(CONCATENATE(B56,"!BT22")),0) -> 0 | H56: =IFERROR(INDIRECT(CONCATENATE(B56,"!BN22")),0) -> 0 | I56: =IFERROR(INDIRECT(CONCATENATE(B56,"!BH22")),0) -> 0 | J56: =IFERROR(INDIRECT(CONCATENATE(B56,"!BB22")),0) -> 0 | K56: =IFERROR(INDIRECT(CONCATENATE(B56,"!AV22")),0) -> 0 | L56: =IFERROR(INDIRECT(CONCATENATE(B56,"!AP22")),0) -> 0 | M56: =IFERROR(INDIRECT(CONCATENATE(B56,"!AJ22")),0) -> 0 | N56: =IFERROR(INDIRECT(CONCATENATE(B56,"!AD22")),0) -> 0 | O56: =IFERROR(INDIRECT(CONCATENATE(B56,"!X22")),0) -> 0 | P56: =IFERROR(INDIRECT(CONCATENATE(B56,"!R22")),0) -> 0 | Q56: =IFERROR(INDIRECT(CONCATENATE(B56,"!L22")),0) -> 0 | R56: =IFERROR(INDIRECT(CONCATENATE(B56,"!F22")),0) -> 0 | T56: 14 | U56: 12 | V56: 9 | W56: 11 | X56: 9 | Y56: 12 | AM56: 22
U57: 12 | V57: 9 | W57: 11 | X57: 9 | AJ57: =SUM(C57:AI57) -> 41 | AK57: =+AJ57/AM57 -> 10.25 | AL57: =ROUND(SUM(AK57),0) -> 10 | AM57: 4
A58: Joe Sheridan | B58: sheridan | C58: =MIN(AL59,25) -> 5 | D58: =IFERROR(INDIRECT(CONCATENATE(B58,"!CL22")),0) -> 0 | E58: =IFERROR(INDIRECT(CONCATENATE(B58,"!CF22")),0) -> 0 | F58: =IFERROR(INDIRECT(CONCATENATE(B58,"!BZ22")),0) -> 0 | G58: =IFERROR(INDIRECT(CONCATENATE(B58,"!BT22")),0) -> 0 | H58: =IFERROR(INDIRECT(CONCATENATE(B58,"!BN22")),0) -> 0 | I58: =IFERROR(INDIRECT(CONCATENATE(B58,"!BH22")),0) -> 0 | J58: =IFERROR(INDIRECT(CONCATENATE(B58,"!BB22")),0) -> 0 | K58: =IFERROR(INDIRECT(CONCATENATE(B58,"!AV22")),0) -> 0 | L58: =IFERROR(INDIRECT(CONCATENATE(B58,"!AP22")),0) -> 0 | M58: =IFERROR(INDIRECT(CONCATENATE(B58,"!AJ22")),0) -> 0 | N58: =IFERROR(INDIRECT(CONCATENATE(B58,"!AD22")),0) -> 0 | O58: =IFERROR(INDIRECT(CONCATENATE(B58,"!X22")),0) -> 0 | P58: =IFERROR(INDIRECT(CONCATENATE(B58,"!R22")),0) -> 0 | Q58: =IFERROR(INDIRECT(CONCATENATE(B58,"!L22")),0) -> 0 | R58: =IFERROR(INDIRECT(CONCATENATE(B58,"!F22")),0) -> 0 | T58: 5 | U58: 5 | V58: 2 | W58: 8 | X58: 14 | Y58: 11 | AM58: 22 | AN58: Scores are non-league but same course
T59: 5 | U59: 5 | V59: 2 | W59: 8 | AJ59: =SUM(C59:AI59) -> 20 | AK59: =+AJ59/AM59 -> 5 | AL59: =ROUND(SUM(AK59),0) -> 5 | AM59: 4
A60: Bret Scott | B60: scott | C60: =MIN(AL61,25) -> 18 | D60: =IFERROR(INDIRECT(CONCATENATE(B60,"!CL22")),0) -> 0 | E60: =IFERROR(INDIRECT(CONCATENATE(B60,"!CF22")),0) -> 0 | F60: =IFERROR(INDIRECT(CONCATENATE(B60,"!BZ22")),0) -> 0 | G60: =IFERROR(INDIRECT(CONCATENATE(B60,"!BT22")),0) -> 0 | H60: =IFERROR(INDIRECT(CONCATENATE(B60,"!BN22")),0) -> 0 | I60: =IFERROR(INDIRECT(CONCATENATE(B60,"!BH22")),0) -> 0 | J60: =IFERROR(INDIRECT(CONCATENATE(B60,"!BB22")),0) -> 0 | K60: =IFERROR(INDIRECT(CONCATENATE(B60,"!AV22")),0) -> 0 | L60: =IFERROR(INDIRECT(CONCATENATE(B60,"!AP22")),0) -> 0 | M60: =IFERROR(INDIRECT(CONCATENATE(B60,"!AJ22")),0) -> 0 | N60: =IFERROR(INDIRECT(CONCATENATE(B60,"!AD22")),0) -> 0 | O60: =IFERROR(INDIRECT(CONCATENATE(B60,"!X22")),0) -> 0 | P60: =IFERROR(INDIRECT(CONCATENATE(B60,"!R22")),0) -> 0 | Q60: =IFERROR(INDIRECT(CONCATENATE(B60,"!L22")),0) -> 0 | R60: =IFERROR(INDIRECT(CONCATENATE(B60,"!F22")),0) -> 0 | T60: 21 | U60: 19 | V60: 13 | W60: 18 | X60: 18 | Y60: 19 | AM60: 22
T61: 21 | U61: 19 | V61: 13 | W61: 18 | AJ61: =SUM(C61:AI61) -> 71 | AK61: =+AJ61/AM61 -> 17.75 | AL61: =ROUND(SUM(AK61),0) -> 18 | AM61: 4
A62: Mark Roschinsky | B62: roschinsky | C62: =MIN(AL63,25) -> 9 | D62: =IFERROR(INDIRECT(CONCATENATE(B62,"!CL22")),0) -> 0 | E62: =IFERROR(INDIRECT(CONCATENATE(B62,"!CF22")),0) -> 0 | F62: =IFERROR(INDIRECT(CONCATENATE(B62,"!BZ22")),0) -> 0 | G62: =IFERROR(INDIRECT(CONCATENATE(B62,"!BT22")),0) -> 0 | H62: =IFERROR(INDIRECT(CONCATENATE(B62,"!BN22")),0) -> 0 | I62: =IFERROR(INDIRECT(CONCATENATE(B62,"!BH22")),0) -> 0 | J62: =IFERROR(INDIRECT(CONCATENATE(B62,"!BB22")),0) -> 0 | K62: =IFERROR(INDIRECT(CONCATENATE(B62,"!AV22")),0) -> 0 | L62: =IFERROR(INDIRECT(CONCATENATE(B62,"!AP22")),0) -> 0 | M62: =IFERROR(INDIRECT(CONCATENATE(B62,"!AJ22")),0) -> 0 | N62: =IFERROR(INDIRECT(CONCATENATE(B62,"!AD22")),0) -> 0 | O62: =IFERROR(INDIRECT(CONCATENATE(B62,"!X22")),0) -> 0 | P62: =IFERROR(INDIRECT(CONCATENATE(B62,"!R22")),0) -> 0 | Q62: =IFERROR(INDIRECT(CONCATENATE(B62,"!L22")),0) -> 0 | R62: =IFERROR(INDIRECT(CONCATENATE(B62,"!F22")),0) -> 0 | T62: 9 | U62: 9 | V62: 9 | W62: 9 | X62: 8 | Y62: 15 | AN62: Scores are non-league but same course
T63: 9 | U63: 9 | V63: 9 | X63: 8 | AJ63: =SUM(C63:AI63) -> 35 | AK63: =+AJ63/AM63 -> 8.75 | AL63: =ROUND(SUM(AK63),0) -> 9 | AM63: 4
A64: Paul Archambault | B64: archambault | C64: =MIN(AL65,25) -> 11 | D64: =IFERROR(INDIRECT(CONCATENATE(B64,"!CL22")),0) -> 0 | E64: =IFERROR(INDIRECT(CONCATENATE(B64,"!CF22")),0) -> 0 | F64: =IFERROR(INDIRECT(CONCATENATE(B64,"!BZ22")),0) -> 0 | G64: =IFERROR(INDIRECT(CONCATENATE(B64,"!BT22")),0) -> 0 | H64: =IFERROR(INDIRECT(CONCATENATE(B64,"!BN22")),0) -> 0 | I64: =IFERROR(INDIRECT(CONCATENATE(B64,"!BH22")),0) -> 0 | J64: =IFERROR(INDIRECT(CONCATENATE(B64,"!BB22")),0) -> 0 | K64: =IFERROR(INDIRECT(CONCATENATE(B64,"!AV22")),0) -> 0 | L64: =IFERROR(INDIRECT(CONCATENATE(B64,"!AP22")),0) -> 0 | M64: =IFERROR(INDIRECT(CONCATENATE(B64,"!AJ22")),0) -> 0 | N64: =IFERROR(INDIRECT(CONCATENATE(B64,"!AD22")),0) -> 0 | O64: =IFERROR(INDIRECT(CONCATENATE(B64,"!X22")),0) -> 0 | P64: =IFERROR(INDIRECT(CONCATENATE(B64,"!R22")),0) -> 0 | Q64: =IFERROR(INDIRECT(CONCATENATE(B64,"!L22")),0) -> 0 | R64: =IFERROR(INDIRECT(CONCATENATE(B64,"!F22")),0) -> 0 | T64: 11 | U64: 15 | V64: 12 | W64: 14 | X64: 8 | Y64: 11 | AM64: 22
T65: 11 | V65: 12 | W65: 14 | X65: 8 | AJ65: =SUM(C65:AI65) -> 45 | AK65: =+AJ65/AM65 -> 11.25 | AL65: =ROUND(SUM(AK65),0) -> 11 | AM65: 4
A66: Lisa Palmerino | B66: palmerino_l | C66: =MIN(AL67,25) -> 18 | D66: =IFERROR(INDIRECT(CONCATENATE(B66,"!CL22")),0) -> 0 | E66: =IFERROR(INDIRECT(CONCATENATE(B66,"!CF22")),0) -> 0 | F66: =IFERROR(INDIRECT(CONCATENATE(B66,"!BZ22")),0) -> 0 | G66: =IFERROR(INDIRECT(CONCATENATE(B66,"!BT22")),0) -> 0 | H66: =IFERROR(INDIRECT(CONCATENATE(B66,"!BN22")),0) -> 0 | I66: =IFERROR(INDIRECT(CONCATENATE(B66,"!BH22")),0) -> 0 | J66: =IFERROR(INDIRECT(CONCATENATE(B66,"!BB22")),0) -> 0 | K66: =IFERROR(INDIRECT(CONCATENATE(B66,"!AV22")),0) -> 0 | L66: =IFERROR(INDIRECT(CONCATENATE(B66,"!AP22")),0) -> 0 | M66: =IFERROR(INDIRECT(CONCATENATE(B66,"!AJ22")),0) -> 0 | N66: =IFERROR(INDIRECT(CONCATENATE(B66,"!AD22")),0) -> 0 | O66: =IFERROR(INDIRECT(CONCATENATE(B66,"!X22")),0) -> 0 | P66: =IFERROR(INDIRECT(CONCATENATE(B66,"!R22")),0) -> 0 | Q66: =IFERROR(INDIRECT(CONCATENATE(B66,"!L22")),0) -> 0 | R66: =IFERROR(INDIRECT(CONCATENATE(B66,"!F22")),0) -> 0 | T66: 16 | U66: 18 | V66: 18 | W66: 20 | X66: 18 | Y66: 19
T67: 16 | U67: 18 | V67: 18 | X67: 18 | AJ67: =SUM(C67:AI67) -> 70 | AK67: =+AJ67/AM67 -> 17.5 | AL67: =ROUND(SUM(AK67),0) -> 18 | AM67: 4
A68: Marty Reed | B68: reed | C68: =MIN(AL69,25) -> 5 | D68: =IFERROR(INDIRECT(CONCATENATE(B68,"!CL22")),0) -> 0 | E68: =IFERROR(INDIRECT(CONCATENATE(B68,"!CF22")),0) -> 0 | F68: =IFERROR(INDIRECT(CONCATENATE(B68,"!BZ22")),0) -> 0 | G68: =IFERROR(INDIRECT(CONCATENATE(B68,"!BT22")),0) -> 0 | H68: =IFERROR(INDIRECT(CONCATENATE(B68,"!BN22")),0) -> 0 | I68: =IFERROR(INDIRECT(CONCATENATE(B68,"!BH22")),0) -> 0 | J68: =IFERROR(INDIRECT(CONCATENATE(B68,"!BB22")),0) -> 0 | K68: =IFERROR(INDIRECT(CONCATENATE(B68,"!AV22")),0) -> 0 | L68: =IFERROR(INDIRECT(CONCATENATE(B68,"!AP22")),0) -> 0 | M68: =IFERROR(INDIRECT(CONCATENATE(B68,"!AJ22")),0) -> 0 | N68: =IFERROR(INDIRECT(CONCATENATE(B68,"!AD22")),0) -> 0 | O68: =IFERROR(INDIRECT(CONCATENATE(B68,"!X22")),0) -> 0 | P68: =IFERROR(INDIRECT(CONCATENATE(B68,"!R22")),0) -> 0 | Q68: =IFERROR(INDIRECT(CONCATENATE(B68,"!L22")),0) -> 0 | R68: =IFERROR(INDIRECT(CONCATENATE(B68,"!F22")),0) -> 0 | T68: 11 | U68: 2 | V68: 4 | W68: 9 | X68: 7 | Y68: 7
U69: 2 | V69: 4 | X69: 7 | Y69: 7 | AJ69: =SUM(C69:AI69) -> 20 | AK69: =+AJ69/AM69 -> 5 | AL69: =ROUND(SUM(AK69),0) -> 5 | AM69: 4
A70: Gloria Poston | B70: poston | C70: =MIN(AL71,25) -> 12 | D70: =IFERROR(INDIRECT(CONCATENATE(B70,"!CL22")),0) -> 0 | E70: =IFERROR(INDIRECT(CONCATENATE(B70,"!CF22")),0) -> 0 | F70: =IFERROR(INDIRECT(CONCATENATE(B70,"!BZ22")),0) -> 0 | G70: =IFERROR(INDIRECT(CONCATENATE(B70,"!BT22")),0) -> 0 | H70: =IFERROR(INDIRECT(CONCATENATE(B70,"!BN22")),0) -> 0 | I70: =IFERROR(INDIRECT(CONCATENATE(B70,"!BH22")),0) -> 0 | J70: =IFERROR(INDIRECT(CONCATENATE(B70,"!BB22")),0) -> 0 | K70: =IFERROR(INDIRECT(CONCATENATE(B70,"!AV22")),0) -> 0 | L70: =IFERROR(INDIRECT(CONCATENATE(B70,"!AP22")),0) -> 0 | M70: =IFERROR(INDIRECT(CONCATENATE(B70,"!AJ22")),0) -> 0 | N70: =IFERROR(INDIRECT(CONCATENATE(B70,"!AD22")),0) -> 0 | O70: =IFERROR(INDIRECT(CONCATENATE(B70,"!X22")),0) -> 0 | P70: =IFERROR(INDIRECT(CONCATENATE(B70,"!R22")),0) -> 0 | Q70: =IFERROR(INDIRECT(CONCATENATE(B70,"!L22")),0) -> 0 | R70: =IFERROR(INDIRECT(CONCATENATE(B70,"!F22")),0) -> 0 | T70: 12 | U70: 17 | V70: 15 | W70: 10 | X70: 14 | Y70: 11
T71: 12 | W71: 10 | X71: 14 | Y71: 11 | AJ71: =SUM(C71:AI71) -> 47 | AK71: =+AJ71/AM71 -> 11.75 | AL71: =ROUND(SUM(AK71),0) -> 12 | AM71: =COUNT(C71:AI71) -> 4
A72: Matt Nichols | B72: nichols | C72: =MIN(AL73,25) -> 13 | D72: =IFERROR(INDIRECT(CONCATENATE(B72,"!CL22")),0) -> 0 | E72: =IFERROR(INDIRECT(CONCATENATE(B72,"!CF22")),0) -> 0 | F72: =IFERROR(INDIRECT(CONCATENATE(B72,"!BZ22")),0) -> 0 | G72: =IFERROR(INDIRECT(CONCATENATE(B72,"!BT22")),0) -> 0 | H72: =IFERROR(INDIRECT(CONCATENATE(B72,"!BN22")),0) -> 0 | I72: =IFERROR(INDIRECT(CONCATENATE(B72,"!BH22")),0) -> 0 | J72: =IFERROR(INDIRECT(CONCATENATE(B72,"!BB22")),0) -> 0 | K72: =IFERROR(INDIRECT(CONCATENATE(B72,"!AV22")),0) -> 0 | L72: =IFERROR(INDIRECT(CONCATENATE(B72,"!AP22")),0) -> 0 | M72: =IFERROR(INDIRECT(CONCATENATE(B72,"!AJ22")),0) -> 0 | N72: =IFERROR(INDIRECT(CONCATENATE(B72,"!AD22")),0) -> 0 | O72: =IFERROR(INDIRECT(CONCATENATE(B72,"!X22")),0) -> 0 | P72: =IFERROR(INDIRECT(CONCATENATE(B72,"!R22")),0) -> 0 | Q72: =IFERROR(INDIRECT(CONCATENATE(B72,"!L22")),0) -> 0 | R72: =IFERROR(INDIRECT(CONCATENATE(B72,"!F22")),0) -> 0 | T72: 14 | U72: 16 | V72: 15 | W72: 13 | X72: 13 | Y72: 13
T73: 14 | W73: 13 | X73: 13 | Y73: 13 | AJ73: =SUM(C73:AI73) -> 53 | AK73: =+AJ73/AM73 -> 13.25 | AL73: =ROUND(SUM(AK73),0) -> 13 | AM73: =COUNT(C73:AI73) -> 4
A74: SUB | B74: subx | C74: =MIN(AL75,25) -> 0 | D74: =IFERROR(INDIRECT(CONCATENATE(B74,"!CL22")),0) -> 0 | E74: =IFERROR(INDIRECT(CONCATENATE(B74,"!CF22")),0) -> 0 | F74: =IFERROR(INDIRECT(CONCATENATE(B74,"!BZ22")),0) -> 0 | G74: =IFERROR(INDIRECT(CONCATENATE(B74,"!BT22")),0) -> 0 | H74: =IFERROR(INDIRECT(CONCATENATE(B74,"!BN22")),0) -> 0 | I74: =IFERROR(INDIRECT(CONCATENATE(B74,"!BH22")),0) -> 0 | J74: =IFERROR(INDIRECT(CONCATENATE(B74,"!BB22")),0) -> 0 | K74: =IFERROR(INDIRECT(CONCATENATE(B74,"!AV22")),0) -> 0 | L74: =IFERROR(INDIRECT(CONCATENATE(B74,"!AP22")),0) -> 0 | M74: =IFERROR(INDIRECT(CONCATENATE(B74,"!AJ22")),0) -> 0 | N74: =IFERROR(INDIRECT(CONCATENATE(B74,"!AD22")),0) -> 0 | O74: =IFERROR(INDIRECT(CONCATENATE(B74,"!X22")),0) -> 0 | P74: =IFERROR(INDIRECT(CONCATENATE(B74,"!R22")),0) -> 0 | Q74: =IFERROR(INDIRECT(CONCATENATE(B74,"!L22")),0) -> 0 | R74: =IFERROR(INDIRECT(CONCATENATE(B74,"!F22")),0) -> 0 | T74: 0 | U74: 0 | V74: 0 | W74: 0 | X74: 0 | Y74: 0
T75: 0 | U75: 0 | V75: 0 | W75: 0 | X75: 0 | Y75: 0 | AJ75: =SUM(C75:AI75) -> 0 | AK75: =+AJ75/AM75 -> 0 | AL75: =ROUND(SUM(AK75),0) -> 0 | AM75: =COUNT(C75:AI75) -> 6
A76: Jill Daviero | B76: daviero_j | C76: =MIN(AL77,25) -> 24 | D76: =IFERROR(INDIRECT(CONCATENATE(B76,"!CL22")),0) -> 0 | E76: =IFERROR(INDIRECT(CONCATENATE(B76,"!CF22")),0) -> 0 | F76: =IFERROR(INDIRECT(CONCATENATE(B76,"!BZ22")),0) -> 0 | G76: =IFERROR(INDIRECT(CONCATENATE(B76,"!BT22")),0) -> 0 | H76: =IFERROR(INDIRECT(CONCATENATE(B76,"!BN22")),0) -> 0 | I76: =IFERROR(INDIRECT(CONCATENATE(B76,"!BH22")),0) -> 0 | J76: =IFERROR(INDIRECT(CONCATENATE(B76,"!BB22")),0) -> 0 | K76: =IFERROR(INDIRECT(CONCATENATE(B76,"!AV22")),0) -> 0 | L76: =IFERROR(INDIRECT(CONCATENATE(B76,"!AP22")),0) -> 0 | M76: =IFERROR(INDIRECT(CONCATENATE(B76,"!AJ22")),0) -> 0 | N76: =IFERROR(INDIRECT(CONCATENATE(B76,"!AD22")),0) -> 0 | O76: =IFERROR(INDIRECT(CONCATENATE(B76,"!X22")),0) -> 0 | P76: =IFERROR(INDIRECT(CONCATENATE(B76,"!R22")),0) -> 0 | Q76: =IFERROR(INDIRECT(CONCATENATE(B76,"!L22")),0) -> 0 | R76: =IFERROR(INDIRECT(CONCATENATE(B76,"!F22")),0) -> 0 | T76: 19 | U76: 25 | V76: 25 | W76: 25 | X76: 25 | Y76: 25 | AM76: 22
T77: 19 | U77: 25 | V77: 25 | W77: 25 | AJ77: =SUM(C77:AI77) -> 94 | AK77: =+AJ77/AM77 -> 23.5 | AL77: =ROUND(SUM(AK77),0) -> 24 | AM77: 4
A80: Handicap lookup
A82: Paul | B82: archambault | C82: =C64 -> 11 | D82: =AK65 -> 11.25
A83: Jim | B83: daviero | C83: =C20 -> 9 | D83: =AK21 -> 8.5
A84: Jill | B84: daviero_j | C84: =C76 -> 24 | D84: =AK77 -> 23.5
A85: Vincent | B85: daviero_v | C85: =C26 -> 9 | D85: =AK27 -> 8.5
A86: Dan | B86: fusco_d | C86: =C12 -> 8 | D86: =AK13 -> 8
A87: Mike | B87: fusco_m | C87: 11
A88: Steve | B88: fusco_s | C88: =C18 -> 12 | D88: =AK19 -> 11.75
A89: Jeanne | B89: henderson | C89: =C76 -> 24 | D89: =AK77 -> 23.5
A90: Tim | B90: hobbs | C90: =C32 -> 11 | D90: =AK33 -> 11
A91: Ev | B91: kauffman | C91: =C52 -> 14 | D91: =AK53 -> 14.25
A92: Glenn | B92: kreig | C92: =C24 -> 13 | D92: =AK25 -> 13
A93: Andy | B93: linton | C93: =C4 -> 5 | D93: =AK5 -> 5.25
A94: Brian | B94: mclaughlin | C94: =C10 -> 12 | D94: =AK11 -> 12
A95: Pete | B95: michalski_p | C95: =C28 -> 19 | D95: =AK29 -> 18.75
A96: Sue | B96: michalski_s | C96: =C30 -> 21 | D96: =AK31 -> 21.25
A97: Bette | B97: mohsinger_b | C97: =C6 -> 12 | D97: =AK7 -> 11.5
A98: Tom | B98: mohsinger_t | C98: =C34 -> 14 | D98: =AK35 -> 14
A99: Matt | B99: nichols | C99: =C26 -> 9 | D99: =AK27 -> 8.5
A100: Dan | B100: palmerino | C100: =C14 -> 8 | D100: =AK15 -> 8.25
A101: Lisa | B101: palmerino_l | C101: =C66 -> 18 | D101: =AK67 -> 17.5
A102: Gloria | B102: poston | C102: =C70 -> 12 | D102: =AK71 -> 11.75
A103: Marty | B103: reed | C103: =C68 -> 5 | D103: =AK69 -> 5
A104: Dan | B104: richardson | C104: =C56 -> 10 | D104: =AK57 -> 10.25
A105: Mark | B105: roschinsky | C105: =C62 -> 9 | D105: =AK63 -> 8.75
A106: Mark | B106: rusnak | C106: =C22 -> 3 | D106: =AK23 -> 2.5
A107: Bret | B107: scott | C107: =C60 -> 18 | D107: =AK61 -> 17.75
A108: Joe | B108: sheridan | C108: =C58 -> 5 | D108: =AK59 -> 5
A109: Dave | B109: taylor | C109: =C16 -> 13 | D109: =AK17 -> 13.25
A110: Bob | B110: templeton | C110: =C8 -> 20 | D110: =AK9 -> 19.75

Sheet Sum of W_T_L
A1: Summary of Wins / Losses / Ties
B3: Week #1 | C3: Week #2 | D3: Week #3 | E3: Week #4 | F3: Week #5 | G3: Week #6 | H3: Week #7 | I3: Week #8 | J3: Week #9 | K3: Week #10 | L3: Week #11 | M3: Week #12 | N3: Week #13 | O3: Week #14 | P3: Week #15 | R3: Wins | S3: Losses | T3: Ties
A4: =Linton!A1 -> Andy Linton | B4: =Linton!F24 -> 0 | C4: =Linton!L24 -> 0 | D4: =Linton!R24 -> 0 | E4: =Linton!X24 -> 0 | F4: =Linton!AD24 -> 0 | G4: =Linton!AJ24 -> 0 | H4: =Linton!AP24 -> 0 | I4: =Linton!AV24 -> 0 | J4: =Linton!BB24 -> 0 | K4: =Linton!BH24 -> 0 | L4: =Linton!BN24 -> 0 | M4: =Linton!BT24 -> 0 | N4: =Linton!BZ24 -> 0 | O4: =Linton!CF24 -> 0 | P4: =Linton!CL24 -> 0 | R4: =COUNTIF(B4:P4,"W") -> 0 | S4: =COUNTIF(B4:P4,"L") -> 0 | T4: =COUNTIF(B4:P4,"T") -> 0 | U4: =FIND(" ",A4) -> 5 | V4: =MID(A4,U4,99) -> Linton | W4: =IFERROR((R4+(T4/2))/SUM(R4:T4),0) -> 0
A5: =Mohsinger_B!A1 -> Bette Mohsinger | B5: =Mohsinger_B!F24 -> 0 | C5: =Mohsinger_B!L24 -> 0 | D5: =Mohsinger_B!R24 -> 0 | E5: =Mohsinger_B!X24 -> 0 | F5: =Mohsinger_B!AD24 -> 0 | G5: =Mohsinger_B!AJ24 -> 0 | H5: =Mohsinger_B!AP24 -> 0 | I5: =Mohsinger_B!AV24 -> 0 | J5: =Mohsinger_B!BB24 -> 0 | K5: =Mohsinger_B!BH24 -> 0 | L5: =Mohsinger_B!BN24 -> 0 | M5: =Mohsinger_B!BT24 -> 0 | N5: =Mohsinger_B!BZ24 -> 0 | O5: =Mohsinger_B!CF24 -> 0 | P5: =Mohsinger_B!CL24 -> 0 | R5: 0 | S5: 0 | T5: 0 | U5: 6 | V5: Mohsinger | W5: 0
A6: =Templeton!A1 -> Bob Templeton | B6: =Templeton!F24 -> 0 | C6: =Templeton!L24 -> 0 | D6: =Templeton!R24 -> 0 | E6: =Templeton!X24 -> 0 | F6: =Templeton!AD24 -> 0 | G6: =Templeton!AJ24 -> 0 | H6: =Templeton!AP24 -> 0 | I6: =Templeton!AV24 -> 0 | J6: =Templeton!BB24 -> 0 | K6: =Templeton!BH24 -> 0 | L6: =Templeton!BN24 -> 0 | M6: =Templeton!BT24 -> 0 | N6: =Templeton!BZ24 -> 0 | O6: =Templeton!CF24 -> 0 | P6: =Templeton!CL24 -> 0 | R6: 0 | S6: 0 | T6: 0 | U6: 4 | V6: Templeton | W6: 0
A7: =McLaughlin!A1 -> Brian McGlaughlin | B7: =McLaughlin!F24 -> 0 | C7: =McLaughlin!L24 -> 0 | D7: =McLaughlin!R24 -> 0 | E7: =McLaughlin!X24 -> 0 | F7: =McLaughlin!AD24 -> 0 | G7: =McLaughlin!AJ24 -> 0 | H7: =McLaughlin!AP24 -> 0 | I7: =McLaughlin!AV24 -> 0 | J7: =McLaughlin!BB24 -> 0 | K7: =McLaughlin!BH24 -> 0 | L7: =McLaughlin!BN24 -> 0 | M7: =McLaughlin!BT24 -> 0 | N7: =McLaughlin!BZ24 -> 0 | O7: =McLaughlin!CF24 -> 0 | P7: =McLaughlin!CL24 -> 0 | R7: 0 | S7: 0 | T7: 0 | U7: 6 | V7: McGlaughlin | W7: 0
A8: =Fusco_D!A1 -> Dan Fusco | B8: =Fusco_D!F24 -> 0 | C8: =Fusco_D!L24 -> 0 | D8: =Fusco_D!R24 -> 0 | E8: =Fusco_D!X24 -> 0 | F8: =Fusco_D!AD24 -> 0 | G8: =Fusco_D!AJ24 -> 0 | H8: =Fusco_D!AP24 -> 0 | I8: =Fusco_D!AV24 -> 0 | J8: =Fusco_D!BB24 -> 0 | K8: =Fusco_D!BH24 -> 0 | L8: =Fusco_D!BN24 -> 0 | M8: =Fusco_D!BT24 -> 0 | N8: =Fusco_D!BZ24 -> 0 | O8: =Fusco_D!CF24 -> 0 | P8: =Fusco_D!CL24 -> 0 | R8: 0 | S8: 0 | T8: 0 | U8: 4 | V8: Fusco | W8: 0
A9: =Palmerino!A1 -> Dan Palmerino | B9: =Palmerino!F24 -> 0 | C9: =Palmerino!L24 -> 0 | D9: =Palmerino!R24 -> 0 | E9: =Palmerino!X24 -> 0 | F9: =Palmerino!AD24 -> 0 | G9: =Palmerino!AJ24 -> 0 | H9: =Palmerino!AP24 -> 0 | I9: =Palmerino!AV24 -> 0 | J9: =Palmerino!BB24 -> 0 | K9: =Palmerino!BH24 -> 0 | L9: =Palmerino!BN24 -> 0 | M9: =Palmerino!BT24 -> 0 | N9: =Palmerino!BZ24 -> 0 | O9: =Palmerino!CF24 -> 0 | P9: =Palmerino!CL24 -> 0 | R9: 0 | S9: 0 | T9: 0 | U9: 4 | V9: Palmerino | W9: 0
A10: =Taylor!A1 -> Dave Taylor | B10: =Taylor!F24 -> 0 | C10: =Taylor!L24 -> 0 | D10: =Taylor!R24 -> 0 | E10: =Taylor!X24 -> 0 | F10: =Taylor!AD24 -> 0 | G10: =Taylor!AJ24 -> 0 | H10: =Taylor!AP24 -> 0 | I10: =Taylor!AV24 -> 0 | J10: =Taylor!BB24 -> 0 | K10: =Taylor!BH24 -> 0 | L10: =Taylor!BN24 -> 0 | M10: =Taylor!BT24 -> 0 | N10: =Taylor!BZ24 -> 0 | O10: =Taylor!CF24 -> 0 | P10: =Taylor!CL24 -> 0 | R10: 0 | S10: 0 | T10: 0 | U10: 5 | V10: Taylor | W10: 0
A11: Glenn Kreig | B11: =Kreig!F24 -> 0 | C11: =Kreig!L24 -> 0 | D11: =Kreig!R24 -> 0 | E11: =Kreig!X24 -> 0 | F11: =Kreig!AD24 -> 0 | G11: =Kreig!AJ24 -> 0 | H11: =Kreig!AP24 -> 0 | I11: =Kreig!AV24 -> 0 | J11: =Kreig!BB24 -> 0 | K11: =Kreig!BH24 -> 0 | L11: =Kreig!BN24 -> 0 | M11: =Kreig!BT24 -> 0 | N11: =Kreig!BZ24 -> 0 | O11: =Kreig!CF24 -> 0 | P11: =Kreig!CL24 -> 0 | R11: 0 | S11: 0 | T11: 0 | U11: 6 | V11: Kreig | W11: 0
A12: =Daviero!A1 -> Jim Daviero | B12: =Daviero!F24 -> 0 | C12: =Daviero!L24 -> 0 | D12: =Daviero!R24 -> 0 | E12: =Daviero!X24 -> 0 | F12: =Daviero!AD24 -> 0 | G12: =Daviero!AJ24 -> 0 | H12: =Daviero!AP24 -> 0 | I12: =Daviero!AV24 -> 0 | J12: =Daviero!BB24 -> 0 | K12: =Daviero!BH24 -> 0 | L12: =Daviero!BN24 -> 0 | M12: =Daviero!BT24 -> 0 | N12: =Daviero!BZ24 -> 0 | O12: =Daviero!CF24 -> 0 | P12: =Daviero!CL24 -> 0 | R12: 0 | S12: 0 | T12: 0 | U12: 4 | V12: Daviero | W12: 0
A13: =Rusnak!A1 -> Mark Rusnak | B13: =Rusnak!F24 -> 0 | C13: =Rusnak!L24 -> 0 | D13: =Rusnak!R24 -> 0 | E13: =Rusnak!X24 -> 0 | F13: =Rusnak!AD24 -> 0 | G13: =Rusnak!AJ24 -> 0 | H13: =Rusnak!AP24 -> 0 | I13: =Rusnak!AV24 -> 0 | J13: =Rusnak!BB24 -> 0 | K13: =Rusnak!BH24 -> 0 | L13: =Rusnak!BN24 -> 0 | M13: =Rusnak!BT24 -> 0 | N13: =Rusnak!BZ24 -> 0 | O13: =Rusnak!CF24 -> 0 | P13: =Rusnak!CL24 -> 0 | R13: 0 | S13: 0 | T13: 0 | U13: 5 | V13: Rusnak | W13: 0
A14: =Daviero_V!A1 -> Vincent Daviero | B14: =Daviero_V!F24 -> 0 | C14: =Daviero_V!L24 -> 0 | D14: =Daviero_V!R24 -> 0 | E14: =Daviero_V!X24 -> 0 | F14: =Daviero_V!AD24 -> 0 | G14: =Daviero_V!AJ24 -> 0 | H14: =Daviero_V!AP24 -> 0 | I14: =Daviero_V!AV24 -> 0 | J14: =Daviero_V!BB24 -> 0 | K14: =Daviero_V!BH24 -> 0 | L14: =Daviero_V!BN24 -> 0 | M14: =Daviero_V!BT24 -> 0 | N14: =Daviero_V!BZ24 -> 0 | O14: =Daviero_V!CF24 -> 0 | P14: =Daviero_V!CL24 -> 0 | R14: 0 | S14: 0 | T14: 0 | U14: 8 | V14: Daviero | W14: 0
A15: =Michalski_P!A1 -> Pete Michalski | B15: =Michalski_P!F24 -> 0 | C15: =Michalski_P!L24 -> 0 | D15: =Michalski_P!R24 -> 0 | E15: =Michalski_P!X24 -> 0 | F15: =Michalski_P!AD24 -> 0 | G15: =Michalski_P!AJ24 -> 0 | H15: =Michalski_P!AP24 -> 0 | I15: =Michalski_P!AV24 -> 0 | J15: =Michalski_P!BB24 -> 0 | K15: =Michalski_P!BH24 -> 0 | L15: =Michalski_P!BN24 -> 0 | M15: =Michalski_P!BT24 -> 0 | N15: =Michalski_P!BZ24 -> 0 | O15: =Michalski_P!CF24 -> 0 | P15: =Michalski_P!CL24 -> 0 | R15: 0 | S15: 0 | T15: 0 | U15: 5 | V15: Michalski | W15: 0
A16: =Fusco_S!A1 -> Steve Fusco | B16: =Fusco_S!F24 -> 0 | C16: =Fusco_S!L24 -> 0 | D16: =Fusco_S!R24 -> 0 | E16: =Fusco_S!X24 -> 0 | F16: =Fusco_S!AD24 -> 0 | G16: =Fusco_S!AJ24 -> 0 | H16: =Fusco_S!AP24 -> 0 | I16: =Fusco_S!AV24 -> 0 | J16: =Fusco_S!BB24 -> 0 | K16: =Fusco_S!BH24 -> 0 | L16: =Fusco_S!BN24 -> 0 | M16: =Fusco_S!BT24 -> 0 | N16: =Fusco_S!BZ24 -> 0 | O16: =Fusco_S!CF24 -> 0 | P16: =Fusco_S!CL24 -> 0 | R16: 0 | S16: 0 | T16: 0 | U16: 6 | V16: Fusco | W16: 0
A17: =Michalski_S!A1 -> Sue Michalski | B17: =Michalski_S!F24 -> 0 | C17: =Michalski_S!L24 -> 0 | D17: =Michalski_S!R24 -> 0 | E17: =Michalski_S!X24 -> 0 | F17: =Michalski_S!AD24 -> 0 | G17: =Michalski_S!AJ24 -> 0 | H17: =Michalski_S!AP24 -> 0 | I17: =Michalski_S!AV24 -> 0 | J17: =Michalski_S!BB24 -> 0 | K17: =Michalski_S!BH24 -> 0 | L17: =Michalski_S!BN24 -> 0 | M17: =Michalski_S!BT24 -> 0 | N17: =Michalski_S!BZ24 -> 0 | O17: =Michalski_S!CF24 -> 0 | P17: =Michalski_S!CL24 -> 0 | R17: 0 | S17: 0 | T17: 0 | U17: 4 | V17: Michalski | W17: 0
A18: =Hobbs!A1 -> Tim Hobbs | B18: =Hobbs!F24 -> 0 | C18: =Hobbs!L24 -> 0 | D18: =Hobbs!R24 -> 0 | E18: =Hobbs!X24 -> 0 | F18: =Hobbs!AD24 -> 0 | G18: =Hobbs!AJ24 -> 0 | H18: =Hobbs!AP24 -> 0 | I18: =Hobbs!AV24 -> 0 | J18: =Hobbs!BB24 -> 0 | K18: =Hobbs!BH24 -> 0 | L18: =Hobbs!BN24 -> 0 | M18: =Hobbs!BT24 -> 0 | N18: =Hobbs!BZ24 -> 0 | O18: =Hobbs!CF24 -> 0 | P18: =Hobbs!CL24 -> 0 | R18: 0 | S18: 0 | T18: 0 | U18: 4 | V18: Hobbs | W18: 0
A19: =Mohsinger_T!A1 -> Tom Mohsinger | B19: =Mohsinger_T!F24 -> 0 | C19: =Mohsinger_T!L24 -> 0 | D19: =Mohsinger_T!R24 -> 0 | E19: =Mohsinger_T!X24 -> 0 | F19: =Mohsinger_T!AD24 -> 0 | G19: =Mohsinger_T!AJ24 -> 0 | H19: =Mohsinger_T!AP24 -> 0 | I19: =Mohsinger_T!AV24 -> 0 | J19: =Mohsinger_T!BB24 -> 0 | K19: =Mohsinger_T!BH24 -> 0 | L19: =Mohsinger_T!BN24 -> 0 | M19: =Mohsinger_T!BT24 -> 0 | N19: =Mohsinger_T!BZ24 -> 0 | O19: =Mohsinger_T!CF24 -> 0 | P19: =Mohsinger_T!CL24 -> 0 | R19: 0 | S19: 0 | T19: 0 | U19: 4 | V19: Mohsinger | W19: 0
A21: =#REF! ->  | B21: =#REF! ->  | C21: =#REF! ->  | D21: =#REF! ->  | E21: =#REF! ->  | F21: =#REF! ->  | G21: =#REF! ->  | H21: =#REF! ->  | I21: =#REF! ->  | J21: =#REF! ->  | K21: =#REF! ->  | L21: =#REF! ->  | M21: =#REF! ->  | N21: =#REF! ->  | O21: =#REF! ->  | P21: =#REF! ->  | R21: =COUNTIF(B21:P21,"W") -> 0 | S21: =COUNTIF(B21:P21,"L") -> 0 | T21: =COUNTIF(B21:P21,"T") -> 0 | U21: =FIND(" ",A21) ->  | V21: =MID(A21,U21,99) ->  | W21: =(R21+(T21/2))/SUM(R21:T21) -> 
A22: =#REF! ->  | B22: =#REF! ->  | C22: =#REF! ->  | D22: =#REF! ->  | E22: =#REF! ->  | F22: =#REF! ->  | G22: =#REF! ->  | H22: =#REF! ->  | I22: =#REF! ->  | J22: =#REF! ->  | K22: =#REF! ->  | L22: =#REF! ->  | M22: =#REF! ->  | N22: =#REF! ->  | O22: =#REF! ->  | P22: =#REF! ->  | R22: =COUNTIF(B22:P22,"W") -> 0 | S22: =COUNTIF(B22:P22,"L") -> 0 | T22: =COUNTIF(B22:P22,"T") -> 0 | U22: =FIND(" ",A22) ->  | V22: =MID(A22,U22,99) ->  | W22: =(R22+(T22/2))/SUM(R22:T22) -> 
A23: =#REF! ->  | B23: =#REF! ->  | C23: =#REF! ->  | D23: =#REF! ->  | E23: =#REF! ->  | F23: =#REF! ->  | G23: =#REF! ->  | H23: =#REF! ->  | I23: =#REF! ->  | J23: =#REF! ->  | K23: =#REF! ->  | L23: =#REF! ->  | M23: =#REF! ->  | N23: =#REF! ->  | O23: =#REF! ->  | P23: =#REF! ->  | R23: =COUNTIF(B23:P23,"W") -> 0 | S23: =COUNTIF(B23:P23,"L") -> 0 | T23: =COUNTIF(B23:P23,"T") -> 0 | U23: =FIND(" ",A23) -> 
A24: =#REF! ->  | B24: =#REF! ->  | C24: =#REF! ->  | D24: =#REF! ->  | E24: =#REF! ->  | F24: =#REF! ->  | G24: =#REF! ->  | H24: =#REF! ->  | I24: =#REF! ->  | J24: =#REF! ->  | K24: =#REF! ->  | L24: =#REF! ->  | M24: =#REF! ->  | N24: =#REF! ->  | O24: =#REF! ->  | P24: =#REF! ->  | R24: 0 | S24: 0 | T24: 0
A25: =#REF! ->  | B25: =#REF! ->  | C25: =#REF! ->  | D25: =#REF! ->  | E25: =#REF! ->  | F25: =#REF! ->  | G25: =#REF! ->  | H25: =#REF! ->  | I25: =#REF! ->  | J25: =#REF! ->  | K25: =#REF! ->  | L25: =#REF! ->  | M25: =#REF! ->  | N25: =#REF! ->  | O25: =#REF! ->  | P25: =#REF! ->  | R25: 0 | S25: 0 | T25: 0 | U25: 1
A26: =#REF! ->  | B26: =#REF! ->  | C26: =#REF! ->  | D26: =#REF! ->  | E26: =#REF! ->  | F26: =#REF! ->  | G26: =#REF! ->  | H26: =#REF! ->  | I26: =#REF! ->  | J26: =#REF! ->  | K26: =#REF! ->  | L26: =#REF! ->  | M26: =#REF! ->  | N26: =#REF! ->  | O26: =#REF! ->  | P26: =#REF! ->  | R26: 0 | S26: 0 | T26: 0 | U26: 1
A27: =#REF! ->  | B27: =#REF! ->  | C27: =#REF! ->  | D27: =#REF! ->  | E27: =#REF! ->  | F27: =#REF! ->  | G27: =#REF! ->  | H27: =#REF! ->  | I27: =#REF! ->  | J27: =#REF! ->  | K27: =#REF! ->  | L27: =#REF! ->  | M27: =#REF! ->  | N27: =#REF! ->  | O27: =#REF! ->  | P27: =#REF! ->  | R27: 0 | S27: 0 | T27: 0 | U27: 1
A28: =#REF! ->  | B28: =#REF! ->  | C28: =#REF! ->  | D28: =#REF! ->  | E28: =#REF! ->  | F28: =#REF! ->  | G28: =#REF! ->  | H28: =#REF! ->  | I28: =#REF! ->  | J28: =#REF! ->  | K28: =#REF! ->  | L28: =#REF! ->  | M28: =#REF! ->  | N28: =#REF! ->  | O28: =#REF! ->  | P28: =#REF! ->  | R28: 0 | S28: 0 | T28: 0
A29: =#REF! ->  | B29: =#REF! ->  | C29: =#REF! ->  | D29: =#REF! ->  | E29: =#REF! ->  | F29: =#REF! ->  | G29: =#REF! ->  | H29: =#REF! ->  | I29: =#REF! ->  | J29: =#REF! ->  | K29: =#REF! ->  | L29: =#REF! ->  | M29: =#REF! ->  | N29: =#REF! ->  | O29: =#REF! ->  | P29: =#REF! ->  | R29: 0 | S29: 0 | T29: 0

Sheet Daviero
A1: Jim Daviero
C4: Date: | D4: =VLOOKUP(C5,Week,2) -> 2025-04-25 | I4: Date: | J4: =VLOOKUP(I5,Week,2) -> 2025-05-02 | O4: Date: | P4: =VLOOKUP(O5,Week,2) -> 2025-05-09 | U4: Date: | V4: =VLOOKUP(U5,Week,2) -> 2025-05-16 | AA4: Date: | AB4: =VLOOKUP(AA5,Week,2) -> 2025-05-23 | AG4: Date: | AH4: =VLOOKUP(AG5,Week,2) -> 2025-05-30 | AM4: Date: | AN4: =VLOOKUP(AM5,Week,2) -> 2025-06-06 | AS4: Date: | AT4: =VLOOKUP(AS5,Week,2) -> 2025-06-13 | AY4: Date: | AZ4: =VLOOKUP(AY5,Week,2) -> 2025-06-27 | BE4: Date: | BF4: =VLOOKUP(BE5,Week,2) -> 2025-07-04 | BK4: Date: | BL4: =VLOOKUP(BK5,Week,2) -> 2025-07-18 | BQ4: Date: | BR4: =VLOOKUP(BQ5,Week,2) -> 2025-07-25 | BW4: Date: | BX4: =VLOOKUP(BW5,Week,2) -> 2025-08-01 | CC4: Date: | CD4: =VLOOKUP(CC5,Week,2) -> 2025-08-08 | CI4: Date: | CJ4: =VLOOKUP(CI5,Week,2) -> 2025-08-15
B5: Week | C5: 1 | H5: Week | I5: 2 | N5: Week | O5: 3 | T5: Week | U5: 4 | Z5: Week | AA5: 5 | AF5: Week | AG5: 6 | AL5: Week | AM5: 7 | AR5: Week | AS5: 8 | AX5: Week | AY5: 9 | BD5: Week | BE5: 10 | BJ5: Week | BK5: 11 | BP5: Week | BQ5: 12 | BV5: Week | BW5: 13 | CB5: Week | CC5: 14 | CH5: Week | CI5: 15
B6: Hole # | C6: Par | D6: Score | E6: Net | F6: Win Hole | H6: Hole # | I6: Par | J6: Score | K6: Net | L6: Win Hole | N6: Hole # | O6: Par | P6: Score | Q6: Net | R6: Win Hole | T6: Hole # | U6: Par | V6: Score | W6: Net | X6: Win Hole | Z6: Hole # | AA6: Par | AB6: Score | AC6: Net | AD6: Win Hole | AF6: Hole # | AG6: Par | AH6: Score | AI6: Net | AJ6: Win Hole | AL6: Hole # | AM6: Par | AN6: Score | AO6: Net | AP6: Win Hole | AR6: Hole # | AS6: Par | AT6: Score | AU6: Net | AV6: Win Hole | AX6: Hole # | AY6: Par | AZ6: Score | BA6: Net | BB6: Win Hole | BD6: Hole # | BE6: Par | BF6: Score | BG6: Net | BH6: Win Hole | BJ6: Hole # | BK6: Par | BL6: Score | BM6: Net | BN6: Win Hole | BP6: Hole # | BQ6: Par | BR6: Score | BS6: Net | BT6: Win Hole | BV6: Hole # | BW6: Par | BX6: Score | BY6: Net | BZ6: Win Hole | CB6: Hole # | CC6: Par | CD6: Score | CE6: Net | CF6: Win Hole | CH6: Hole # | CI6: Par | CJ6: Score | CK6: Net | CL6: Win Hole
B7: =VLOOKUP(C5,Week,6) -> 1 | C7: =VLOOKUP(B7,Holes,2) -> 4 | E7: =IF((D7-C7)>3,C7+3,D7) -> 0 | H7: =VLOOKUP(I5,Week,6) -> 10 | I7: =VLOOKUP(H7,Holes,2) -> 4 | K7: =IF((J7-I7)>3,I7+3,J7) -> 0 | N7: =VLOOKUP(O5,Week,6) -> 1 | O7: =VLOOKUP(N7,Holes,2) -> 4 | Q7: =IF((P7-O7)>3,O7+3,P7) -> 0 | T7: =VLOOKUP(U5,Week,6) -> 10 | U7: =VLOOKUP(T7,Holes,2) -> 4 | W7: =IF((V7-U7)>3,U7+3,V7) -> 0 | Z7: =VLOOKUP(AA5,Week,6) -> 1 | AA7: =VLOOKUP(Z7,Holes,2) -> 4 | AC7: =IF((AB7-AA7)>3,AA7+3,AB7) -> 0 | AF7: =VLOOKUP(AG5,Week,6) -> 10 | AG7: =VLOOKUP(AF7,Holes,2) -> 4 | AI7: =IF((AH7-AG7)>3,AG7+3,AH7) -> 0 | AL7: =VLOOKUP(AM5,Week,6) -> 1 | AM7: =VLOOKUP(AL7,Holes,2) -> 4 | AO7: =IF((AN7-AM7)>3,AM7+3,AN7) -> 0 | AR7: =VLOOKUP(AS5,Week,6) -> 10 | AS7: =VLOOKUP(AR7,Holes,2) -> 4 | AU7: =IF((AT7-AS7)>3,AS7+3,AT7) -> 0 | AX7: =VLOOKUP(AY5,Week,6) -> 10 | AY7: =VLOOKUP(AX7,Holes,2) -> 4 | BA7: =IF((AZ7-AY7)>3,AY7+3,AZ7) -> 0 | BD7: =VLOOKUP(BE5,Week,6) -> 10 | BE7: =VLOOKUP(BD7,Holes,2) -> 4 | BG7: =IF((BF7-BE7)>3,BE7+3,BF7) -> 0 | BJ7: =VLOOKUP(BK5,Week,6) -> 10 | BK7: =VLOOKUP(BJ7,Holes,2) -> 4 | BM7: =IF((BL7-BK7)>3,BK7+3,BL7) -> 0 | BP7: =VLOOKUP(BQ5,Week,6) -> 1 | BQ7: =VLOOKUP(BP7,Holes,2) -> 4 | BS7: =IF((BR7-BQ7)>3,BQ7+3,BR7) -> 0 | BV7: =VLOOKUP(BW5,Week,6) -> 10 | BW7: =VLOOKUP(BV7,Holes,2) -> 4 | BY7: =IF((BX7-BW7)>3,BW7+3,BX7) -> 0 | CB7: =VLOOKUP(CC5,Week,6) -> 1 | CC7: =VLOOKUP(CB7,Holes,2) -> 4 | CE7: =IF((CD7-CC7)>3,CC7+3,CD7) -> 0 | CH7: =VLOOKUP(CI5,Week,6) -> 10 | CI7: =VLOOKUP(CH7,Holes,2) -> 4 | CK7: =IF((CJ7-CI7)>3,CI7+3,CJ7) -> 0
B8: =+B7+1 -> 2 | C8: 4 | E8: 0 | H8: =+H7+1 -> 11 | I8: 4 | K8: 0 | N8: =+N7+1 -> 2 | O8: 4 | Q8: 0 | T8: =+T7+1 -> 11 | U8: 4 | W8: 0 | Z8: =+Z7+1 -> 2 | AA8: 4 | AC8: 0 | AF8: =+AF7+1 -> 11 | AG8: 4 | AI8: 0 | AL8: =+AL7+1 -> 2 | AM8: 4 | AO8: 0 | AR8: =+AR7+1 -> 11 | AS8: 4 | AU8: 0 | AX8: =+AX7+1 -> 11 | AY8: 4 | BA8: 0 | BD8: =+BD7+1 -> 11 | BE8: 4 | BG8: 0 | BJ8: =+BJ7+1 -> 11 | BK8: 4 | BM8: 0 | BP8: =+BP7+1 -> 2 | BQ8: 4 | BS8: 0 | BV8: =+BV7+1 -> 11 | BW8: 4 | BY8: 0 | CB8: =+CB7+1 -> 2 | CC8: 4 | CE8: 0 | CH8: =+CH7+1 -> 11 | CI8: 4 | CK8: 0
B9: 3 | C9: 4 | E9: 0 | H9: 12 | I9: 3 | K9: 0 | N9: 3 | O9: 4 | Q9: 0 | T9: 12 | U9: 3 | W9: 0 | Z9: 3 | AA9: 4 | AC9: 0 | AF9: 12 | AG9: 3 | AI9: 0 | AL9: 3 | AM9: 4 | AO9: 0 | AR9: 12 | AS9: 3 | AU9: 0 | AX9: 12 | AY9: 3 | BA9: 0 | BD9: 12 | BE9: 3 | BG9: 0 | BJ9: 12 | BK9: 3 | BM9: 0 | BP9: 3 | BQ9: 4 | BS9: 0 | BV9: 12 | BW9: 3 | BY9: 0 | CB9: 3 | CC9: 4 | CE9: 0 | CH9: 12 | CI9: 3 | CK9: 0
B10: 4 | C10: 4 | E10: 0 | H10: 13 | I10: 4 | K10: 0 | N10: 4 | O10: 4 | Q10: 0 | T10: 13 | U10: 4 | W10: 0 | Z10: 4 | AA10: 4 | AC10: 0 | AF10: 13 | AG10: 4 | AI10: 0 | AL10: 4 | AM10: 4 | AO10: 0 | AR10: 13 | AS10: 4 | AU10: 0 | AX10: 13 | AY10: 4 | BA10: 0 | BD10: 13 | BE10: 4 | BG10: 0 | BJ10: 13 | BK10: 4 | BM10: 0 | BP10: 4 | BQ10: 4 | BS10: 0 | BV10: 13 | BW10: 4 | BY10: 0 | CB10: 4 | CC10: 4 | CE10: 0 | CH10: 13 | CI10: 4 | CK10: 0
B11: 5 | C11: 3 | E11: 0 | H11: 14 | I11: 4 | K11: 0 | N11: 5 | O11: 3 | Q11: 0 | T11: 14 | U11: 4 | W11: 0 | Z11: 5 | AA11: 3 | AC11: 0 | AF11: 14 | AG11: 4 | AI11: 0 | AL11: 5 | AM11: 3 | AO11: 0 | AR11: 14 | AS11: 4 | AU11: 0 | AX11: 14 | AY11: 4 | BA11: 0 | BD11: 14 | BE11: 4 | BG11: 0 | BJ11: 14 | BK11: 4 | BM11: 0 | BP11: 5 | BQ11: 3 | BS11: 0 | BV11: 14 | BW11: 4 | BY11: 0 | CB11: 5 | CC11: 3 | CE11: 0 | CH11: 14 | CI11: 4 | CK11: 0
B12: 6 | C12: 4 | E12: 0 | H12: 15 | I12: 3 | K12: 0 | N12: 6 | O12: 4 | Q12: 0 | T12: 15 | U12: 3 | W12: 0 | Z12: 6 | AA12: 4 | AC12: 0 | AF12: 15 | AG12: 3 | AI12: 0 | AL12: 6 | AM12: 4 | AO12: 0 | AR12: 15 | AS12: 3 | AU12: 0 | AX12: 15 | AY12: 3 | BA12: 0 | BD12: 15 | BE12: 3 | BG12: 0 | BJ12: 15 | BK12: 3 | BM12: 0 | BP12: 6 | BQ12: 4 | BS12: 0 | BV12: 15 | BW12: 3 | BY12: 0 | CB12: 6 | CC12: 4 | CE12: 0 | CH12: 15 | CI12: 3 | CK12: 0
B13: 7 | C13: 4 | E13: 0 | H13: 16 | I13: 5 | K13: 0 | N13: 7 | O13: 4 | Q13: 0 | T13: 16 | U13: 5 | W13: 0 | Z13: 7 | AA13: 4 | AC13: 0 | AF13: 16 | AG13: 5 | AI13: 0 | AL13: 7 | AM13: 4 | AO13: 0 | AR13: 16 | AS13: 5 | AU13: 0 | AX13: 16 | AY13: 5 | BA13: 0 | BD13: 16 | BE13: 5 | BG13: 0 | BJ13: 16 | BK13: 5 | BM13: 0 | BP13: 7 | BQ13: 4 | BS13: 0 | BV13: 16 | BW13: 5 | BY13: 0 | CB13: 7 | CC13: 4 | CE13: 0 | CH13: 16 | CI13: 5 | CK13: 0
B14: 8 | C14: 3 | E14: 0 | H14: 17 | I14: 4 | K14: 0 | N14: 8 | O14: 3 | Q14: 0 | T14: 17 | U14: 4 | W14: 0 | Z14: 8 | AA14: 3 | AC14: 0 | AF14: 17 | AG14: 4 | AI14: 0 | AL14: 8 | AM14: 3 | AO14: 0 | AR14: 17 | AS14: 4 | AU14: 0 | AX14: 17 | AY14: 4 | BA14: 0 | BD14: 17 | BE14: 4 | BG14: 0 | BJ14: 17 | BK14: 4 | BM14: 0 | BP14: 8 | BQ14: 3 | BS14: 0 | BV14: 17 | BW14: 4 | BY14: 0 | CB14: 8 | CC14: 3 | CE14: 0 | CH14: 17 | CI14: 4 | CK14: 0
B15: 9 | C15: 5 | E15: 0 | H15: 18 | I15: 5 | K15: 0 | N15: 9 | O15: 5 | Q15: 0 | T15: 18 | U15: 5 | W15: 0 | Z15: 9 | AA15: 5 | AC15: 0 | AF15: 18 | AG15: 5 | AI15: 0 | AL15: 9 | AM15: 5 | AO15: 0 | AR15: 18 | AS15: 5 | AU15: 0 | AX15: 18 | AY15: 5 | BA15: 0 | BD15: 18 | BE15: 5 | BG15: 0 | BJ15: 18 | BK15: 5 | BM15: 0 | BP15: 9 | BQ15: 5 | BS15: 0 | BV15: 18 | BW15: 5 | BY15: 0 | CB15: 9 | CC15: 5 | CE15: 0 | CH15: 18 | CI15: 5 | CK15: 0
B16: Total | C16: =SUM(C7:C15) -> 35 | D16: =SUM(D7:D15) -> 0 | E16: =SUM(E7:E15) -> 0 | F16: =SUM(F7:F15) -> 0 | H16: Total | I16: =SUM(I7:I15) -> 36 | J16: =SUM(J7:J15) -> 0 | K16: =SUM(K7:K15) -> 0 | L16: =SUM(L7:L15) -> 0 | N16: Total | O16: =SUM(O7:O15) -> 35 | P16: =SUM(P7:P15) -> 0 | Q16: =SUM(Q7:Q15) -> 0 | R16: =SUM(R7:R15) -> 0 | T16: Total | U16: =SUM(U7:U15) -> 36 | V16: =SUM(V7:V15) -> 0 | W16: =SUM(W7:W15) -> 0 | X16: =SUM(X7:X15) -> 0 | Z16: Total | AA16: =SUM(AA7:AA15) -> 35 | AB16: =SUM(AB7:AB15) -> 0 | AC16: =SUM(AC7:AC15) -> 0 | AD16: =SUM(AD7:AD15) -> 0 | AF16: Total | AG16: =SUM(AG7:AG15) -> 36 | AH16: =SUM(AH7:AH15) -> 0 | AI16: =SUM(AI7:AI15) -> 0 | AJ16: =SUM(AJ7:AJ15) -> 0 | AL16: Total | AM16: =SUM(AM7:AM15) -> 35 | AN16: =SUM(AN7:AN15) -> 0 | AO16: =SUM(AO7:AO15) -> 0 | AP16: =SUM(AP7:AP15) -> 0 | AR16: Total | AS16: =SUM(AS7:AS15) -> 36 | AT16: =SUM(AT7:AT15) -> 0 | AU16: =SUM(AU7:AU15) -> 0 | AV16: =SUM(AV7:AV15) -> 0 | AX16: Total | AY16: =SUM(AY7:AY15) -> 36 | AZ16: =SUM(AZ7:AZ15) -> 0 | BA16: =SUM(BA7:BA15) -> 0 | BB16: =SUM(BB7:BB15) -> 0 | BD16: Total | BE16: =SUM(BE7:BE15) -> 36 | BF16: =SUM(BF7:BF15) -> 0 | BG16: =SUM(BG7:BG15) -> 0 | BH16: =SUM(BH7:BH15) -> 0 | BJ16: Total | BK16: =SUM(BK7:BK15) -> 36 | BL16: =SUM(BL7:BL15) -> 0 | BM16: =SUM(BM7:BM15) -> 0 | BN16: =SUM(BN7:BN15) -> 0 | BP16: Total | BQ16: =SUM(BQ7:BQ15) -> 35 | BR16: =SUM(BR7:BR15) -> 0 | BS16: =SUM(BS7:BS15) -> 0 | BT16: =SUM(BT7:BT15) -> 0 | BV16: Total | BW16: =SUM(BW7:BW15) -> 36 | BX16: =SUM(BX7:BX15) -> 0 | BY16: =SUM(BY7:BY15) -> 0 | BZ16: =SUM(BZ7:BZ15) -> 0 | CB16: Total | CC16: =SUM(CC7:CC15) -> 35 | CD16: =SUM(CD7:CD15) -> 0 | CE16: =SUM(CE7:CE15) -> 0 | CF16: =SUM(CF7:CF15) -> 0 | CH16: Total | CI16: =SUM(CI7:CI15) -> 36 | CJ16: =SUM(CJ7:CJ15) -> 0 | CK16: =SUM(CK7:CK15) -> 0 | CL16: =SUM(CL7:CL15) -> 0
E18: Low Net | K18: Low Net | L18: 0 | Q18: Low Net | R18: 0 | W18: Low Net | AC18: Low Net | AI18: Low Net | AO18: Low Net | AU18: Low Net | BA18: Low Net | BG18: Low Net | BM18: Low Net | BS18: Low Net | BY18: Low Net | CE18: Low Net | CK18: Low Net
E20: Total Points | F20: =SUM(F16:F19) -> 0 | K20: Total Points | L20: =SUM(L16:L19) -> 0 | Q20: Total Points | R20: =SUM(R16:R19) -> 0 | W20: Total Points | X20: =SUM(X16:X19) -> 0 | AC20: Total Points | AD20: =SUM(AD16:AD19) -> 0 | AI20: Total Points | AJ20: =SUM(AJ16:AJ19) -> 0 | AO20: Total Points | AP20: =SUM(AP16:AP19) -> 0 | AU20: Total Points | AV20: =SUM(AV16:AV19) -> 0 | BA20: Total Points | BB20: =SUM(BB16:BB19) -> 0 | BG20: Total Points | BH20: =SUM(BH16:BH19) -> 0 | BM20: Total Points | BN20: =SUM(BN16:BN19) -> 0 | BS20: Total Points | BT20: =SUM(BT16:BT19) -> 0 | BY20: Total Points | BZ20: =SUM(BZ16:BZ19) -> 0 | CE20: Total Points | CF20: =SUM(CF16:CF19) -> 0 | CK20: Total Points | CL20: =SUM(CL16:CL19) -> 0
E22: Handicap | F22: =IF(D16=0,0,E16-C16) -> 0 | K22: Handicap | L22: =IF(J16=0,0,K16-I16) -> 0 | Q22: Handicap | R22: =IF(P16=0,0,Q16-O16) -> 0 | W22: Handicap | X22: =IF(V16=0,0,W16-U16) -> 0 | AC22: Handicap | AD22: =IF(AB16=0,0,AC16-AA16) -> 0 | AI22: Handicap | AJ22: =IF(AH16=0,0,AI16-AG16) -> 0 | AO22: Handicap | AP22: =IF(AN16=0,0,AO16-AM16) -> 0 | AU22: Handicap | AV22: =IF(AT16=0,0,AU16-AS16) -> 0 | BA22: Handicap | BB22: =IF(AZ16=0,0,BA16-AY16) -> 0 | BG22: Handicap | BH22: =IF(BF16=0,0,BG16-BE16) -> 0 | BM22: Handicap | BN22: =IF(BL16=0,0,BM16-BK16) -> 0 | BS22: Handicap | BT22: =IF(BR16=0,0,BS16-BQ16) -> 0 | BY22: Handicap | BZ22: =IF(BX16=0,0,BY16-BW16) -> 0 | CE22: Handicap | CF22: =IF(CD16=0,0,CE16-CC16) -> 0 | CK22: Handicap | CL22: =IF(CJ16=0,0,CK16-CI16) -> 0
F24: =IF(D16<>0,IF(F16>4.5,"W",IF(F16=4.5,"T",IF(F16<4.5,"L"))),0) -> 0 | L24: =IF(J16<>0,IF(L16>4.5,"W",IF(L16=4.5,"T",IF(L16<4.5,"L"))),0) -> 0 | R24: =IF(P16<>0,IF(R16>4.5,"W",IF(R16=4.5,"T",IF(R16<4.5,"L"))),0) -> 0 | X24: =IF(V16<>0,IF(X16>4.5,"W",IF(X16=4.5,"T",IF(X16<4.5,"L"))),0) -> 0 | AD24: =IF(AB16<>0,IF(AD16>4.5,"W",IF(AD16=4.5,"T",IF(AD16<4.5,"L"))),0) -> 0 | AJ24: =IF(AH16<>0,IF(AJ16>4.5,"W",IF(AJ16=4.5,"T",IF(AJ16<4.5,"L"))),0) -> 0 | AP24: =IF(AN16<>0,IF(AP16>4.5,"W",IF(AP16=4.5,"T",IF(AP16<4.5,"L"))),0) -> 0 | AV24: =IF(AT16<>0,IF(AV16>4.5,"W",IF(AV16=4.5,"T",IF(AV16<4.5,"L"))),0) -> 0 | BB24: =IF(AZ16<>0,IF(BB16>4.5,"W",IF(BB16=4.5,"T",IF(BB16<4.5,"L"))),0) -> 0 | BH24: =IF(BF16<>0,IF(BH16>4.5,"W",IF(BH16=4.5,"T",IF(BH16<4.5,"L"))),0) -> 0 | BN24: =IF(BL16<>0,IF(BN16>4.5,"W",IF(BN16=4.5,"T",IF(BN16<4.5,"L"))),0) -> 0 | BT24: =IF(BR16<>0,IF(BT16>4.5,"W",IF(BT16=4.5,"T",IF(BT16<4.5,"L"))),0) -> 0 | BZ24: =IF(BX16<>0,IF(BZ16>4.5,"W",IF(BZ16=4.5,"T",IF(BZ16<4.5,"L"))),0) -> 0 | CF24: =IF(CD16<>0,IF(CF16>4.5,"W",IF(CF16=4.5,"T",IF(CF16<4.5,"L"))),0) -> 0 | CL24: =IF(CJ16<>0,IF(CL16>4.5,"W",IF(CL16=4.5,"T",IF(CL16<4.5,"L"))),0) -> 0
B26: Summary
D27: Adj | F27: Adj | J27: Avg Score
C28: Points | D28: Points | E28: Matches | F28: Matches | I28: Hole # | J28: by Hole | K28: Best | L28: Worst
B29: Week #1 | C29: =F20 -> 0 | D29: =C29 -> 0 | E29: =IF(D16>0,1,0) -> 0 | F29: =E29 -> 0 | I29: 1 | J29: =IFERROR(AVERAGE(D7),0) -> 0 | K29: =IFERROR(MIN(J7,V7,AH7,AT7,BF7,BR7,BX7,CJ7),0) -> 0 | L29: =IFERROR(MAX(J7,V7,AH7,AT7,BF7,BR7,BX7,CJ7),0) -> 0
B30: Week #2 | C30: =L20 -> 0 | D30: 0 | E30: =IF(J16>0,1,0) -> 0 | F30: 0 | I30: 2 | J30: =IFERROR(AVERAGE(D8),0) -> 0 | K30: =IFERROR(MIN(J8,V8,AH8,AT8,BF8,BR8,BX8,CJ8),0) -> 0 | L30: =IFERROR(MAX(J8,V8,AH8,AT8,BF8,BR8,BX8,CJ8),0) -> 0
B31: Week #3 | C31: =R20 -> 0 | D31: 0 | E31: =IF(P16>0,1,0) -> 0 | F31: 0 | I31: 3 | J31: 0 | K31: 0 | L31: 0
B32: Week #4 | C32: =X20 -> 0 | D32: 0 | E32: =IF(V16>0,1,0) -> 0 | F32: 0 | I32: 4 | J32: 0 | K32: 0 | L32: 0
B33: Week #5 | C33: =AD20 -> 0 | D33: 0 | E33: =IF(AB16>0,1,0) -> 0 | F33: 0 | I33: 5 | J33: 0 | K33: 0 | L33: 0
B34: Week #6 | C34: =AJ20 -> 0 | D34: 0 | E34: =IF(AH16>0,1,0) -> 0 | F34: 0 | I34: 6 | J34: 0 | K34: 0 | L34: 0
B35: Week #7 | C35: =AP20 -> 0 | D35: 0 | E35: =IF(AN16>0,1,0) -> 0 | F35: 0 | I35: 7 | J35: 0 | K35: 0 | L35: 0
B36: Week #8 | C36: =AV20 -> 0 | D36: 0 | E36: =IF(AT16>0,1,0) -> 0 | F36: 0 | I36: 8 | J36: 0 | K36: 0 | L36: 0
B37: Week #9 | C37: =BB20 -> 0 | D37: 0 | E37: =IF(AZ16>0,1,0) -> 0 | F37: 0 | I37: 9 | J37: 0 | K37: 0 | L37: 0
B38: Week #10 | C38: =BH20 -> 0 | D38: 0 | E38: =IF(BF16>0,1,0) -> 0 | F38: 0 | I38: Front | J38: =SUM(J29:J37) -> 0 | K38: =SUM(K29:K37) -> 0 | L38: 0
B39: Week #11 | C39: =BN20 -> 0 | D39: 0 | E39: =IF(BL16>0,1,0) -> 0 | F39: 0
B40: Week #12 | C40: =BT20 -> 0 | D40: 0 | E40: =IF(BR16>0,1,0) -> 0 | F40: 0 | I40: 10 | J40: =IFERROR(AVERAGE(J7),0) -> 0 | K40: =IFERROR(MIN(D7,P7,AB7,AN7,AZ7,BL7,CD7),0) -> 0 | L40: =IFERROR(MAX(D7,P7,AB7,AN7,AZ7,BL7,CD7),0) -> 0
B41: Week #13 | C41: =BZ20 -> 0 | D41: 0 | E41: =IF(BX16>0,1,0) -> 0 | F41: 0 | I41: 11 | J41: =IFERROR(AVERAGE(J8),0) -> 0 | K41: =IFERROR(MIN(D8,P8,AB8,AN8,AZ8,BL8,CD8),0) -> 0 | L41: =IFERROR(MAX(D8,P8,AB8,AN8,AZ8,BL8,CD8),0) -> 0
B42: Week #14 | C42: =CF20 -> 0 | D42: 0 | E42: =IF(CD16>0,1,0) -> 0 | F42: 0 | I42: 12 | J42: 0 | K42: 0 | L42: 0
B43: Week #15 | C43: =CL20 -> 0 | D43: 0 | E43: =IF(CJ16>0,1,0) -> 0 | F43: 0 | I43: 13 | J43: 0 | K43: 0 | L43: 0
B44: Total | C44: =SUM(C29:C43) -> 0 | D44: =SUM(D29:D43) -> 0 | E44: =SUM(E29:E43) -> 0 | F44: =SUM(F29:F43) -> 0 | I44: 14 | J44: 0 | K44: 0 | L44: 0
I45: 15 | J45: 0 | K45: 0 | L45: 0
B46: Summary | I46: 16 | J46: 0 | K46: 0 | L46: 0
B47: Eagles | C47: =I57+I68+I79+I90+I101+I112+I123+I134+I145+I156+I167+I178+I189+I200+I211 -> 0 | I47: 17 | J47: 0 | K47: 0 | L47: 0
B48: Birdies | C48: 0 | I48: 18 | J48: 0 | K48: 0 | L48: 0
B49: Pars | C49: =I59+I70+I81+I92+I103+I114+I125+I136+I147+I158+I169+I180+I191+I202+I213 -> 0 | I49: Back | J49: =SUM(J40:J48) -> 0 | K49: =SUM(K40:K48) -> 0 | L49: 0
B50: bogeys | C50: 0
B51: Double bogeys | C51: 0
B52: Other | C52: 0
B53: Total | C53: =SUM(C47:C52) -> 0
B55: =D4 -> 2025-04-25 | C55: Par | D55: Score
B56: =B7 -> 1 | C56: 4 | D56: 0 | E56: =IF(D56<>0,IF((D56-C56)=-1,"Birdie",IF((D56-C56)=-2,"Eagle",IF((D56-C56)=0,"Par",IF((D56-C56)=1,"bogey",IF((D56-C56)=2,"Double bogey","Other")))))," ") ->  | H56: Count
B57: 2 | C57: 4 | D57: 0 | H57: Eagle | I57: =COUNTIF(E56:E64,"Eagle") -> 0
B58: 3 | C58: 4 | D58: 0 | H58: Birdie | I58: =COUNTIF(E56:E64,"Birdie") -> 0
B59: 4 | C59: 4 | D59: 0 | H59: Par | I59: =COUNTIF(E56:E64,"Par") -> 0
B60: 5 | C60: 3 | D60: 0 | H60: bogey | I60: =COUNTIF(E56:E64,"bogey") -> 0
B61: 6 | C61: 4 | D61: 0 | H61: Double bogey | I61: =COUNTIF(E56:E64,"Double bogey") -> 0
B62: 7 | C62: 4 | D62: 0 | H62: Other | I62: =COUNTIF(E56:E64,"Other") -> 0
B63: 8 | C63: 3 | D63: 0
B64: 9 | C64: 5 | D64: 0
B66: =J4 -> 2025-05-02
B67: =H7 -> 10 | C67: 4 | D67: 0 | E67: =IF(D67<>0,IF((D67-C67)=-1,"Birdie",IF((D67-C67)=-2,"Eagle",IF((D67-C67)=0,"Par",IF((D67-C67)=1,"bogey",IF((D67-C67)=2,"Double bogey","Other")))))," ") ->  | H67: Count
B68: 11 | C68: 4 | D68: 0 | H68: Eagle | I68: =COUNTIF(E67:E75,"Eagle") -> 0
B69: 12 | C69: 3 | D69: 0 | H69: Birdie | I69: =COUNTIF(E67:E75,"Birdie") -> 0
B70: 13 | C70: 4 | D70: 0 | H70: Par | I70: =COUNTIF(E67:E75,"Par") -> 0
B71: 14 | C71: 4 | D71: 0 | H71: bogey | I71: =COUNTIF(E67:E75,"bogey") -> 0
B72: 15 | C72: 3 | D72: 0 | H72: Double bogey | I72: =COUNTIF(E67:E75,"Double bogey") -> 0
B73: 16 | C73: 5 | D73: 0 | H73: Other | I73: =COUNTIF(E67:E75,"Other") -> 0
B74: 17 | C74: 4 | D74: 0
B75: 18 | C75: 5 | D75: 0
B77: =P4 -> 2025-05-09
B78: =N7 -> 1 | C78: 4 | D78: 0 | E78: =IF(D78<>0,IF((D78-C78)=-1,"Birdie",IF((D78-C78)=-2,"Eagle",IF((D78-C78)=0,"Par",IF((D78-C78)=1,"bogey",IF((D78-C78)=2,"Double bogey","Other")))))," ") ->  | H78: Count
B79: 2 | C79: 4 | D79: 0 | H79: Eagle | I79: =COUNTIF(E78:E86,"Eagle") -> 0
B80: 3 | C80: 4 | D80: 0 | H80: Birdie | I80: =COUNTIF(E78:E86,"Birdie") -> 0
B81: 4 | C81: 4 | D81: 0 | H81: Par | I81: =COUNTIF(E78:E86,"Par") -> 0
B82: 5 | C82: 3 | D82: 0 | H82: bogey | I82: =COUNTIF(E78:E86,"bogey") -> 0
B83: 6 | C83: 4 | D83: 0 | H83: Double bogey | I83: =COUNTIF(E78:E86,"Double bogey") -> 0
B84: 7 | C84: 4 | D84: 0 | H84: Other | I84: =COUNTIF(E78:E86,"Other") -> 0
B85: 8 | C85: 3 | D85: 0
B86: 9 | C86: 5 | D86: 0
B88: =V4 -> 2025-05-16
B89: =T7 -> 10 | C89: 4 | D89: 0 | E89: =IF(D89<>0,IF((D89-C89)=-1,"Birdie",IF((D89-C89)=-2,"Eagle",IF((D89-C89)=0,"Par",IF((D89-C89)=1,"bogey",IF((D89-C89)=2,"Double bogey","Other")))))," ") ->  | H89: Count
B90: 11 | C90: 4 | D90: 0 | H90: Eagle | I90: =COUNTIF(E89:E97,"Eagle") -> 0
B91: 12 | C91: 3 | D91: 0 | H91: Birdie | I91: =COUNTIF(E89:E97,"Birdie") -> 0
B92: 13 | C92: 4 | D92: 0 | H92: Par | I92: =COUNTIF(E89:E97,"Par") -> 0
B93: 14 | C93: 4 | D93: 0 | H93: bogey | I93: =COUNTIF(E89:E97,"bogey") -> 0
B94: 15 | C94: 3 | D94: 0 | H94: Double bogey | I94: =COUNTIF(E89:E97,"Double bogey") -> 0
B95: 16 | C95: 5 | D95: 0 | H95: Other | I95: =COUNTIF(E89:E97,"Other") -> 0
B96: 17 | C96: 4 | D96: 0
B97: 18 | C97: 5 | D97: 0
B99: =AB4 -> 2025-05-23
B100: =Z7 -> 1 | C100: 4 | D100: 0 | E100: =IF(D100<>0,IF((D100-C100)=-1,"Birdie",IF((D100-C100)=-2,"Eagle",IF((D100-C100)=0,"Par",IF((D100-C100)=1,"bogey",IF((D100-C100)=2,"Double bogey","Other")))))," ") ->  | H100: Count
B101: 2 | C101: 4 | D101: 0 | H101: Eagle | I101: =COUNTIF(E100:E108,"Eagle") -> 0
B102: 3 | C102: 4 | D102: 0 | H102: Birdie | I102: =COUNTIF(E100:E108,"Birdie") -> 0
B103: 4 | C103: 4 | D103: 0 | H103: Par | I103: =COUNTIF(E100:E108,"Par") -> 0
B104: 5 | C104: 3 | D104: 0 | H104: bogey | I104: =COUNTIF(E100:E108,"bogey") -> 0
B105: 6 | C105: 4 | D105: 0 | H105: Double bogey | I105: =COUNTIF(E100:E108,"Double bogey") -> 0
B106: 7 | C106: 4 | D106: 0 | H106: Other | I106: =COUNTIF(E100:E108,"Other") -> 0
B107: 8 | C107: 3 | D107: 0
B108: 9 | C108: 5 | D108: 0
B110: =AH4 -> 2025-05-30
B111: =AF7 -> 10 | C111: 4 | D111: 0 | E111: =IF(D111<>0,IF((D111-C111)=-1,"Birdie",IF((D111-C111)=-2,"Eagle",IF((D111-C111)=0,"Par",IF((D111-C111)=1,"bogey",IF((D111-C111)=2,"Double bogey","Other")))))," ") ->  | H111: Count
B112: 11 | C112: 4 | D112: 0 | H112: Eagle | I112: =COUNTIF(E111:E119,"Eagle") -> 0
B113: 12 | C113: 3 | D113: 0 | H113: Birdie | I113: =COUNTIF(E111:E119,"Birdie") -> 0
B114: 13 | C114: 4 | D114: 0 | H114: Par | I114: =COUNTIF(E111:E119,"Par") -> 0
B115: 14 | C115: 4 | D115: 0 | H115: bogey | I115: =COUNTIF(E111:E119,"bogey") -> 0
B116: 15 | C116: 3 | D116: 0 | H116: Double bogey | I116: =COUNTIF(E111:E119,"Double bogey") -> 0
B117: 16 | C117: 5 | D117: 0 | H117: Other | I117: =COUNTIF(E111:E119,"Other") -> 0
B118: 17 | C118: 4 | D118: 0
B119: 18 | C119: 5 | D119: 0
B121: =AN4 -> 2025-06-06
B122: =AL7 -> 1 | C122: 4 | D122: 0 | E122: =IF(D122<>0,IF((D122-C122)=-1,"Birdie",IF((D122-C122)=-2,"Eagle",IF((D122-C122)=0,"Par",IF((D122-C122)=1,"bogey",IF((D122-C122)=2,"Double bogey","Other")))))," ") ->  | H122: Count
B123: 2 | C123: 4 | D123: 0 | H123: Eagle | I123: =COUNTIF(E122:E130,"Eagle") -> 0
B124: 3 | C124: 4 | D124: 0 | H124: Birdie | I124: =COUNTIF(E122:E130,"Birdie") -> 0
B125: 4 | C125: 4 | D125: 0 | H125: Par | I125: =COUNTIF(E122:E130,"Par") -> 0
B126: 5 | C126: 3 | D126: 0 | H126: bogey | I126: =COUNTIF(E122:E130,"bogey") -> 0
B127: 6 | C127: 4 | D127: 0 | H127: Double bogey | I127: =COUNTIF(E122:E130,"Double bogey") -> 0
B128: 7 | C128: 4 | D128: 0 | H128: Other | I128: =COUNTIF(E122:E130,"Other") -> 0
B129: 8 | C129: 3 | D129: 0
B130: 9 | C130: 5 | D130: 0
B132: =AT4 -> 2025-06-13
B133: =AR7 -> 10 | C133: 4 | D133: 0 | E133: =IF(D133<>0,IF((D133-C133)=-1,"Birdie",IF((D133-C133)=-2,"Eagle",IF((D133-C133)=0,"Par",IF((D133-C133)=1,"bogey",IF((D133-C133)=2,"Double bogey","Other")))))," ") ->  | H133: Count
B134: 11 | C134: 4 | D134: 0 | H134: Eagle | I134: =COUNTIF(E133:E141,"Eagle") -> 0
B135: 12 | C135: 3 | D135: 0 | H135: Birdie | I135: =COUNTIF(E133:E141,"Birdie") -> 0
B136: 13 | C136: 4 | D136: 0 | H136: Par | I136: =COUNTIF(E133:E141,"Par") -> 0
B137: 14 | C137: 4 | D137: 0 | H137: bogey | I137: =COUNTIF(E133:E141,"bogey") -> 0
B138: 15 | C138: 3 | D138: 0 | H138: Double bogey | I138: =COUNTIF(E133:E141,"Double bogey") -> 0
B139: 16 | C139: 5 | D139: 0 | H139: Other | I139: =COUNTIF(E133:E141,"Other") -> 0
B140: 17 | C140: 4 | D140: 0
B141: 18 | C141: 5 | D141: 0
B143: =AZ4 -> 2025-06-27
B144: =AX7 -> 10 | C144: 4 | D144: 0 | E144: =IF(D144<>0,IF((D144-C144)=-1,"Birdie",IF((D144-C144)=-2,"Eagle",IF((D144-C144)=0,"Par",IF((D144-C144)=1,"bogey",IF((D144-C144)=2,"Double bogey","Other")))))," ") ->  | H144: Count
B145: 11 | C145: 4 | D145: 0 | H145: Eagle | I145: =COUNTIF(E144:E152,"Eagle") -> 0
B146: 12 | C146: 3 | D146: 0 | H146: Birdie | I146: =COUNTIF(E144:E152,"Birdie") -> 0
B147: 13 | C147: 4 | D147: 0 | H147: Par | I147: =COUNTIF(E144:E152,"Par") -> 0
B148: 14 | C148: 4 | D148: 0 | H148: bogey | I148: =COUNTIF(E144:E152,"bogey") -> 0
B149: 15 | C149: 3 | D149: 0 | H149: Double bogey | I149: =COUNTIF(E144:E152,"Double bogey") -> 0
B150: 16 | C150: 5 | D150: 0 | H150: Other | I150: =COUNTIF(E144:E152,"Other") -> 0
B151: 17 | C151: 4 | D151: 0
B152: 18 | C152: 5 | D152: 0
B154: =BF4 -> 2025-07-04
B155: =BD7 -> 10 | C155: 4 | D155: 0 | E155: =IF(D155<>0,IF((D155-C155)=-1,"Birdie",IF((D155-C155)=-2,"Eagle",IF((D155-C155)=0,"Par",IF((D155-C155)=1,"bogey",IF((D155-C155)=2,"Double bogey","Other")))))," ") ->  | H155: Count
B156: 11 | C156: 4 | D156: 0 | H156: Eagle | I156: =COUNTIF(E155:E163,"Eagle") -> 0
B157: 12 | C157: 3 | D157: 0 | H157: Birdie | I157: =COUNTIF(E155:E163,"Birdie") -> 0
B158: 13 | C158: 4 | D158: 0 | H158: Par | I158: =COUNTIF(E155:E163,"Par") -> 0
B159: 14 | C159: 4 | D159: 0 | H159: bogey | I159: =COUNTIF(E155:E163,"bogey") -> 0
B160: 15 | C160: 3 | D160: 0 | H160: Double bogey | I160: =COUNTIF(E155:E163,"Double bogey") -> 0
B161: 16 | C161: 5 | D161: 0 | H161: Other | I161: =COUNTIF(E155:E163,"Other") -> 0
B162: 17 | C162: 4 | D162: 0
B163: 18 | C163: 5 | D163: 0
B165: =BL4 -> 2025-07-18
B166: =BJ7 -> 10 | C166: 4 | D166: 0 | E166: =IF(D166<>0,IF((D166-C166)=-1,"Birdie",IF((D166-C166)=-2,"Eagle",IF((D166-C166)=0,"Par",IF((D166-C166)=1,"bogey",IF((D166-C166)=2,"Double bogey","Other")))))," ") ->  | H166: Count
B167: 11 | C167: 4 | D167: 0 | H167: Eagle | I167: =COUNTIF(E166:E174,"Eagle") -> 0
B168: 12 | C168: 3 | D168: 0 | H168: Birdie | I168: =COUNTIF(E166:E174,"Birdie") -> 0
B169: 13 | C169: 4 | D169: 0 | H169: Par | I169: =COUNTIF(E166:E174,"Par") -> 0
B170: 14 | C170: 4 | D170: 0 | H170: bogey | I170: =COUNTIF(E166:E174,"bogey") -> 0
B171: 15 | C171: 3 | D171: 0 | H171: Double bogey | I171: =COUNTIF(E166:E174,"Double bogey") -> 0
B172: 16 | C172: 5 | D172: 0 | H172: Other | I172: =COUNTIF(E166:E174,"Other") -> 0
B173: 17 | C173: 4 | D173: 0
B174: 18 | C174: 5 | D174: 0
B176: =BR4 -> 2025-07-25
B177: =BP7 -> 1 | C177: 4 | D177: 0 | E177: =IF(D177<>0,IF((D177-C177)=-1,"Birdie",IF((D177-C177)=-2,"Eagle",IF((D177-C177)=0,"Par",IF((D177-C177)=1,"bogey",IF((D177-C177)=2,"Double bogey","Other")))))," ") ->  | H177: Count
B178: 2 | C178: 4 | D178: 0 | H178: Eagle | I178: =COUNTIF(E177:E185,"Eagle") -> 0
B179: 3 | C179: 4 | D179: 0 | H179: Birdie | I179: =COUNTIF(E177:E185,"Birdie") -> 0
B180: 4 | C180: 4 | D180: 0 | H180: Par | I180: =COUNTIF(E177:E185,"Par") -> 0
B181: 5 | C181: 3 | D181: 0 | H181: bogey | I181: =COUNTIF(E177:E185,"bogey") -> 0
B182: 6 | C182: 4 | D182: 0 | H182: Double bogey | I182: =COUNTIF(E177:E185,"Double bogey") -> 0
B183: 7 | C183: 4 | D183: 0 | H183: Other | I183: =COUNTIF(E177:E185,"Other") -> 0
B184: 8 | C184: 3 | D184: 0
B185: 9 | C185: 5 | D185: 0
B187: =BX4 -> 2025-08-01
B188: =BV7 -> 10 | C188: 4 | D188: 0 | E188: =IF(D188<>0,IF((D188-C188)=-1,"Birdie",IF((D188-C188)=-2,"Eagle",IF((D188-C188)=0,"Par",IF((D188-C188)=1,"bogey",IF((D188-C188)=2,"Double bogey","Other")))))," ") ->  | H188: Count
B189: 11 | C189: 4 | D189: 0 | H189: Eagle | I189: =COUNTIF(E188:E196,"Eagle") -> 0
B190: 12 | C190: 3 | D190: 0 | H190: Birdie | I190: =COUNTIF(E188:E196,"Birdie") -> 0
B191: 13 | C191: 4 | D191: 0 | H191: Par | I191: =COUNTIF(E188:E196,"Par") -> 0
B192: 14 | C192: 4 | D192: 0 | H192: bogey | I192: =COUNTIF(E188:E196,"bogey") -> 0
B193: 15 | C193: 3 | D193: 0 | H193: Double bogey | I193: =COUNTIF(E188:E196,"Double bogey") -> 0
B194: 16 | C194: 5 | D194: 0 | H194: Other | I194: =COUNTIF(E188:E196,"Other") -> 0
B195: 17 | C195: 4 | D195: 0
B196: 18 | C196: 5 | D196: 0
B198: =CD4 -> 2025-08-08
B199: =CB7 -> 1 | C199: 4 | D199: 0 | E199: =IF(D199<>0,IF((D199-C199)=-1,"Birdie",IF((D199-C199)=-2,"Eagle",IF((D199-C199)=0,"Par",IF((D199-C199)=1,"bogey",IF((D199-C199)=2,"Double bogey","Other")))))," ") ->  | H199: Count
B200: 2 | C200: 4 | D200: 0 | H200: Eagle | I200: =COUNTIF(E199:E207,"Eagle") -> 0
B201: 3 | C201: 4 | D201: 0 | H201: Birdie | I201: =COUNTIF(E199:E207,"Birdie") -> 0
B202: 4 | C202: 4 | D202: 0 | H202: Par | I202: =COUNTIF(E199:E207,"Par") -> 0
B203: 5 | C203: 3 | D203: 0 | H203: bogey | I203: =COUNTIF(E199:E207,"bogey") -> 0
B204: 6 | C204: 4 | D204: 0 | H204: Double bogey | I204: =COUNTIF(E199:E207,"Double bogey") -> 0
B205: 7 | C205: 4 | D205: 0 | H205: Other | I205: =COUNTIF(E199:E207,"Other") -> 0
B206: 8 | C206: 3 | D206: 0
B207: 9 | C207: 5 | D207: 0
B209: =CJ4 -> 2025-08-15
B210: =CH7 -> 10 | C210: 4 | D210: 0 | E210: =IF(D210<>0,IF((D210-C210)=-1,"Birdie",IF((D210-C210)=-2,"Eagle",IF((D210-C210)=0,"Par",IF((D210-C210)=1,"bogey",IF((D210-C210)=2,"Double bogey","Other")))))," ") ->  | H210: Count
B211: 11 | C211: 4 | D211: 0 | H211: Eagle | I211: =COUNTIF(E210:E218,"Eagle") -> 0
B212: 12 | C212: 3 | D212: 0 | H212: Birdie | I212: =COUNTIF(E210:E218,"Birdie") -> 0
B213: 13 | C213: 4 | D213: 0 | H213: Par | I213: =COUNTIF(E210:E218,"Par") -> 0
B214: 14 | C214: 4 | D214: 0 | H214: bogey | I214: =COUNTIF(E210:E218,"bogey") -> 0
B215: 15 | C215: 3 | D215: 0 | H215: Double bogey | I215: =COUNTIF(E210:E218,"Double bogey") -> 0
B216: 16 | C216: 5 | D216: 0 | H216: Other | I216: =COUNTIF(E210:E218,"Other") -> 0
B217: 17 | C217: 4 | D217: 0
B218: 18 | C218: 5 | D218: 0

Sheet Daviero_V
A1: Vincent Daviero
C4: Date: | D4: =VLOOKUP(C5,Week,2) -> 2025-04-25 | I4: Date: | J4: =VLOOKUP(I5,Week,2) -> 2025-05-02 | O4: Date: | P4: =VLOOKUP(O5,Week,2) -> 2025-05-09 | U4: Date: | V4: =VLOOKUP(U5,Week,2) -> 2025-05-16 | AA4: Date: | AB4: =VLOOKUP(AA5,Week,2) -> 2025-05-23 | AG4: Date: | AH4: =VLOOKUP(AG5,Week,2) -> 2025-05-30 | AM4: Date: | AN4: =VLOOKUP(AM5,Week,2) -> 2025-06-06 | AS4: Date: | AT4: =VLOOKUP(AS5,Week,2) -> 2025-06-13 | AY4: Date: | AZ4: =VLOOKUP(AY5,Week,2) -> 2025-06-27 | BE4: Date: | BF4: =VLOOKUP(BE5,Week,2) -> 2025-07-04 | BK4: Date: | BL4: =VLOOKUP(BK5,Week,2) -> 2025-07-18 | BQ4: Date: | BR4: =VLOOKUP(BQ5,Week,2) -> 2025-07-25 | BW4: Date: | BX4: =VLOOKUP(BW5,Week,2) -> 2025-08-01 | CC4: Date: | CD4: =VLOOKUP(CC5,Week,2) -> 2025-08-08 | CI4: Date: | CJ4: =VLOOKUP(CI5,Week,2) -> 2025-08-15
B5: Week | C5: 1 | H5: Week | I5: 2 | N5: Week | O5: 3 | T5: Week | U5: 4 | Z5: Week | AA5: 5 | AF5: Week | AG5: 6 | AL5: Week | AM5: 7 | AR5: Week | AS5: 8 | AX5: Week | AY5: 9 | BD5: Week | BE5: 10 | BJ5: Week | BK5: 11 | BP5: Week | BQ5: 12 | BV5: Week | BW5: 13 | CB5: Week | CC5: 14 | CH5: Week | CI5: 15
B6: Hole # | C6: Par | D6: Score | E6: Net | F6: Win Hole | H6: Hole # | I6: Par | J6: Score | K6: Net | L6: Win Hole | N6: Hole # | O6: Par | P6: Score | Q6: Net | R6: Win Hole | T6: Hole # | U6: Par | V6: Score | W6: Net | X6: Win Hole | Z6: Hole # | AA6: Par | AB6: Score | AC6: Net | AD6: Win Hole | AF6: Hole # | AG6: Par | AH6: Score | AI6: Net | AJ6: Win Hole | AL6: Hole # | AM6: Par | AN6: Score | AO6: Net | AP6: Win Hole | AR6: Hole # | AS6: Par | AT6: Score | AU6: Net | AV6: Win Hole | AX6: Hole # | AY6: Par | AZ6: Score | BA6: Net | BB6: Win Hole | BD6: Hole # | BE6: Par | BF6: Score | BG6: Net | BH6: Win Hole | BJ6: Hole # | BK6: Par | BL6: Score | BM6: Net | BN6: Win Hole | BP6: Hole # | BQ6: Par | BR6: Score | BS6: Net | BT6: Win Hole | BV6: Hole # | BW6: Par | BX6: Score | BY6: Net | BZ6: Win Hole | CB6: Hole # | CC6: Par | CD6: Score | CE6: Net | CF6: Win Hole | CH6: Hole # | CI6: Par | CJ6: Score | CK6: Net | CL6: Win Hole
B7: =VLOOKUP(C5,Week,6) -> 1 | C7: =VLOOKUP(B7,Holes,2) -> 4 | E7: =IF((D7-C7)>3,C7+3,D7) -> 0 | H7: =VLOOKUP(I5,Week,6) -> 10 | I7: =VLOOKUP(H7,Holes,2) -> 4 | K7: =IF((J7-I7)>3,I7+3,J7) -> 0 | N7: =VLOOKUP(O5,Week,6) -> 1 | O7: =VLOOKUP(N7,Holes,2) -> 4 | Q7: =IF((P7-O7)>3,O7+3,P7) -> 0 | T7: =VLOOKUP(U5,Week,6) -> 10 | U7: =VLOOKUP(T7,Holes,2) -> 4 | W7: =IF((V7-U7)>3,U7+3,V7) -> 0 | Z7: =VLOOKUP(AA5,Week,6) -> 1 | AA7: =VLOOKUP(Z7,Holes,2) -> 4 | AC7: =IF((AB7-AA7)>3,AA7+3,AB7) -> 0 | AF7: =VLOOKUP(AG5,Week,6) -> 10 | AG7: =VLOOKUP(AF7,Holes,2) -> 4 | AI7: =IF((AH7-AG7)>3,AG7+3,AH7) -> 0 | AL7: =VLOOKUP(AM5,Week,6) -> 1 | AM7: =VLOOKUP(AL7,Holes,2) -> 4 | AO7: =IF((AN7-AM7)>3,AM7+3,AN7) -> 0 | AR7: =VLOOKUP(AS5,Week,6) -> 10 | AS7: =VLOOKUP(AR7,Holes,2) -> 4 | AU7: =IF((AT7-AS7)>3,AS7+3,AT7) -> 0 | AX7: =VLOOKUP(AY5,Week,6) -> 10 | AY7: =VLOOKUP(AX7,Holes,2) -> 4 | BA7: =IF((AZ7-AY7)>3,AY7+3,AZ7) -> 0 | BD7: =VLOOKUP(BE5,Week,6) -> 10 | BE7: =VLOOKUP(BD7,Holes,2) -> 4 | BG7: =IF((BF7-BE7)>3,BE7+3,BF7) -> 0 | BJ7: =VLOOKUP(BK5,Week,6) -> 10 | BK7: =VLOOKUP(BJ7,Holes,2) -> 4 | BM7: =IF((BL7-BK7)>3,BK7+3,BL7) -> 0 | BP7: =VLOOKUP(BQ5,Week,6) -> 1 | BQ7: =VLOOKUP(BP7,Holes,2) -> 4 | BS7: =IF((BR7-BQ7)>3,BQ7+3,BR7) -> 0 | BV7: =VLOOKUP(BW5,Week,6) -> 10 | BW7: =VLOOKUP(BV7,Holes,2) -> 4 | BY7: =IF((BX7-BW7)>3,BW7+3,BX7) -> 0 | CB7: =VLOOKUP(CC5,Week,6) -> 1 | CC7: =VLOOKUP(CB7,Holes,2) -> 4 | CE7: =IF((CD7-CC7)>3,CC7+3,CD7) -> 0 | CH7: =VLOOKUP(CI5,Week,6) -> 10 | CI7: =VLOOKUP(CH7,Holes,2) -> 4 | CK7: =IF((CJ7-CI7)>3,CI7+3,CJ7) -> 0
B8: =+B7+1 -> 2 | C8: 4 | E8: 0 | H8: =+H7+1 -> 11 | I8: 4 | K8: 0 | N8: =+N7+1 -> 2 | O8: 4 | Q8: 0 | T8: =+T7+1 -> 11 | U8: 4 | W8: 0 | Z8: =+Z7+1 -> 2 | AA8: 4 | AC8: 0 | AF8: =+AF7+1 -> 11 | AG8: 4 | AI8: 0 | AL8: =+AL7+1 -> 2 | AM8: 4 | AO8: 0 | AR8: =+AR7+1 -> 11 | AS8: 4 | AU8: 0 | AX8: =+AX7+1 -> 11 | AY8: 4 | BA8: 0 | BD8: =+BD7+1 -> 11 | BE8: 4 | BG8: 0 | BJ8: =+BJ7+1 -> 11 | BK8: 4 | BM8: 0 | BP8: =+BP7+1 -> 2 | BQ8: 4 | BS8: 0 | BV8: =+BV7+1 -> 11 | BW8: 4 | BY8: 0 | CB8: =+CB7+1 -> 2 | CC8: 4 | CE8: 0 | CH8: =+CH7+1 -> 11 | CI8: 4 | CK8: 0
B9: 3 | C9: 4 | E9: 0 | H9: 12 | I9: 3 | K9: 0 | N9: 3 | O9: 4 | Q9: 0 | T9: 12 | U9: 3 | W9: 0 | Z9: 3 | AA9: 4 | AC9: 0 | AF9: 12 | AG9: 3 | AI9: 0 | AL9: 3 | AM9: 4 | AO9: 0 | AR9: 12 | AS9: 3 | AU9: 0 | AX9: 12 | AY9: 3 | BA9: 0 | BD9: 12 | BE9: 3 | BG9: 0 | BJ9: 12 | BK9: 3 | BM9: 0 | BP9: 3 | BQ9: 4 | BS9: 0 | BV9: 12 | BW9: 3 | BY9: 0 | CB9: 3 | CC9: 4 | CE9: 0 | CH9: 12 | CI9: 3 | CK9: 0
B10: 4 | C10: 4 | E10: 0 | H10: 13 | I10: 4 | K10: 0 | N10: 4 | O10: 4 | Q10: 0 | T10: 13 | U10: 4 | W10: 0 | Z10: 4 | AA10: 4 | AC10: 0 | AF10: 13 | AG10: 4 | AI10: 0 | AL10: 4 | AM10: 4 | AO10: 0 | AR10: 13 | AS10: 4 | AU10: 0 | AX10: 13 | AY10: 4 | BA10: 0 | BD10: 13 | BE10: 4 | BG10: 0 | BJ10: 13 | BK10: 4 | BM10: 0 | BP10: 4 | BQ10: 4 | BS10: 0 | BV10: 13 | BW10: 4 | BY10: 0 | CB10: 4 | CC10: 4 | CE10: 0 | CH10: 13 | CI10: 4 | CK10: 0
B11: 5 | C11: 3 | E11: 0 | H11: 14 | I11: 4 | K11: 0 | N11: 5 | O11: 3 | Q11: 0 | T11: 14 | U11: 4 | W11: 0 | Z11: 5 | AA11: 3 | AC11: 0 | AF11: 14 | AG11: 4 | AI11: 0 | AL11: 5 | AM11: 3 | AO11: 0 | AR11: 14 | AS11: 4 | AU11: 0 | AX11: 14 | AY11: 4 | BA11: 0 | BD11: 14 | BE11: 4 | BG11: 0 | BJ11: 14 | BK11: 4 | BM11: 0 | BP11: 5 | BQ11: 3 | BS11: 0 | BV11: 14 | BW11: 4 | BY11: 0 | CB11: 5 | CC11: 3 | CE11: 0 | CH11: 14 | CI11: 4 | CK11: 0
B12: 6 | C12: 4 | E12: 0 | H12: 15 | I12: 3 | K12: 0 | N12: 6 | O12: 4 | Q12: 0 | T12: 15 | U12: 3 | W12: 0 | Z12: 6 | AA12: 4 | AC12: 0 | AF12: 15 | AG12: 3 | AI12: 0 | AL12: 6 | AM12: 4 | AO12: 0 | AR12: 15 | AS12: 3 | AU12: 0 | AX12: 15 | AY12: 3 | BA12: 0 | BD12: 15 | BE12: 3 | BG12: 0 | BJ12: 15 | BK12: 3 | BM12: 0 | BP12: 6 | BQ12: 4 | BS12: 0 | BV12: 15 | BW12: 3 | BY12: 0 | CB12: 6 | CC12: 4 | CE12: 0 | CH12: 15 | CI12: 3 | CK12: 0
B13: 7 | C13: 4 | E13: 0 | H13: 16 | I13: 5 | K13: 0 | N13: 7 | O13: 4 | Q13: 0 | T13: 16 | U13: 5 | W13: 0 | Z13: 7 | AA13: 4 | AC13: 0 | AF13: 16 | AG13: 5 | AI13: 0 | AL13: 7 | AM13: 4 | AO13: 0 | AR13: 16 | AS13: 5 | AU13: 0 | AX13: 16 | AY13: 5 | BA13: 0 | BD13: 16 | BE13: 5 | BG13: 0 | BJ13: 16 | BK13: 5 | BM13: 0 | BP13: 7 | BQ13: 4 | BS13: 0 | BV13: 16 | BW13: 5 | BY13: 0 | CB13: 7 | CC13: 4 | CE13: 0 | CH13: 16 | CI13: 5 | CK13: 0
B14: 8 | C14: 3 | E14: 0 | H14: 17 | I14: 4 | K14: 0 | N14: 8 | O14: 3 | Q14: 0 | T14: 17 | U14: 4 | W14: 0 | Z14: 8 | AA14: 3 | AC14: 0 | AF14: 17 | AG14: 4 | AI14: 0 | AL14: 8 | AM14: 3 | AO14: 0 | AR14: 17 | AS14: 4 | AU14: 0 | AX14: 17 | AY14: 4 | BA14: 0 | BD14: 17 | BE14: 4 | BG14: 0 | BJ14: 17 | BK14: 4 | BM14: 0 | BP14: 8 | BQ14: 3 | BS14: 0 | BV14: 17 | BW14: 4 | BY14: 0 | CB14: 8 | CC14: 3 | CE14: 0 | CH14: 17 | CI14: 4 | CK14: 0
B15: 9 | C15: 5 | E15: 0 | H15: 18 | I15: 5 | K15: 0 | N15: 9 | O15: 5 | Q15: 0 | T15: 18 | U15: 5 | W15: 0 | Z15: 9 | AA15: 5 | AC15: 0 | AF15: 18 | AG15: 5 | AI15: 0 | AL15: 9 | AM15: 5 | AO15: 0 | AR15: 18 | AS15: 5 | AU15: 0 | AX15: 18 | AY15: 5 | BA15: 0 | BD15: 18 | BE15: 5 | BG15: 0 | BJ15: 18 | BK15: 5 | BM15: 0 | BP15: 9 | BQ15: 5 | BS15: 0 | BV15: 18 | BW15: 5 | BY15: 0 | CB15: 9 | CC15: 5 | CE15: 0 | CH15: 18 | CI15: 5 | CK15: 0
B16: Total | C16: =SUM(C7:C15) -> 35 | D16: =SUM(D7:D15) -> 0 | E16: =SUM(E7:E15) -> 0 | F16: =SUM(F7:F15) -> 0 | H16: Total | I16: =SUM(I7:I15) -> 36 | J16: =SUM(J7:J15) -> 0 | K16: =SUM(K7:K15) -> 0 | L16: =SUM(L7:L15) -> 0 | N16: Total | O16: =SUM(O7:O15) -> 35 | P16: =SUM(P7:P15) -> 0 | Q16: =SUM(Q7:Q15) -> 0 | R16: =SUM(R7:R15) -> 0 | T16: Total | U16: =SUM(U7:U15) -> 36 | V16: =SUM(V7:V15) -> 0 | W16: =SUM(W7:W15) -> 0 | X16: =SUM(X7:X15) -> 0 | Z16: Total | AA16: =SUM(AA7:AA15) -> 35 | AB16: =SUM(AB7:AB15) -> 0 | AC16: =SUM(AC7:AC15) -> 0 | AD16: =SUM(AD7:AD15) -> 0 | AF16: Total | AG16: =SUM(AG7:AG15) -> 36 | AH16: =SUM(AH7:AH15) -> 0 | AI16: =SUM(AI7:AI15) -> 0 | AJ16: =SUM(AJ7:AJ15) -> 0 | AL16: Total | AM16: =SUM(AM7:AM15) -> 35 | AN16: =SUM(AN7:AN15) -> 0 | AO16: =SUM(AO7:AO15) -> 0 | AP16: =SUM(AP7:AP15) -> 0 | AR16: Total | AS16: =SUM(AS7:AS15) -> 36 | AT16: =SUM(AT7:AT15) -> 0 | AU16: =SUM(AU7:AU15) -> 0 | AV16: =SUM(AV7:AV15) -> 0 | AX16: Total | AY16: =SUM(AY7:AY15) -> 36 | AZ16: =SUM(AZ7:AZ15) -> 0 | BA16: =SUM(BA7:BA15) -> 0 | BB16: =SUM(BB7:BB15) -> 0 | BD16: Total | BE16: =SUM(BE7:BE15) -> 36 | BF16: =SUM(BF7:BF15) -> 0 | BG16: =SUM(BG7:BG15) -> 0 | BH16: =SUM(BH7:BH15) -> 0 | BJ16: Total | BK16: =SUM(BK7:BK15) -> 36 | BL16: =SUM(BL7:BL15) -> 0 | BM16: =SUM(BM7:BM15) -> 0 | BN16: =SUM(BN7:BN15) -> 0 | BP16: Total | BQ16: =SUM(BQ7:BQ15) -> 35 | BR16: =SUM(BR7:BR15) -> 0 | BS16: =SUM(BS7:BS15) -> 0 | BT16: =SUM(BT7:BT15) -> 0 | BV16: Total | BW16: =SUM(BW7:BW15) -> 36 | BX16: =SUM(BX7:BX15) -> 0 | BY16: =SUM(BY7:BY15) -> 0 | BZ16: =SUM(BZ7:BZ15) -> 0 | CB16: Total | CC16: =SUM(CC7:CC15) -> 35 | CD16: =SUM(CD7:CD15) -> 0 | CE16: =SUM(CE7:CE15) -> 0 | CF16: =SUM(CF7:CF15) -> 0 | CH16: Total | CI16: =SUM(CI7:CI15) -> 36 | CJ16: =SUM(CJ7:CJ15) -> 0 | CK16: =SUM(CK7:CK15) -> 0 | CL16: =SUM(CL7:CL15) -> 0
E18: Low Net | F18: 0 | K18: Low Net | L18: 0 | Q18: Low Net | R18: 0 | W18: Low Net | AC18: Low Net | AI18: Low Net | AO18: Low Net | AU18: Low Net | BA18: Low Net | BG18: Low Net | BM18: Low Net | BS18: Low Net | BY18: Low Net | CE18: Low Net | CK18: Low Net
E20: Total Points | F20: =SUM(F16:F19) -> 0 | K20: Total Points | L20: =SUM(L16:L19) -> 0 | Q20: Total Points | R20: =SUM(R16:R19) -> 0 | W20: Total Points | X20: =SUM(X16:X19) -> 0 | AC20: Total Points | AD20: =SUM(AD16:AD19) -> 0 | AI20: Total Points | AJ20: =SUM(AJ16:AJ19) -> 0 | AO20: Total Points | AP20: =SUM(AP16:AP19) -> 0 | AU20: Total Points | AV20: =SUM(AV16:AV19) -> 0 | BA20: Total Points | BB20: =SUM(BB16:BB19) -> 0 | BG20: Total Points | BH20: =SUM(BH16:BH19) -> 0 | BM20: Total Points | BN20: =SUM(BN16:BN19) -> 0 | BS20: Total Points | BT20: =SUM(BT16:BT19) -> 0 | BY20: Total Points | BZ20: =SUM(BZ16:BZ19) -> 0 | CE20: Total Points | CF20: =SUM(CF16:CF19) -> 0 | CK20: Total Points | CL20: =SUM(CL16:CL19) -> 0
E22: Handicap | F22: =IF(D16=0,0,E16-C16) -> 0 | K22: Handicap | L22: =IF(J16=0,0,K16-I16) -> 0 | Q22: Handicap | R22: =IF(P16=0,0,Q16-O16) -> 0 | W22: Handicap | X22: =IF(V16=0,0,W16-U16) -> 0 | AC22: Handicap | AD22: =IF(AB16=0,0,AC16-AA16) -> 0 | AI22: Handicap | AJ22: =IF(AH16=0,0,AI16-AG16) -> 0 | AO22: Handicap | AP22: =IF(AN16=0,0,AO16-AM16) -> 0 | AU22: Handicap | AV22: =IF(AT16=0,0,AU16-AS16) -> 0 | BA22: Handicap | BB22: =IF(AZ16=0,0,BA16-AY16) -> 0 | BG22: Handicap | BH22: =IF(BF16=0,0,BG16-BE16) -> 0 | BM22: Handicap | BN22: =IF(BL16=0,0,BM16-BK16) -> 0 | BS22: Handicap | BT22: =IF(BR16=0,0,BS16-BQ16) -> 0 | BY22: Handicap | BZ22: =IF(BX16=0,0,BY16-BW16) -> 0 | CE22: Handicap | CF22: =IF(CD16=0,0,CE16-CC16) -> 0 | CK22: Handicap | CL22: =IF(CJ16=0,0,CK16-CI16) -> 0
F24: =IF(D16<>0,IF(F16>4.5,"W",IF(F16=4.5,"T",IF(F16<4.5,"L"))),0) -> 0 | L24: =IF(J16<>0,IF(L16>4.5,"W",IF(L16=4.5,"T",IF(L16<4.5,"L"))),0) -> 0 | R24: =IF(P16<>0,IF(R16>4.5,"W",IF(R16=4.5,"T",IF(R16<4.5,"L"))),0) -> 0 | X24: =IF(V16<>0,IF(X16>4.5,"W",IF(X16=4.5,"T",IF(X16<4.5,"L"))),0) -> 0 | AD24: =IF(AB16<>0,IF(AD16>4.5,"W",IF(AD16=4.5,"T",IF(AD16<4.5,"L"))),0) -> 0 | AJ24: =IF(AH16<>0,IF(AJ16>4.5,"W",IF(AJ16=4.5,"T",IF(AJ16<4.5,"L"))),0) -> 0 | AP24: =IF(AN16<>0,IF(AP16>4.5,"W",IF(AP16=4.5,"T",IF(AP16<4.5,"L"))),0) -> 0 | AV24: =IF(AT16<>0,IF(AV16>4.5,"W",IF(AV16=4.5,"T",IF(AV16<4.5,"L"))),0) -> 0 | BB24: =IF(AZ16<>0,IF(BB16>4.5,"W",IF(BB16=4.5,"T",IF(BB16<4.5,"L"))),0) -> 0 | BH24: =IF(BF16<>0,IF(BH16>4.5,"W",IF(BH16=4.5,"T",IF(BH16<4.5,"L"))),0) -> 0 | BN24: =IF(BL16<>0,IF(BN16>4.5,"W",IF(BN16=4.5,"T",IF(BN16<4.5,"L"))),0) -> 0 | BT24: =IF(BR16<>0,IF(BT16>4.5,"W",IF(BT16=4.5,"T",IF(BT16<4.5,"L"))),0) -> 0 | BZ24: =IF(BX16<>0,IF(BZ16>4.5,"W",IF(BZ16=4.5,"T",IF(BZ16<4.5,"L"))),0) -> 0 | CF24: =IF(CD16<>0,IF(CF16>4.5,"W",IF(CF16=4.5,"T",IF(CF16<4.5,"L"))),0) -> 0 | CL24: =IF(CJ16<>0,IF(CL16>4.5,"W",IF(CL16=4.5,"T",IF(CL16<4.5,"L"))),0) -> 0
B26: Summary
D27: Adj | F27: Adj | J27: Avg Score
C28: Points | D28: Points | E28: Matches | F28: Matches | I28: Hole # | J28: by Hole | K28: Best | L28: Worst
B29: Week #1 | C29: =F20 -> 0 | D29: =C29 -> 0 | E29: =IF(D16>0,1,0) -> 0 | F29: =E29 -> 0 | I29: 1 | J29: =IFERROR(AVERAGE(D7),0) -> 0 | K29: =IFERROR(MIN(J7,V7,AH7,AT7,BF7,BR7,BX7,CJ7),0) -> 0 | L29: =IFERROR(MAX(J7,V7,AH7,AT7,BF7,BR7,BX7,CJ7),0) -> 0
B30: Week #2 | C30: =L20 -> 0 | D30: 0 | E30: =IF(J16>0,1,0) -> 0 | F30: 0 | I30: 2 | J30: =IFERROR(AVERAGE(D8),0) -> 0 | K30: =IFERROR(MIN(J8,V8,AH8,AT8,BF8,BR8,BX8,CJ8),0) -> 0 | L30: =IFERROR(MAX(J8,V8,AH8,AT8,BF8,BR8,BX8,CJ8),0) -> 0
B31: Week #3 | C31: =R20 -> 0 | D31: 0 | E31: =IF(P16>0,1,0) -> 0 | F31: 0 | I31: 3 | J31: 0 | K31: 0 | L31: 0
B32: Week #4 | C32: =X20 -> 0 | D32: 0 | E32: =IF(V16>0,1,0) -> 0 | F32: 0 | I32: 4 | J32: 0 | K32: 0 | L32: 0
B33: Week #5 | C33: =AD20 -> 0 | D33: 0 | E33: =IF(AB16>0,1,0) -> 0 | F33: 0 | I33: 5 | J33: 0 | K33: 0 | L33: 0
B34: Week #6 | C34: =AJ20 -> 0 | D34: 0 | E34: =IF(AH16>0,1,0) -> 0 | F34: 0 | I34: 6 | J34: 0 | K34: 0 | L34: 0
B35: Week #7 | C35: =AP20 -> 0 | D35: 0 | E35: =IF(AN16>0,1,0) -> 0 | F35: 0 | I35: 7 | J35: 0 | K35: 0 | L35: 0
B36: Week #8 | C36: =AV20 -> 0 | D36: 0 | E36: =IF(AT16>0,1,0) -> 0 | F36: 0 | I36: 8 | J36: 0 | K36: 0 | L36: 0
B37: Week #9 | C37: =BB20 -> 0 | D37: 0 | E37: =IF(AZ16>0,1,0) -> 0 | F37: 0 | I37: 9 | J37: 0 | K37: 0 | L37: 0
B38: Week #10 | C38: =BH20 -> 0 | D38: 0 | E38: =IF(BF16>0,1,0) -> 0 | F38: 0 | I38: Front | J38: =SUM(J29:J37) -> 0 | K38: =SUM(K29:K37) -> 0 | L38: 0
B39: Week #11 | C39: =BN20 -> 0 | D39: 0 | E39: =IF(BL16>0,1,0) -> 0 | F39: 0
B40: Week #12 | C40: =BT20 -> 0 | D40: 0 | E40: =IF(BR16>0,1,0) -> 0 | F40: 0 | I40: 10 | J40: =IFERROR(AVERAGE(J7),0) -> 0 | K40: =IFERROR(MIN(D7,P7,AB7,AN7,AZ7,BL7,CD7),0) -> 0 | L40: =IFERROR(MAX(D7,P7,AB7,AN7,AZ7,BL7,CD7),0) -> 0
B41: Week #13 | C41: =BZ20 -> 0 | D41: 0 | E41: =IF(BX16>0,1,0) -> 0 | F41: 0 | I41: 11 | J41: =IFERROR(AVERAGE(J8),0) -> 0 | K41: =IFERROR(MIN(D8,P8,AB8,AN8,AZ8,BL8,CD8),0) -> 0 | L41: =IFERROR(MAX(D8,P8,AB8,AN8,AZ8,BL8,CD8),0) -> 0
B42: Week #14 | C42: =CF20 -> 0 | D42: 0 | E42: =IF(CD16>0,1,0) -> 0 | F42: 0 | I42: 12 | J42: 0 | K42: 0 | L42: 0
B43: Week #15 | C43: =CL20 -> 0 | D43: 0 | E43: =IF(CJ16>0,1,0) -> 0 | F43: 0 | I43: 13 | J43: 0 | K43: 0 | L43: 0
B44: Total | C44: =SUM(C29:C43) -> 0 | D44: =SUM(D29:D43) -> 0 | E44: =SUM(E29:E43) -> 0 | F44: =SUM(F29:F43) -> 0 | I44: 14 | J44: 0 | K44: 0 | L44: 0
I45: 15 | J45: 0 | K45: 0 | L45: 0
B46: Summary | I46: 16 | J46: 0 | K46: 0 | L46: 0
B47: Eagles | C47: =I57+I68+I79+I90+I101+I112+I123+I134+I145+I156+I167+I178+I189+I200+I211 -> 0 | I47: 17 | J47: 0 | K47: 0 | L47: 0
B48: Birdies | C48: 0 | I48: 18 | J48: 0 | K48: 0 | L48: 0
B49: Pars | C49: 0 | I49: Back | J49: =SUM(J40:J48) -> 0 | K49: =SUM(K40:K48) -> 0 | L49: 0
B50: bogeys | C50: 0
B51: Double bogeys | C51: 0
B52: Other | C52: 0
B53: Total | C53: =SUM(C47:C52) -> 0
B55: =D4 -> 2025-04-25 | C55: Par | D55: Score
B56: =B7 -> 1 | C56: 4 | D56: 0 | E56: =IF(D56<>0,IF((D56-C56)=-1,"Birdie",IF((D56-C56)=-2,"Eagle",IF((D56-C56)=0,"Par",IF((D56-C56)=1,"bogey",IF((D56-C56)=2,"Double bogey","Other")))))," ") ->  | H56: Count
B57: 2 | C57: 4 | D57: 0 | H57: Eagle | I57: =COUNTIF(E56:E64,"Eagle") -> 0
B58: 3 | C58: 4 | D58: 0 | H58: Birdie | I58: =COUNTIF(E56:E64,"Birdie") -> 0
B59: 4 | C59: 4 | D59: 0 | H59: Par | I59: =COUNTIF(E56:E64,"Par") -> 0
B60: 5 | C60: 3 | D60: 0 | H60: bogey | I60: =COUNTIF(E56:E64,"bogey") -> 0
B61: 6 | C61: 4 | D61: 0 | H61: Double bogey | I61: =COUNTIF(E56:E64,"Double bogey") -> 0
B62: 7 | C62: 4 | D62: 0 | H62: Other | I62: =COUNTIF(E56:E64,"Other") -> 0
B63: 8 | C63: 3 | D63: 0
B64: 9 | C64: 5 | D64: 0
B66: =J4 -> 2025-05-02
B67: =H7 -> 10 | C67: 4 | D67: 0 | E67: =IF(D67<>0,IF((D67-C67)=-1,"Birdie",IF((D67-C67)=-2,"Eagle",IF((D67-C67)=0,"Par",IF((D67-C67)=1,"bogey",IF((D67-C67)=2,"Double bogey","Other")))))," ") ->  | H67: Count
B68: 11 | C68: 4 | D68: 0 | H68: Eagle | I68: =COUNTIF(E67:E75,"Eagle") -> 0
B69: 12 | C69: 3 | D69: 0 | H69: Birdie | I69: =COUNTIF(E67:E75,"Birdie") -> 0
B70: 13 | C70: 4 | D70: 0 | H70: Par | I70: =COUNTIF(E67:E75,"Par") -> 0
B71: 14 | C71: 4 | D71: 0 | H71: bogey | I71: =COUNTIF(E67:E75,"bogey") -> 0
B72: 15 | C72: 3 | D72: 0 | H72: Double bogey | I72: =COUNTIF(E67:E75,"Double bogey") -> 0
B73: 16 | C73: 5 | D73: 0 | H73: Other | I73: =COUNTIF(E67:E75,"Other") -> 0
B74: 17 | C74: 4 | D74: 0
B75: 18 | C75: 5 | D75: 0
B77: =P4 -> 2025-05-09
B78: =N7 -> 1 | C78: 4 | D78: 0 | E78: =IF(D78<>0,IF((D78-C78)=-1,"Birdie",IF((D78-C78)=-2,"Eagle",IF((D78-C78)=0,"Par",IF((D78-C78)=1,"bogey",IF((D78-C78)=2,"Double bogey","Other")))))," ") ->  | H78: Count
B79: 2 | C79: 4 | D79: 0 | H79: Eagle | I79: =COUNTIF(E78:E86,"Eagle") -> 0
B80: 3 | C80: 4 | D80: 0 | H80: Birdie | I80: =COUNTIF(E78:E86,"Birdie") -> 0
B81: 4 | C81: 4 | D81: 0 | H81: Par | I81: =COUNTIF(E78:E86,"Par") -> 0
B82: 5 | C82: 3 | D82: 0 | H82: bogey | I82: =COUNTIF(E78:E86,"bogey") -> 0
B83: 6 | C83: 4 | D83: 0 | H83: Double bogey | I83: =COUNTIF(E78:E86,"Double bogey") -> 0
B84: 7 | C84: 4 | D84: 0 | H84: Other | I84: =COUNTIF(E78:E86,"Other") -> 0
B85: 8 | C85: 3 | D85: 0
B86: 9 | C86: 5 | D86: 0
B88: =V4 -> 2025-05-16
B89: =T7 -> 10 | C89: 4 | D89: 0 | E89: =IF(D89<>0,IF((D89-C89)=-1,"Birdie",IF((D89-C89)=-2,"Eagle",IF((D89-C89)=0,"Par",IF((D89-C89)=1,"bogey",IF((D89-C89)=2,"Double bogey","Other")))))," ") ->  | H89: Count
B90: 11 | C90: 4 | D90: 0 | H90: Eagle | I90: =COUNTIF(E89:E97,"Eagle") -> 0
B91: 12 | C91: 3 | D91: 0 | H91: Birdie | I91: =COUNTIF(E89:E97,"Birdie") -> 0
B92: 13 | C92: 4 | D92: 0 | H92: Par | I92: =COUNTIF(E89:E97,"Par") -> 0
B93: 14 | C93: 4 | D93: 0 | H93: bogey | I93: =COUNTIF(E89:E97,"bogey") -> 0
B94: 15 | C94: 3 | D94: 0 | H94: Double bogey | I94: =COUNTIF(E89:E97,"Double bogey") -> 0
B95: 16 | C95: 5 | D95: 0 | H95: Other | I95: =COUNTIF(E89:E97,"Other") -> 0
B96: 17 | C96: 4 | D96: 0
B97: 18 | C97: 5 | D97: 0
B99: =AB4 -> 2025-05-23
B100: =Z7 -> 1 | C100: 4 | D100: 0 | E100: =IF(D100<>0,IF((D100-C100)=-1,"Birdie",IF((D100-C100)=-2,"Eagle",IF((D100-C100)=0,"Par",IF((D100-C100)=1,"bogey",IF((D100-C100)=2,"Double bogey","Other")))))," ") ->  | H100: Count
B101: 2 | C101: 4 | D101: 0 | H101: Eagle | I101: =COUNTIF(E100:E108,"Eagle") -> 0
B102: 3 | C102: 4 | D102: 0 | H102: Birdie | I102: =COUNTIF(E100:E108,"Birdie") -> 0
B103: 4 | C103: 4 | D103: 0 | H103: Par | I103: =COUNTIF(E100:E108,"Par") -> 0
B104: 5 | C104: 3 | D104: 0 | H104: bogey | I104: =COUNTIF(E100:E108,"bogey") -> 0
B105: 6 | C105: 4 | D105: 0 | H105: Double bogey | I105: =COUNTIF(E100:E108,"Double bogey") -> 0
B106: 7 | C106: 4 | D106: 0 | H106: Other | I106: =COUNTIF(E100:E108,"Other") -> 0
B107: 8 | C107: 3 | D107: 0
B108: 9 | C108: 5 | D108: 0
B110: =AH4 -> 2025-05-30
B111: =AF7 -> 10 | C111: 4 | D111: 0 | E111: =IF(D111<>0,IF((D111-C111)=-1,"Birdie",IF((D111-C111)=-2,"Eagle",IF((D111-C111)=0,"Par",IF((D111-C111)=1,"bogey",IF((D111-C111)=2,"Double bogey","Other")))))," ") ->  | H111: Count
B112: 11 | C112: 4 | D112: 0 | H112: Eagle | I112: =COUNTIF(E111:E119,"Eagle") -> 0
B113: 12 | C113: 3 | D113: 0 | H113: Birdie | I113: =COUNTIF(E111:E119,"Birdie") -> 0
B114: 13 | C114: 4 | D114: 0 | H114: Par | I114: =COUNTIF(E111:E119,"Par") -> 0
B115: 14 | C115: 4 | D115: 0 | H115: bogey | I115: =COUNTIF(E111:E119,"bogey") -> 0
B116: 15 | C116: 3 | D116: 0 | H116: Double bogey | I116: =COUNTIF(E111:E119,"Double bogey") -> 0
B117: 16 | C117: 5 | D117: 0 | H117: Other | I117: =COUNTIF(E111:E119,"Other") -> 0
B118: 17 | C118: 4 | D118: 0
B119: 18 | C119: 5 | D119: 0
B121: =AN4 -> 2025-06-06
B122: =AL7 -> 1 | C122: 4 | D122: 0 | E122: =IF(D122<>0,IF((D122-C122)=-1,"Birdie",IF((D122-C122)=-2,"Eagle",IF((D122-C122)=0,"Par",IF((D122-C122)=1,"bogey",IF((D122-C122)=2,"Double bogey","Other")))))," ") ->  | H122: Count
B123: 2 | C123: 4 | D123: 0 | H123: Eagle | I123: =COUNTIF(E122:E130,"Eagle") -> 0
B124: 3 | C124: 4 | D124: 0 | H124: Birdie | I124: =COUNTIF(E122:E130,"Birdie") -> 0
B125: 4 | C125: 4 | D125: 0 | H125: Par | I125: =COUNTIF(E122:E130,"Par") -> 0
B126: 5 | C126: 3 | D126: 0 | H126: bogey | I126: =COUNTIF(E122:E130,"bogey") -> 0
B127: 6 | C127: 4 | D127: 0 | H127: Double bogey | I127: =COUNTIF(E122:E130,"Double bogey") -> 0
B128: 7 | C128: 4 | D128: 0 | H128: Other | I128: =COUNTIF(E122:E130,"Other") -> 0
B129: 8 | C129: 3 | D129: 0
B130: 9 | C130: 5 | D130: 0
B132: =AT4 -> 2025-06-13
B133: =AR7 -> 10 | C133: 4 | D133: 0 | E133: =IF(D133<>0,IF((D133-C133)=-1,"Birdie",IF((D133-C133)=-2,"Eagle",IF((D133-C133)=0,"Par",IF((D133-C133)=1,"bogey",IF((D133-C133)=2,"Double bogey","Other")))))," ") ->  | H133: Count
B134: 11 | C134: 4 | D134: 0 | H134: Eagle | I134: =COUNTIF(E133:E141,"Eagle") -> 0
B135: 12 | C135: 3 | D135: 0 | H135: Birdie | I135: =COUNTIF(E133:E141,"Birdie") -> 0
B136: 13 | C136: 4 | D136: 0 | H136: Par | I136: =COUNTIF(E133:E141,"Par") -> 0
B137: 14 | C137: 4 | D137: 0 | H137: bogey | I137: =COUNTIF(E133:E141,"bogey") -> 0
B138: 15 | C138: 3 | D138: 0 | H138: Double bogey | I138: =COUNTIF(E133:E141,"Double bogey") -> 0
B139: 16 | C139: 5 | D139: 0 | H139: Other | I139: =COUNTIF(E133:E141,"Other") -> 0
B140: 17 | C140: 4 | D140: 0
B141: 18 | C141: 5 | D141: 0
B143: =AZ4 -> 2025-06-27
B144: =AX7 -> 10 | C144: 4 | D144: 0 | E144: =IF(D144<>0,IF((D144-C144)=-1,"Birdie",IF((D144-C144)=-2,"Eagle",IF((D144-C144)=0,"Par",IF((D144-C144)=1,"bogey",IF((D144-C144)=2,"Double bogey","Other")))))," ") ->  | H144: Count
B145: 11 | C145: 4 | D145: 0 | H145: Eagle | I145: =COUNTIF(E144:E152,"Eagle") -> 0
B146: 12 | C146: 3 | D146: 0 | H146: Birdie | I146: =COUNTIF(E144:E152,"Birdie") -> 0
B147: 13 | C147: 4 | D147: 0 | H147: Par | I147: =COUNTIF(E144:E152,"Par") -> 0
B148: 14 | C148: 4 | D148: 0 | H148: bogey | I148: =COUNTIF(E144:E152,"bogey") -> 0
B149: 15 | C149: 3 | D149: 0 | H149: Double bogey | I149: =COUNTIF(E144:E152,"Double bogey") -> 0
B150: 16 | C150: 5 | D150: 0 | H150: Other | I150: =COUNTIF(E144:E152,"Other") -> 0
B151: 17 | C151: 4 | D151: 0
B152: 18 | C152: 5 | D152: 0
B154: =BF4 -> 2025-07-04
B155: =BD7 -> 10 | C155: 4 | D155: 0 | E155: =IF(D155<>0,IF((D155-C155)=-1,"Birdie",IF((D155-C155)=-2,"Eagle",IF((D155-C155)=0,"Par",IF((D155-C155)=1,"bogey",IF((D155-C155)=2,"Double bogey","Other")))))," ") ->  | H155: Count
B156: 11 | C156: 4 | D156: 0 | H156: Eagle | I156: =COUNTIF(E155:E163,"Eagle") -> 0
B157: 12 | C157: 3 | D157: 0 | H157: Birdie | I157: =COUNTIF(E155:E163,"Birdie") -> 0
B158: 13 | C158: 4 | D158: 0 | H158: Par | I158: =COUNTIF(E155:E163,"Par") -> 0
B159: 14 | C159: 4 | D159: 0 | H159: bogey | I159: =COUNTIF(E155:E163,"bogey") -> 0
B160: 15 | C160: 3 | D160: 0 | H160: Double bogey | I160: =COUNTIF(E155:E163,"Double bogey") -> 0
B161: 16 | C161: 5 | D161: 0 | H161: Other | I161: =COUNTIF(E155:E163,"Other") -> 0
B162: 17 | C162: 4 | D162: 0
B163: 18 | C163: 5 | D163: 0
B165: =BL4 -> 2025-07-18
B166: =BJ7 -> 10 | C166: 4 | D166: 0 | E166: =IF(D166<>0,IF((D166-C166)=-1,"Birdie",IF((D166-C166)=-2,"Eagle",IF((D166-C166)=0,"Par",IF((D166-C166)=1,"bogey",IF((D166-C166)=2,"Double bogey","Other")))))," ") ->  | H166: Count
B167: 11 | C167: 4 | D167: 0 | H167: Eagle | I167: =COUNTIF(E166:E174,"Eagle") -> 0
B168: 12 | C168: 3 | D168: 0 | H168: Birdie | I168: =COUNTIF(E166:E174,"Birdie") -> 0
B169: 13 | C169: 4 | D169: 0 | H169: Par | I169: =COUNTIF(E166:E174,"Par") -> 0
B170: 14 | C170: 4 | D170: 0 | H170: bogey | I170: =COUNTIF(E166:E174,"bogey") -> 0
B171: 15 | C171: 3 | D171: 0 | H171: Double bogey | I171: =COUNTIF(E166:E174,"Double bogey") -> 0
B172: 16 | C172: 5 | D172: 0 | H172: Other | I172: =COUNTIF(E166:E174,"Other") -> 0
B173: 17 | C173: 4 | D173: 0
B174: 18 | C174: 5 | D174: 0
B176: =BR4 -> 2025-07-25
B177: =BP7 -> 1 | C177: 4 | D177: 0 | E177: =IF(D177<>0,IF((D177-C177)=-1,"Birdie",IF((D177-C177)=-2,"Eagle",IF((D177-C177)=0,"Par",IF((D177-C177)=1,"bogey",IF((D177-C177)=2,"Double bogey","Other")))))," ") ->  | H177: Count
B178: 2 | C178: 4 | D178: 0 | H178: Eagle | I178: =COUNTIF(E177:E185,"Eagle") -> 0
B179: 3 | C179: 4 | D179: 0 | H179: Birdie | I179: =COUNTIF(E177:E185,"Birdie") -> 0
B180: 4 | C180: 4 | D180: 0 | H180: Par | I180: =COUNTIF(E177:E185,"Par") -> 0
B181: 5 | C181: 3 | D181: 0 | H181: bogey | I181: =COUNTIF(E177:E185,"bogey") -> 0
B182: 6 | C182: 4 | D182: 0 | H182: Double bogey | I182: =COUNTIF(E177:E185,"Double bogey") -> 0
B183: 7 | C183: 4 | D183: 0 | H183: Other | I183: =COUNTIF(E177:E185,"Other") -> 0
B184: 8 | C184: 3 | D184: 0
B185: 9 | C185: 5 | D185: 0
B187: =BX4 -> 2025-08-01
B188: =BV7 -> 10 | C188: 4 | D188: 0 | E188: =IF(D188<>0,IF((D188-C188)=-1,"Birdie",IF((D188-C188)=-2,"Eagle",IF((D188-C188)=0,"Par",IF((D188-C188)=1,"bogey",IF((D188-C188)=2,"Double bogey","Other")))))," ") ->  | H188: Count
B189: 11 | C189: 4 | D189: 0 | H189: Eagle | I189: =COUNTIF(E188:E196,"Eagle") -> 0
B190: 12 | C190: 3 | D190: 0 | H190: Birdie | I190: =COUNTIF(E188:E196,"Birdie") -> 0
B191: 13 | C191: 4 | D191: 0 | H191: Par | I191: =COUNTIF(E188:E196,"Par") -> 0
B192: 14 | C192: 4 | D192: 0 | H192: bogey | I192: =COUNTIF(E188:E196,"bogey") -> 0
B193: 15 | C193: 3 | D193: 0 | H193: Double bogey | I193: =COUNTIF(E188:E196,"Double bogey") -> 0
B194: 16 | C194: 5 | D194: 0 | H194: Other | I194: =COUNTIF(E188:E196,"Other") -> 0
B195: 17 | C195: 4 | D195: 0
B196: 18 | C196: 5 | D196: 0
B198: =CD4 -> 2025-08-08
B199: =CB7 -> 1 | C199: 4 | D199: 0 | E199: =IF(D199<>0,IF((D199-C199)=-1,"Birdie",IF((D199-C199)=-2,"Eagle",IF((D199-C199)=0,"Par",IF((D199-C199)=1,"bogey",IF((D199-C199)=2,"Double bogey","Other")))))," ") ->  | H199: Count
B200: 2 | C200: 4 | D200: 0 | H200: Eagle | I200: =COUNTIF(E199:E207,"Eagle") -> 0
B201: 3 | C201: 4 | D201: 0 | H201: Birdie | I201: =COUNTIF(E199:E207,"Birdie") -> 0
B202: 4 | C202: 4 | D202: 0 | H202: Par | I202: =COUNTIF(E199:E207,"Par") -> 0
B203: 5 | C203: 3 | D203: 0 | H203: bogey | I203: =COUNTIF(E199:E207,"bogey") -> 0
B204: 6 | C204: 4 | D204: 0 | H204: Double bogey | I204: =COUNTIF(E199:E207,"Double bogey") -> 0
B205: 7 | C205: 4 | D205: 0 | H205: Other | I205: =COUNTIF(E199:E207,"Other") -> 0
B206: 8 | C206: 3 | D206: 0
B207: 9 | C207: 5 | D207: 0
B209: =CJ4 -> 2025-08-15
B210: =CH7 -> 10 | C210: 4 | D210: 0 | E210: =IF(D210<>0,IF((D210-C210)=-1,"Birdie",IF((D210-C210)=-2,"Eagle",IF((D210-C210)=0,"Par",IF((D210-C210)=1,"bogey",IF((D210-C210)=2,"Double bogey","Other")))))," ") ->  | H210: Count
B211: 11 | C211: 4 | D211: 0 | H211: Eagle | I211: =COUNTIF(E210:E218,"Eagle") -> 0
B212: 12 | C212: 3 | D212: 0 | H212: Birdie | I212: =COUNTIF(E210:E218,"Birdie") -> 0
B213: 13 | C213: 4 | D213: 0 | H213: Par | I213: =COUNTIF(E210:E218,"Par") -> 0
B214: 14 | C214: 4 | D214: 0 | H214: bogey | I214: =COUNTIF(E210:E218,"bogey") -> 0
B215: 15 | C215: 3 | D215: 0 | H215: Double bogey | I215: =COUNTIF(E210:E218,"Double bogey") -> 0
B216: 16 | C216: 5 | D216: 0 | H216: Other | I216: =COUNTIF(E210:E218,"Other") -> 0
B217: 17 | C217: 4 | D217: 0
B218: 18 | C218: 5 | D218: 0

Sheet Fusco_D
A1: Dan Fusco
C4: Date: | D4: =VLOOKUP(C5,Week,2) -> 2025-04-25 | I4: Date: | J4: =VLOOKUP(I5,Week,2) -> 2025-05-02 | O4: Date: | P4: =VLOOKUP(O5,Week,2) -> 2025-05-09 | U4: Date: | V4: =VLOOKUP(U5,Week,2) -> 2025-05-16 | AA4: Date: | AB4: =VLOOKUP(AA5,Week,2) -> 2025-05-23 | AG4: Date: | AH4: =VLOOKUP(AG5,Week,2) -> 2025-05-30 | AM4: Date: | AN4: =VLOOKUP(AM5,Week,2) -> 2025-06-06 | AS4: Date: | AT4: =VLOOKUP(AS5,Week,2) -> 2025-06-13 | AY4: Date: | AZ4: =VLOOKUP(AY5,Week,2) -> 2025-06-27 | BE4: Date: | BF4: =VLOOKUP(BE5,Week,2) -> 2025-07-04 | BK4: Date: | BL4: =VLOOKUP(BK5,Week,2) -> 2025-07-18 | BQ4: Date: | BR4: =VLOOKUP(BQ5,Week,2) -> 2025-07-25 | BW4: Date: | BX4: =VLOOKUP(BW5,Week,2) -> 2025-08-01 | CC4: Date: | CD4: =VLOOKUP(CC5,Week,2) -> 2025-08-08 | CI4: Date: | CJ4: =VLOOKUP(CI5,Week,2) -> 2025-08-15
B5: Week | C5: 1 | H5: Week | I5: 2 | N5: Week | O5: 3 | T5: Week | U5: 4 | Z5: Week | AA5: 5 | AF5: Week | AG5: 6 | AL5: Week | AM5: 7 | AR5: Week | AS5: 8 | AX5: Week | AY5: 9 | BD5: Week | BE5: 10 | BJ5: Week | BK5: 11 | BP5: Week | BQ5: 12 | BV5: Week | BW5: 13 | CB5: Week | CC5: 14 | CH5: Week | CI5: 15
B6: Hole # | C6: Par | D6: Score | E6: Net | F6: Win Hole | H6: Hole # | I6: Par | J6: Score | K6: Net | L6: Win Hole | N6: Hole # | O6: Par | P6: Score | Q6: Net | R6: Win Hole | T6: Hole # | U6: Par | V6: Score | W6: Net | X6: Win Hole | Z6: Hole # | AA6: Par | AB6: Score | AC6: Net | AD6: Win Hole | AF6: Hole # | AG6: Par | AH6: Score | AI6: Net | AJ6: Win Hole | AL6: Hole # | AM6: Par | AN6: Score | AO6: Net | AP6: Win Hole | AR6: Hole # | AS6: Par | AT6: Score | AU6: Net | AV6: Win Hole | AX6: Hole # | AY6: Par | AZ6: Score | BA6: Net | BB6: Win Hole | BD6: Hole # | BE6: Par | BF6: Score | BG6: Net | BH6: Win Hole | BJ6: Hole # | BK6: Par | BL6: Score | BM6: Net | BN6: Win Hole | BP6: Hole # | BQ6: Par | BR6: Score | BS6: Net | BT6: Win Hole | BV6: Hole # | BW6: Par | BX6: Score | BY6: Net | BZ6: Win Hole | CB6: Hole # | CC6: Par | CD6: Score | CE6: Net | CF6: Win Hole | CH6: Hole # | CI6: Par | CJ6: Score | CK6: Net | CL6: Win Hole
B7: =VLOOKUP(C5,Week,6) -> 1 | C7: =VLOOKUP(B7,Holes,2) -> 4 | E7: =IF((D7-C7)>3,C7+3,D7) -> 0 | H7: =VLOOKUP(I5,Week,6) -> 10 | I7: =VLOOKUP(H7,Holes,2) -> 4 | K7: =IF((J7-I7)>3,I7+3,J7) -> 0 | N7: =VLOOKUP(O5,Week,6) -> 1 | O7: =VLOOKUP(N7,Holes,2) -> 4 | Q7: =IF((P7-O7)>3,O7+3,P7) -> 0 | T7: =VLOOKUP(U5,Week,6) -> 10 | U7: =VLOOKUP(T7,Holes,2) -> 4 | W7: =IF((V7-U7)>3,U7+3,V7) -> 0 | Z7: =VLOOKUP(AA5,Week,6) -> 1 | AA7: =VLOOKUP(Z7,Holes,2) -> 4 | AC7: =IF((AB7-AA7)>3,AA7+3,AB7) -> 0 | AF7: =VLOOKUP(AG5,Week,6) -> 10 | AG7: =VLOOKUP(AF7,Holes,2) -> 4 | AI7: =IF((AH7-AG7)>3,AG7+3,AH7) -> 0 | AL7: =VLOOKUP(AM5,Week,6) -> 1 | AM7: =VLOOKUP(AL7,Holes,2) -> 4 | AO7: =IF((AN7-AM7)>3,AM7+3,AN7) -> 0 | AR7: =VLOOKUP(AS5,Week,6) -> 10 | AS7: =VLOOKUP(AR7,Holes,2) -> 4 | AU7: =IF((AT7-AS7)>3,AS7+3,AT7) -> 0 | AX7: =VLOOKUP(AY5,Week,6) -> 10 | AY7: =VLOOKUP(AX7,Holes,2) -> 4 | BA7: =IF((AZ7-AY7)>3,AY7+3,AZ7) -> 0 | BD7: =VLOOKUP(BE5,Week,6) -> 10 | BE7: =VLOOKUP(BD7,Holes,2) -> 4 | BG7: =IF((BF7-BE7)>3,BE7+3,BF7) -> 0 | BJ7: =VLOOKUP(BK5,Week,6) -> 10 | BK7: =VLOOKUP(BJ7,Holes,2) -> 4 | BM7: =IF((BL7-BK7)>3,BK7+3,BL7) -> 0 | BP7: =VLOOKUP(BQ5,Week,6) -> 1 | BQ7: =VLOOKUP(BP7,Holes,2) -> 4 | BS7: =IF((BR7-BQ7)>3,BQ7+3,BR7) -> 0 | BV7: =VLOOKUP(BW5,Week,6) -> 10 | BW7: =VLOOKUP(BV7,Holes,2) -> 4 | BY7: =IF((BX7-BW7)>3,BW7+3,BX7) -> 0 | CB7: =VLOOKUP(CC5,Week,6) -> 1 | CC7: =VLOOKUP(CB7,Holes,2) -> 4 | CE7: =IF((CD7-CC7)>3,CC7+3,CD7) -> 0 | CH7: =VLOOKUP(CI5,Week,6) -> 10 | CI7: =VLOOKUP(CH7,Holes,2) -> 4 | CK7: =IF((CJ7-CI7)>3,CI7+3,CJ7) -> 0
B8: =+B7+1 -> 2 | C8: 4 | E8: 0 | H8: =+H7+1 -> 11 | I8: 4 | K8: 0 | N8: =+N7+1 -> 2 | O8: 4 | Q8: 0 | T8: =+T7+1 -> 11 | U8: 4 | W8: 0 | Z8: =+Z7+1 -> 2 | AA8: 4 | AC8: 0 | AF8: =+AF7+1 -> 11 | AG8: 4 | AI8: 0 | AL8: =+AL7+1 -> 2 | AM8: 4 | AO8: 0 | AR8: =+AR7+1 -> 11 | AS8: 4 | AU8: 0 | AX8: =+AX7+1 -> 11 | AY8: 4 | BA8: 0 | BD8: =+BD7+1 -> 11 | BE8: 4 | BG8: 0 | BJ8: =+BJ7+1 -> 11 | BK8: 4 | BM8: 0 | BP8: =+BP7+1 -> 2 | BQ8: 4 | BS8: 0 | BV8: =+BV7+1 -> 11 | BW8: 4 | BY8: 0 | CB8: =+CB7+1 -> 2 | CC8: 4 | CE8: 0 | CH8: =+CH7+1 -> 11 | CI8: 4 | CK8: 0
B9: 3 | C9: 4 | E9: 0 | H9: 12 | I9: 3 | K9: 0 | N9: 3 | O9: 4 | Q9: 0 | T9: 12 | U9: 3 | W9: 0 | Z9: 3 | AA9: 4 | AC9: 0 | AF9: 12 | AG9: 3 | AI9: 0 | AL9: 3 | AM9: 4 | AO9: 0 | AR9: 12 | AS9: 3 | AU9: 0 | AX9: 12 | AY9: 3 | BA9: 0 | BD9: 12 | BE9: 3 | BG9: 0 | BJ9: 12 | BK9: 3 | BM9: 0 | BP9: 3 | BQ9: 4 | BS9: 0 | BV9: 12 | BW9: 3 | BY9: 0 | CB9: 3 | CC9: 4 | CE9: 0 | CH9: 12 | CI9: 3 | CK9: 0
B10: 4 | C10: 4 | E10: 0 | H10: 13 | I10: 4 | K10: 0 | N10: 4 | O10: 4 | Q10: 0 | T10: 13 | U10: 4 | W10: 0 | Z10: 4 | AA10: 4 | AC10: 0 | AF10: 13 | AG10: 4 | AI10: 0 | AL10: 4 | AM10: 4 | AO10: 0 | AR10: 13 | AS10: 4 | AU10: 0 | AX10: 13 | AY10: 4 | BA10: 0 | BD10: 13 | BE10: 4 | BG10: 0 | BJ10: 13 | BK10: 4 | BM10: 0 | BP10: 4 | BQ10: 4 | BS10: 0 | BV10: 13 | BW10: 4 | BY10: 0 | CB10: 4 | CC10: 4 | CE10: 0 | CH10: 13 | CI10: 4 | CK10: 0
B11: 5 | C11: 3 | E11: 0 | H11: 14 | I11: 4 | K11: 0 | N11: 5 | O11: 3 | Q11: 0 | T11: 14 | U11: 4 | W11: 0 | Z11: 5 | AA11: 3 | AC11: 0 | AF11: 14 | AG11: 4 | AI11: 0 | AL11: 5 | AM11: 3 | AO11: 0 | AR11: 14 | AS11: 4 | AU11: 0 | AX11: 14 | AY11: 4 | BA11: 0 | BD11: 14 | BE11: 4 | BG11: 0 | BJ11: 14 | BK11: 4 | BM11: 0 | BP11: 5 | BQ11: 3 | BS11: 0 | BV11: 14 | BW11: 4 | BY11: 0 | CB11: 5 | CC11: 3 | CE11: 0 | CH11: 14 | CI11: 4 | CK11: 0
B12: 6 | C12: 4 | E12: 0 | H12: 15 | I12: 3 | K12: 0 | N12: 6 | O12: 4 | Q12: 0 | T12: 15 | U12: 3 | W12: 0 | Z12: 6 | AA12: 4 | AC12: 0 | AF12: 15 | AG12: 3 | AI12: 0 | AL12: 6 | AM12: 4 | AO12: 0 | AR12: 15 | AS12: 3 | AU12: 0 | AX12: 15 | AY12: 3 | BA12: 0 | BD12: 15 | BE12: 3 | BG12: 0 | BJ12: 15 | BK12: 3 | BM12: 0 | BP12: 6 | BQ12: 4 | BS12: 0 | BV12: 15 | BW12: 3 | BY12: 0 | CB12: 6 | CC12: 4 | CE12: 0 | CH12: 15 | CI12: 3 | CK12: 0
B13: 7 | C13: 4 | E13: 0 | H13: 16 | I13: 5 | K13: 0 | N13: 7 | O13: 4 | Q13: 0 | T13: 16 | U13: 5 | W13: 0 | Z13: 7 | AA13: 4 | AC13: 0 | AF13: 16 | AG13: 5 | AI13: 0 | AL13: 7 | AM13: 4 | AO13: 0 | AR13: 16 | AS13: 5 | AU13: 0 | AX13: 16 | AY13: 5 | BA13: 0 | BD13: 16 | BE13: 5 | BG13: 0 | BJ13: 16 | BK13: 5 | BM13: 0 | BP13: 7 | BQ13: 4 | BS13: 0 | BV13: 16 | BW13: 5 | BY13: 0 | CB13: 7 | CC13: 4 | CE13: 0 | CH13: 16 | CI13: 5 | CK13: 0
B14: 8 | C14: 3 | E14: 0 | H14: 17 | I14: 4 | K14: 0 | N14: 8 | O14: 3 | Q14: 0 | T14: 17 | U14: 4 | W14: 0 | Z14: 8 | AA14: 3 | AC14: 0 | AF14: 17 | AG14: 4 | AI14: 0 | AL14: 8 | AM14: 3 | AO14: 0 | AR14: 17 | AS14: 4 | AU14: 0 | AX14: 17 | AY14: 4 | BA14: 0 | BD14: 17 | BE14: 4 | BG14: 0 | BJ14: 17 | BK14: 4 | BM14: 0 | BP14: 8 | BQ14: 3 | BS14: 0 | BV14: 17 | BW14: 4 | BY14: 0 | CB14: 8 | CC14: 3 | CE14: 0 | CH14: 17 | CI14: 4 | CK14: 0
B15: 9 | C15: 5 | E15: 0 | H15: 18 | I15: 5 | K15: 0 | N15: 9 | O15: 5 | Q15: 0 | T15: 18 | U15: 5 | W15: 0 | Z15: 9 | AA15: 5 | AC15: 0 | AF15: 18 | AG15: 5 | AI15: 0 | AL15: 9 | AM15: 5 | AO15: 0 | AR15: 18 | AS15: 5 | AU15: 0 | AX15: 18 | AY15: 5 | BA15: 0 | BD15: 18 | BE15: 5 | BG15: 0 | BJ15: 18 | BK15: 5 | BM15: 0 | BP15: 9 | BQ15: 5 | BS15: 0 | BV15: 18 | BW15: 5 | BY15: 0 | CB15: 9 | CC15: 5 | CE15: 0 | CH15: 18 | CI15: 5 | CK15: 0
B16: Total | C16: =SUM(C7:C15) -> 35 | D16: =SUM(D7:D15) -> 0 | E16: =SUM(E7:E15) -> 0 | F16: =SUM(F7:F15) -> 0 | H16: Total | I16: =SUM(I7:I15) -> 36 | J16: =SUM(J7:J15) -> 0 | K16: =SUM(K7:K15) -> 0 | L16: =SUM(L7:L15) -> 0 | N16: Total | O16: =SUM(O7:O15) -> 35 | P16: =SUM(P7:P15) -> 0 | Q16: =SUM(Q7:Q15) -> 0 | R16: =SUM(R7:R15) -> 0 | T16: Total | U16: =SUM(U7:U15) -> 36 | V16: =SUM(V7:V15) -> 0 | W16: =SUM(W7:W15) -> 0 | X16: =SUM(X7:X15) -> 0 | Z16: Total | AA16: =SUM(AA7:AA15) -> 35 | AB16: =SUM(AB7:AB15) -> 0 | AC16: =SUM(AC7:AC15) -> 0 | AD16: =SUM(AD7:AD15) -> 0 | AF16: Total | AG16: =SUM(AG7:AG15) -> 36 | AH16: =SUM(AH7:AH15) -> 0 | AI16: =SUM(AI7:AI15) -> 0 | AJ16: =SUM(AJ7:AJ15) -> 0 | AL16: Total | AM16: =SUM(AM7:AM15) -> 35 | AN16: =SUM(AN7:AN15) -> 0 | AO16: =SUM(AO7:AO15) -> 0 | AP16: =SUM(AP7:AP15) -> 0 | AR16: Total | AS16: =SUM(AS7:AS15) -> 36 | AT16: =SUM(AT7:AT15) -> 0 | AU16: =SUM(AU7:AU15) -> 0 | AV16: =SUM(AV7:AV15) -> 0 | AX16: Total | AY16: =SUM(AY7:AY15) -> 36 | AZ16: =SUM(AZ7:AZ15) -> 0 | BA16: =SUM(BA7:BA15) -> 0 | BB16: =SUM(BB7:BB15) -> 0 | BD16: Total | BE16: =SUM(BE7:BE15) -> 36 | BF16: =SUM(BF7:BF15) -> 0 | BG16: =SUM(BG7:BG15) -> 0 | BH16: =SUM(BH7:BH15) -> 0 | BJ16: Total | BK16: =SUM(BK7:BK15) -> 36 | BL16: =SUM(BL7:BL15) -> 0 | BM16: =SUM(BM7:BM15) -> 0 | BN16: =SUM(BN7:BN15) -> 0 | BP16: Total | BQ16: =SUM(BQ7:BQ15) -> 35 | BR16: =SUM(BR7:BR15) -> 0 | BS16: =SUM(BS7:BS15) -> 0 | BT16: =SUM(BT7:BT15) -> 0 | BV16: Total | BW16: =SUM(BW7:BW15) -> 36 | BX16: =SUM(BX7:BX15) -> 0 | BY16: =SUM(BY7:BY15) -> 0 | BZ16: =SUM(BZ7:BZ15) -> 0 | CB16: Total | CC16: =SUM(CC7:CC15) -> 35 | CD16: =SUM(CD7:CD15) -> 0 | CE16: =SUM(CE7:CE15) -> 0 | CF16: =SUM(CF7:CF15) -> 0 | CH16: Total | CI16: =SUM(CI7:CI15) -> 36 | CJ16: =SUM(CJ7:CJ15) -> 0 | CK16: =SUM(CK7:CK15) -> 0 | CL16: =SUM(CL7:CL15) -> 0
E18: Low Net | K18: Low Net | L18: 0 | Q18: Low Net | R18: 0 | W18: Low Net | AC18: Low Net | AI18: Low Net | AO18: Low Net | AU18: Low Net | BA18: Low Net | BG18: Low Net | BM18: Low Net | BS18: Low Net | BY18: Low Net | CE18: Low Net | CK18: Low Net
E20: Total Points | F20: =SUM(F16:F19) -> 0 | K20: Total Points | L20: =SUM(L16:L19) -> 0 | Q20: Total Points | R20: =SUM(R16:R19) -> 0 | W20: Total Points | X20: =SUM(X16:X19) -> 0 | AC20: Total Points | AD20: =SUM(AD16:AD19) -> 0 | AI20: Total Points | AJ20: =SUM(AJ16:AJ19) -> 0 | AO20: Total Points | AP20: =SUM(AP16:AP19) -> 0 | AU20: Total Points | AV20: =SUM(AV16:AV19) -> 0 | BA20: Total Points | BB20: =SUM(BB16:BB19) -> 0 | BG20: Total Points | BH20: =SUM(BH16:BH19) -> 0 | BM20: Total Points | BN20: =SUM(BN16:BN19) -> 0 | BS20: Total Points | BT20: =SUM(BT16:BT19) -> 0 | BY20: Total Points | BZ20: =SUM(BZ16:BZ19) -> 0 | CE20: Total Points | CF20: =SUM(CF16:CF19) -> 0 | CK20: Total Points | CL20: =SUM(CL16:CL19) -> 0
E22: Handicap | F22: =IF(D16=0,0,E16-C16) -> 0 | K22: Handicap | L22: =IF(J16=0,0,K16-I16) -> 0 | Q22: Handicap | R22: =IF(P16=0,0,Q16-O16) -> 0 | W22: Handicap | X22: =IF(V16=0,0,W16-U16) -> 0 | AC22: Handicap | AD22: =IF(AB16=0,0,AC16-AA16) -> 0 | AI22: Handicap | AJ22: =IF(AH16=0,0,AI16-AG16) -> 0 | AO22: Handicap | AP22: =IF(AN16=0,0,AO16-AM16) -> 0 | AU22: Handicap | AV22: =IF(AT16=0,0,AU16-AS16) -> 0 | BA22: Handicap | BB22: =IF(AZ16=0,0,BA16-AY16) -> 0 | BG22: Handicap | BH22: =IF(BF16=0,0,BG16-BE16) -> 0 | BM22: Handicap | BN22: =IF(BL16=0,0,BM16-BK16) -> 0 | BS22: Handicap | BT22: =IF(BR16=0,0,BS16-BQ16) -> 0 | BY22: Handicap | BZ22: =IF(BX16=0,0,BY16-BW16) -> 0 | CE22: Handicap | CF22: =IF(CD16=0,0,CE16-CC16) -> 0 | CK22: Handicap | CL22: =IF(CJ16=0,0,CK16-CI16) -> 0
F24: =IF(D16<>0,IF(F16>4.5,"W",IF(F16=4.5,"T",IF(F16<4.5,"L"))),0) -> 0 | L24: =IF(J16<>0,IF(L16>4.5,"W",IF(L16=4.5,"T",IF(L16<4.5,"L"))),0) -> 0 | R24: =IF(P16<>0,IF(R16>4.5,"W",IF(R16=4.5,"T",IF(R16<4.5,"L"))),0) -> 0 | X24: =IF(V16<>0,IF(X16>4.5,"W",IF(X16=4.5,"T",IF(X16<4.5,"L"))),0) -> 0 | AD24: =IF(AB16<>0,IF(AD16>4.5,"W",IF(AD16=4.5,"T",IF(AD16<4.5,"L"))),0) -> 0 | AJ24: =IF(AH16<>0,IF(AJ16>4.5,"W",IF(AJ16=4.5,"T",IF(AJ16<4.5,"L"))),0) -> 0 | AP24: =IF(AN16<>0,IF(AP16>4.5,"W",IF(AP16=4.5,"T",IF(AP16<4.5,"L"))),0) -> 0 | AV24: =IF(AT16<>0,IF(AV16>4.5,"W",IF(AV16=4.5,"T",IF(AV16<4.5,"L"))),0) -> 0 | BB24: =IF(AZ16<>0,IF(BB16>4.5,"W",IF(BB16=4.5,"T",IF(BB16<4.5,"L"))),0) -> 0 | BH24: =IF(BF16<>0,IF(BH16>4.5,"W",IF(BH16=4.5,"T",IF(BH16<4.5,"L"))),0) -> 0 | BN24: =IF(BL16<>0,IF(BN16>4.5,"W",IF(BN16=4.5,"T",IF(BN16<4.5,"L"))),0) -> 0 | BT24: =IF(BR16<>0,IF(BT16>4.5,"W",IF(BT16=4.5,"T",IF(BT16<4.5,"L"))),0) -> 0 | BZ24: =IF(BX16<>0,IF(BZ16>4.5,"W",IF(BZ16=4.5,"T",IF(BZ16<4.5,"L"))),0) -> 0 | CF24: =IF(CD16<>0,IF(CF16>4.5,"W",IF(CF16=4.5,"T",IF(CF16<4.5,"L"))),0) -> 0 | CL24: =IF(CJ16<>0,IF(CL16>4.5,"W",IF(CL16=4.5,"T",IF(CL16<4.5,"L"))),0) -> 0
B26: Summary
D27: Adj | F27: Adj | J27: Avg Score
C28: Points | D28: Points | E28: Matches | F28: Matches | I28: Hole # | J28: by Hole | K28: Best | L28: Worst
B29: Week #1 | C29: =F20 -> 0 | D29: =C29 -> 0 | E29: =IF(D16>0,1,0) -> 0 | F29: =E29 -> 0 | I29: 1 | J29: =IFERROR(AVERAGE(D7),0) -> 0 | K29: =IFERROR(MIN(J7,V7,AH7,AT7,BF7,BR7,BX7,CJ7),0) -> 0 | L29: =IFERROR(MAX(J7,V7,AH7,AT7,BF7,BR7,BX7,CJ7),0) -> 0
B30: Week #2 | C30: =L20 -> 0 | D30: 0 | E30: =IF(J16>0,1,0) -> 0 | F30: 0 | I30: 2 | J30: =IFERROR(AVERAGE(D8),0) -> 0 | K30: =IFERROR(MIN(J8,V8,AH8,AT8,BF8,BR8,BX8,CJ8),0) -> 0 | L30: =IFERROR(MAX(J8,V8,AH8,AT8,BF8,BR8,BX8,CJ8),0) -> 0
B31: Week #3 | C31: =R20 -> 0 | D31: 0 | E31: =IF(P16>0,1,0) -> 0 | F31: 0 | I31: 3 | J31: 0 | K31: 0 | L31: 0
B32: Week #4 | C32: =X20 -> 0 | D32: 0 | E32: =IF(V16>0,1,0) -> 0 | F32: 0 | I32: 4 | J32: 0 | K32: 0 | L32: 0
B33: Week #5 | C33: =AD20 -> 0 | D33: 0 | E33: =IF(AB16>0,1,0) -> 0 | F33: 0 | I33: 5 | J33: 0 | K33: 0 | L33: 0
B34: Week #6 | C34: =AJ20 -> 0 | D34: 0 | E34: =IF(AH16>0,1,0) -> 0 | F34: 0 | I34: 6 | J34: 0 | K34: 0 | L34: 0
B35: Week #7 | C35: =AP20 -> 0 | D35: 0 | E35: =IF(AN16>0,1,0) -> 0 | F35: 0 | I35: 7 | J35: 0 | K35: 0 | L35: 0
B36: Week #8 | C36: =AV20 -> 0 | D36: 0 | E36: =IF(AT16>0,1,0) -> 0 | F36: 0 | I36: 8 | J36: 0 | K36: 0 | L36: 0
B37: Week #9 | C37: =BB20 -> 0 | D37: 0 | E37: =IF(AZ16>0,1,0) -> 0 | F37: 0 | I37: 9 | J37: 0 | K37: 0 | L37: 0
B38: Week #10 | C38: =BH20 -> 0 | D38: 0 | E38: =IF(BF16>0,1,0) -> 0 | F38: 0 | I38: Front | J38: =SUM(J29:J37) -> 0 | K38: =SUM(K29:K37) -> 0 | L38: 0
B39: Week #11 | C39: =BN20 -> 0 | D39: 0 | E39: =IF(BL16>0,1,0) -> 0 | F39: 0
B40: Week #12 | C40: =BT20 -> 0 | D40: 0 | E40: =IF(BR16>0,1,0) -> 0 | F40: 0 | I40: 10 | J40: =IFERROR(AVERAGE(J7),0) -> 0 | K40: =IFERROR(MIN(D7,P7,AB7,AN7,AZ7,BL7,CD7),0) -> 0 | L40: =IFERROR(MAX(D7,P7,AB7,AN7,AZ7,BL7,CD7),0) -> 0
B41: Week #13 | C41: =BZ20 -> 0 | D41: 0 | E41: =IF(BX16>0,1,0) -> 0 | F41: 0 | I41: 11 | J41: =IFERROR(AVERAGE(J8),0) -> 0 | K41: =IFERROR(MIN(D8,P8,AB8,AN8,AZ8,BL8,CD8),0) -> 0 | L41: =IFERROR(MAX(D8,P8,AB8,AN8,AZ8,BL8,CD8),0) -> 0
B42: Week #14 | C42: =CF20 -> 0 | D42: 0 | E42: =IF(CD16>0,1,0) -> 0 | F42: 0 | I42: 12 | J42: 0 | K42: 0 | L42: 0
B43: Week #15 | C43: =CL20 -> 0 | D43: 0 | E43: =IF(CJ16>0,1,0) -> 0 | F43: 0 | I43: 13 | J43: 0 | K43: 0 | L43: 0
B44: Total | C44: =SUM(C29:C43) -> 0 | D44: =SUM(D29:D43) -> 0 | E44: =SUM(E29:E43) -> 0 | F44: =SUM(F29:F43) -> 0 | I44: 14 | J44: 0 | K44: 0 | L44: 0
I45: 15 | J45: 0 | K45: 0 | L45: 0
B46: Summary | I46: 16 | J46: 0 | K46: 0 | L46: 0
B47: Eagles | C47: =I57+I68+I79+I90+I101+I112+I123+I134+I145+I156+I167+I178+I189+I200+I211 -> 0 | I47: 17 | J47: 0 | K47: 0 | L47: 0
B48: Birdies | C48: 0 | I48: 18 | J48: 0 | K48: 0 | L48: 0
B49: Pars | C49: =I59+I70+I81+I92+I103+I114+I125+I136+I147+I158+I169+I180+I191+I202+I213 -> 0 | I49: Back | J49: =SUM(J40:J48) -> 0 | K49: =SUM(K40:K48) -> 0 | L49: 0
B50: bogeys | C50: 0
B51: Double bogeys | C51: 0
B52: Other | C52: 0
B53: Total | C53: =SUM(C47:C52) -> 0
B55: =D4 -> 2025-04-25 | C55: Par | D55: Score
B56: =B7 -> 1 | C56: 4 | D56: 0 | E56: =IF(D56<>0,IF((D56-C56)=-1,"Birdie",IF((D56-C56)=-2,"Eagle",IF((D56-C56)=0,"Par",IF((D56-C56)=1,"bogey",IF((D56-C56)=2,"Double bogey","Other")))))," ") ->  | H56: Count
B57: 2 | C57: 4 | D57: 0 | H57: Eagle | I57: =COUNTIF(E56:E64,"Eagle") -> 0
B58: 3 | C58: 4 | D58: 0 | H58: Birdie | I58: =COUNTIF(E56:E64,"Birdie") -> 0
B59: 4 | C59: 4 | D59: 0 | H59: Par | I59: =COUNTIF(E56:E64,"Par") -> 0
B60: 5 | C60: 3 | D60: 0 | H60: bogey | I60: =COUNTIF(E56:E64,"bogey") -> 0
B61: 6 | C61: 4 | D61: 0 | H61: Double bogey | I61: =COUNTIF(E56:E64,"Double bogey") -> 0
B62: 7 | C62: 4 | D62: 0 | H62: Other | I62: =COUNTIF(E56:E64,"Other") -> 0
B63: 8 | C63: 3 | D63: 0
B64: 9 | C64: 5 | D64: 0
B66: =J4 -> 2025-05-02
B67: =H7 -> 10 | C67: 4 | D67: 0 | E67: =IF(D67<>0,IF((D67-C67)=-1,"Birdie",IF((D67-C67)=-2,"Eagle",IF((D67-C67)=0,"Par",IF((D67-C67)=1,"bogey",IF((D67-C67)=2,"Double bogey","Other")))))," ") ->  | H67: Count
B68: 11 | C68: 4 | D68: 0 | H68: Eagle | I68: =COUNTIF(E67:E75,"Eagle") -> 0
B69: 12 | C69: 3 | D69: 0 | H69: Birdie | I69: =COUNTIF(E67:E75,"Birdie") -> 0
B70: 13 | C70: 4 | D70: 0 | H70: Par | I70: =COUNTIF(E67:E75,"Par") -> 0
B71: 14 | C71: 4 | D71: 0 | H71: bogey | I71: =COUNTIF(E67:E75,"bogey") -> 0
B72: 15 | C72: 3 | D72: 0 | H72: Double bogey | I72: =COUNTIF(E67:E75,"Double bogey") -> 0
B73: 16 | C73: 5 | D73: 0 | H73: Other | I73: =COUNTIF(E67:E75,"Other") -> 0
B74: 17 | C74: 4 | D74: 0
B75: 18 | C75: 5 | D75: 0
B77: =P4 -> 2025-05-09
B78: =N7 -> 1 | C78: 4 | D78: 0 | E78: =IF(D78<>0,IF((D78-C78)=-1,"Birdie",IF((D78-C78)=-2,"Eagle",IF((D78-C78)=0,"Par",IF((D78-C78)=1,"bogey",IF((D78-C78)=2,"Double bogey","Other")))))," ") ->  | H78: Count
B79: 2 | C79: 4 | D79: 0 | H79: Eagle | I79: =COUNTIF(E78:E86,"Eagle") -> 0
B80: 3 | C80: 4 | D80: 0 | H80: Birdie | I80: =COUNTIF(E78:E86,"Birdie") -> 0
B81: 4 | C81: 4 | D81: 0 | H81: Par | I81: =COUNTIF(E78:E86,"Par") -> 0
B82: 5 | C82: 3 | D82: 0 | H82: bogey | I82: =COUNTIF(E78:E86,"bogey") -> 0
B83: 6 | C83: 4 | D83: 0 | H83: Double bogey | I83: =COUNTIF(E78:E86,"Double bogey") -> 0
B84: 7 | C84: 4 | D84: 0 | H84: Other | I84: =COUNTIF(E78:E86,"Other") -> 0
B85: 8 | C85: 3 | D85: 0
B86: 9 | C86: 5 | D86: 0
B88: =V4 -> 2025-05-16
B89: =T7 -> 10 | C89: 4 | D89: 0 | E89: =IF(D89<>0,IF((D89-C89)=-1,"Birdie",IF((D89-C89)=-2,"Eagle",IF((D89-C89)=0,"Par",IF((D89-C89)=1,"bogey",IF((D89-C89)=2,"Double bogey","Other")))))," ") ->  | H89: Count
B90: 11 | C90: 4 | D90: 0 | H90: Eagle | I90: =COUNTIF(E89:E97,"Eagle") -> 0
B91: 12 | C91: 3 | D91: 0 | H91: Birdie | I91: =COUNTIF(E89:E97,"Birdie") -> 0
B92: 13 | C92: 4 | D92: 0 | H92: Par | I92: =COUNTIF(E89:E97,"Par") -> 0
B93: 14 | C93: 4 | D93: 0 | H93: bogey | I93: =COUNTIF(E89:E97,"bogey") -> 0
B94: 15 | C94: 3 | D94: 0 | H94: Double bogey | I94: =COUNTIF(E89:E97,"Double bogey") -> 0
B95: 16 | C95: 5 | D95: 0 | H95: Other | I95: =COUNTIF(E89:E97,"Other") -> 0
B96: 17 | C96: 4 | D96: 0
B97: 18 | C97: 5 | D97: 0
B99: =AB4 -> 2025-05-23
B100: =Z7 -> 1 | C100: 4 | D100: 0 | E100: =IF(D100<>0,IF((D100-C100)=-1,"Birdie",IF((D100-C100)=-2,"Eagle",IF((D100-C100)=0,"Par",IF((D100-C100)=1,"bogey",IF((D100-C100)=2,"Double bogey","Other")))))," ") ->  | H100: Count
B101: 2 | C101: 4 | D101: 0 | H101: Eagle | I101: =COUNTIF(E100:E108,"Eagle") -> 0
B102: 3 | C102: 4 | D102: 0 | H102: Birdie | I102: =COUNTIF(E100:E108,"Birdie") -> 0
B103: 4 | C103: 4 | D103: 0 | H103: Par | I103: =COUNTIF(E100:E108,"Par") -> 0
B104: 5 | C104: 3 | D104: 0 | H104: bogey | I104: =COUNTIF(E100:E108,"bogey") -> 0
B105: 6 | C105: 4 | D105: 0 | H105: Double bogey | I105: =COUNTIF(E100:E108,"Double bogey") -> 0
B106: 7 | C106: 4 | D106: 0 | H106: Other | I106: =COUNTIF(E100:E108,"Other") -> 0
B107: 8 | C107: 3 | D107: 0
B108: 9 | C108: 5 | D108: 0
B110: =AH4 -> 2025-05-30
B111: =AF7 -> 10 | C111: 4 | D111: 0 | E111: =IF(D111<>0,IF((D111-C111)=-1,"Birdie",IF((D111-C111)=-2,"Eagle",IF((D111-C111)=0,"Par",IF((D111-C111)=1,"bogey",IF((D111-C111)=2,"Double bogey","Other")))))," ") ->  | H111: Count
B112: 11 | C112: 4 | D112: 0 | H112: Eagle | I112: =COUNTIF(E111:E119,"Eagle") -> 0
B113: 12 | C113: 3 | D113: 0 | H113: Birdie | I113: =COUNTIF(E111:E119,"Birdie") -> 0
B114: 13 | C114: 4 | D114: 0 | H114: Par | I114: =COUNTIF(E111:E119,"Par") -> 0
B115: 14 | C115: 4 | D115: 0 | H115: bogey | I115: =COUNTIF(E111:E119,"bogey") -> 0
B116: 15 | C116: 3 | D116: 0 | H116: Double bogey | I116: =COUNTIF(E111:E119,"Double bogey") -> 0
B117: 16 | C117: 5 | D117: 0 | H117: Other | I117: =COUNTIF(E111:E119,"Other") -> 0
B118: 17 | C118: 4 | D118: 0
B119: 18 | C119: 5 | D119: 0
B121: =AN4 -> 2025-06-06
B122: =AL7 -> 1 | C122: 4 | D122: 0 | E122: =IF(D122<>0,IF((D122-C122)=-1,"Birdie",IF((D122-C122)=-2,"Eagle",IF((D122-C122)=0,"Par",IF((D122-C122)=1,"bogey",IF((D122-C122)=2,"Double bogey","Other")))))," ") ->  | H122: Count
B123: 2 | C123: 4 | D123: 0 | H123: Eagle | I123: =COUNTIF(E122:E130,"Eagle") -> 0
B124: 3 | C124: 4 | D124: 0 | H124: Birdie | I124: =COUNTIF(E122:E130,"Birdie") -> 0
B125: 4 | C125: 4 | D125: 0 | H125: Par | I125: =COUNTIF(E122:E130,"Par") -> 0
B126: 5 | C126: 3 | D126: 0 | H126: bogey | I126: =COUNTIF(E122:E130,"bogey") -> 0
B127: 6 | C127: 4 | D127: 0 | H127: Double bogey | I127: =COUNTIF(E122:E130,"Double bogey") -> 0
B128: 7 | C128: 4 | D128: 0 | H128: Other | I128: =COUNTIF(E122:E130,"Other") -> 0
B129: 8 | C129: 3 | D129: 0
B130: 9 | C130: 5 | D130: 0
B132: =AT4 -> 2025-06-13
B133: =AR7 -> 10 | C133: 4 | D133: 0 | E133: =IF(D133<>0,IF((D133-C133)=-1,"Birdie",IF((D133-C133)=-2,"Eagle",IF((D133-C133)=0,"Par",IF((D133-C133)=1,"bogey",IF((D133-C133)=2,"Double bogey","Other")))))," ") ->  | H133: Count
B134: 11 | C134: 4 | D134: 0 | H134: Eagle | I134: =COUNTIF(E133:E141,"Eagle") -> 0
B135: 12 | C135: 3 | D135: 0 | H135: Birdie | I135: =COUNTIF(E133:E141,"Birdie") -> 0
B136: 13 | C136: 4 | D136: 0 | H136: Par | I136: =COUNTIF(E133:E141,"Par") -> 0
B137: 14 | C137: 4 | D137: 0 | H137: bogey | I137: =COUNTIF(E133:E141,"bogey") -> 0
B138: 15 | C138: 3 | D138: 0 | H138: Double bogey | I138: =COUNTIF(E133:E141,"Double bogey") -> 0
B139: 16 | C139: 5 | D139: 0 | H139: Other | I139: =COUNTIF(E133:E141,"Other") -> 0
B140: 17 | C140: 4 | D140: 0
B141: 18 | C141: 5 | D141: 0
B143: =AZ4 -> 2025-06-27
B144: =AX7 -> 10 | C144: 4 | D144: 0 | E144: =IF(D144<>0,IF((D144-C144)=-1,"Birdie",IF((D144-C144)=-2,"Eagle",IF((D144-C144)=0,"Par",IF((D144-C144)=1,"bogey",IF((D144-C144)=2,"Double bogey","Other")))))," ") ->  | H144: Count
B145: 11 | C145: 4 | D145: 0 | H145: Eagle | I145: =COUNTIF(E144:E152,"Eagle") -> 0
B146: 12 | C146: 3 | D146: 0 | H146: Birdie | I146: =COUNTIF(E144:E152,"Birdie") -> 0
B147: 13 | C147: 4 | D147: 0 | H147: Par | I147: =COUNTIF(E144:E152,"Par") -> 0
B148: 14 | C148: 4 | D148: 0 | H148: bogey | I148: =COUNTIF(E144:E152,"bogey") -> 0
B149: 15 | C149: 3 | D149: 0 | H149: Double bogey | I149: =COUNTIF(E144:E152,"Double bogey") -> 0
B150: 16 | C150: 5 | D150: 0 | H150: Other | I150: =COUNTIF(E144:E152,"Other") -> 0
B151: 17 | C151: 4 | D151: 0
B152: 18 | C152: 5 | D152: 0
B154: =BF4 -> 2025-07-04
B155: =BD7 -> 10 | C155: 4 | D155: 0 | E155: =IF(D155<>0,IF((D155-C155)=-1,"Birdie",IF((D155-C155)=-2,"Eagle",IF((D155-C155)=0,"Par",IF((D155-C155)=1,"bogey",IF((D155-C155)=2,"Double bogey","Other")))))," ") ->  | H155: Count
B156: 11 | C156: 4 | D156: 0 | H156: Eagle | I156: =COUNTIF(E155:E163,"Eagle") -> 0
B157: 12 | C157: 3 | D157: 0 | H157: Birdie | I157: =COUNTIF(E155:E163,"Birdie") -> 0
B158: 13 | C158: 4 | D158: 0 | H158: Par | I158: =COUNTIF(E155:E163,"Par") -> 0
B159: 14 | C159: 4 | D159: 0 | H159: bogey | I159: =COUNTIF(E155:E163,"bogey") -> 0
B160: 15 | C160: 3 | D160: 0 | H160: Double bogey | I160: =COUNTIF(E155:E163,"Double bogey") -> 0
B161: 16 | C161: 5 | D161: 0 | H161: Other | I161: =COUNTIF(E155:E163,"Other") -> 0
B162: 17 | C162: 4 | D162: 0
B163: 18 | C163: 5 | D163: 0
B165: =BL4 -> 2025-07-18
B166: =BJ7 -> 10 | C166: 4 | D166: 0 | E166: =IF(D166<>0,IF((D166-C166)=-1,"Birdie",IF((D166-C166)=-2,"Eagle",IF((D166-C166)=0,"Par",IF((D166-C166)=1,"bogey",IF((D166-C166)=2,"Double bogey","Other")))))," ") ->  | H166: Count
B167: 11 | C167: 4 | D167: 0 | H167: Eagle | I167: =COUNTIF(E166:E174,"Eagle") -> 0
B168: 12 | C168: 3 | D168: 0 | H168: Birdie | I168: =COUNTIF(E166:E174,"Birdie") -> 0
B169: 13 | C169: 4 | D169: 0 | H169: Par | I169: =COUNTIF(E166:E174,"Par") -> 0
B170: 14 | C170: 4 | D170: 0 | H170: bogey | I170: =COUNTIF(E166:E174,"bogey") -> 0
B171: 15 | C171: 3 | D171: 0 | H171: Double bogey | I171: =COUNTIF(E166:E174,"Double bogey") -> 0
B172: 16 | C172: 5 | D172: 0 | H172: Other | I172: =COUNTIF(E166:E174,"Other") -> 0
B173: 17 | C173: 4 | D173: 0
B174: 18 | C174: 5 | D174: 0
B176: =BR4 -> 2025-07-25
B177: =BP7 -> 1 | C177: 4 | D177: 0 | E177: =IF(D177<>0,IF((D177-C177)=-1,"Birdie",IF((D177-C177)=-2,"Eagle",IF((D177-C177)=0,"Par",IF((D177-C177)=1,"bogey",IF((D177-C177)=2,"Double bogey","Other")))))," ") ->  | H177: Count
B178: 2 | C178: 4 | D178: 0 | H178: Eagle | I178: =COUNTIF(E177:E185,"Eagle") -> 0
B179: 3 | C179: 4 | D179: 0 | H179: Birdie | I179: =COUNTIF(E177:E185,"Birdie") -> 0
B180: 4 | C180: 4 | D180: 0 | H180: Par | I180: =COUNTIF(E177:E185,"Par") -> 0
B181: 5 | C181: 3 | D181: 0 | H181: bogey | I181: =COUNTIF(E177:E185,"bogey") -> 0
B182: 6 | C182: 4 | D182: 0 | H182: Double bogey | I182: =COUNTIF(E177:E185,"Double bogey") -> 0
B183: 7 | C183: 4 | D183: 0 | H183: Other | I183: =COUNTIF(E177:E185,"Other") -> 0
B184: 8 | C184: 3 | D184: 0
B185: 9 | C185: 5 | D185: 0
B187: =BX4 -> 2025-08-01
B188: =BV7 -> 10 | C188: 4 | D188: 0 | E188: =IF(D188<>0,IF((D188-C188)=-1,"Birdie",IF((D188-C188)=-2,"Eagle",IF((D188-C188)=0,"Par",IF((D188-C188)=1,"bogey",IF((D188-C188)=2,"Double bogey","Other")))))," ") ->  | H188: Count
B189: 11 | C189: 4 | D189: 0 | H189: Eagle | I189: =COUNTIF(E188:E196,"Eagle") -> 0
B190: 12 | C190: 3 | D190: 0 | H190: Birdie | I190: =COUNTIF(E188:E196,"Birdie") -> 0
B191: 13 | C191: 4 | D191: 0 | H191: Par | I191: =COUNTIF(E188:E196,"Par") -> 0
B192: 14 | C192: 4 | D192: 0 | H192: bogey | I192: =COUNTIF(E188:E196,"bogey") -> 0
B193: 15 | C193: 3 | D193: 0 | H193: Double bogey | I193: =COUNTIF(E188:E196,"Double bogey") -> 0
B194: 16 | C194: 5 | D194: 0 | H194: Other | I194: =COUNTIF(E188:E196,"Other") -> 0
B195: 17 | C195: 4 | D195: 0
B196: 18 | C196: 5 | D196: 0
B198: =CD4 -> 2025-08-08
B199: =CB7 -> 1 | C199: 4 | D199: 0 | E199: =IF(D199<>0,IF((D199-C199)=-1,"Birdie",IF((D199-C199)=-2,"Eagle",IF((D199-C199)=0,"Par",IF((D199-C199)=1,"bogey",IF((D199-C199)=2,"Double bogey","Other")))))," ") ->  | H199: Count
B200: 2 | C200: 4 | D200: 0 | H200: Eagle | I200: =COUNTIF(E199:E207,"Eagle") -> 0
B201: 3 | C201: 4 | D201: 0 | H201: Birdie | I201: =COUNTIF(E199:E207,"Birdie") -> 0
B202: 4 | C202: 4 | D202: 0 | H202: Par | I202: =COUNTIF(E199:E207,"Par") -> 0
B203: 5 | C203: 3 | D203: 0 | H203: bogey | I203: =COUNTIF(E199:E207,"bogey") -> 0
B204: 6 | C204: 4 | D204: 0 | H204: Double bogey | I204: =COUNTIF(E199:E207,"Double bogey") -> 0
B205: 7 | C205: 4 | D205: 0 | H205: Other | I205: =COUNTIF(E199:E207,"Other") -> 0
B206: 8 | C206: 3 | D206: 0
B207: 9 | C207: 5 | D207: 0
B209: =CJ4 -> 2025-08-15
B210: =CH7 -> 10 | C210: 4 | D210: 0 | E210: =IF(D210<>0,IF((D210-C210)=-1,"Birdie",IF((D210-C210)=-2,"Eagle",IF((D210-C210)=0,"Par",IF((D210-C210)=1,"bogey",IF((D210-C210)=2,"Double bogey","Other")))))," ") ->  | H210: Count
B211: 11 | C211: 4 | D211: 0 | H211: Eagle | I211: =COUNTIF(E210:E218,"Eagle") -> 0
B212: 12 | C212: 3 | D212: 0 | H212: Birdie | I212: =COUNTIF(E210:E218,"Birdie") -> 0
B213: 13 | C213: 4 | D213: 0 | H213: Par | I213: =COUNTIF(E210:E218,"Par") -> 0
B214: 14 | C214: 4 | D214: 0 | H214: bogey | I214: =COUNTIF(E210:E218,"bogey") -> 0
B215: 15 | C215: 3 | D215: 0 | H215: Double bogey | I215: =COUNTIF(E210:E218,"Double bogey") -> 0
B216: 16 | C216: 5 | D216: 0 | H216: Other | I216: =COUNTIF(E210:E218,"Other") -> 0
B217: 17 | C217: 4 | D217: 0
B218: 18 | C218: 5 | D218: 0

Sheet Fusco_S
A1: Steve Fusco
C4: Date: | D4: =VLOOKUP(C5,Week,2) -> 2025-04-25 | I4: Date: | J4: =VLOOKUP(I5,Week,2) -> 2025-05-02 | O4: Date: | P4: =VLOOKUP(O5,Week,2) -> 2025-05-09 | U4: Date: | V4: =VLOOKUP(U5,Week,2) -> 2025-05-16 | AA4: Date: | AB4: =VLOOKUP(AA5,Week,2) -> 2025-05-23 | AG4: Date: | AH4: =VLOOKUP(AG5,Week,2) -> 2025-05-30 | AM4: Date: | AN4: =VLOOKUP(AM5,Week,2) -> 2025-06-06 | AS4: Date: | AT4: =VLOOKUP(AS5,Week,2) -> 2025-06-13 | AY4: Date: | AZ4: =VLOOKUP(AY5,Week,2) -> 2025-06-27 | BE4: Date: | BF4: =VLOOKUP(BE5,Week,2) -> 2025-07-04 | BK4: Date: | BL4: =VLOOKUP(BK5,Week,2) -> 2025-07-18 | BQ4: Date: | BR4: =VLOOKUP(BQ5,Week,2) -> 2025-07-25 | BW4: Date: | BX4: =VLOOKUP(BW5,Week,2) -> 2025-08-01 | CC4: Date: | CD4: =VLOOKUP(CC5,Week,2) -> 2025-08-08 | CI4: Date: | CJ4: =VLOOKUP(CI5,Week,2) -> 2025-08-15
B5: Week | C5: 1 | H5: Week | I5: 2 | N5: Week | O5: 3 | T5: Week | U5: 4 | Z5: Week | AA5: 5 | AF5: Week | AG5: 6 | AL5: Week | AM5: 7 | AR5: Week | AS5: 8 | AX5: Week | AY5: 9 | BD5: Week | BE5: 10 | BJ5: Week | BK5: 11 | BP5: Week | BQ5: 12 | BV5: Week | BW5: 13 | CB5: Week | CC5: 14 | CH5: Week | CI5: 15
B6: Hole # | C6: Par | D6: Score | E6: Net | F6: Win Hole | H6: Hole # | I6: Par | J6: Score | K6: Net | L6: Win Hole | N6: Hole # | O6: Par | P6: Score | Q6: Net | R6: Win Hole | T6: Hole # | U6: Par | V6: Score | W6: Net | X6: Win Hole | Z6: Hole # | AA6: Par | AB6: Score | AC6: Net | AD6: Win Hole | AF6: Hole # | AG6: Par | AH6: Score | AI6: Net | AJ6: Win Hole | AL6: Hole # | AM6: Par | AN6: Score | AO6: Net | AP6: Win Hole | AR6: Hole # | AS6: Par | AT6: Score | AU6: Net | AV6: Win Hole | AX6: Hole # | AY6: Par | AZ6: Score | BA6: Net | BB6: Win Hole | BD6: Hole # | BE6: Par | BF6: Score | BG6: Net | BH6: Win Hole | BJ6: Hole # | BK6: Par | BL6: Score | BM6: Net | BN6: Win Hole | BP6: Hole # | BQ6: Par | BR6: Score | BS6: Net | BT6: Win Hole | BV6: Hole # | BW6: Par | BX6: Score | BY6: Net | BZ6: Win Hole | CB6: Hole # | CC6: Par | CD6: Score | CE6: Net | CF6: Win Hole | CH6: Hole # | CI6: Par | CJ6: Score | CK6: Net | CL6: Win Hole
B7: =VLOOKUP(C5,Week,6) -> 1 | C7: =VLOOKUP(B7,Holes,2) -> 4 | E7: =IF((D7-C7)>3,C7+3,D7) -> 0 | H7: =VLOOKUP(I5,Week,6) -> 10 | I7: =VLOOKUP(H7,Holes,2) -> 4 | K7: =IF((J7-I7)>3,I7+3,J7) -> 0 | N7: =VLOOKUP(O5,Week,6) -> 1 | O7: =VLOOKUP(N7,Holes,2) -> 4 | Q7: =IF((P7-O7)>3,O7+3,P7) -> 0 | T7: =VLOOKUP(U5,Week,6) -> 10 | U7: =VLOOKUP(T7,Holes,2) -> 4 | W7: =IF((V7-U7)>3,U7+3,V7) -> 0 | Z7: =VLOOKUP(AA5,Week,6) -> 1 | AA7: =VLOOKUP(Z7,Holes,2) -> 4 | AC7: =IF((AB7-AA7)>3,AA7+3,AB7) -> 0 | AF7: =VLOOKUP(AG5,Week,6) -> 10 | AG7: =VLOOKUP(AF7,Holes,2) -> 4 | AI7: =IF((AH7-AG7)>3,AG7+3,AH7) -> 0 | AL7: =VLOOKUP(AM5,Week,6) -> 1 | AM7: =VLOOKUP(AL7,Holes,2) -> 4 | AO7: =IF((AN7-AM7)>3,AM7+3,AN7) -> 0 | AR7: =VLOOKUP(AS5,Week,6) -> 10 | AS7: =VLOOKUP(AR7,Holes,2) -> 4 | AU7: =IF((AT7-AS7)>3,AS7+3,AT7) -> 0 | AX7: =VLOOKUP(AY5,Week,6) -> 10 | AY7: =VLOOKUP(AX7,Holes,2) -> 4 | BA7: =IF((AZ7-AY7)>3,AY7+3,AZ7) -> 0 | BD7: =VLOOKUP(BE5,Week,6) -> 10 | BE7: =VLOOKUP(BD7,Holes,2) -> 4 | BG7: =IF((BF7-BE7)>3,BE7+3,BF7) -> 0 | BJ7: =VLOOKUP(BK5,Week,6) -> 10 | BK7: =VLOOKUP(BJ7,Holes,2) -> 4 | BM7: =IF((BL7-BK7)>3,BK7+3,BL7) -> 0 | BP7: =VLOOKUP(BQ5,Week,6) -> 1 | BQ7: =VLOOKUP(BP7,Holes,2) -> 4 | BS7: =IF((BR7-BQ7)>3,BQ7+3,BR7) -> 0 | BV7: =VLOOKUP(BW5,Week,6) -> 10 | BW7: =VLOOKUP(BV7,Holes,2) -> 4 | BY7: =IF((BX7-BW7)>3,BW7+3,BX7) -> 0 | CB7: =VLOOKUP(CC5,Week,6) -> 1 | CC7: =VLOOKUP(CB7,Holes,2) -> 4 | CE7: =IF((CD7-CC7)>3,CC7+3,CD7) -> 0 | CH7: =VLOOKUP(CI5,Week,6) -> 10 | CI7: =VLOOKUP(CH7,Holes,2) -> 4 | CK7: =IF((CJ7-CI7)>3,CI7+3,CJ7) -> 0
B8: =+B7+1 -> 2 | C8: 4 | E8: 0 | H8: =+H7+1 -> 11 | I8: 4 | K8: 0 | N8: =+N7+1 -> 2 | O8: 4 | Q8: 0 | T8: =+T7+1 -> 11 | U8: 4 | W8: 0 | Z8: =+Z7+1 -> 2 | AA8: 4 | AC8: 0 | AF8: =+AF7+1 -> 11 | AG8: 4 | AI8: 0 | AL8: =+AL7+1 -> 2 | AM8: 4 | AO8: 0 | AR8: =+AR7+1 -> 11 | AS8: 4 | AU8: 0 | AX8: =+AX7+1 -> 11 | AY8: 4 | BA8: 0 | BD8: =+BD7+1 -> 11 | BE8: 4 | BG8: 0 | BJ8: =+BJ7+1 -> 11 | BK8: 4 | BM8: 0 | BP8: =+BP7+1 -> 2 | BQ8: 4 | BS8: 0 | BV8: =+BV7+1 -> 11 | BW8: 4 | BY8: 0 | CB8: =+CB7+1 -> 2 | CC8: 4 | CE8: 0 | CH8: =+CH7+1 -> 11 | CI8: 4 | CK8: 0
B9: 3 | C9: 4 | E9: 0 | H9: 12 | I9: 3 | K9: 0 | N9: 3 | O9: 4 | Q9: 0 | T9: 12 | U9: 3 | W9: 0 | Z9: 3 | AA9: 4 | AC9: 0 | AF9: 12 | AG9: 3 | AI9: 0 | AL9: 3 | AM9: 4 | AO9: 0 | AR9: 12 | AS9: 3 | AU9: 0 | AX9: 12 | AY9: 3 | BA9: 0 | BD9: 12 | BE9: 3 | BG9: 0 | BJ9: 12 | BK9: 3 | BM9: 0 | BP9: 3 | BQ9: 4 | BS9: 0 | BV9: 12 | BW9: 3 | BY9: 0 | CB9: 3 | CC9: 4 | CE9: 0 | CH9: 12 | CI9: 3 | CK9: 0
B10: 4 | C10: 4 | E10: 0 | H10: 13 | I10: 4 | K10: 0 | N10: 4 | O10: 4 | Q10: 0 | T10: 13 | U10: 4 | W10: 0 | Z10: 4 | AA10: 4 | AC10: 0 | AF10: 13 | AG10: 4 | AI10: 0 | AL10: 4 | AM10: 4 | AO10: 0 | AR10: 13 | AS10: 4 | AU10: 0 | AX10: 13 | AY10: 4 | BA10: 0 | BD10: 13 | BE10: 4 | BG10: 0 | BJ10: 13 | BK10: 4 | BM10: 0 | BP10: 4 | BQ10: 4 | BS10: 0 | BV10: 13 | BW10: 4 | BY10: 0 | CB10: 4 | CC10: 4 | CE10: 0 | CH10: 13 | CI10: 4 | CK10: 0
B11: 5 | C11: 3 | E11: 0 | H11: 14 | I11: 4 | K11: 0 | N11: 5 | O11: 3 | Q11: 0 | T11: 14 | U11: 4 | W11: 0 | Z11: 5 | AA11: 3 | AC11: 0 | AF11: 14 | AG11: 4 | AI11: 0 | AL11: 5 | AM11: 3 | AO11: 0 | AR11: 14 | AS11: 4 | AU11: 0 | AX11: 14 | AY11: 4 | BA11: 0 | BD11: 14 | BE11: 4 | BG11: 0 | BJ11: 14 | BK11: 4 | BM11: 0 | BP11: 5 | BQ11: 3 | BS11: 0 | BV11: 14 | BW11: 4 | BY11: 0 | CB11: 5 | CC11: 3 | CE11: 0 | CH11: 14 | CI11: 4 | CK11: 0
B12: 6 | C12: 4 | E12: 0 | H12: 15 | I12: 3 | K12: 0 | N12: 6 | O12: 4 | Q12: 0 | T12: 15 | U12: 3 | W12: 0 | Z12: 6 | AA12: 4 | AC12: 0 | AF12: 15 | AG12: 3 | AI12: 0 | AL12: 6 | AM12: 4 | AO12: 0 | AR12: 15 | AS12: 3 | AU12: 0 | AX12: 15 | AY12: 3 | BA12: 0 | BD12: 15 | BE12: 3 | BG12: 0 | BJ12: 15 | BK12: 3 | BM12: 0 | BP12: 6 | BQ12: 4 | BS12: 0 | BV12: 15 | BW12: 3 | BY12: 0 | CB12: 6 | CC12: 4 | CE12: 0 | CH12: 15 | CI12: 3 | CK12: 0
B13: 7 | C13: 4 | E13: 0 | H13: 16 | I13: 5 | K13: 0 | N13: 7 | O13: 4 | Q13: 0 | T13: 16 | U13: 5 | W13: 0 | Z13: 7 | AA13: 4 | AC13: 0 | AF13: 16 | AG13: 5 | AI13: 0 | AL13: 7 | AM13: 4 | AO13: 0 | AR13: 16 | AS13: 5 | AU13: 0 | AX13: 16 | AY13: 5 | BA13: 0 | BD13: 16 | BE13: 5 | BG13: 0 | BJ13: 16 | BK13: 5 | BM13: 0 | BP13: 7 | BQ13: 4 | BS13: 0 | BV13: 16 | BW13: 5 | BY13: 0 | CB13: 7 | CC13: 4 | CE13: 0 | CH13: 16 | CI13: 5 | CK13: 0
B14: 8 | C14: 3 | E14: 0 | H14: 17 | I14: 4 | K14: 0 | N14: 8 | O14: 3 | Q14: 0 | T14: 17 | U14: 4 | W14: 0 | Z14: 8 | AA14: 3 | AC14: 0 | AF14: 17 | AG14: 4 | AI14: 0 | AL14: 8 | AM14: 3 | AO14: 0 | AR14: 17 | AS14: 4 | AU14: 0 | AX14: 17 | AY14: 4 | BA14: 0 | BD14: 17 | BE14: 4 | BG14: 0 | BJ14: 17 | BK14: 4 | BM14: 0 | BP14: 8 | BQ14: 3 | BS14: 0 | BV14: 17 | BW14: 4 | BY14: 0 | CB14: 8 | CC14: 3 | CE14: 0 | CH14: 17 | CI14: 4 | CK14: 0
B15: 9 | C15: 5 | E15: 0 | H15: 18 | I15: 5 | K15: 0 | N15: 9 | O15: 5 | Q15: 0 | T15: 18 | U15: 5 | W15: 0 | Z15: 9 | AA15: 5 | AC15: 0 | AF15: 18 | AG15: 5 | AI15: 0 | AL15: 9 | AM15: 5 | AO15: 0 | AR15: 18 | AS15: 5 | AU15: 0 | AX15: 18 | AY15: 5 | BA15: 0 | BD15: 18 | BE15: 5 | BG15: 0 | BJ15: 18 | BK15: 5 | BM15: 0 | BP15: 9 | BQ15: 5 | BS15: 0 | BV15: 18 | BW15: 5 | BY15: 0 | CB15: 9 | CC15: 5 | CE15: 0 | CH15: 18 | CI15: 5 | CK15: 0
B16: Total | C16: =SUM(C7:C15) -> 35 | D16: =SUM(D7:D15) -> 0 | E16: =SUM(E7:E15) -> 0 | F16: =SUM(F7:F15) -> 0 | H16: Total | I16: =SUM(I7:I15) -> 36 | J16: =SUM(J7:J15) -> 0 | K16: =SUM(K7:K15) -> 0 | L16: =SUM(L7:L15) -> 0 | N16: Total | O16: =SUM(O7:O15) -> 35 | P16: =SUM(P7:P15) -> 0 | Q16: =SUM(Q7:Q15) -> 0 | R16: =SUM(R7:R15) -> 0 | T16: Total | U16: =SUM(U7:U15) -> 36 | V16: =SUM(V7:V15) -> 0 | W16: =SUM(W7:W15) -> 0 | X16: =SUM(X7:X15) -> 0 | Z16: Total | AA16: =SUM(AA7:AA15) -> 35 | AB16: =SUM(AB7:AB15) -> 0 | AC16: =SUM(AC7:AC15) -> 0 | AD16: =SUM(AD7:AD15) -> 0 | AF16: Total | AG16: =SUM(AG7:AG15) -> 36 | AH16: =SUM(AH7:AH15) -> 0 | AI16: =SUM(AI7:AI15) -> 0 | AJ16: =SUM(AJ7:AJ15) -> 0 | AL16: Total | AM16: =SUM(AM7:AM15) -> 35 | AN16: =SUM(AN7:AN15) -> 0 | AO16: =SUM(AO7:AO15) -> 0 | AP16: =SUM(AP7:AP15) -> 0 | AR16: Total | AS16: =SUM(AS7:AS15) -> 36 | AT16: =SUM(AT7:AT15) -> 0 | AU16: =SUM(AU7:AU15) -> 0 | AV16: =SUM(AV7:AV15) -> 0 | AX16: Total | AY16: =SUM(AY7:AY15) -> 36 | AZ16: =SUM(AZ7:AZ15) -> 0 | BA16: =SUM(BA7:BA15) -> 0 | BB16: =SUM(BB7:BB15) -> 0 | BD16: Total | BE16: =SUM(BE7:BE15) -> 36 | BF16: =SUM(BF7:BF15) -> 0 | BG16: =SUM(BG7:BG15) -> 0 | BH16: =SUM(BH7:BH15) -> 0 | BJ16: Total | BK16: =SUM(BK7:BK15) -> 36 | BL16: =SUM(BL7:BL15) -> 0 | BM16: =SUM(BM7:BM15) -> 0 | BN16: =SUM(BN7:BN15) -> 0 | BP16: Total | BQ16: =SUM(BQ7:BQ15) -> 35 | BR16: =SUM(BR7:BR15) -> 0 | BS16: =SUM(BS7:BS15) -> 0 | BT16: =SUM(BT7:BT15) -> 0 | BV16: Total | BW16: =SUM(BW7:BW15) -> 36 | BX16: =SUM(BX7:BX15) -> 0 | BY16: =SUM(BY7:BY15) -> 0 | BZ16: =SUM(BZ7:BZ15) -> 0 | CB16: Total | CC16: =SUM(CC7:CC15) -> 35 | CD16: =SUM(CD7:CD15) -> 0 | CE16: =SUM(CE7:CE15) -> 0 | CF16: =SUM(CF7:CF15) -> 0 | CH16: Total | CI16: =SUM(CI7:CI15) -> 36 | CJ16: =SUM(CJ7:CJ15) -> 0 | CK16: =SUM(CK7:CK15) -> 0 | CL16: =SUM(CL7:CL15) -> 0
E18: Low Net | K18: Low Net | Q18: Low Net | W18: Low Net | AC18: Low Net | AI18: Low Net | AO18: Low Net | AU18: Low Net | BA18: Low Net | BG18: Low Net | BM18: Low Net | BS18: Low Net | BY18: Low Net | CE18: Low Net | CK18: Low Net
E20: Total Points | F20: =SUM(F16:F19) -> 0 | K20: Total Points | L20: =SUM(L16:L19) -> 0 | Q20: Total Points | R20: =SUM(R16:R19) -> 0 | W20: Total Points | X20: =SUM(X16:X19) -> 0 | AC20: Total Points | AD20: =SUM(AD16:AD19) -> 0 | AI20: Total Points | AJ20: =SUM(AJ16:AJ19) -> 0 | AO20: Total Points | AP20: =SUM(AP16:AP19) -> 0 | AU20: Total Points | AV20: =SUM(AV16:AV19) -> 0 | BA20: Total Points | BB20: =SUM(BB16:BB19) -> 0 | BG20: Total Points | BH20: =SUM(BH16:BH19) -> 0 | BM20: Total Points | BN20: =SUM(BN16:BN19) -> 0 | BS20: Total Points | BT20: =SUM(BT16:BT19) -> 0 | BY20: Total Points | BZ20: =SUM(BZ16:BZ19) -> 0 | CE20: Total Points | CF20: =SUM(CF16:CF19) -> 0 | CK20: Total Points | CL20: =SUM(CL16:CL19) -> 0
E22: Handicap | F22: =IF(D16=0,0,E16-C16) -> 0 | K22: Handicap | L22: =IF(J16=0,0,K16-I16) -> 0 | Q22: Handicap | R22: =IF(P16=0,0,Q16-O16) -> 0 | W22: Handicap | X22: =IF(V16=0,0,W16-U16) -> 0 | AC22: Handicap | AD22: =IF(AB16=0,0,AC16-AA16) -> 0 | AI22: Handicap | AJ22: =IF(AH16=0,0,AI16-AG16) -> 0 | AO22: Handicap | AP22: =IF(AN16=0,0,AO16-AM16) -> 0 | AU22: Handicap | AV22: =IF(AT16=0,0,AU16-AS16) -> 0 | BA22: Handicap | BB22: =IF(AZ16=0,0,BA16-AY16) -> 0 | BG22: Handicap | BH22: =IF(BF16=0,0,BG16-BE16) -> 0 | BM22: Handicap | BN22: =IF(BL16=0,0,BM16-BK16) -> 0 | BS22: Handicap | BT22: =IF(BR16=0,0,BS16-BQ16) -> 0 | BY22: Handicap | BZ22: =IF(BX16=0,0,BY16-BW16) -> 0 | CE22: Handicap | CF22: =IF(CD16=0,0,CE16-CC16) -> 0 | CK22: Handicap | CL22: =IF(CJ16=0,0,CK16-CI16) -> 0
F24: =IF(D16<>0,IF(F16>4.5,"W",IF(F16=4.5,"T",IF(F16<4.5,"L"))),0) -> 0 | L24: =IF(J16<>0,IF(L16>4.5,"W",IF(L16=4.5,"T",IF(L16<4.5,"L"))),0) -> 0 | R24: =IF(P16<>0,IF(R16>4.5,"W",IF(R16=4.5,"T",IF(R16<4.5,"L"))),0) -> 0 | X24: =IF(V16<>0,IF(X16>4.5,"W",IF(X16=4.5,"T",IF(X16<4.5,"L"))),0) -> 0 | AD24: =IF(AB16<>0,IF(AD16>4.5,"W",IF(AD16=4.5,"T",IF(AD16<4.5,"L"))),0) -> 0 | AJ24: =IF(AH16<>0,IF(AJ16>4.5,"W",IF(AJ16=4.5,"T",IF(AJ16<4.5,"L"))),0) -> 0 | AP24: =IF(AN16<>0,IF(AP16>4.5,"W",IF(AP16=4.5,"T",IF(AP16<4.5,"L"))),0) -> 0 | AV24: =IF(AT16<>0,IF(AV16>4.5,"W",IF(AV16=4.5,"T",IF(AV16<4.5,"L"))),0) -> 0 | BB24: =IF(AZ16<>0,IF(BB16>4.5,"W",IF(BB16=4.5,"T",IF(BB16<4.5,"L"))),0) -> 0 | BH24: =IF(BF16<>0,IF(BH16>4.5,"W",IF(BH16=4.5,"T",IF(BH16<4.5,"L"))),0) -> 0 | BN24: =IF(BL16<>0,IF(BN16>4.5,"W",IF(BN16=4.5,"T",IF(BN16<4.5,"L"))),0) -> 0 | BT24: =IF(BR16<>0,IF(BT16>4.5,"W",IF(BT16=4.5,"T",IF(BT16<4.5,"L"))),0) -> 0 | BZ24: =IF(BX16<>0,IF(BZ16>4.5,"W",IF(BZ16=4.5,"T",IF(BZ16<4.5,"L"))),0) -> 0 | CF24: =IF(CD16<>0,IF(CF16>4.5,"W",IF(CF16=4.5,"T",IF(CF16<4.5,"L"))),0) -> 0 | CL24: =IF(CJ16<>0,IF(CL16>4.5,"W",IF(CL16=4.5,"T",IF(CL16<4.5,"L"))),0) -> 0
B26: Summary
D27: Adj | F27: Adj | J27: Avg Score
C28: Points | D28: Points | E28: Matches | F28: Matches | I28: Hole # | J28: by Hole | K28: Best | L28: Worst
B29: Week #1 | C29: =F20 -> 0 | D29: =C29 -> 0 | E29: =IF(D16>0,1,0) -> 0 | F29: =E29 -> 0 | I29: 1 | J29: =IFERROR(AVERAGE(D7),0) -> 0 | K29: =IFERROR(MIN(J7,V7,AH7,AT7,BF7,BR7,BX7,CJ7),0) -> 0 | L29: =IFERROR(MAX(J7,V7,AH7,AT7,BF7,BR7,BX7,CJ7),0) -> 0
B30: Week #2 | C30: =L20 -> 0 | D30: 0 | E30: =IF(J16>0,1,0) -> 0 | F30: 0 | I30: 2 | J30: =IFERROR(AVERAGE(D8),0) -> 0 | K30: =IFERROR(MIN(J8,V8,AH8,AT8,BF8,BR8,BX8,CJ8),0) -> 0 | L30: =IFERROR(MAX(J8,V8,AH8,AT8,BF8,BR8,BX8,CJ8),0) -> 0
B31: Week #3 | C31: =R20 -> 0 | D31: 0 | E31: =IF(P16>0,1,0) -> 0 | F31: 0 | I31: 3 | J31: 0 | K31: 0 | L31: 0
B32: Week #4 | C32: =X20 -> 0 | D32: 0 | E32: =IF(V16>0,1,0) -> 0 | F32: 0 | I32: 4 | J32: 0 | K32: 0 | L32: 0
B33: Week #5 | C33: =AD20 -> 0 | D33: 0 | E33: =IF(AB16>0,1,0) -> 0 | F33: 0 | I33: 5 | J33: 0 | K33: 0 | L33: 0
B34: Week #6 | C34: =AJ20 -> 0 | D34: 0 | E34: =IF(AH16>0,1,0) -> 0 | F34: 0 | I34: 6 | J34: 0 | K34: 0 | L34: 0
B35: Week #7 | C35: =AP20 -> 0 | D35: 0 | E35: =IF(AN16>0,1,0) -> 0 | F35: 0 | I35: 7 | J35: 0 | K35: 0 | L35: 0
B36: Week #8 | C36: =AV20 -> 0 | D36: 0 | E36: =IF(AT16>0,1,0) -> 0 | F36: 0 | I36: 8 | J36: 0 | K36: 0 | L36: 0
B37: Week #9 | C37: =BB20 -> 0 | D37: 0 | E37: =IF(AZ16>0,1,0) -> 0 | F37: 0 | I37: 9 | J37: 0 | K37: 0 | L37: 0
B38: Week #10 | C38: =BH20 -> 0 | D38: 0 | E38: =IF(BF16>0,1,0) -> 0 | F38: 0 | I38: Front | J38: =SUM(J29:J37) -> 0 | K38: =SUM(K29:K37) -> 0 | L38: 0
B39: Week #11 | C39: =BN20 -> 0 | D39: 0 | E39: =IF(BL16>0,1,0) -> 0 | F39: 0
B40: Week #12 | C40: =BT20 -> 0 | D40: 0 | E40: =IF(BR16>0,1,0) -> 0 | F40: 0 | I40: 10 | J40: =IFERROR(AVERAGE(J7),0) -> 0 | K40: =IFERROR(MIN(D7,P7,AB7,AN7,AZ7,BL7,CD7),0) -> 0 | L40: =IFERROR(MAX(D7,P7,AB7,AN7,AZ7,BL7,CD7),0) -> 0
B41: Week #13 | C41: =BZ20 -> 0 | D41: 0 | E41: =IF(BX16>0,1,0) -> 0 | F41: 0 | I41: 11 | J41: =IFERROR(AVERAGE(J8),0) -> 0 | K41: =IFERROR(MIN(D8,P8,AB8,AN8,AZ8,BL8,CD8),0) -> 0 | L41: =IFERROR(MAX(D8,P8,AB8,AN8,AZ8,BL8,CD8),0) -> 0
B42: Week #14 | C42: =CF20 -> 0 | D42: 0 | E42: =IF(CD16>0,1,0) -> 0 | F42: 0 | I42: 12 | J42: 0 | K42: 0 | L42: 0
B43: Week #15 | C43: =CL20 -> 0 | D43: 0 | E43: =IF(CJ16>0,1,0) -> 0 | F43: 0 | I43: 13 | J43: 0 | K43: 0 | L43: 0
B44: Total | C44: =SUM(C29:C43) -> 0 | D44: =SUM(D29:D43) -> 0 | E44: =SUM(E29:E43) -> 0 | F44: =SUM(F29:F43) -> 0 | I44: 14 | J44: 0 | K44: 0 | L44: 0
I45: 15 | J45: 0 | K45: 0 | L45: 0
B46: Summary | I46: 16 | J46: 0 | K46: 0 | L46: 0
B47: Eagles | C47: =I57+I68+I79+I90+I101+I112+I123+I134+I145+I156+I167+I178+I189+I200+I211 -> 0 | I47: 17 | J47: 0 | K47: 0 | L47: 0
B48: Birdies | C48: 0 | I48: 18 | J48: 0 | K48: 0 | L48: 0
B49: Pars | C49: 0 | I49: Back | J49: =SUM(J40:J48) -> 0 | K49: =SUM(K40:K48) -> 0 | L49: 0
B50: bogeys | C50: 0
B51: Double bogeys | C51: 0
B52: Other | C52: 0
B53: Total | C53: =SUM(C47:C52) -> 0
B55: =D4 -> 2025-04-25 | C55: Par | D55: Score
B56: =B7 -> 1 | C56: 4 | D56: 0 | E56: =IF(D56<>0,IF((D56-C56)=-1,"Birdie",IF((D56-C56)=-2,"Eagle",IF((D56-C56)=0,"Par",IF((D56-C56)=1,"bogey",IF((D56-C56)=2,"Double bogey","Other")))))," ") ->  | H56: Count
B57: 2 | C57: 4 | D57: 0 | H57: Eagle | I57: =COUNTIF(E56:E64,"Eagle") -> 0
B58: 3 | C58: 4 | D58: 0 | H58: Birdie | I58: =COUNTIF(E56:E64,"Birdie") -> 0
B59: 4 | C59: 4 | D59: 0 | H59: Par | I59: =COUNTIF(E56:E64,"Par") -> 0
B60: 5 | C60: 3 | D60: 0 | H60: bogey | I60: =COUNTIF(E56:E64,"bogey") -> 0
B61: 6 | C61: 4 | D61: 0 | H61: Double bogey | I61: =COUNTIF(E56:E64,"Double bogey") -> 0
B62: 7 | C62: 4 | D62: 0 | H62: Other | I62: =COUNTIF(E56:E64,"Other") -> 0
B63: 8 | C63: 3 | D63: 0
B64: 9 | C64: 5 | D64: 0
B66: =J4 -> 2025-05-02
B67: =H7 -> 10 | C67: 4 | D67: 0 | E67: =IF(D67<>0,IF((D67-C67)=-1,"Birdie",IF((D67-C67)=-2,"Eagle",IF((D67-C67)=0,"Par",IF((D67-C67)=1,"bogey",IF((D67-C67)=2,"Double bogey","Other")))))," ") ->  | H67: Count
B68: 11 | C68: 4 | D68: 0 | H68: Eagle | I68: =COUNTIF(E67:E75,"Eagle") -> 0
B69: 12 | C69: 3 | D69: 0 | H69: Birdie | I69: =COUNTIF(E67:E75,"Birdie") -> 0
B70: 13 | C70: 4 | D70: 0 | H70: Par | I70: =COUNTIF(E67:E75,"Par") -> 0
B71: 14 | C71: 4 | D71: 0 | H71: bogey | I71: =COUNTIF(E67:E75,"bogey") -> 0
B72: 15 | C72: 3 | D72: 0 | H72: Double bogey | I72: =COUNTIF(E67:E75,"Double bogey") -> 0
B73: 16 | C73: 5 | D73: 0 | H73: Other | I73: =COUNTIF(E67:E75,"Other") -> 0
B74: 17 | C74: 4 | D74: 0
B75: 18 | C75: 5 | D75: 0
B77: =P4 -> 2025-05-09
B78: =N7 -> 1 | C78: 4 | D78: 0 | E78: =IF(D78<>0,IF((D78-C78)=-1,"Birdie",IF((D78-C78)=-2,"Eagle",IF((D78-C78)=0,"Par",IF((D78-C78)=1,"bogey",IF((D78-C78)=2,"Double bogey","Other")))))," ") ->  | H78: Count
B79: 2 | C79: 4 | D79: 0 | H79: Eagle | I79: =COUNTIF(E78:E86,"Eagle") -> 0
B80: 3 | C80: 4 | D80: 0 | H80: Birdie | I80: =COUNTIF(E78:E86,"Birdie") -> 0
B81: 4 | C81: 4 | D81: 0 | H81: Par | I81: =COUNTIF(E78:E86,"Par") -> 0
B82: 5 | C82: 3 | D82: 0 | H82: bogey | I82: =COUNTIF(E78:E86,"bogey") -> 0
B83: 6 | C83: 4 | D83: 0 | H83: Double bogey | I83: =COUNTIF(E78:E86,"Double bogey") -> 0
B84: 7 | C84: 4 | D84: 0 | H84: Other | I84: =COUNTIF(E78:E86,"Other") -> 0
B85: 8 | C85: 3 | D85: 0
B86: 9 | C86: 5 | D86: 0
B88: =V4 -> 2025-05-16
B89: =T7 -> 10 | C89: 4 | D89: 0 | E89: =IF(D89<>0,IF((D89-C89)=-1,"Birdie",IF((D89-C89)=-2,"Eagle",IF((D89-C89)=0,"Par",IF((D89-C89)=1,"bogey",IF((D89-C89)=2,"Double bogey","Other")))))," ") ->  | H89: Count
B90: 11 | C90: 4 | D90: 0 | H90: Eagle | I90: =COUNTIF(E89:E97,"Eagle") -> 0
B91: 12 | C91: 3 | D91: 0 | H91: Birdie | I91: =COUNTIF(E89:E97,"Birdie") -> 0
B92: 13 | C92: 4 | D92: 0 | H92: Par | I92: =COUNTIF(E89:E97,"Par") -> 0
B93: 14 | C93: 4 | D93: 0 | H93: bogey | I93: =COUNTIF(E89:E97,"bogey") -> 0
B94: 15 | C94: 3 | D94: 0 | H94: Double bogey | I94: =COUNTIF(E89:E97,"Double bogey") -> 0
B95: 16 | C95: 5 | D95: 0 | H95: Other | I95: =COUNTIF(E89:E97,"Other") -> 0
B96: 17 | C96: 4 | D96: 0
B97: 18 | C97: 5 | D97: 0
B99: =AB4 -> 2025-05-23
B100: =Z7 -> 1 | C100: 4 | D100: 0 | E100: =IF(D100<>0,IF((D100-C100)=-1,"Birdie",IF((D100-C100)=-2,"Eagle",IF((D100-C100)=0,"Par",IF((D100-C100)=1,"bogey",IF((D100-C100)=2,"Double bogey","Other")))))," ") ->  | H100: Count
B101: 2 | C101: 4 | D101: 0 | H101: Eagle | I101: =COUNTIF(E100:E108,"Eagle") -> 0
B102: 3 | C102: 4 | D102: 0 | H102: Birdie | I102: =COUNTIF(E100:E108,"Birdie") -> 0
B103: 4 | C103: 4 | D103: 0 | H103: Par | I103: =COUNTIF(E100:E108,"Par") -> 0
B104: 5 | C104: 3 | D104: 0 | H104: bogey | I104: =COUNTIF(E100:E108,"bogey") -> 0
B105: 6 | C105: 4 | D105: 0 | H105: Double bogey | I105: =COUNTIF(E100:E108,"Double bogey") -> 0
B106: 7 | C106: 4 | D106: 0 | H106: Other | I106: =COUNTIF(E100:E108,"Other") -> 0
B107: 8 | C107: 3 | D107: 0
B108: 9 | C108: 5 | D108: 0
B110: =AH4 -> 2025-05-30
B111: =AF7 -> 10 | C111: 4 | D111: 0 | E111: =IF(D111<>0,IF((D111-C111)=-1,"Birdie",IF((D111-C111)=-2,"Eagle",IF((D111-C111)=0,"Par",IF((D111-C111)=1,"bogey",IF((D111-C111)=2,"Double bogey","Other")))))," ") ->  | H111: Count
B112: 11 | C112: 4 | D112: 0 | H112: Eagle | I112: =COUNTIF(E111:E119,"Eagle") -> 0
B113: 12 | C113: 3 | D113: 0 | H113: Birdie | I113: =COUNTIF(E111:E119,"Birdie") -> 0
B114: 13 | C114: 4 | D114: 0 | H114: Par | I114: =COUNTIF(E111:E119,"Par") -> 0
B115: 14 | C115: 4 | D115: 0 | H115: bogey | I115: =COUNTIF(E111:E119,"bogey") -> 0
B116: 15 | C116: 3 | D116: 0 | H116: Double bogey | I116: =COUNTIF(E111:E119,"Double bogey") -> 0
B117: 16 | C117: 5 | D117: 0 | H117: Other | I117: =COUNTIF(E111:E119,"Other") -> 0
B118: 17 | C118: 4 | D118: 0
B119: 18 | C119: 5 | D119: 0
B121: =AN4 -> 2025-06-06
B122: =AL7 -> 1 | C122: 4 | D122: 0 | E122: =IF(D122<>0,IF((D122-C122)=-1,"Birdie",IF((D122-C122)=-2,"Eagle",IF((D122-C122)=0,"Par",IF((D122-C122)=1,"bogey",IF((D122-C122)=2,"Double bogey","Other")))))," ") ->  | H122: Count
B123: 2 | C123: 4 | D123: 0 | H123: Eagle | I123: =COUNTIF(E122:E130,"Eagle") -> 0
B124: 3 | C124: 4 | D124: 0 | H124: Birdie | I124: =COUNTIF(E122:E130,"Birdie") -> 0
B125: 4 | C125: 4 | D125: 0 | H125: Par | I125: =COUNTIF(E122:E130,"Par") -> 0
B126: 5 | C126: 3 | D126: 0 | H126: bogey | I126: =COUNTIF(E122:E130,"bogey") -> 0
B127: 6 | C127: 4 | D127: 0 | H127: Double bogey | I127: =COUNTIF(E122:E130,"Double bogey") -> 0
B128: 7 | C128: 4 | D128: 0 | H128: Other | I128: =COUNTIF(E122:E130,"Other") -> 0
B129: 8 | C129: 3 | D129: 0
B130: 9 | C130: 5 | D130: 0
B132: =AT4 -> 2025-06-13
B133: =AR7 -> 10 | C133: 4 | D133: 0 | E133: =IF(D133<>0,IF((D133-C133)=-1,"Birdie",IF((D133-C133)=-2,"Eagle",IF((D133-C133)=0,"Par",IF((D133-C133)=1,"bogey",IF((D133-C133)=2,"Double bogey","Other")))))," ") ->  | H133: Count
B134: 11 | C134: 4 | D134: 0 | H134: Eagle | I134: =COUNTIF(E133:E141,"Eagle") -> 0
B135: 12 | C135: 3 | D135: 0 | H135: Birdie | I135: =COUNTIF(E133:E141,"Birdie") -> 0
B136: 13 | C136: 4 | D136: 0 | H136: Par | I136: =COUNTIF(E133:E141,"Par") -> 0
B137: 14 | C137: 4 | D137: 0 | H137: bogey | I137: =COUNTIF(E133:E141,"bogey") -> 0
B138: 15 | C138: 3 | D138: 0 | H138: Double bogey | I138: =COUNTIF(E133:E141,"Double bogey") -> 0
B139: 16 | C139: 5 | D139: 0 | H139: Other | I139: =COUNTIF(E133:E141,"Other") -> 0
B140: 17 | C140: 4 | D140: 0
B141: 18 | C141: 5 | D141: 0
B143: =AZ4 -> 2025-06-27
B144: =AX7 -> 10 | C144: 4 | D144: 0 | E144: =IF(D144<>0,IF((D144-C144)=-1,"Birdie",IF((D144-C144)=-2,"Eagle",IF((D144-C144)=0,"Par",IF((D144-C144)=1,"bogey",IF((D144-C144)=2,"Double bogey","Other")))))," ") ->  | H144: Count
B145: 11 | C145: 4 | D145: 0 | H145: Eagle | I145: =COUNTIF(E144:E152,"Eagle") -> 0
B146: 12 | C146: 3 | D146: 0 | H146: Birdie | I146: =COUNTIF(E144:E152,"Birdie") -> 0
B147: 13 | C147: 4 | D147: 0 | H147: Par | I147: =COUNTIF(E144:E152,"Par") -> 0
B148: 14 | C148: 4 | D148: 0 | H148: bogey | I148: =COUNTIF(E144:E152,"bogey") -> 0
B149: 15 | C149: 3 | D149: 0 | H149: Double bogey | I149: =COUNTIF(E144:E152,"Double bogey") -> 0
B150: 16 | C150: 5 | D150: 0 | H150: Other | I150: =COUNTIF(E144:E152,"Other") -> 0
B151: 17 | C151: 4 | D151: 0
B152: 18 | C152: 5 | D152: 0
B154: =BF4 -> 2025-07-04
B155: =BD7 -> 10 | C155: 4 | D155: 0 | E155: =IF(D155<>0,IF((D155-C155)=-1,"Birdie",IF((D155-C155)=-2,"Eagle",IF((D155-C155)=0,"Par",IF((D155-C155)=1,"bogey",IF((D155-C155)=2,"Double bogey","Other")))))," ") ->  | H155: Count
B156: 11 | C156: 4 | D156: 0 | H156: Eagle | I156: =COUNTIF(E155:E163,"Eagle") -> 0
B157: 12 | C157: 3 | D157: 0 | H157: Birdie | I157: =COUNTIF(E155:E163,"Birdie") -> 0
B158: 13 | C158: 4 | D158: 0 | H158: Par | I158: =COUNTIF(E155:E163,"Par") -> 0
B159: 14 | C159: 4 | D159: 0 | H159: bogey | I159: =COUNTIF(E155:E163,"bogey") -> 0
B160: 15 | C160: 3 | D160: 0 | H160: Double bogey | I160: =COUNTIF(E155:E163,"Double bogey") -> 0
B161: 16 | C161: 5 | D161: 0 | H161: Other | I161: =COUNTIF(E155:E163,"Other") -> 0
B162: 17 | C162: 4 | D162: 0
B163: 18 | C163: 5 | D163: 0
B165: =BL4 -> 2025-07-18
B166: =BJ7 -> 10 | C166: 4 | D166: 0 | E166: =IF(D166<>0,IF((D166-C166)=-1,"Birdie",IF((D166-C166)=-2,"Eagle",IF((D166-C166)=0,"Par",IF((D166-C166)=1,"bogey",IF((D166-C166)=2,"Double bogey","Other")))))," ") ->  | H166: Count
B167: 11 | C167: 4 | D167: 0 | H167: Eagle | I167: =COUNTIF(E166:E174,"Eagle") -> 0
B168: 12 | C168: 3 | D168: 0 | H168: Birdie | I168: =COUNTIF(E166:E174,"Birdie") -> 0
B169: 13 | C169: 4 | D169: 0 | H169: Par | I169: =COUNTIF(E166:E174,"Par") -> 0
B170: 14 | C170: 4 | D170: 0 | H170: bogey | I170: =COUNTIF(E166:E174,"bogey") -> 0
B171: 15 | C171: 3 | D171: 0 | H171: Double bogey | I171: =COUNTIF(E166:E174,"Double bogey") -> 0
B172: 16 | C172: 5 | D172: 0 | H172: Other | I172: =COUNTIF(E166:E174,"Other") -> 0
B173: 17 | C173: 4 | D173: 0
B174: 18 | C174: 5 | D174: 0
B176: =BR4 -> 2025-07-25
B177: =BP7 -> 1 | C177: 4 | D177: 0 | E177: =IF(D177<>0,IF((D177-C177)=-1,"Birdie",IF((D177-C177)=-2,"Eagle",IF((D177-C177)=0,"Par",IF((D177-C177)=1,"bogey",IF((D177-C177)=2,"Double bogey","Other")))))," ") ->  | H177: Count
B178: 2 | C178: 4 | D178: 0 | H178: Eagle | I178: =COUNTIF(E177:E185,"Eagle") -> 0
B179: 3 | C179: 4 | D179: 0 | H179: Birdie | I179: =COUNTIF(E177:E185,"Birdie") -> 0
B180: 4 | C180: 4 | D180: 0 | H180: Par | I180: =COUNTIF(E177:E185,"Par") -> 0
B181: 5 | C181: 3 | D181: 0 | H181: bogey | I181: =COUNTIF(E177:E185,"bogey") -> 0
B182: 6 | C182: 4 | D182: 0 | H182: Double bogey | I182: =COUNTIF(E177:E185,"Double bogey") -> 0
B183: 7 | C183: 4 | D183: 0 | H183: Other | I183: =COUNTIF(E177:E185,"Other") -> 0
B184: 8 | C184: 3 | D184: 0
B185: 9 | C185: 5 | D185: 0
B187: =BX4 -> 2025-08-01
B188: =BV7 -> 10 | C188: 4 | D188: 0 | E188: =IF(D188<>0,IF((D188-C188)=-1,"Birdie",IF((D188-C188)=-2,"Eagle",IF((D188-C188)=0,"Par",IF((D188-C188)=1,"bogey",IF((D188-C188)=2,"Double bogey","Other")))))," ") ->  | H188: Count
B189: 11 | C189: 4 | D189: 0 | H189: Eagle | I189: =COUNTIF(E188:E196,"Eagle") -> 0
B190: 12 | C190: 3 | D190: 0 | H190: Birdie | I190: =COUNTIF(E188:E196,"Birdie") -> 0
B191: 13 | C191: 4 | D191: 0 | H191: Par | I191: =COUNTIF(E188:E196,"Par") -> 0
B192: 14 | C192: 4 | D192: 0 | H192: bogey | I192: =COUNTIF(E188:E196,"bogey") -> 0
B193: 15 | C193: 3 | D193: 0 | H193: Double bogey | I193: =COUNTIF(E188:E196,"Double bogey") -> 0
B194: 16 | C194: 5 | D194: 0 | H194: Other | I194: =COUNTIF(E188:E196,"Other") -> 0
B195: 17 | C195: 4 | D195: 0
B196: 18 | C196: 5 | D196: 0
B198: =CD4 -> 2025-08-08
B199: =CB7 -> 1 | C199: 4 | D199: 0 | E199: =IF(D199<>0,IF((D199-C199)=-1,"Birdie",IF((D199-C199)=-2,"Eagle",IF((D199-C199)=0,"Par",IF((D199-C199)=1,"bogey",IF((D199-C199)=2,"Double bogey","Other")))))," ") ->  | H199: Count
B200: 2 | C200: 4 | D200: 0 | H200: Eagle | I200: =COUNTIF(E199:E207,"Eagle") -> 0
B201: 3 | C201: 4 | D201: 0 | H201: Birdie | I201: =COUNTIF(E199:E207,"Birdie") -> 0
B202: 4 | C202: 4 | D202: 0 | H202: Par | I202: =COUNTIF(E199:E207,"Par") -> 0
B203: 5 | C203: 3 | D203: 0 | H203: bogey | I203: =COUNTIF(E199:E207,"bogey") -> 0
B204: 6 | C204: 4 | D204: 0 | H204: Double bogey | I204: =COUNTIF(E199:E207,"Double bogey") -> 0
B205: 7 | C205: 4 | D205: 0 | H205: Other | I205: =COUNTIF(E199:E207,"Other") -> 0
B206: 8 | C206: 3 | D206: 0
B207: 9 | C207: 5 | D207: 0
B209: =CJ4 -> 2025-08-15
B210: =CH7 -> 10 | C210: 4 | D210: 0 | E210: =IF(D210<>0,IF((D210-C210)=-1,"Birdie",IF((D210-C210)=-2,"Eagle",IF((D210-C210)=0,"Par",IF((D210-C210)=1,"bogey",IF((D210-C210)=2,"Double bogey","Other")))))," ") ->  | H210: Count
B211: 11 | C211: 4 | D211: 0 | H211: Eagle | I211: =COUNTIF(E210:E218,"Eagle") -> 0
B212: 12 | C212: 3 | D212: 0 | H212: Birdie | I212: =COUNTIF(E210:E218,"Birdie") -> 0
B213: 13 | C213: 4 | D213: 0 | H213: Par | I213: =COUNTIF(E210:E218,"Par") -> 0
B214: 14 | C214: 4 | D214: 0 | H214: bogey | I214: =COUNTIF(E210:E218,"bogey") -> 0
B215: 15 | C215: 3 | D215: 0 | H215: Double bogey | I215: =COUNTIF(E210:E218,"Double bogey") -> 0
B216: 16 | C216: 5 | D216: 0 | H216: Other | I216: =COUNTIF(E210:E218,"Other") -> 0
B217: 17 | C217: 4 | D217: 0
B218: 18 | C218: 5 | D218: 0

Sheet Hobbs
A1: Tim Hobbs
C4: Date: | D4: =VLOOKUP(C5,Week,2) -> 2025-04-25 | I4: Date: | J4: =VLOOKUP(I5,Week,2) -> 2025-05-02 | O4: Date: | P4: =VLOOKUP(O5,Week,2) -> 2025-05-09 | U4: Date: | V4: =VLOOKUP(U5,Week,2) -> 2025-05-16 | AA4: Date: | AB4: =VLOOKUP(AA5,Week,2) -> 2025-05-23 | AG4: Date: | AH4: =VLOOKUP(AG5,Week,2) -> 2025-05-30 | AM4: Date: | AN4: =VLOOKUP(AM5,Week,2) -> 2025-06-06 | AS4: Date: | AT4: =VLOOKUP(AS5,Week,2) -> 2025-06-13 | AY4: Date: | AZ4: =VLOOKUP(AY5,Week,2) -> 2025-06-27 | BE4: Date: | BF4: =VLOOKUP(BE5,Week,2) -> 2025-07-04 | BK4: Date: | BL4: =VLOOKUP(BK5,Week,2) -> 2025-07-18 | BQ4: Date: | BR4: =VLOOKUP(BQ5,Week,2) -> 2025-07-25 | BW4: Date: | BX4: =VLOOKUP(BW5,Week,2) -> 2025-08-01 | CC4: Date: | CD4: =VLOOKUP(CC5,Week,2) -> 2025-08-08 | CI4: Date: | CJ4: =VLOOKUP(CI5,Week,2) -> 2025-08-15
B5: Week | C5: 1 | H5: Week | I5: 2 | N5: Week | O5: 3 | T5: Week | U5: 4 | Z5: Week | AA5: 5 | AF5: Week | AG5: 6 | AL5: Week | AM5: 7 | AR5: Week | AS5: 8 | AX5: Week | AY5: 9 | BD5: Week | BE5: 10 | BJ5: Week | BK5: 11 | BP5: Week | BQ5: 12 | BV5: Week | BW5: 13 | CB5: Week | CC5: 14 | CH5: Week | CI5: 15
B6: Hole # | C6: Par | D6: Score | E6: Net | F6: Win Hole | H6: Hole # | I6: Par | J6: Score | K6: Net | L6: Win Hole | N6: Hole # | O6: Par | P6: Score | Q6: Net | R6: Win Hole | T6: Hole # | U6: Par | V6: Score | W6: Net | X6: Win Hole | Z6: Hole # | AA6: Par | AB6: Score | AC6: Net | AD6: Win Hole | AF6: Hole # | AG6: Par | AH6: Score | AI6: Net | AJ6: Win Hole | AL6: Hole # | AM6: Par | AN6: Score | AO6: Net | AP6: Win Hole | AR6: Hole # | AS6: Par | AT6: Score | AU6: Net | AV6: Win Hole | AX6: Hole # | AY6: Par | AZ6: Score | BA6: Net | BB6: Win Hole | BD6: Hole # | BE6: Par | BF6: Score | BG6: Net | BH6: Win Hole | BJ6: Hole # | BK6: Par | BL6: Score | BM6: Net | BN6: Win Hole | BP6: Hole # | BQ6: Par | BR6: Score | BS6: Net | BT6: Win Hole | BV6: Hole # | BW6: Par | BX6: Score | BY6: Net | BZ6: Win Hole | CB6: Hole # | CC6: Par | CD6: Score | CE6: Net | CF6: Win Hole | CH6: Hole # | CI6: Par | CJ6: Score | CK6: Net | CL6: Win Hole
B7: =VLOOKUP(C5,Week,6) -> 1 | C7: =VLOOKUP(B7,Holes,2) -> 4 | E7: =IF((D7-C7)>3,C7+3,D7) -> 0 | H7: =VLOOKUP(I5,Week,6) -> 10 | I7: =VLOOKUP(H7,Holes,2) -> 4 | K7: =IF((J7-I7)>3,I7+3,J7) -> 0 | N7: =VLOOKUP(O5,Week,6) -> 1 | O7: =VLOOKUP(N7,Holes,2) -> 4 | Q7: =IF((P7-O7)>3,O7+3,P7) -> 0 | T7: =VLOOKUP(U5,Week,6) -> 10 | U7: =VLOOKUP(T7,Holes,2) -> 4 | W7: =IF((V7-U7)>3,U7+3,V7) -> 0 | Z7: =VLOOKUP(AA5,Week,6) -> 1 | AA7: =VLOOKUP(Z7,Holes,2) -> 4 | AC7: =IF((AB7-AA7)>3,AA7+3,AB7) -> 0 | AF7: =VLOOKUP(AG5,Week,6) -> 10 | AG7: =VLOOKUP(AF7,Holes,2) -> 4 | AI7: =IF((AH7-AG7)>3,AG7+3,AH7) -> 0 | AL7: =VLOOKUP(AM5,Week,6) -> 1 | AM7: =VLOOKUP(AL7,Holes,2) -> 4 | AO7: =IF((AN7-AM7)>3,AM7+3,AN7) -> 0 | AR7: =VLOOKUP(AS5,Week,6) -> 10 | AS7: =VLOOKUP(AR7,Holes,2) -> 4 | AU7: =IF((AT7-AS7)>3,AS7+3,AT7) -> 0 | AX7: =VLOOKUP(AY5,Week,6) -> 10 | AY7: =VLOOKUP(AX7,Holes,2) -> 4 | BA7: =IF((AZ7-AY7)>3,AY7+3,AZ7) -> 0 | BD7: =VLOOKUP(BE5,Week,6) -> 10 | BE7: =VLOOKUP(BD7,Holes,2) -> 4 | BG7: =IF((BF7-BE7)>3,BE7+3,BF7) -> 0 | BJ7: =VLOOKUP(BK5,Week,6) -> 10 | BK7: =VLOOKUP(BJ7,Holes,2) -> 4 | BM7: =IF((BL7-BK7)>3,BK7+3,BL7) -> 0 | BP7: =VLOOKUP(BQ5,Week,6) -> 1 | BQ7: =VLOOKUP(BP7,Holes,2) -> 4 | BS7: =IF((BR7-BQ7)>3,BQ7+3,BR7) -> 0 | BV7: =VLOOKUP(BW5,Week,6) -> 10 | BW7: =VLOOKUP(BV7,Holes,2) -> 4 | BY7: =IF((BX7-BW7)>3,BW7+3,BX7) -> 0 | CB7: =VLOOKUP(CC5,Week,6) -> 1 | CC7: =VLOOKUP(CB7,Holes,2) -> 4 | CE7: =IF((CD7-CC7)>3,CC7+3,CD7) -> 0 | CH7: =VLOOKUP(CI5,Week,6) -> 10 | CI7: =VLOOKUP(CH7,Holes,2) -> 4 | CK7: =IF((CJ7-CI7)>3,CI7+3,CJ7) -> 0
B8: =+B7+1 -> 2 | C8: 4 | E8: 0 | H8: =+H7+1 -> 11 | I8: 4 | K8: 0 | N8: =+N7+1 -> 2 | O8: 4 | Q8: 0 | T8: =+T7+1 -> 11 | U8: 4 | W8: 0 | Z8: =+Z7+1 -> 2 | AA8: 4 | AC8: 0 | AF8: =+AF7+1 -> 11 | AG8: 4 | AI8: 0 | AL8: =+AL7+1 -> 2 | AM8: 4 | AO8: 0 | AR8: =+AR7+1 -> 11 | AS8: 4 | AU8: 0 | AX8: =+AX7+1 -> 11 | AY8: 4 | BA8: 0 | BD8: =+BD7+1 -> 11 | BE8: 4 | BG8: 0 | BJ8: =+BJ7+1 -> 11 | BK8: 4 | BM8: 0 | BP8: =+BP7+1 -> 2 | BQ8: 4 | BS8: 0 | BV8: =+BV7+1 -> 11 | BW8: 4 | BY8: 0 | CB8: =+CB7+1 -> 2 | CC8: 4 | CE8: 0 | CH8: =+CH7+1 -> 11 | CI8: 4 | CK8: 0
B9: 3 | C9: 4 | E9: 0 | H9: 12 | I9: 3 | K9: 0 | N9: 3 | O9: 4 | Q9: 0 | T9: 12 | U9: 3 | W9: 0 | Z9: 3 | AA9: 4 | AC9: 0 | AF9: 12 | AG9: 3 | AI9: 0 | AL9: 3 | AM9: 4 | AO9: 0 | AR9: 12 | AS9: 3 | AU9: 0 | AX9: 12 | AY9: 3 | BA9: 0 | BD9: 12 | BE9: 3 | BG9: 0 | BJ9: 12 | BK9: 3 | BM9: 0 | BP9: 3 | BQ9: 4 | BS9: 0 | BV9: 12 | BW9: 3 | BY9: 0 | CB9: 3 | CC9: 4 | CE9: 0 | CH9: 12 | CI9: 3 | CK9: 0
B10: 4 | C10: 4 | E10: 0 | H10: 13 | I10: 4 | K10: 0 | N10: 4 | O10: 4 | Q10: 0 | T10: 13 | U10: 4 | W10: 0 | Z10: 4 | AA10: 4 | AC10: 0 | AF10: 13 | AG10: 4 | AI10: 0 | AL10: 4 | AM10: 4 | AO10: 0 | AR10: 13 | AS10: 4 | AU10: 0 | AX10: 13 | AY10: 4 | BA10: 0 | BD10: 13 | BE10: 4 | BG10: 0 | BJ10: 13 | BK10: 4 | BM10: 0 | BP10: 4 | BQ10: 4 | BS10: 0 | BV10: 13 | BW10: 4 | BY10: 0 | CB10: 4 | CC10: 4 | CE10: 0 | CH10: 13 | CI10: 4 | CK10: 0
B11: 5 | C11: 3 | E11: 0 | H11: 14 | I11: 4 | K11: 0 | N11: 5 | O11: 3 | Q11: 0 | T11: 14 | U11: 4 | W11: 0 | Z11: 5 | AA11: 3 | AC11: 0 | AF11: 14 | AG11: 4 | AI11: 0 | AL11: 5 | AM11: 3 | AO11: 0 | AR11: 14 | AS11: 4 | AU11: 0 | AX11: 14 | AY11: 4 | BA11: 0 | BD11: 14 | BE11: 4 | BG11: 0 | BJ11: 14 | BK11: 4 | BM11: 0 | BP11: 5 | BQ11: 3 | BS11: 0 | BV11: 14 | BW11: 4 | BY11: 0 | CB11: 5 | CC11: 3 | CE11: 0 | CH11: 14 | CI11: 4 | CK11: 0
B12: 6 | C12: 4 | E12: 0 | H12: 15 | I12: 3 | K12: 0 | N12: 6 | O12: 4 | Q12: 0 | T12: 15 | U12: 3 | W12: 0 | Z12: 6 | AA12: 4 | AC12: 0 | AF12: 15 | AG12: 3 | AI12: 0 | AL12: 6 | AM12: 4 | AO12: 0 | AR12: 15 | AS12: 3 | AU12: 0 | AX12: 15 | AY12: 3 | BA12: 0 | BD12: 15 | BE12: 3 | BG12: 0 | BJ12: 15 | BK12: 3 | BM12: 0 | BP12: 6 | BQ12: 4 | BS12: 0 | BV12: 15 | BW12: 3 | BY12: 0 | CB12: 6 | CC12: 4 | CE12: 0 | CH12: 15 | CI12: 3 | CK12: 0
B13: 7 | C13: 4 | E13: 0 | H13: 16 | I13: 5 | K13: 0 | N13: 7 | O13: 4 | Q13: 0 | T13: 16 | U13: 5 | W13: 0 | Z13: 7 | AA13: 4 | AC13: 0 | AF13: 16 | AG13: 5 | AI13: 0 | AL13: 7 | AM13: 4 | AO13: 0 | AR13: 16 | AS13: 5 | AU13: 0 | AX13: 16 | AY13: 5 | BA13: 0 | BD13: 16 | BE13: 5 | BG13: 0 | BJ13: 16 | BK13: 5 | BM13: 0 | BP13: 7 | BQ13: 4 | BS13: 0 | BV13: 16 | BW13: 5 | BY13: 0 | CB13: 7 | CC13: 4 | CE13: 0 | CH13: 16 | CI13: 5 | CK13: 0
B14: 8 | C14: 3 | E14: 0 | H14: 17 | I14: 4 | K14: 0 | N14: 8 | O14: 3 | Q14: 0 | T14: 17 | U14: 4 | W14: 0 | Z14: 8 | AA14: 3 | AC14: 0 | AF14: 17 | AG14: 4 | AI14: 0 | AL14: 8 | AM14: 3 | AO14: 0 | AR14: 17 | AS14: 4 | AU14: 0 | AX14: 17 | AY14: 4 | BA14: 0 | BD14: 17 | BE14: 4 | BG14: 0 | BJ14: 17 | BK14: 4 | BM14: 0 | BP14: 8 | BQ14: 3 | BS14: 0 | BV14: 17 | BW14: 4 | BY14: 0 | CB14: 8 | CC14: 3 | CE14: 0 | CH14: 17 | CI14: 4 | CK14: 0
B15: 9 | C15: 5 | E15: 0 | H15: 18 | I15: 5 | K15: 0 | N15: 9 | O15: 5 | Q15: 0 | T15: 18 | U15: 5 | W15: 0 | Z15: 9 | AA15: 5 | AC15: 0 | AF15: 18 | AG15: 5 | AI15: 0 | AL15: 9 | AM15: 5 | AO15: 0 | AR15: 18 | AS15: 5 | AU15: 0 | AX15: 18 | AY15: 5 | BA15: 0 | BD15: 18 | BE15: 5 | BG15: 0 | BJ15: 18 | BK15: 5 | BM15: 0 | BP15: 9 | BQ15: 5 | BS15: 0 | BV15: 18 | BW15: 5 | BY15: 0 | CB15: 9 | CC15: 5 | CE15: 0 | CH15: 18 | CI15: 5 | CK15: 0
B16: Total | C16: =SUM(C7:C15) -> 35 | D16: =SUM(D7:D15) -> 0 | E16: =SUM(E7:E15) -> 0 | F16: =SUM(F7:F15) -> 0 | H16: Total | I16: =SUM(I7:I15) -> 36 | J16: =SUM(J7:J15) -> 0 | K16: =SUM(K7:K15) -> 0 | L16: =SUM(L7:L15) -> 0 | N16: Total | O16: =SUM(O7:O15) -> 35 | P16: =SUM(P7:P15) -> 0 | Q16: =SUM(Q7:Q15) -> 0 | R16: =SUM(R7:R15) -> 0 | T16: Total | U16: =SUM(U7:U15) -> 36 | V16: =SUM(V7:V15) -> 0 | W16: =SUM(W7:W15) -> 0 | X16: =SUM(X7:X15) -> 0 | Z16: Total | AA16: =SUM(AA7:AA15) -> 35 | AB16: =SUM(AB7:AB15) -> 0 | AC16: =SUM(AC7:AC15) -> 0 | AD16: =SUM(AD7:AD15) -> 0 | AF16: Total | AG16: =SUM(AG7:AG15) -> 36 | AH16: =SUM(AH7:AH15) -> 0 | AI16: =SUM(AI7:AI15) -> 0 | AJ16: =SUM(AJ7:AJ15) -> 0 | AL16: Total | AM16: =SUM(AM7:AM15) -> 35 | AN16: =SUM(AN7:AN15) -> 0 | AO16: =SUM(AO7:AO15) -> 0 | AP16: =SUM(AP7:AP15) -> 0 | AR16: Total | AS16: =SUM(AS7:AS15) -> 36 | AT16: =SUM(AT7:AT15) -> 0 | AU16: =SUM(AU7:AU15) -> 0 | AV16: =SUM(AV7:AV15) -> 0 | AX16: Total | AY16: =SUM(AY7:AY15) -> 36 | AZ16: =SUM(AZ7:AZ15) -> 0 | BA16: =SUM(BA7:BA15) -> 0 | BB16: =SUM(BB7:BB15) -> 0 | BD16: Total | BE16: =SUM(BE7:BE15) -> 36 | BF16: =SUM(BF7:BF15) -> 0 | BG16: =SUM(BG7:BG15) -> 0 | BH16: =SUM(BH7:BH15) -> 0 | BJ16: Total | BK16: =SUM(BK7:BK15) -> 36 | BL16: =SUM(BL7:BL15) -> 0 | BM16: =SUM(BM7:BM15) -> 0 | BN16: =SUM(BN7:BN15) -> 0 | BP16: Total | BQ16: =SUM(BQ7:BQ15) -> 35 | BR16: =SUM(BR7:BR15) -> 0 | BS16: =SUM(BS7:BS15) -> 0 | BT16: =SUM(BT7:BT15) -> 0 | BV16: Total | BW16: =SUM(BW7:BW15) -> 36 | BX16: =SUM(BX7:BX15) -> 0 | BY16: =SUM(BY7:BY15) -> 0 | BZ16: =SUM(BZ7:BZ15) -> 0 | CB16: Total | CC16: =SUM(CC7:CC15) -> 35 | CD16: =SUM(CD7:CD15) -> 0 | CE16: =SUM(CE7:CE15) -> 0 | CF16: =SUM(CF7:CF15) -> 0 | CH16: Total | CI16: =SUM(CI7:CI15) -> 36 | CJ16: =SUM(CJ7:CJ15) -> 0 | CK16: =SUM(CK7:CK15) -> 0 | CL16: =SUM(CL7:CL15) -> 0
E18: Low Net | K18: Low Net | L18: 0 | Q18: Low Net | R18: 0 | W18: Low Net | AC18: Low Net | AI18: Low Net | AO18: Low Net | AU18: Low Net | BA18: Low Net | BG18: Low Net | BM18: Low Net | BS18: Low Net | BY18: Low Net | CE18: Low Net | CK18: Low Net
E20: Total Points | F20: =SUM(F16:F19) -> 0 | K20: Total Points | L20: =SUM(L16:L19) -> 0 | Q20: Total Points | R20: =SUM(R16:R19) -> 0 | W20: Total Points | X20: =SUM(X16:X19) -> 0 | AC20: Total Points | AD20: =SUM(AD16:AD19) -> 0 | AI20: Total Points | AJ20: =SUM(AJ16:AJ19) -> 0 | AO20: Total Points | AP20: =SUM(AP16:AP19) -> 0 | AU20: Total Points | AV20: =SUM(AV16:AV19) -> 0 | BA20: Total Points | BB20: =SUM(BB16:BB19) -> 0 | BG20: Total Points | BH20: =SUM(BH16:BH19) -> 0 | BM20: Total Points | BN20: =SUM(BN16:BN19) -> 0 | BS20: Total Points | BT20: =SUM(BT16:BT19) -> 0 | BY20: Total Points | BZ20: =SUM(BZ16:BZ19) -> 0 | CE20: Total Points | CF20: =SUM(CF16:CF19) -> 0 | CK20: Total Points | CL20: =SUM(CL16:CL19) -> 0
E22: Handicap | F22: =IF(D16=0,0,E16-C16) -> 0 | K22: Handicap | L22: =IF(J16=0,0,K16-I16) -> 0 | Q22: Handicap | R22: =IF(P16=0,0,Q16-O16) -> 0 | W22: Handicap | X22: =IF(V16=0,0,W16-U16) -> 0 | AC22: Handicap | AD22: =IF(AB16=0,0,AC16-AA16) -> 0 | AI22: Handicap | AJ22: =IF(AH16=0,0,AI16-AG16) -> 0 | AO22: Handicap | AP22: =IF(AN16=0,0,AO16-AM16) -> 0 | AU22: Handicap | AV22: =IF(AT16=0,0,AU16-AS16) -> 0 | BA22: Handicap | BB22: =IF(AZ16=0,0,BA16-AY16) -> 0 | BG22: Handicap | BH22: =IF(BF16=0,0,BG16-BE16) -> 0 | BM22: Handicap | BN22: =IF(BL16=0,0,BM16-BK16) -> 0 | BS22: Handicap | BT22: =IF(BR16=0,0,BS16-BQ16) -> 0 | BY22: Handicap | BZ22: =IF(BX16=0,0,BY16-BW16) -> 0 | CE22: Handicap | CF22: =IF(CD16=0,0,CE16-CC16) -> 0 | CK22: Handicap | CL22: =IF(CJ16=0,0,CK16-CI16) -> 0
F24: =IF(D16<>0,IF(F16>4.5,"W",IF(F16=4.5,"T",IF(F16<4.5,"L"))),0) -> 0 | L24: =IF(J16<>0,IF(L16>4.5,"W",IF(L16=4.5,"T",IF(L16<4.5,"L"))),0) -> 0 | R24: =IF(P16<>0,IF(R16>4.5,"W",IF(R16=4.5,"T",IF(R16<4.5,"L"))),0) -> 0 | X24: =IF(V16<>0,IF(X16>4.5,"W",IF(X16=4.5,"T",IF(X16<4.5,"L"))),0) -> 0 | AD24: =IF(AB16<>0,IF(AD16>4.5,"W",IF(AD16=4.5,"T",IF(AD16<4.5,"L"))),0) -> 0 | AJ24: =IF(AH16<>0,IF(AJ16>4.5,"W",IF(AJ16=4.5,"T",IF(AJ16<4.5,"L"))),0) -> 0 | AP24: =IF(AN16<>0,IF(AP16>4.5,"W",IF(AP16=4.5,"T",IF(AP16<4.5,"L"))),0) -> 0 | AV24: =IF(AT16<>0,IF(AV16>4.5,"W",IF(AV16=4.5,"T",IF(AV16<4.5,"L"))),0) -> 0 | BB24: =IF(AZ16<>0,IF(BB16>4.5,"W",IF(BB16=4.5,"T",IF(BB16<4.5,"L"))),0) -> 0 | BH24: =IF(BF16<>0,IF(BH16>4.5,"W",IF(BH16=4.5,"T",IF(BH16<4.5,"L"))),0) -> 0 | BN24: =IF(BL16<>0,IF(BN16>4.5,"W",IF(BN16=4.5,"T",IF(BN16<4.5,"L"))),0) -> 0 | BT24: =IF(BR16<>0,IF(BT16>4.5,"W",IF(BT16=4.5,"T",IF(BT16<4.5,"L"))),0) -> 0 | BZ24: =IF(BX16<>0,IF(BZ16>4.5,"W",IF(BZ16=4.5,"T",IF(BZ16<4.5,"L"))),0) -> 0 | CF24: =IF(CD16<>0,IF(CF16>4.5,"W",IF(CF16=4.5,"T",IF(CF16<4.5,"L"))),0) -> 0 | CL24: =IF(CJ16<>0,IF(CL16>4.5,"W",IF(CL16=4.5,"T",IF(CL16<4.5,"L"))),0) -> 0
B26: Summary
D27: Adj | F27: Adj | J27: Avg Score
C28: Points | D28: Points | E28: Matches | F28: Matches | I28: Hole # | J28: by Hole | K28: Best | L28: Worst
B29: Week #1 | C29: =F20 -> 0 | D29: =C29 -> 0 | E29: =IF(D16>0,1,0) -> 0 | F29: =E29 -> 0 | I29: 1 | J29: =IFERROR(AVERAGE(D7),0) -> 0 | K29: =IFERROR(MIN(J7,V7,AH7,AT7,BF7,BR7,BX7,CJ7),0) -> 0 | L29: =IFERROR(MAX(J7,V7,AH7,AT7,BF7,BR7,BX7,CJ7),0) -> 0
B30: Week #2 | C30: =L20 -> 0 | D30: 0 | E30: =IF(J16>0,1,0) -> 0 | F30: 0 | I30: 2 | J30: =IFERROR(AVERAGE(D8),0) -> 0 | K30: =IFERROR(MIN(J8,V8,AH8,AT8,BF8,BR8,BX8,CJ8),0) -> 0 | L30: =IFERROR(MAX(J8,V8,AH8,AT8,BF8,BR8,BX8,CJ8),0) -> 0
B31: Week #3 | C31: =R20 -> 0 | D31: 0 | E31: =IF(P16>0,1,0) -> 0 | F31: 0 | I31: 3 | J31: 0 | K31: 0 | L31: 0
B32: Week #4 | C32: =X20 -> 0 | D32: 0 | E32: =IF(V16>0,1,0) -> 0 | F32: 0 | I32: 4 | J32: 0 | K32: 0 | L32: 0
B33: Week #5 | C33: =AD20 -> 0 | D33: 0 | E33: =IF(AB16>0,1,0) -> 0 | F33: 0 | I33: 5 | J33: 0 | K33: 0 | L33: 0
B34: Week #6 | C34: =AJ20 -> 0 | D34: 0 | E34: =IF(AH16>0,1,0) -> 0 | F34: 0 | I34: 6 | J34: 0 | K34: 0 | L34: 0
B35: Week #7 | C35: =AP20 -> 0 | D35: 0 | E35: =IF(AN16>0,1,0) -> 0 | F35: 0 | I35: 7 | J35: 0 | K35: 0 | L35: 0
B36: Week #8 | C36: =AV20 -> 0 | D36: 0 | E36: =IF(AT16>0,1,0) -> 0 | F36: 0 | I36: 8 | J36: 0 | K36: 0 | L36: 0
B37: Week #9 | C37: =BB20 -> 0 | D37: 0 | E37: =IF(AZ16>0,1,0) -> 0 | F37: 0 | I37: 9 | J37: 0 | K37: 0 | L37: 0
B38: Week #10 | C38: =BH20 -> 0 | D38: 0 | E38: =IF(BF16>0,1,0) -> 0 | F38: 0 | I38: Front | J38: =SUM(J29:J37) -> 0 | K38: =SUM(K29:K37) -> 0 | L38: 0
B39: Week #11 | C39: =BN20 -> 0 | D39: 0 | E39: =IF(BL16>0,1,0) -> 0 | F39: 0
B40: Week #12 | C40: =BT20 -> 0 | D40: 0 | E40: =IF(BR16>0,1,0) -> 0 | F40: 0 | I40: 10 | J40: =IFERROR(AVERAGE(J7),0) -> 0 | K40: =IFERROR(MIN(D7,P7,AB7,AN7,AZ7,BL7,CD7),0) -> 0 | L40: =IFERROR(MAX(D7,P7,AB7,AN7,AZ7,BL7,CD7),0) -> 0
B41: Week #13 | C41: =BZ20 -> 0 | D41: 0 | E41: =IF(BX16>0,1,0) -> 0 | F41: 0 | I41: 11 | J41: =IFERROR(AVERAGE(J8),0) -> 0 | K41: =IFERROR(MIN(D8,P8,AB8,AN8,AZ8,BL8,CD8),0) -> 0 | L41: =IFERROR(MAX(D8,P8,AB8,AN8,AZ8,BL8,CD8),0) -> 0
B42: Week #14 | C42: =CF20 -> 0 | D42: 0 | E42: =IF(CD16>0,1,0) -> 0 | F42: 0 | I42: 12 | J42: 0 | K42: 0 | L42: 0
B43: Week #15 | C43: =CL20 -> 0 | D43: 0 | E43: =IF(CJ16>0,1,0) -> 0 | F43: 0 | I43: 13 | J43: 0 | K43: 0 | L43: 0
B44: Total | C44: =SUM(C29:C43) -> 0 | D44: =SUM(D29:D43) -> 0 | E44: =SUM(E29:E43) -> 0 | F44: =SUM(F29:F43) -> 0 | I44: 14 | J44: 0 | K44: 0 | L44: 0
I45: 15 | J45: 0 | K45: 0 | L45: 0
B46: Summary | I46: 16 | J46: 0 | K46: 0 | L46: 0
B47: Eagles | C47: =I57+I68+I79+I90+I101+I112+I123+I134+I145+I156+I167+I178+I189+I200+I211 -> 0 | I47: 17 | J47: 0 | K47: 0 | L47: 0
B48: Birdies | C48: 0 | I48: 18 | J48: 0 | K48: 0 | L48: 0
B49: Pars | C49: =I59+I70+I81+I92+I103+I114+I125+I136+I147+I158+I169+I180+I191+I202+I213 -> 0 | I49: Back | J49: =SUM(J40:J48) -> 0 | K49: =SUM(K40:K48) -> 0 | L49: 0
B50: bogeys | C50: 0
B51: Double bogeys | C51: 0
B52: Other | C52: 0
B53: Total | C53: =SUM(C47:C52) -> 0
B55: =D4 -> 2025-04-25 | C55: Par | D55: Score
B56: =B7 -> 1 | C56: 4 | D56: 0 | E56: =IF(D56<>0,IF((D56-C56)=-1,"Birdie",IF((D56-C56)=-2,"Eagle",IF((D56-C56)=0,"Par",IF((D56-C56)=1,"bogey",IF((D56-C56)=2,"Double bogey","Other")))))," ") ->  | H56: Count
B57: 2 | C57: 4 | D57: 0 | H57: Eagle | I57: =COUNTIF(E56:E64,"Eagle") -> 0
B58: 3 | C58: 4 | D58: 0 | H58: Birdie | I58: =COUNTIF(E56:E64,"Birdie") -> 0
B59: 4 | C59: 4 | D59: 0 | H59: Par | I59: =COUNTIF(E56:E64,"Par") -> 0
B60: 5 | C60: 3 | D60: 0 | H60: bogey | I60: =COUNTIF(E56:E64,"bogey") -> 0
B61: 6 | C61: 4 | D61: 0 | H61: Double bogey | I61: =COUNTIF(E56:E64,"Double bogey") -> 0
B62: 7 | C62: 4 | D62: 0 | H62: Other | I62: =COUNTIF(E56:E64,"Other") -> 0
B63: 8 | C63: 3 | D63: 0
B64: 9 | C64: 5 | D64: 0
B66: =J4 -> 2025-05-02
B67: =H7 -> 10 | C67: 4 | D67: 0 | E67: =IF(D67<>0,IF((D67-C67)=-1,"Birdie",IF((D67-C67)=-2,"Eagle",IF((D67-C67)=0,"Par",IF((D67-C67)=1,"bogey",IF((D67-C67)=2,"Double bogey","Other")))))," ") ->  | H67: Count
B68: 11 | C68: 4 | D68: 0 | H68: Eagle | I68: =COUNTIF(E67:E75,"Eagle") -> 0
B69: 12 | C69: 3 | D69: 0 | H69: Birdie | I69: =COUNTIF(E67:E75,"Birdie") -> 0
B70: 13 | C70: 4 | D70: 0 | H70: Par | I70: =COUNTIF(E67:E75,"Par") -> 0
B71: 14 | C71: 4 | D71: 0 | H71: bogey | I71: =COUNTIF(E67:E75,"bogey") -> 0
B72: 15 | C72: 3 | D72: 0 | H72: Double bogey | I72: =COUNTIF(E67:E75,"Double bogey") -> 0
B73: 16 | C73: 5 | D73: 0 | H73: Other | I73: =COUNTIF(E67:E75,"Other") -> 0
B74: 17 | C74: 4 | D74: 0
B75: 18 | C75: 5 | D75: 0
B77: =P4 -> 2025-05-09
B78: =N7 -> 1 | C78: 4 | D78: 0 | E78: =IF(D78<>0,IF((D78-C78)=-1,"Birdie",IF((D78-C78)=-2,"Eagle",IF((D78-C78)=0,"Par",IF((D78-C78)=1,"bogey",IF((D78-C78)=2,"Double bogey","Other")))))," ") ->  | H78: Count
B79: 2 | C79: 4 | D79: 0 | H79: Eagle | I79: =COUNTIF(E78:E86,"Eagle") -> 0
B80: 3 | C80: 4 | D80: 0 | H80: Birdie | I80: =COUNTIF(E78:E86,"Birdie") -> 0
B81: 4 | C81: 4 | D81: 0 | H81: Par | I81: =COUNTIF(E78:E86,"Par") -> 0
B82: 5 | C82: 3 | D82: 0 | H82: bogey | I82: =COUNTIF(E78:E86,"bogey") -> 0
B83: 6 | C83: 4 | D83: 0 | H83: Double bogey | I83: =COUNTIF(E78:E86,"Double bogey") -> 0
B84: 7 | C84: 4 | D84: 0 | H84: Other | I84: =COUNTIF(E78:E86,"Other") -> 0
B85: 8 | C85: 3 | D85: 0
B86: 9 | C86: 5 | D86: 0
B88: =V4 -> 2025-05-16
B89: =T7 -> 10 | C89: 4 | D89: 0 | E89: =IF(D89<>0,IF((D89-C89)=-1,"Birdie",IF((D89-C89)=-2,"Eagle",IF((D89-C89)=0,"Par",IF((D89-C89)=1,"bogey",IF((D89-C89)=2,"Double bogey","Other")))))," ") ->  | H89: Count
B90: 11 | C90: 4 | D90: 0 | H90: Eagle | I90: =COUNTIF(E89:E97,"Eagle") -> 0
B91: 12 | C91: 3 | D91: 0 | H91: Birdie | I91: =COUNTIF(E89:E97,"Birdie") -> 0
B92: 13 | C92: 4 | D92: 0 | H92: Par | I92: =COUNTIF(E89:E97,"Par") -> 0
B93: 14 | C93: 4 | D93: 0 | H93: bogey | I93: =COUNTIF(E89:E97,"bogey") -> 0
B94: 15 | C94: 3 | D94: 0 | H94: Double bogey | I94: =COUNTIF(E89:E97,"Double bogey") -> 0
B95: 16 | C95: 5 | D95: 0 | H95: Other | I95: =COUNTIF(E89:E97,"Other") -> 0
B96: 17 | C96: 4 | D96: 0
B97: 18 | C97: 5 | D97: 0
B99: =AB4 -> 2025-05-23
B100: =Z7 -> 1 | C100: 4 | D100: 0 | E100: =IF(D100<>0,IF((D100-C100)=-1,"Birdie",IF((D100-C100)=-2,"Eagle",IF((D100-C100)=0,"Par",IF((D100-C100)=1,"bogey",IF((D100-C100)=2,"Double bogey","Other")))))," ") ->  | H100: Count
B101: 2 | C101: 4 | D101: 0 | H101: Eagle | I101: =COUNTIF(E100:E108,"Eagle") -> 0
B102: 3 | C102: 4 | D102: 0 | H102: Birdie | I102: =COUNTIF(E100:E108,"Birdie") -> 0
B103: 4 | C103: 4 | D103: 0 | H103: Par | I103: =COUNTIF(E100:E108,"Par") -> 0
B104: 5 | C104: 3 | D104: 0 | H104: bogey | I104: =COUNTIF(E100:E108,"bogey") -> 0
B105: 6 | C105: 4 | D105: 0 | H105: Double bogey | I105: =COUNTIF(E100:E108,"Double bogey") -> 0
B106: 7 | C106: 4 | D106: 0 | H106: Other | I106: =COUNTIF(E100:E108,"Other") -> 0
B107: 8 | C107: 3 | D107: 0
B108: 9 | C108: 5 | D108: 0
B110: =AH4 -> 2025-05-30
B111: =AF7 -> 10 | C111: 4 | D111: 0 | E111: =IF(D111<>0,IF((D111-C111)=-1,"Birdie",IF((D111-C111)=-2,"Eagle",IF((D111-C111)=0,"Par",IF((D111-C111)=1,"bogey",IF((D111-C111)=2,"Double bogey","Other")))))," ") ->  | H111: Count
B112: 11 | C112: 4 | D112: 0 | H112: Eagle | I112: =COUNTIF(E111:E119,"Eagle") -> 0
B113: 12 | C113: 3 | D113: 0 | H113: Birdie | I113: =COUNTIF(E111:E119,"Birdie") -> 0
B114: 13 | C114: 4 | D114: 0 | H114: Par | I114: =COUNTIF(E111:E119,"Par") -> 0
B115: 14 | C115: 4 | D115: 0 | H115: bogey | I115: =COUNTIF(E111:E119,"bogey") -> 0
B116: 15 | C116: 3 | D116: 0 | H116: Double bogey | I116: =COUNTIF(E111:E119,"Double bogey") -> 0
B117: 16 | C117: 5 | D117: 0 | H117: Other | I117: =COUNTIF(E111:E119,"Other") -> 0
B118: 17 | C118: 4 | D118: 0
B119: 18 | C119: 5 | D119: 0
B121: =AN4 -> 2025-06-06
B122: =AL7 -> 1 | C122: 4 | D122: 0 | E122: =IF(D122<>0,IF((D122-C122)=-1,"Birdie",IF((D122-C122)=-2,"Eagle",IF((D122-C122)=0,"Par",IF((D122-C122)=1,"bogey",IF((D122-C122)=2,"Double bogey","Other")))))," ") ->  | H122: Count
B123: 2 | C123: 4 | D123: 0 | H123: Eagle | I123: =COUNTIF(E122:E130,"Eagle") -> 0
B124: 3 | C124: 4 | D124: 0 | H124: Birdie | I124: =COUNTIF(E122:E130,"Birdie") -> 0
B125: 4 | C125: 4 | D125: 0 | H125: Par | I125: =COUNTIF(E122:E130,"Par") -> 0
B126: 5 | C126: 3 | D126: 0 | H126: bogey | I126: =COUNTIF(E122:E130,"bogey") -> 0
B127: 6 | C127: 4 | D127: 0 | H127: Double bogey | I127: =COUNTIF(E122:E130,"Double bogey") -> 0
B128: 7 | C128: 4 | D128: 0 | H128: Other | I128: =COUNTIF(E122:E130,"Other") -> 0
B129: 8 | C129: 3 | D129: 0
B130: 9 | C130: 5 | D130: 0
B132: =AT4 -> 2025-06-13
B133: =AR7 -> 10 | C133: 4 | D133: 0 | E133: =IF(D133<>0,IF((D133-C133)=-1,"Birdie",IF((D133-C133)=-2,"Eagle",IF((D133-C133)=0,"Par",IF((D133-C133)=1,"bogey",IF((D133-C133)=2,"Double bogey","Other")))))," ") ->  | H133: Count
B134: 11 | C134: 4 | D134: 0 | H134: Eagle | I134: =COUNTIF(E133:E141,"Eagle") -> 0
B135: 12 | C135: 3 | D135: 0 | H135: Birdie | I135: =COUNTIF(E133:E141,"Birdie") -> 0
B136: 13 | C136: 4 | D136: 0 | H136: Par | I136: =COUNTIF(E133:E141,"Par") -> 0
B137: 14 | C137: 4 | D137: 0 | H137: bogey | I137: =COUNTIF(E133:E141,"bogey") -> 0
B138: 15 | C138: 3 | D138: 0 | H138: Double bogey | I138: =COUNTIF(E133:E141,"Double bogey") -> 0
B139: 16 | C139: 5 | D139: 0 | H139: Other | I139: =COUNTIF(E133:E141,"Other") -> 0
B140: 17 | C140: 4 | D140: 0
B141: 18 | C141: 5 | D141: 0
B143: =AZ4 -> 2025-06-27
B144: =AX7 -> 10 | C144: 4 | D144: 0 | E144: =IF(D144<>0,IF((D144-C144)=-1,"Birdie",IF((D144-C144)=-2,"Eagle",IF((D144-C144)=0,"Par",IF((D144-C144)=1,"bogey",IF((D144-C144)=2,"Double bogey","Other")))))," ") ->  | H144: Count
B145: 11 | C145: 4 | D145: 0 | H145: Eagle | I145: =COUNTIF(E144:E152,"Eagle") -> 0
B146: 12 | C146: 3 | D146: 0 | H146: Birdie | I146: =COUNTIF(E144:E152,"Birdie") -> 0
B147: 13 | C147: 4 | D147: 0 | H147: Par | I147: =COUNTIF(E144:E152,"Par") -> 0
B148: 14 | C148: 4 | D148: 0 | H148: bogey | I148: =COUNTIF(E144:E152,"bogey") -> 0
B149: 15 | C149: 3 | D149: 0 | H149: Double bogey | I149: =COUNTIF(E144:E152,"Double bogey") -> 0
B150: 16 | C150: 5 | D150: 0 | H150: Other | I150: =COUNTIF(E144:E152,"Other") -> 0
B151: 17 | C151: 4 | D151: 0
B152: 18 | C152: 5 | D152: 0
B154: =BF4 -> 2025-07-04
B155: =BD7 -> 10 | C155: 4 | D155: 0 | E155: =IF(D155<>0,IF((D155-C155)=-1,"Birdie",IF((D155-C155)=-2,"Eagle",IF((D155-C155)=0,"Par",IF((D155-C155)=1,"bogey",IF((D155-C155)=2,"Double bogey","Other")))))," ") ->  | H155: Count
B156: 11 | C156: 4 | D156: 0 | H156: Eagle | I156: =COUNTIF(E155:E163,"Eagle") -> 0
B157: 12 | C157: 3 | D157: 0 | H157: Birdie | I157: =COUNTIF(E155:E163,"Birdie") -> 0
B158: 13 | C158: 4 | D158: 0 | H158: Par | I158: =COUNTIF(E155:E163,"Par") -> 0
B159: 14 | C159: 4 | D159: 0 | H159: bogey | I159: =COUNTIF(E155:E163,"bogey") -> 0
B160: 15 | C160: 3 | D160: 0 | H160: Double bogey | I160: =COUNTIF(E155:E163,"Double bogey") -> 0
B161: 16 | C161: 5 | D161: 0 | H161: Other | I161: =COUNTIF(E155:E163,"Other") -> 0
B162: 17 | C162: 4 | D162: 0
B163: 18 | C163: 5 | D163: 0
B165: =BL4 -> 2025-07-18
B166: =BJ7 -> 10 | C166: 4 | D166: 0 | E166: =IF(D166<>0,IF((D166-C166)=-1,"Birdie",IF((D166-C166)=-2,"Eagle",IF((D166-C166)=0,"Par",IF((D166-C166)=1,"bogey",IF((D166-C166)=2,"Double bogey","Other")))))," ") ->  | H166: Count
B167: 11 | C167: 4 | D167: 0 | H167: Eagle | I167: =COUNTIF(E166:E174,"Eagle") -> 0
B168: 12 | C168: 3 | D168: 0 | H168: Birdie | I168: =COUNTIF(E166:E174,"Birdie") -> 0
B169: 13 | C169: 4 | D169: 0 | H169: Par | I169: =COUNTIF(E166:E174,"Par") -> 0
B170: 14 | C170: 4 | D170: 0 | H170: bogey | I170: =COUNTIF(E166:E174,"bogey") -> 0
B171: 15 | C171: 3 | D171: 0 | H171: Double bogey | I171: =COUNTIF(E166:E174,"Double bogey") -> 0
B172: 16 | C172: 5 | D172: 0 | H172: Other | I172: =COUNTIF(E166:E174,"Other") -> 0
B173: 17 | C173: 4 | D173: 0
B174: 18 | C174: 5 | D174: 0
B176: =BR4 -> 2025-07-25
B177: =BP7 -> 1 | C177: 4 | D177: 0 | E177: =IF(D177<>0,IF((D177-C177)=-1,"Birdie",IF((D177-C177)=-2,"Eagle",IF((D177-C177)=0,"Par",IF((D177-C177)=1,"bogey",IF((D177-C177)=2,"Double bogey","Other")))))," ") ->  | H177: Count
B178: 2 | C178: 4 | D178: 0 | H178: Eagle | I178: =COUNTIF(E177:E185,"Eagle") -> 0
B179: 3 | C179: 4 | D179: 0 | H179: Birdie | I179: =COUNTIF(E177:E185,"Birdie") -> 0
B180: 4 | C180: 4 | D180: 0 | H180: Par | I180: =COUNTIF(E177:E185,"Par") -> 0
B181: 5 | C181: 3 | D181: 0 | H181: bogey | I181: =COUNTIF(E177:E185,"bogey") -> 0
B182: 6 | C182: 4 | D182: 0 | H182: Double bogey | I182: =COUNTIF(E177:E185,"Double bogey") -> 0
B183: 7 | C183: 4 | D183: 0 | H183: Other | I183: =COUNTIF(E177:E185,"Other") -> 0
B184: 8 | C184: 3 | D184: 0
B185: 9 | C185: 5 | D185: 0
B187: =BX4 -> 2025-08-01
B188: =BV7 -> 10 | C188: 4 | D188: 0 | E188: =IF(D188<>0,IF((D188-C188)=-1,"Birdie",IF((D188-C188)=-2,"Eagle",IF((D188-C188)=0,"Par",IF((D188-C188)=1,"bogey",IF((D188-C188)=2,"Double bogey","Other")))))," ") ->  | H188: Count
B189: 11 | C189: 4 | D189: 0 | H189: Eagle | I189: =COUNTIF(E188:E196,"Eagle") -> 0
B190: 12 | C190: 3 | D190: 0 | H190: Birdie | I190: =COUNTIF(E188:E196,"Birdie") -> 0
B191: 13 | C191: 4 | D191: 0 | H191: Par | I191: =COUNTIF(E188:E196,"Par") -> 0
B192: 14 | C192: 4 | D192: 0 | H192: bogey | I192: =COUNTIF(E188:E196,"bogey") -> 0
B193: 15 | C193: 3 | D193: 0 | H193: Double bogey | I193: =COUNTIF(E188:E196,"Double bogey") -> 0
B194: 16 | C194: 5 | D194: 0 | H194: Other | I194: =COUNTIF(E188:E196,"Other") -> 0
B195: 17 | C195: 4 | D195: 0
B196: 18 | C196: 5 | D196: 0
B198: =CD4 -> 2025-08-08
B199: =CB7 -> 1 | C199: 4 | D199: 0 | E199: =IF(D199<>0,IF((D199-C199)=-1,"Birdie",IF((D199-C199)=-2,"Eagle",IF((D199-C199)=0,"Par",IF((D199-C199)=1,"bogey",IF((D199-C199)=2,"Double bogey","Other")))))," ") ->  | H199: Count
B200: 2 | C200: 4 | D200: 0 | H200: Eagle | I200: =COUNTIF(E199:E207,"Eagle") -> 0
B201: 3 | C201: 4 | D201: 0 | H201: Birdie | I201: =COUNTIF(E199:E207,"Birdie") -> 0
B202: 4 | C202: 4 | D202: 0 | H202: Par | I202: =COUNTIF(E199:E207,"Par") -> 0
B203: 5 | C203: 3 | D203: 0 | H203: bogey | I203: =COUNTIF(E199:E207,"bogey") -> 0
B204: 6 | C204: 4 | D204: 0 | H204: Double bogey | I204: =COUNTIF(E199:E207,"Double bogey") -> 0
B205: 7 | C205: 4 | D205: 0 | H205: Other | I205: =COUNTIF(E199:E207,"Other") -> 0
B206: 8 | C206: 3 | D206: 0
B207: 9 | C207: 5 | D207: 0
B209: =CJ4 -> 2025-08-15
B210: =CH7 -> 10 | C210: 4 | D210: 0 | E210: =IF(D210<>0,IF((D210-C210)=-1,"Birdie",IF((D210-C210)=-2,"Eagle",IF((D210-C210)=0,"Par",IF((D210-C210)=1,"bogey",IF((D210-C210)=2,"Double bogey","Other")))))," ") ->  | H210: Count
B211: 11 | C211: 4 | D211: 0 | H211: Eagle | I211: =COUNTIF(E210:E218,"Eagle") -> 0
B212: 12 | C212: 3 | D212: 0 | H212: Birdie | I212: =COUNTIF(E210:E218,"Birdie") -> 0
B213: 13 | C213: 4 | D213: 0 | H213: Par | I213: =COUNTIF(E210:E218,"Par") -> 0
B214: 14 | C214: 4 | D214: 0 | H214: bogey | I214: =COUNTIF(E210:E218,"bogey") -> 0
B215: 15 | C215: 3 | D215: 0 | H215: Double bogey | I215: =COUNTIF(E210:E218,"Double bogey") -> 0
B216: 16 | C216: 5 | D216: 0 | H216: Other | I216: =COUNTIF(E210:E218,"Other") -> 0
B217: 17 | C217: 4 | D217: 0
B218: 18 | C218: 5 | D218: 0

Sheet Kreig
A1: Glenn Kreig
C4: Date: | D4: =VLOOKUP(C5,Week,2) -> 2025-04-25 | I4: Date: | J4: =VLOOKUP(I5,Week,2) -> 2025-05-02 | O4: Date: | P4: =VLOOKUP(O5,Week,2) -> 2025-05-09 | U4: Date: | V4: =VLOOKUP(U5,Week,2) -> 2025-05-16 | AA4: Date: | AB4: =VLOOKUP(AA5,Week,2) -> 2025-05-23 | AG4: Date: | AH4: =VLOOKUP(AG5,Week,2) -> 2025-05-30 | AM4: Date: | AN4: =VLOOKUP(AM5,Week,2) -> 2025-06-06 | AS4: Date: | AT4: =VLOOKUP(AS5,Week,2) -> 2025-06-13 | AY4: Date: | AZ4: =VLOOKUP(AY5,Week,2) -> 2025-06-27 | BE4: Date: | BF4: =VLOOKUP(BE5,Week,2) -> 2025-07-04 | BK4: Date: | BL4: =VLOOKUP(BK5,Week,2) -> 2025-07-18 | BQ4: Date: | BR4: =VLOOKUP(BQ5,Week,2) -> 2025-07-25 | BW4: Date: | BX4: =VLOOKUP(BW5,Week,2) -> 2025-08-01 | CC4: Date: | CD4: =VLOOKUP(CC5,Week,2) -> 2025-08-08 | CI4: Date: | CJ4: =VLOOKUP(CI5,Week,2) -> 2025-08-15
B5: Week | C5: 1 | H5: Week | I5: 2 | N5: Week | O5: 3 | T5: Week | U5: 4 | Z5: Week | AA5: 5 | AF5: Week | AG5: 6 | AL5: Week | AM5: 7 | AR5: Week | AS5: 8 | AX5: Week | AY5: 9 | BD5: Week | BE5: 10 | BJ5: Week | BK5: 11 | BP5: Week | BQ5: 12 | BV5: Week | BW5: 13 | CB5: Week | CC5: 14 | CH5: Week | CI5: 15
B6: Hole # | C6: Par | D6: Score | E6: Net | F6: Win Hole | H6: Hole # | I6: Par | J6: Score | K6: Net | L6: Win Hole | N6: Hole # | O6: Par | P6: Score | Q6: Net | R6: Win Hole | T6: Hole # | U6: Par | V6: Score | W6: Net | X6: Win Hole | Z6: Hole # | AA6: Par | AB6: Score | AC6: Net | AD6: Win Hole | AF6: Hole # | AG6: Par | AH6: Score | AI6: Net | AJ6: Win Hole | AL6: Hole # | AM6: Par | AN6: Score | AO6: Net | AP6: Win Hole | AR6: Hole # | AS6: Par | AT6: Score | AU6: Net | AV6: Win Hole | AX6: Hole # | AY6: Par | AZ6: Score | BA6: Net | BB6: Win Hole | BD6: Hole # | BE6: Par | BF6: Score | BG6: Net | BH6: Win Hole | BJ6: Hole # | BK6: Par | BL6: Score | BM6: Net | BN6: Win Hole | BP6: Hole # | BQ6: Par | BR6: Score | BS6: Net | BT6: Win Hole | BV6: Hole # | BW6: Par | BX6: Score | BY6: Net | BZ6: Win Hole | CB6: Hole # | CC6: Par | CD6: Score | CE6: Net | CF6: Win Hole | CH6: Hole # | CI6: Par | CJ6: Score | CK6: Net | CL6: Win Hole
B7: =VLOOKUP(C5,Week,6) -> 1 | C7: =VLOOKUP(B7,Holes,2) -> 4 | E7: =IF((D7-C7)>3,C7+3,D7) -> 0 | H7: =VLOOKUP(I5,Week,6) -> 10 | I7: =VLOOKUP(H7,Holes,2) -> 4 | K7: =IF((J7-I7)>3,I7+3,J7) -> 0 | N7: =VLOOKUP(O5,Week,6) -> 1 | O7: =VLOOKUP(N7,Holes,2) -> 4 | Q7: =IF((P7-O7)>3,O7+3,P7) -> 0 | T7: =VLOOKUP(U5,Week,6) -> 10 | U7: =VLOOKUP(T7,Holes,2) -> 4 | W7: =IF((V7-U7)>3,U7+3,V7) -> 0 | Z7: =VLOOKUP(AA5,Week,6) -> 1 | AA7: =VLOOKUP(Z7,Holes,2) -> 4 | AC7: =IF((AB7-AA7)>3,AA7+3,AB7) -> 0 | AF7: =VLOOKUP(AG5,Week,6) -> 10 | AG7: =VLOOKUP(AF7,Holes,2) -> 4 | AI7: =IF((AH7-AG7)>3,AG7+3,AH7) -> 0 | AL7: =VLOOKUP(AM5,Week,6) -> 1 | AM7: =VLOOKUP(AL7,Holes,2) -> 4 | AO7: =IF((AN7-AM7)>3,AM7+3,AN7) -> 0 | AR7: =VLOOKUP(AS5,Week,6) -> 10 | AS7: =VLOOKUP(AR7,Holes,2) -> 4 | AU7: =IF((AT7-AS7)>3,AS7+3,AT7) -> 0 | AX7: =VLOOKUP(AY5,Week,6) -> 10 | AY7: =VLOOKUP(AX7,Holes,2) -> 4 | BA7: =IF((AZ7-AY7)>3,AY7+3,AZ7) -> 0 | BD7: =VLOOKUP(BE5,Week,6) -> 10 | BE7: =VLOOKUP(BD7,Holes,2) -> 4 | BG7: =IF((BF7-BE7)>3,BE7+3,BF7) -> 0 | BJ7: =VLOOKUP(BK5,Week,6) -> 10 | BK7: =VLOOKUP(BJ7,Holes,2) -> 4 | BM7: =IF((BL7-BK7)>3,BK7+3,BL7) -> 0 | BP7: =VLOOKUP(BQ5,Week,6) -> 1 | BQ7: =VLOOKUP(BP7,Holes,2) -> 4 | BS7: =IF((BR7-BQ7)>3,BQ7+3,BR7) -> 0 | BV7: =VLOOKUP(BW5,Week,6) -> 10 | BW7: =VLOOKUP(BV7,Holes,2) -> 4 | BY7: =IF((BX7-BW7)>3,BW7+3,BX7) -> 0 | CB7: =VLOOKUP(CC5,Week,6) -> 1 | CC7: =VLOOKUP(CB7,Holes,2) -> 4 | CE7: =IF((CD7-CC7)>3,CC7+3,CD7) -> 0 | CH7: =VLOOKUP(CI5,Week,6) -> 10 | CI7: =VLOOKUP(CH7,Holes,2) -> 4 | CK7: =IF((CJ7-CI7)>3,CI7+3,CJ7) -> 0
B8: =+B7+1 -> 2 | C8: 4 | E8: 0 | H8: =+H7+1 -> 11 | I8: 4 | K8: 0 | N8: =+N7+1 -> 2 | O8: 4 | Q8: 0 | T8: =+T7+1 -> 11 | U8: 4 | W8: 0 | Z8: =+Z7+1 -> 2 | AA8: 4 | AC8: 0 | AF8: =+AF7+1 -> 11 | AG8: 4 | AI8: 0 | AL8: =+AL7+1 -> 2 | AM8: 4 | AO8: 0 | AR8: =+AR7+1 -> 11 | AS8: 4 | AU8: 0 | AX8: =+AX7+1 -> 11 | AY8: 4 | BA8: 0 | BD8: =+BD7+1 -> 11 | BE8: 4 | BG8: 0 | BJ8: =+BJ7+1 -> 11 | BK8: 4 | BM8: 0 | BP8: =+BP7+1 -> 2 | BQ8: 4 | BS8: 0 | BV8: =+BV7+1 -> 11 | BW8: 4 | BY8: 0 | CB8: =+CB7+1 -> 2 | CC8: 4 | CE8: 0 | CH8: =+CH7+1 -> 11 | CI8: 4 | CK8: 0
B9: 3 | C9: 4 | E9: 0 | H9: 12 | I9: 3 | K9: 0 | N9: 3 | O9: 4 | Q9: 0 | T9: 12 | U9: 3 | W9: 0 | Z9: 3 | AA9: 4 | AC9: 0 | AF9: 12 | AG9: 3 | AI9: 0 | AL9: 3 | AM9: 4 | AO9: 0 | AR9: 12 | AS9: 3 | AU9: 0 | AX9: 12 | AY9: 3 | BA9: 0 | BD9: 12 | BE9: 3 | BG9: 0 | BJ9: 12 | BK9: 3 | BM9: 0 | BP9: 3 | BQ9: 4 | BS9: 0 | BV9: 12 | BW9: 3 | BY9: 0 | CB9: 3 | CC9: 4 | CE9: 0 | CH9: 12 | CI9: 3 | CK9: 0
B10: 4 | C10: 4 | E10: 0 | H10: 13 | I10: 4 | K10: 0 | N10: 4 | O10: 4 | Q10: 0 | T10: 13 | U10: 4 | W10: 0 | Z10: 4 | AA10: 4 | AC10: 0 | AF10: 13 | AG10: 4 | AI10: 0 | AL10: 4 | AM10: 4 | AO10: 0 | AR10: 13 | AS10: 4 | AU10: 0 | AX10: 13 | AY10: 4 | BA10: 0 | BD10: 13 | BE10: 4 | BG10: 0 | BJ10: 13 | BK10: 4 | BM10: 0 | BP10: 4 | BQ10: 4 | BS10: 0 | BV10: 13 | BW10: 4 | BY10: 0 | CB10: 4 | CC10: 4 | CE10: 0 | CH10: 13 | CI10: 4 | CK10: 0
B11: 5 | C11: 3 | E11: 0 | H11: 14 | I11: 4 | K11: 0 | N11: 5 | O11: 3 | Q11: 0 | T11: 14 | U11: 4 | W11: 0 | Z11: 5 | AA11: 3 | AC11: 0 | AF11: 14 | AG11: 4 | AI11: 0 | AL11: 5 | AM11: 3 | AO11: 0 | AR11: 14 | AS11: 4 | AU11: 0 | AX11: 14 | AY11: 4 | BA11: 0 | BD11: 14 | BE11: 4 | BG11: 0 | BJ11: 14 | BK11: 4 | BM11: 0 | BP11: 5 | BQ11: 3 | BS11: 0 | BV11: 14 | BW11: 4 | BY11: 0 | CB11: 5 | CC11: 3 | CE11: 0 | CH11: 14 | CI11: 4 | CK11: 0
B12: 6 | C12: 4 | E12: 0 | H12: 15 | I12: 3 | K12: 0 | N12: 6 | O12: 4 | Q12: 0 | T12: 15 | U12: 3 | W12: 0 | Z12: 6 | AA12: 4 | AC12: 0 | AF12: 15 | AG12: 3 | AI12: 0 | AL12: 6 | AM12: 4 | AO12: 0 | AR12: 15 | AS12: 3 | AU12: 0 | AX12: 15 | AY12: 3 | BA12: 0 | BD12: 15 | BE12: 3 | BG12: 0 | BJ12: 15 | BK12: 3 | BM12: 0 | BP12: 6 | BQ12: 4 | BS12: 0 | BV12: 15 | BW12: 3 | BY12: 0 | CB12: 6 | CC12: 4 | CE12: 0 | CH12: 15 | CI12: 3 | CK12: 0
B13: 7 | C13: 4 | E13: 0 | H13: 16 | I13: 5 | K13: 0 | N13: 7 | O13: 4 | Q13: 0 | T13: 16 | U13: 5 | W13: 0 | Z13: 7 | AA13: 4 | AC13: 0 | AF13: 16 | AG13: 5 | AI13: 0 | AL13: 7 | AM13: 4 | AO13: 0 | AR13: 16 | AS13: 5 | AU13: 0 | AX13: 16 | AY13: 5 | BA13: 0 | BD13: 16 | BE13: 5 | BG13: 0 | BJ13: 16 | BK13: 5 | BM13: 0 | BP13: 7 | BQ13: 4 | BS13: 0 | BV13: 16 | BW13: 5 | BY13: 0 | CB13: 7 | CC13: 4 | CE13: 0 | CH13: 16 | CI13: 5 | CK13: 0
B14: 8 | C14: 3 | E14: 0 | H14: 17 | I14: 4 | K14: 0 | N14: 8 | O14: 3 | Q14: 0 | T14: 17 | U14: 4 | W14: 0 | Z14: 8 | AA14: 3 | AC14: 0 | AF14: 17 | AG14: 4 | AI14: 0 | AL14: 8 | AM14: 3 | AO14: 0 | AR14: 17 | AS14: 4 | AU14: 0 | AX14: 17 | AY14: 4 | BA14: 0 | BD14: 17 | BE14: 4 | BG14: 0 | BJ14: 17 | BK14: 4 | BM14: 0 | BP14: 8 | BQ14: 3 | BS14: 0 | BV14: 17 | BW14: 4 | BY14: 0 | CB14: 8 | CC14: 3 | CE14: 0 | CH14: 17 | CI14: 4 | CK14: 0
B15: 9 | C15: 5 | E15: 0 | H15: 18 | I15: 5 | K15: 0 | N15: 9 | O15: 5 | Q15: 0 | T15: 18 | U15: 5 | W15: 0 | Z15: 9 | AA15: 5 | AC15: 0 | AF15: 18 | AG15: 5 | AI15: 0 | AL15: 9 | AM15: 5 | AO15: 0 | AR15: 18 | AS15: 5 | AU15: 0 | AX15: 18 | AY15: 5 | BA15: 0 | BD15: 18 | BE15: 5 | BG15: 0 | BJ15: 18 | BK15: 5 | BM15: 0 | BP15: 9 | BQ15: 5 | BS15: 0 | BV15: 18 | BW15: 5 | BY15: 0 | CB15: 9 | CC15: 5 | CE15: 0 | CH15: 18 | CI15: 5 | CK15: 0
B16: Total | C16: =SUM(C7:C15) -> 35 | D16: =SUM(D7:D15) -> 0 | E16: =SUM(E7:E15) -> 0 | F16: =SUM(F7:F15) -> 0 | H16: Total | I16: =SUM(I7:I15) -> 36 | J16: =SUM(J7:J15) -> 0 | K16: =SUM(K7:K15) -> 0 | L16: =SUM(L7:L15) -> 0 | N16: Total | O16: =SUM(O7:O15) -> 35 | P16: =SUM(P7:P15) -> 0 | Q16: =SUM(Q7:Q15) -> 0 | R16: =SUM(R7:R15) -> 0 | T16: Total | U16: =SUM(U7:U15) -> 36 | V16: =SUM(V7:V15) -> 0 | W16: =SUM(W7:W15) -> 0 | X16: =SUM(X7:X15) -> 0 | Z16: Total | AA16: =SUM(AA7:AA15) -> 35 | AB16: =SUM(AB7:AB15) -> 0 | AC16: =SUM(AC7:AC15) -> 0 | AD16: =SUM(AD7:AD15) -> 0 | AF16: Total | AG16: =SUM(AG7:AG15) -> 36 | AH16: =SUM(AH7:AH15) -> 0 | AI16: =SUM(AI7:AI15) -> 0 | AJ16: =SUM(AJ7:AJ15) -> 0 | AL16: Total | AM16: =SUM(AM7:AM15) -> 35 | AN16: =SUM(AN7:AN15) -> 0 | AO16: =SUM(AO7:AO15) -> 0 | AP16: =SUM(AP7:AP15) -> 0 | AR16: Total | AS16: =SUM(AS7:AS15) -> 36 | AT16: =SUM(AT7:AT15) -> 0 | AU16: =SUM(AU7:AU15) -> 0 | AV16: =SUM(AV7:AV15) -> 0 | AX16: Total | AY16: =SUM(AY7:AY15) -> 36 | AZ16: =SUM(AZ7:AZ15) -> 0 | BA16: =SUM(BA7:BA15) -> 0 | BB16: =SUM(BB7:BB15) -> 0 | BD16: Total | BE16: =SUM(BE7:BE15) -> 36 | BF16: =SUM(BF7:BF15) -> 0 | BG16: =SUM(BG7:BG15) -> 0 | BH16: =SUM(BH7:BH15) -> 0 | BJ16: Total | BK16: =SUM(BK7:BK15) -> 36 | BL16: =SUM(BL7:BL15) -> 0 | BM16: =SUM(BM7:BM15) -> 0 | BN16: =SUM(BN7:BN15) -> 0 | BP16: Total | BQ16: =SUM(BQ7:BQ15) -> 35 | BR16: =SUM(BR7:BR15) -> 0 | BS16: =SUM(BS7:BS15) -> 0 | BT16: =SUM(BT7:BT15) -> 0 | BV16: Total | BW16: =SUM(BW7:BW15) -> 36 | BX16: =SUM(BX7:BX15) -> 0 | BY16: =SUM(BY7:BY15) -> 0 | BZ16: =SUM(BZ7:BZ15) -> 0 | CB16: Total | CC16: =SUM(CC7:CC15) -> 35 | CD16: =SUM(CD7:CD15) -> 0 | CE16: =SUM(CE7:CE15) -> 0 | CF16: =SUM(CF7:CF15) -> 0 | CH16: Total | CI16: =SUM(CI7:CI15) -> 36 | CJ16: =SUM(CJ7:CJ15) -> 0 | CK16: =SUM(CK7:CK15) -> 0 | CL16: =SUM(CL7:CL15) -> 0
E18: Low Net | K18: Low Net | L18: 0 | Q18: Low Net | R18: 0 | W18: Low Net | AC18: Low Net | AI18: Low Net | AO18: Low Net | AU18: Low Net | BA18: Low Net | BG18: Low Net | BM18: Low Net | BS18: Low Net | BY18: Low Net | CE18: Low Net | CK18: Low Net
E20: Total Points | F20: =SUM(F16:F19) -> 0 | K20: Total Points | L20: =SUM(L16:L19) -> 0 | Q20: Total Points | R20: =SUM(R16:R19) -> 0 | W20: Total Points | X20: =SUM(X16:X19) -> 0 | AC20: Total Points | AD20: =SUM(AD16:AD19) -> 0 | AI20: Total Points | AJ20: =SUM(AJ16:AJ19) -> 0 | AO20: Total Points | AP20: =SUM(AP16:AP19) -> 0 | AU20: Total Points | AV20: =SUM(AV16:AV19) -> 0 | BA20: Total Points | BB20: =SUM(BB16:BB19) -> 0 | BG20: Total Points | BH20: =SUM(BH16:BH19) -> 0 | BM20: Total Points | BN20: =SUM(BN16:BN19) -> 0 | BS20: Total Points | BT20: =SUM(BT16:BT19) -> 0 | BY20: Total Points | BZ20: =SUM(BZ16:BZ19) -> 0 | CE20: Total Points | CF20: =SUM(CF16:CF19) -> 0 | CK20: Total Points | CL20: =SUM(CL16:CL19) -> 0
E22: Handicap | F22: =IF(D16=0,0,E16-C16) -> 0 | K22: Handicap | L22: =IF(J16=0,0,K16-I16) -> 0 | Q22: Handicap | R22: =IF(P16=0,0,Q16-O16) -> 0 | W22: Handicap | X22: =IF(V16=0,0,W16-U16) -> 0 | AC22: Handicap | AD22: =IF(AB16=0,0,AC16-AA16) -> 0 | AI22: Handicap | AJ22: =IF(AH16=0,0,AI16-AG16) -> 0 | AO22: Handicap | AP22: =IF(AN16=0,0,AO16-AM16) -> 0 | AU22: Handicap | AV22: =IF(AT16=0,0,AU16-AS16) -> 0 | BA22: Handicap | BB22: =IF(AZ16=0,0,BA16-AY16) -> 0 | BG22: Handicap | BH22: =IF(BF16=0,0,BG16-BE16) -> 0 | BM22: Handicap | BN22: =IF(BL16=0,0,BM16-BK16) -> 0 | BS22: Handicap | BT22: =IF(BR16=0,0,BS16-BQ16) -> 0 | BY22: Handicap | BZ22: =IF(BX16=0,0,BY16-BW16) -> 0 | CE22: Handicap | CF22: =IF(CD16=0,0,CE16-CC16) -> 0 | CK22: Handicap | CL22: =IF(CJ16=0,0,CK16-CI16) -> 0
F24: =IF(D16<>0,IF(F16>4.5,"W",IF(F16=4.5,"T",IF(F16<4.5,"L"))),0) -> 0 | L24: =IF(J16<>0,IF(L16>4.5,"W",IF(L16=4.5,"T",IF(L16<4.5,"L"))),0) -> 0 | R24: =IF(P16<>0,IF(R16>4.5,"W",IF(R16=4.5,"T",IF(R16<4.5,"L"))),0) -> 0 | X24: =IF(V16<>0,IF(X16>4.5,"W",IF(X16=4.5,"T",IF(X16<4.5,"L"))),0) -> 0 | AD24: =IF(AB16<>0,IF(AD16>4.5,"W",IF(AD16=4.5,"T",IF(AD16<4.5,"L"))),0) -> 0 | AJ24: =IF(AH16<>0,IF(AJ16>4.5,"W",IF(AJ16=4.5,"T",IF(AJ16<4.5,"L"))),0) -> 0 | AP24: =IF(AN16<>0,IF(AP16>4.5,"W",IF(AP16=4.5,"T",IF(AP16<4.5,"L"))),0) -> 0 | AV24: =IF(AT16<>0,IF(AV16>4.5,"W",IF(AV16=4.5,"T",IF(AV16<4.5,"L"))),0) -> 0 | BB24: =IF(AZ16<>0,IF(BB16>4.5,"W",IF(BB16=4.5,"T",IF(BB16<4.5,"L"))),0) -> 0 | BH24: =IF(BF16<>0,IF(BH16>4.5,"W",IF(BH16=4.5,"T",IF(BH16<4.5,"L"))),0) -> 0 | BN24: =IF(BL16<>0,IF(BN16>4.5,"W",IF(BN16=4.5,"T",IF(BN16<4.5,"L"))),0) -> 0 | BT24: =IF(BR16<>0,IF(BT16>4.5,"W",IF(BT16=4.5,"T",IF(BT16<4.5,"L"))),0) -> 0 | BZ24: =IF(BX16<>0,IF(BZ16>4.5,"W",IF(BZ16=4.5,"T",IF(BZ16<4.5,"L"))),0) -> 0 | CF24: =IF(CD16<>0,IF(CF16>4.5,"W",IF(CF16=4.5,"T",IF(CF16<4.5,"L"))),0) -> 0 | CL24: =IF(CJ16<>0,IF(CL16>4.5,"W",IF(CL16=4.5,"T",IF(CL16<4.5,"L"))),0) -> 0
B26: Summary
D27: Adj | F27: Adj | J27: Avg Score
C28: Points | D28: Points | E28: Matches | F28: Matches | I28: Hole # | J28: by Hole | K28: Best | L28: Worst
B29: Week #1 | C29: =F20 -> 0 | D29: =C29 -> 0 | E29: =IF(D16>0,1,0) -> 0 | F29: =E29 -> 0 | I29: 1 | J29: =IFERROR(AVERAGE(D7),0) -> 0 | K29: =IFERROR(MIN(J7,V7,AH7,AT7,BF7,BR7,BX7,CJ7),0) -> 0 | L29: =IFERROR(MAX(J7,V7,AH7,AT7,BF7,BR7,BX7,CJ7),0) -> 0
B30: Week #2 | C30: =L20 -> 0 | D30: 0 | E30: =IF(J16>0,1,0) -> 0 | F30: 0 | I30: 2 | J30: =IFERROR(AVERAGE(D8),0) -> 0 | K30: =IFERROR(MIN(J8,V8,AH8,AT8,BF8,BR8,BX8,CJ8),0) -> 0 | L30: =IFERROR(MAX(J8,V8,AH8,AT8,BF8,BR8,BX8,CJ8),0) -> 0
B31: Week #3 | C31: =R20 -> 0 | D31: 0 | E31: =IF(P16>0,1,0) -> 0 | F31: 0 | I31: 3 | J31: 0 | K31: 0 | L31: 0
B32: Week #4 | C32: =X20 -> 0 | D32: 0 | E32: =IF(V16>0,1,0) -> 0 | F32: 0 | I32: 4 | J32: 0 | K32: 0 | L32: 0
B33: Week #5 | C33: =AD20 -> 0 | D33: 0 | E33: =IF(AB16>0,1,0) -> 0 | F33: 0 | I33: 5 | J33: 0 | K33: 0 | L33: 0
B34: Week #6 | C34: =AJ20 -> 0 | D34: 0 | E34: =IF(AH16>0,1,0) -> 0 | F34: 0 | I34: 6 | J34: 0 | K34: 0 | L34: 0
B35: Week #7 | C35: =AP20 -> 0 | D35: 0 | E35: =IF(AN16>0,1,0) -> 0 | F35: 0 | I35: 7 | J35: 0 | K35: 0 | L35: 0
B36: Week #8 | C36: =AV20 -> 0 | D36: 0 | E36: =IF(AT16>0,1,0) -> 0 | F36: 0 | I36: 8 | J36: 0 | K36: 0 | L36: 0
B37: Week #9 | C37: =BB20 -> 0 | D37: 0 | E37: =IF(AZ16>0,1,0) -> 0 | F37: 0 | I37: 9 | J37: 0 | K37: 0 | L37: 0
B38: Week #10 | C38: =BH20 -> 0 | D38: 0 | E38: =IF(BF16>0,1,0) -> 0 | F38: 0 | I38: Front | J38: =SUM(J29:J37) -> 0 | K38: =SUM(K29:K37) -> 0 | L38: 0
B39: Week #11 | C39: =BN20 -> 0 | D39: 0 | E39: =IF(BL16>0,1,0) -> 0 | F39: 0
B40: Week #12 | C40: =BT20 -> 0 | D40: 0 | E40: =IF(BR16>0,1,0) -> 0 | F40: 0 | I40: 10 | J40: =IFERROR(AVERAGE(J7),0) -> 0 | K40: =IFERROR(MIN(D7,P7,AB7,AN7,AZ7,BL7,CD7),0) -> 0 | L40: =IFERROR(MAX(D7,P7,AB7,AN7,AZ7,BL7,CD7),0) -> 0
B41: Week #13 | C41: =BZ20 -> 0 | D41: 0 | E41: =IF(BX16>0,1,0) -> 0 | F41: 0 | I41: 11 | J41: =IFERROR(AVERAGE(J8),0) -> 0 | K41: =IFERROR(MIN(D8,P8,AB8,AN8,AZ8,BL8,CD8),0) -> 0 | L41: =IFERROR(MAX(D8,P8,AB8,AN8,AZ8,BL8,CD8),0) -> 0
B42: Week #14 | C42: =CF20 -> 0 | D42: 0 | E42: =IF(CD16>0,1,0) -> 0 | F42: 0 | I42: 12 | J42: 0 | K42: 0 | L42: 0
B43: Week #15 | C43: =CL20 -> 0 | D43: 0 | E43: =IF(CJ16>0,1,0) -> 0 | F43: 0 | I43: 13 | J43: 0 | K43: 0 | L43: 0
B44: Total | C44: =SUM(C29:C43) -> 0 | D44: =SUM(D29:D43) -> 0 | E44: =SUM(E29:E43) -> 0 | F44: =SUM(F29:F43) -> 0 | I44: 14 | J44: 0 | K44: 0 | L44: 0
I45: 15 | J45: 0 | K45: 0 | L45: 0
B46: Summary | I46: 16 | J46: 0 | K46: 0 | L46: 0
B47: Eagles | C47: =I57+I68+I79+I90+I101+I112+I123+I134+I145+I156+I167+I178+I189+I200+I211 -> 0 | I47: 17 | J47: 0 | K47: 0 | L47: 0
B48: Birdies | C48: 0 | I48: 18 | J48: 0 | K48: 0 | L48: 0
B49: Pars | C49: =I59+I70+I81+I92+I103+I114+I125+I136+I147+I158+I169+I180+I191+I202+I213 -> 0 | I49: Back | J49: =SUM(J40:J48) -> 0 | K49: =SUM(K40:K48) -> 0 | L49: 0
B50: bogeys | C50: 0
B51: Double bogeys | C51: 0
B52: Other | C52: 0
B53: Total | C53: =SUM(C47:C52) -> 0
B55: =D4 -> 2025-04-25 | C55: Par | D55: Score
B56: =B7 -> 1 | C56: 4 | D56: 0 | E56: =IF(D56<>0,IF((D56-C56)=-1,"Birdie",IF((D56-C56)=-2,"Eagle",IF((D56-C56)=0,"Par",IF((D56-C56)=1,"bogey",IF((D56-C56)=2,"Double bogey","Other")))))," ") ->  | H56: Count
B57: 2 | C57: 4 | D57: 0 | H57: Eagle | I57: =COUNTIF(E56:E64,"Eagle") -> 0
B58: 3 | C58: 4 | D58: 0 | H58: Birdie | I58: =COUNTIF(E56:E64,"Birdie") -> 0
B59: 4 | C59: 4 | D59: 0 | H59: Par | I59: =COUNTIF(E56:E64,"Par") -> 0
B60: 5 | C60: 3 | D60: 0 | H60: bogey | I60: =COUNTIF(E56:E64,"bogey") -> 0
B61: 6 | C61: 4 | D61: 0 | H61: Double bogey | I61: =COUNTIF(E56:E64,"Double bogey") -> 0
B62: 7 | C62: 4 | D62: 0 | H62: Other | I62: =COUNTIF(E56:E64,"Other") -> 0
B63: 8 | C63: 3 | D63: 0
B64: 9 | C64: 5 | D64: 0
B66: =J4 -> 2025-05-02
B67: =H7 -> 10 | C67: 4 | D67: 0 | E67: =IF(D67<>0,IF((D67-C67)=-1,"Birdie",IF((D67-C67)=-2,"Eagle",IF((D67-C67)=0,"Par",IF((D67-C67)=1,"bogey",IF((D67-C67)=2,"Double bogey","Other")))))," ") ->  | H67: Count
B68: 11 | C68: 4 | D68: 0 | H68: Eagle | I68: =COUNTIF(E67:E75,"Eagle") -> 0
B69: 12 | C69: 3 | D69: 0 | H69: Birdie | I69: =COUNTIF(E67:E75,"Birdie") -> 0
B70: 13 | C70: 4 | D70: 0 | H70: Par | I70: =COUNTIF(E67:E75,"Par") -> 0
B71: 14 | C71: 4 | D71: 0 | H71: bogey | I71: =COUNTIF(E67:E75,"bogey") -> 0
B72: 15 | C72: 3 | D72: 0 | H72: Double bogey | I72: =COUNTIF(E67:E75,"Double bogey") -> 0
B73: 16 | C73: 5 | D73: 0 | H73: Other | I73: =COUNTIF(E67:E75,"Other") -> 0
B74: 17 | C74: 4 | D74: 0
B75: 18 | C75: 5 | D75: 0
B77: =P4 -> 2025-05-09
B78: =N7 -> 1 | C78: 4 | D78: 0 | E78: =IF(D78<>0,IF((D78-C78)=-1,"Birdie",IF((D78-C78)=-2,"Eagle",IF((D78-C78)=0,"Par",IF((D78-C78)=1,"bogey",IF((D78-C78)=2,"Double bogey","Other")))))," ") ->  | H78: Count
B79: 2 | C79: 4 | D79: 0 | H79: Eagle | I79: =COUNTIF(E78:E86,"Eagle") -> 0
B80: 3 | C80: 4 | D80: 0 | H80: Birdie | I80: =COUNTIF(E78:E86,"Birdie") -> 0
B81: 4 | C81: 4 | D81: 0 | H81: Par | I81: =COUNTIF(E78:E86,"Par") -> 0
B82: 5 | C82: 3 | D82: 0 | H82: bogey | I82: =COUNTIF(E78:E86,"bogey") -> 0
B83: 6 | C83: 4 | D83: 0 | H83: Double bogey | I83: =COUNTIF(E78:E86,"Double bogey") -> 0
B84: 7 | C84: 4 | D84: 0 | H84: Other | I84: =COUNTIF(E78:E86,"Other") -> 0
B85: 8 | C85: 3 | D85: 0
B86: 9 | C86: 5 | D86: 0
B88: =V4 -> 2025-05-16
B89: =T7 -> 10 | C89: 4 | D89: 0 | E89: =IF(D89<>0,IF((D89-C89)=-1,"Birdie",IF((D89-C89)=-2,"Eagle",IF((D89-C89)=0,"Par",IF((D89-C89)=1,"bogey",IF((D89-C89)=2,"Double bogey","Other")))))," ") ->  | H89: Count
B90: 11 | C90: 4 | D90: 0 | H90: Eagle | I90: =COUNTIF(E89:E97,"Eagle") -> 0
B91: 12 | C91: 3 | D91: 0 | H91: Birdie | I91: =COUNTIF(E89:E97,"Birdie") -> 0
B92: 13 | C92: 4 | D92: 0 | H92: Par | I92: =COUNTIF(E89:E97,"Par") -> 0
B93: 14 | C93: 4 | D93: 0 | H93: bogey | I93: =COUNTIF(E89:E97,"bogey") -> 0
B94: 15 | C94: 3 | D94: 0 | H94: Double bogey | I94: =COUNTIF(E89:E97,"Double bogey") -> 0
B95: 16 | C95: 5 | D95: 0 | H95: Other | I95: =COUNTIF(E89:E97,"Other") -> 0
B96: 17 | C96: 4 | D96: 0
B97: 18 | C97: 5 | D97: 0
B99: =AB4 -> 2025-05-23
B100: =Z7 -> 1 | C100: 4 | D100: 0 | E100: =IF(D100<>0,IF((D100-C100)=-1,"Birdie",IF((D100-C100)=-2,"Eagle",IF((D100-C100)=0,"Par",IF((D100-C100)=1,"bogey",IF((D100-C100)=2,"Double bogey","Other")))))," ") ->  | H100: Count
B101: 2 | C101: 4 | D101: 0 | H101: Eagle | I101: =COUNTIF(E100:E108,"Eagle") -> 0
B102: 3 | C102: 4 | D102: 0 | H102: Birdie | I102: =COUNTIF(E100:E108,"Birdie") -> 0
B103: 4 | C103: 4 | D103: 0 | H103: Par | I103: =COUNTIF(E100:E108,"Par") -> 0
B104: 5 | C104: 3 | D104: 0 | H104: bogey | I104: =COUNTIF(E100:E108,"bogey") -> 0
B105: 6 | C105: 4 | D105: 0 | H105: Double bogey | I105: =COUNTIF(E100:E108,"Double bogey") -> 0
B106: 7 | C106: 4 | D106: 0 | H106: Other | I106: =COUNTIF(E100:E108,"Other") -> 0
B107: 8 | C107: 3 | D107: 0
B108: 9 | C108: 5 | D108: 0
B110: =AH4 -> 2025-05-30
B111: =AF7 -> 10 | C111: 4 | D111: 0 | E111: =IF(D111<>0,IF((D111-C111)=-1,"Birdie",IF((D111-C111)=-2,"Eagle",IF((D111-C111)=0,"Par",IF((D111-C111)=1,"bogey",IF((D111-C111)=2,"Double bogey","Other")))))," ") ->  | H111: Count
B112: 11 | C112: 4 | D112: 0 | H112: Eagle | I112: =COUNTIF(E111:E119,"Eagle") -> 0
B113: 12 | C113: 3 | D113: 0 | H113: Birdie | I113: =COUNTIF(E111:E119,"Birdie") -> 0
B114: 13 | C114: 4 | D114: 0 | H114: Par | I114: =COUNTIF(E111:E119,"Par") -> 0
B115: 14 | C115: 4 | D115: 0 | H115: bogey | I115: =COUNTIF(E111:E119,"bogey") -> 0
B116: 15 | C116: 3 | D116: 0 | H116: Double bogey | I116: =COUNTIF(E111:E119,"Double bogey") -> 0
B117: 16 | C117: 5 | D117: 0 | H117: Other | I117: =COUNTIF(E111:E119,"Other") -> 0
B118: 17 | C118: 4 | D118: 0
B119: 18 | C119: 5 | D119: 0
B121: =AN4 -> 2025-06-06
B122: =AL7 -> 1 | C122: 4 | D122: 0 | E122: =IF(D122<>0,IF((D122-C122)=-1,"Birdie",IF((D122-C122)=-2,"Eagle",IF((D122-C122)=0,"Par",IF((D122-C122)=1,"bogey",IF((D122-C122)=2,"Double bogey","Other")))))," ") ->  | H122: Count
B123: 2 | C123: 4 | D123: 0 | H123: Eagle | I123: =COUNTIF(E122:E130,"Eagle") -> 0
B124: 3 | C124: 4 | D124: 0 | H124: Birdie | I124: =COUNTIF(E122:E130,"Birdie") -> 0
B125: 4 | C125: 4 | D125: 0 | H125: Par | I125: =COUNTIF(E122:E130,"Par") -> 0
B126: 5 | C126: 3 | D126: 0 | H126: bogey | I126: =COUNTIF(E122:E130,"bogey") -> 0
B127: 6 | C127: 4 | D127: 0 | H127: Double bogey | I127: =COUNTIF(E122:E130,"Double bogey") -> 0
B128: 7 | C128: 4 | D128: 0 | H128: Other | I128: =COUNTIF(E122:E130,"Other") -> 0
B129: 8 | C129: 3 | D129: 0
B130: 9 | C130: 5 | D130: 0
B132: =AT4 -> 2025-06-13
B133: =AR7 -> 10 | C133: 4 | D133: 0 | E133: =IF(D133<>0,IF((D133-C133)=-1,"Birdie",IF((D133-C133)=-2,"Eagle",IF((D133-C133)=0,"Par",IF((D133-C133)=1,"bogey",IF((D133-C133)=2,"Double bogey","Other")))))," ") ->  | H133: Count
B134: 11 | C134: 4 | D134: 0 | H134: Eagle | I134: =COUNTIF(E133:E141,"Eagle") -> 0
B135: 12 | C135: 3 | D135: 0 | H135: Birdie | I135: =COUNTIF(E133:E141,"Birdie") -> 0
B136: 13 | C136: 4 | D136: 0 | H136: Par | I136: =COUNTIF(E133:E141,"Par") -> 0
B137: 14 | C137: 4 | D137: 0 | H137: bogey | I137: =COUNTIF(E133:E141,"bogey") -> 0
B138: 15 | C138: 3 | D138: 0 | H138: Double bogey | I138: =COUNTIF(E133:E141,"Double bogey") -> 0
B139: 16 | C139: 5 | D139: 0 | H139: Other | I139: =COUNTIF(E133:E141,"Other") -> 0
B140: 17 | C140: 4 | D140: 0
B141: 18 | C141: 5 | D141: 0
B143: =AZ4 -> 2025-06-27
B144: =AX7 -> 10 | C144: 4 | D144: 0 | E144: =IF(D144<>0,IF((D144-C144)=-1,"Birdie",IF((D144-C144)=-2,"Eagle",IF((D144-C144)=0,"Par",IF((D144-C144)=1,"bogey",IF((D144-C144)=2,"Double bogey","Other")))))," ") ->  | H144: Count
B145: 11 | C145: 4 | D145: 0 | H145: Eagle | I145: =COUNTIF(E144:E152,"Eagle") -> 0
B146: 12 | C146: 3 | D146: 0 | H146: Birdie | I146: =COUNTIF(E144:E152,"Birdie") -> 0
B147: 13 | C147: 4 | D147: 0 | H147: Par | I147: =COUNTIF(E144:E152,"Par") -> 0
B148: 14 | C148: 4 | D148: 0 | H148: bogey | I148: =COUNTIF(E144:E152,"bogey") -> 0
B149: 15 | C149: 3 | D149: 0 | H149: Double bogey | I149: =COUNTIF(E144:E152,"Double bogey") -> 0
B150: 16 | C150: 5 | D150: 0 | H150: Other | I150: =COUNTIF(E144:E152,"Other") -> 0
B151: 17 | C151: 4 | D151: 0
B152: 18 | C152: 5 | D152: 0
B154: =BF4 -> 2025-07-04
B155: =BD7 -> 10 | C155: 4 | D155: 0 | E155: =IF(D155<>0,IF((D155-C155)=-1,"Birdie",IF((D155-C155)=-2,"Eagle",IF((D155-C155)=0,"Par",IF((D155-C155)=1,"bogey",IF((D155-C155)=2,"Double bogey","Other")))))," ") ->  | H155: Count
B156: 11 | C156: 4 | D156: 0 | H156: Eagle | I156: =COUNTIF(E155:E163,"Eagle") -> 0
B157: 12 | C157: 3 | D157: 0 | H157: Birdie | I157: =COUNTIF(E155:E163,"Birdie") -> 0
B158: 13 | C158: 4 | D158: 0 | H158: Par | I158: =COUNTIF(E155:E163,"Par") -> 0
B159: 14 | C159: 4 | D159: 0 | H159: bogey | I159: =COUNTIF(E155:E163,"bogey") -> 0
B160: 15 | C160: 3 | D160: 0 | H160: Double bogey | I160: =COUNTIF(E155:E163,"Double bogey") -> 0
B161: 16 | C161: 5 | D161: 0 | H161: Other | I161: =COUNTIF(E155:E163,"Other") -> 0
B162: 17 | C162: 4 | D162: 0
B163: 18 | C163: 5 | D163: 0
B165: =BL4 -> 2025-07-18
B166: =BJ7 -> 10 | C166: 4 | D166: 0 | E166: =IF(D166<>0,IF((D166-C166)=-1,"Birdie",IF((D166-C166)=-2,"Eagle",IF((D166-C166)=0,"Par",IF((D166-C166)=1,"bogey",IF((D166-C166)=2,"Double bogey","Other")))))," ") ->  | H166: Count
B167: 11 | C167: 4 | D167: 0 | H167: Eagle | I167: =COUNTIF(E166:E174,"Eagle") -> 0
B168: 12 | C168: 3 | D168: 0 | H168: Birdie | I168: =COUNTIF(E166:E174,"Birdie") -> 0
B169: 13 | C169: 4 | D169: 0 | H169: Par | I169: =COUNTIF(E166:E174,"Par") -> 0
B170: 14 | C170: 4 | D170: 0 | H170: bogey | I170: =COUNTIF(E166:E174,"bogey") -> 0
B171: 15 | C171: 3 | D171: 0 | H171: Double bogey | I171: =COUNTIF(E166:E174,"Double bogey") -> 0
B172: 16 | C172: 5 | D172: 0 | H172: Other | I172: =COUNTIF(E166:E174,"Other") -> 0
B173: 17 | C173: 4 | D173: 0
B174: 18 | C174: 5 | D174: 0
B176: =BR4 -> 2025-07-25
B177: =BP7 -> 1 | C177: 4 | D177: 0 | E177: =IF(D177<>0,IF((D177-C177)=-1,"Birdie",IF((D177-C177)=-2,"Eagle",IF((D177-C177)=0,"Par",IF((D177-C177)=1,"bogey",IF((D177-C177)=2,"Double bogey","Other")))))," ") ->  | H177: Count
B178: 2 | C178: 4 | D178: 0 | H178: Eagle | I178: =COUNTIF(E177:E185,"Eagle") -> 0
B179: 3 | C179: 4 | D179: 0 | H179: Birdie | I179: =COUNTIF(E177:E185,"Birdie") -> 0
B180: 4 | C180: 4 | D180: 0 | H180: Par | I180: =COUNTIF(E177:E185,"Par") -> 0
B181: 5 | C181: 3 | D181: 0 | H181: bogey | I181: =COUNTIF(E177:E185,"bogey") -> 0
B182: 6 | C182: 4 | D182: 0 | H182: Double bogey | I182: =COUNTIF(E177:E185,"Double bogey") -> 0
B183: 7 | C183: 4 | D183: 0 | H183: Other | I183: =COUNTIF(E177:E185,"Other") -> 0
B184: 8 | C184: 3 | D184: 0
B185: 9 | C185: 5 | D185: 0
B187: =BX4 -> 2025-08-01
B188: =BV7 -> 10 | C188: 4 | D188: 0 | E188: =IF(D188<>0,IF((D188-C188)=-1,"Birdie",IF((D188-C188)=-2,"Eagle",IF((D188-C188)=0,"Par",IF((D188-C188)=1,"bogey",IF((D188-C188)=2,"Double bogey","Other")))))," ") ->  | H188: Count
B189: 11 | C189: 4 | D189: 0 | H189: Eagle | I189: =COUNTIF(E188:E196,"Eagle") -> 0
B190: 12 | C190: 3 | D190: 0 | H190: Birdie | I190: =COUNTIF(E188:E196,"Birdie") -> 0
B191: 13 | C191: 4 | D191: 0 | H191: Par | I191: =COUNTIF(E188:E196,"Par") -> 0
B192: 14 | C192: 4 | D192: 0 | H192: bogey | I192: =COUNTIF(E188:E196,"bogey") -> 0
B193: 15 | C193: 3 | D193: 0 | H193: Double bogey | I193: =COUNTIF(E188:E196,"Double bogey") -> 0
B194: 16 | C194: 5 | D194: 0 | H194: Other | I194: =COUNTIF(E188:E196,"Other") -> 0
B195: 17 | C195: 4 | D195: 0
B196: 18 | C196: 5 | D196: 0
B198: =CD4 -> 2025-08-08
B199: =CB7 -> 1 | C199: 4 | D199: 0 | E199: =IF(D199<>0,IF((D199-C199)=-1,"Birdie",IF((D199-C199)=-2,"Eagle",IF((D199-C199)=0,"Par",IF((D199-C199)=1,"bogey",IF((D199-C199)=2,"Double bogey","Other")))))," ") ->  | H199: Count
B200: 2 | C200: 4 | D200: 0 | H200: Eagle | I200: =COUNTIF(E199:E207,"Eagle") -> 0
B201: 3 | C201: 4 | D201: 0 | H201: Birdie | I201: =COUNTIF(E199:E207,"Birdie") -> 0
B202: 4 | C202: 4 | D202: 0 | H202: Par | I202: =COUNTIF(E199:E207,"Par") -> 0
B203: 5 | C203: 3 | D203: 0 | H203: bogey | I203: =COUNTIF(E199:E207,"bogey") -> 0
B204: 6 | C204: 4 | D204: 0 | H204: Double bogey | I204: =COUNTIF(E199:E207,"Double bogey") -> 0
B205: 7 | C205: 4 | D205: 0 | H205: Other | I205: =COUNTIF(E199:E207,"Other") -> 0
B206: 8 | C206: 3 | D206: 0
B207: 9 | C207: 5 | D207: 0
B209: =CJ4 -> 2025-08-15
B210: =CH7 -> 10 | C210: 4 | D210: 0 | E210: =IF(D210<>0,IF((D210-C210)=-1,"Birdie",IF((D210-C210)=-2,"Eagle",IF((D210-C210)=0,"Par",IF((D210-C210)=1,"bogey",IF((D210-C210)=2,"Double bogey","Other")))))," ") ->  | H210: Count
B211: 11 | C211: 4 | D211: 0 | H211: Eagle | I211: =COUNTIF(E210:E218,"Eagle") -> 0
B212: 12 | C212: 3 | D212: 0 | H212: Birdie | I212: =COUNTIF(E210:E218,"Birdie") -> 0
B213: 13 | C213: 4 | D213: 0 | H213: Par | I213: =COUNTIF(E210:E218,"Par") -> 0
B214: 14 | C214: 4 | D214: 0 | H214: bogey | I214: =COUNTIF(E210:E218,"bogey") -> 0
B215: 15 | C215: 3 | D215: 0 | H215: Double bogey | I215: =COUNTIF(E210:E218,"Double bogey") -> 0
B216: 16 | C216: 5 | D216: 0 | H216: Other | I216: =COUNTIF(E210:E218,"Other") -> 0
B217: 17 | C217: 4 | D217: 0
B218: 18 | C218: 5 | D218: 0

Sheet Linton
A1: Andy Linton
C4: Date: | D4: =VLOOKUP(C5,Week,2) -> 2025-04-25 | I4: Date: | J4: =VLOOKUP(I5,Week,2) -> 2025-05-02 | O4: Date: | P4: =VLOOKUP(O5,Week,2) -> 2025-05-09 | U4: Date: | V4: =VLOOKUP(U5,Week,2) -> 2025-05-16 | AA4: Date: | AB4: =VLOOKUP(AA5,Week,2) -> 2025-05-23 | AG4: Date: | AH4: =VLOOKUP(AG5,Week,2) -> 2025-05-30 | AM4: Date: | AN4: =VLOOKUP(AM5,Week,2) -> 2025-06-06 | AS4: Date: | AT4: =VLOOKUP(AS5,Week,2) -> 2025-06-13 | AY4: Date: | AZ4: =VLOOKUP(AY5,Week,2) -> 2025-06-27 | BE4: Date: | BF4: =VLOOKUP(BE5,Week,2) -> 2025-07-04 | BK4: Date: | BL4: =VLOOKUP(BK5,Week,2) -> 2025-07-18 | BQ4: Date: | BR4: =VLOOKUP(BQ5,Week,2) -> 2025-07-25 | BW4: Date: | BX4: =VLOOKUP(BW5,Week,2) -> 2025-08-01 | CC4: Date: | CD4: =VLOOKUP(CC5,Week,2) -> 2025-08-08 | CI4: Date: | CJ4: =VLOOKUP(CI5,Week,2) -> 2025-08-15
B5: Week | C5: 1 | H5: Week | I5: 2 | N5: Week | O5: 3 | T5: Week | U5: 4 | Z5: Week | AA5: 5 | AF5: Week | AG5: 6 | AL5: Week | AM5: 7 | AR5: Week | AS5: 8 | AX5: Week | AY5: 9 | BD5: Week | BE5: 10 | BJ5: Week | BK5: 11 | BP5: Week | BQ5: 12 | BV5: Week | BW5: 13 | CB5: Week | CC5: 14 | CH5: Week | CI5: 15
B6: Hole # | C6: Par | D6: Score | E6: Net | F6: Win Hole | H6: Hole # | I6: Par | J6: Score | K6: Net | L6: Win Hole | N6: Hole # | O6: Par | P6: Score | Q6: Net | R6: Win Hole | T6: Hole # | U6: Par | V6: Score | W6: Net | X6: Win Hole | Z6: Hole # | AA6: Par | AB6: Score | AC6: Net | AD6: Win Hole | AF6: Hole # | AG6: Par | AH6: Score | AI6: Net | AJ6: Win Hole | AL6: Hole # | AM6: Par | AN6: Score | AO6: Net | AP6: Win Hole | AR6: Hole # | AS6: Par | AT6: Score | AU6: Net | AV6: Win Hole | AX6: Hole # | AY6: Par | AZ6: Score | BA6: Net | BB6: Win Hole | BD6: Hole # | BE6: Par | BF6: Score | BG6: Net | BH6: Win Hole | BJ6: Hole # | BK6: Par | BL6: Score | BM6: Net | BN6: Win Hole | BP6: Hole # | BQ6: Par | BR6: Score | BS6: Net | BT6: Win Hole | BV6: Hole # | BW6: Par | BX6: Score | BY6: Net | BZ6: Win Hole | CB6: Hole # | CC6: Par | CD6: Score | CE6: Net | CF6: Win Hole | CH6: Hole # | CI6: Par | CJ6: Score | CK6: Net | CL6: Win Hole
B7: =VLOOKUP(C5,Week,6) -> 1 | C7: =VLOOKUP(B7,Holes,2) -> 4 | E7: =IF((D7-C7)>3,C7+3,D7) -> 0 | H7: =VLOOKUP(I5,Week,6) -> 10 | I7: =VLOOKUP(H7,Holes,2) -> 4 | K7: =IF((J7-I7)>3,I7+3,J7) -> 0 | N7: =VLOOKUP(O5,Week,6) -> 1 | O7: =VLOOKUP(N7,Holes,2) -> 4 | Q7: =IF((P7-O7)>3,O7+3,P7) -> 0 | T7: =VLOOKUP(U5,Week,6) -> 10 | U7: =VLOOKUP(T7,Holes,2) -> 4 | W7: =IF((V7-U7)>3,U7+3,V7) -> 0 | Z7: =VLOOKUP(AA5,Week,6) -> 1 | AA7: =VLOOKUP(Z7,Holes,2) -> 4 | AC7: =IF((AB7-AA7)>3,AA7+3,AB7) -> 0 | AF7: =VLOOKUP(AG5,Week,6) -> 10 | AG7: =VLOOKUP(AF7,Holes,2) -> 4 | AI7: =IF((AH7-AG7)>3,AG7+3,AH7) -> 0 | AL7: =VLOOKUP(AM5,Week,6) -> 1 | AM7: =VLOOKUP(AL7,Holes,2) -> 4 | AO7: =IF((AN7-AM7)>3,AM7+3,AN7) -> 0 | AR7: =VLOOKUP(AS5,Week,6) -> 10 | AS7: =VLOOKUP(AR7,Holes,2) -> 4 | AU7: =IF((AT7-AS7)>3,AS7+3,AT7) -> 0 | AX7: =VLOOKUP(AY5,Week,6) -> 10 | AY7: =VLOOKUP(AX7,Holes,2) -> 4 | BA7: =IF((AZ7-AY7)>3,AY7+3,AZ7) -> 0 | BD7: =VLOOKUP(BE5,Week,6) -> 10 | BE7: =VLOOKUP(BD7,Holes,2) -> 4 | BG7: =IF((BF7-BE7)>3,BE7+3,BF7) -> 0 | BJ7: =VLOOKUP(BK5,Week,6) -> 10 | BK7: =VLOOKUP(BJ7,Holes,2) -> 4 | BM7: =IF((BL7-BK7)>3,BK7+3,BL7) -> 0 | BP7: =VLOOKUP(BQ5,Week,6) -> 1 | BQ7: =VLOOKUP(BP7,Holes,2) -> 4 | BS7: =IF((BR7-BQ7)>3,BQ7+3,BR7) -> 0 | BV7: =VLOOKUP(BW5,Week,6) -> 10 | BW7: =VLOOKUP(BV7,Holes,2) -> 4 | BY7: =IF((BX7-BW7)>3,BW7+3,BX7) -> 0 | CB7: =VLOOKUP(CC5,Week,6) -> 1 | CC7: =VLOOKUP(CB7,Holes,2) -> 4 | CE7: =IF((CD7-CC7)>3,CC7+3,CD7) -> 0 | CH7: =VLOOKUP(CI5,Week,6) -> 10 | CI7: =VLOOKUP(CH7,Holes,2) -> 4 | CK7: =IF((CJ7-CI7)>3,CI7+3,CJ7) -> 0
B8: =+B7+1 -> 2 | C8: 4 | E8: 0 | H8: =+H7+1 -> 11 | I8: 4 | K8: 0 | N8: =+N7+1 -> 2 | O8: 4 | Q8: 0 | T8: =+T7+1 -> 11 | U8: 4 | W8: 0 | Z8: =+Z7+1 -> 2 | AA8: 4 | AC8: 0 | AF8: =+AF7+1 -> 11 | AG8: 4 | AI8: 0 | AL8: =+AL7+1 -> 2 | AM8: 4 | AO8: 0 | AR8: =+AR7+1 -> 11 | AS8: 4 | AU8: 0 | AX8: =+AX7+1 -> 11 | AY8: 4 | BA8: 0 | BD8: =+BD7+1 -> 11 | BE8: 4 | BG8: 0 | BJ8: =+BJ7+1 -> 11 | BK8: 4 | BM8: 0 | BP8: =+BP7+1 -> 2 | BQ8: 4 | BS8: 0 | BV8: =+BV7+1 -> 11 | BW8: 4 | BY8: 0 | CB8: =+CB7+1 -> 2 | CC8: 4 | CE8: 0 | CH8: =+CH7+1 -> 11 | CI8: 4 | CK8: 0
B9: 3 | C9: 4 | E9: 0 | H9: 12 | I9: 3 | K9: 0 | N9: 3 | O9: 4 | Q9: 0 | T9: 12 | U9: 3 | W9: 0 | Z9: 3 | AA9: 4 | AC9: 0 | AF9: 12 | AG9: 3 | AI9: 0 | AL9: 3 | AM9: 4 | AO9: 0 | AR9: 12 | AS9: 3 | AU9: 0 | AX9: 12 | AY9: 3 | BA9: 0 | BD9: 12 | BE9: 3 | BG9: 0 | BJ9: 12 | BK9: 3 | BM9: 0 | BP9: 3 | BQ9: 4 | BS9: 0 | BV9: 12 | BW9: 3 | BY9: 0 | CB9: 3 | CC9: 4 | CE9: 0 | CH9: 12 | CI9: 3 | CK9: 0
B10: 4 | C10: 4 | E10: 0 | H10: 13 | I10: 4 | K10: 0 | N10: 4 | O10: 4 | Q10: 0 | T10: 13 | U10: 4 | W10: 0 | Z10: 4 | AA10: 4 | AC10: 0 | AF10: 13 | AG10: 4 | AI10: 0 | AL10: 4 | AM10: 4 | AO10: 0 | AR10: 13 | AS10: 4 | AU10: 0 | AX10: 13 | AY10: 4 | BA10: 0 | BD10: 13 | BE10: 4 | BG10: 0 | BJ10: 13 | BK10: 4 | BM10: 0 | BP10: 4 | BQ10: 4 | BS10: 0 | BV10: 13 | BW10: 4 | BY10: 0 | CB10: 4 | CC10: 4 | CE10: 0 | CH10: 13 | CI10: 4 | CK10: 0
B11: 5 | C11: 3 | E11: 0 | H11: 14 | I11: 4 | K11: 0 | N11: 5 | O11: 3 | Q11: 0 | T11: 14 | U11: 4 | W11: 0 | Z11: 5 | AA11: 3 | AC11: 0 | AF11: 14 | AG11: 4 | AI11: 0 | AL11: 5 | AM11: 3 | AO11: 0 | AR11: 14 | AS11: 4 | AU11: 0 | AX11: 14 | AY11: 4 | BA11: 0 | BD11: 14 | BE11: 4 | BG11: 0 | BJ11: 14 | BK11: 4 | BM11: 0 | BP11: 5 | BQ11: 3 | BS11: 0 | BV11: 14 | BW11: 4 | BY11: 0 | CB11: 5 | CC11: 3 | CE11: 0 | CH11: 14 | CI11: 4 | CK11: 0
B12: 6 | C12: 4 | E12: 0 | H12: 15 | I12: 3 | K12: 0 | N12: 6 | O12: 4 | Q12: 0 | T12: 15 | U12: 3 | W12: 0 | Z12: 6 | AA12: 4 | AC12: 0 | AF12: 15 | AG12: 3 | AI12: 0 | AL12: 6 | AM12: 4 | AO12: 0 | AR12: 15 | AS12: 3 | AU12: 0 | AX12: 15 | AY12: 3 | BA12: 0 | BD12: 15 | BE12: 3 | BG12: 0 | BJ12: 15 | BK12: 3 | BM12: 0 | BP12: 6 | BQ12: 4 | BS12: 0 | BV12: 15 | BW12: 3 | BY12: 0 | CB12: 6 | CC12: 4 | CE12: 0 | CH12: 15 | CI12: 3 | CK12: 0
B13: 7 | C13: 4 | E13: 0 | H13: 16 | I13: 5 | K13: 0 | N13: 7 | O13: 4 | Q13: 0 | T13: 16 | U13: 5 | W13: 0 | Z13: 7 | AA13: 4 | AC13: 0 | AF13: 16 | AG13: 5 | AI13: 0 | AL13: 7 | AM13: 4 | AO13: 0 | AR13: 16 | AS13: 5 | AU13: 0 | AX13: 16 | AY13: 5 | BA13: 0 | BD13: 16 | BE13: 5 | BG13: 0 | BJ13: 16 | BK13: 5 | BM13: 0 | BP13: 7 | BQ13: 4 | BS13: 0 | BV13: 16 | BW13: 5 | BY13: 0 | CB13: 7 | CC13: 4 | CE13: 0 | CH13: 16 | CI13: 5 | CK13: 0
B14: 8 | C14: 3 | E14: 0 | H14: 17 | I14: 4 | K14: 0 | N14: 8 | O14: 3 | Q14: 0 | T14: 17 | U14: 4 | W14: 0 | Z14: 8 | AA14: 3 | AC14: 0 | AF14: 17 | AG14: 4 | AI14: 0 | AL14: 8 | AM14: 3 | AO14: 0 | AR14: 17 | AS14: 4 | AU14: 0 | AX14: 17 | AY14: 4 | BA14: 0 | BD14: 17 | BE14: 4 | BG14: 0 | BJ14: 17 | BK14: 4 | BM14: 0 | BP14: 8 | BQ14: 3 | BS14: 0 | BV14: 17 | BW14: 4 | BY14: 0 | CB14: 8 | CC14: 3 | CE14: 0 | CH14: 17 | CI14: 4 | CK14: 0
B15: 9 | C15: 5 | E15: 0 | H15: 18 | I15: 5 | K15: 0 | N15: 9 | O15: 5 | Q15: 0 | T15: 18 | U15: 5 | W15: 0 | Z15: 9 | AA15: 5 | AC15: 0 | AF15: 18 | AG15: 5 | AI15: 0 | AL15: 9 | AM15: 5 | AO15: 0 | AR15: 18 | AS15: 5 | AU15: 0 | AX15: 18 | AY15: 5 | BA15: 0 | BD15: 18 | BE15: 5 | BG15: 0 | BJ15: 18 | BK15: 5 | BM15: 0 | BP15: 9 | BQ15: 5 | BS15: 0 | BV15: 18 | BW15: 5 | BY15: 0 | CB15: 9 | CC15: 5 | CE15: 0 | CH15: 18 | CI15: 5 | CK15: 0
B16: Total | C16: =SUM(C7:C15) -> 35 | D16: =SUM(D7:D15) -> 0 | E16: =SUM(E7:E15) -> 0 | F16: =SUM(F7:F15) -> 0 | H16: Total | I16: =SUM(I7:I15) -> 36 | J16: =SUM(J7:J15) -> 0 | K16: =SUM(K7:K15) -> 0 | L16: =SUM(L7:L15) -> 0 | N16: Total | O16: =SUM(O7:O15) -> 35 | P16: =SUM(P7:P15) -> 0 | Q16: =SUM(Q7:Q15) -> 0 | R16: =SUM(R7:R15) -> 0 | T16: Total | U16: =SUM(U7:U15) -> 36 | V16: =SUM(V7:V15) -> 0 | W16: =SUM(W7:W15) -> 0 | X16: =SUM(X7:X15) -> 0 | Z16: Total | AA16: =SUM(AA7:AA15) -> 35 | AB16: =SUM(AB7:AB15) -> 0 | AC16: =SUM(AC7:AC15) -> 0 | AD16: =SUM(AD7:AD15) -> 0 | AF16: Total | AG16: =SUM(AG7:AG15) -> 36 | AH16: =SUM(AH7:AH15) -> 0 | AI16: =SUM(AI7:AI15) -> 0 | AJ16: =SUM(AJ7:AJ15) -> 0 | AL16: Total | AM16: =SUM(AM7:AM15) -> 35 | AN16: =SUM(AN7:AN15) -> 0 | AO16: =SUM(AO7:AO15) -> 0 | AP16: =SUM(AP7:AP15) -> 0 | AR16: Total | AS16: =SUM(AS7:AS15) -> 36 | AT16: =SUM(AT7:AT15) -> 0 | AU16: =SUM(AU7:AU15) -> 0 | AV16: =SUM(AV7:AV15) -> 0 | AX16: Total | AY16: =SUM(AY7:AY15) -> 36 | AZ16: =SUM(AZ7:AZ15) -> 0 | BA16: =SUM(BA7:BA15) -> 0 | BB16: =SUM(BB7:BB15) -> 0 | BD16: Total | BE16: =SUM(BE7:BE15) -> 36 | BF16: =SUM(BF7:BF15) -> 0 | BG16: =SUM(BG7:BG15) -> 0 | BH16: =SUM(BH7:BH15) -> 0 | BJ16: Total | BK16: =SUM(BK7:BK15) -> 36 | BL16: =SUM(BL7:BL15) -> 0 | BM16: =SUM(BM7:BM15) -> 0 | BN16: =SUM(BN7:BN15) -> 0 | BP16: Total | BQ16: =SUM(BQ7:BQ15) -> 35 | BR16: =SUM(BR7:BR15) -> 0 | BS16: =SUM(BS7:BS15) -> 0 | BT16: =SUM(BT7:BT15) -> 0 | BV16: Total | BW16: =SUM(BW7:BW15) -> 36 | BX16: =SUM(BX7:BX15) -> 0 | BY16: =SUM(BY7:BY15) -> 0 | BZ16: =SUM(BZ7:BZ15) -> 0 | CB16: Total | CC16: =SUM(CC7:CC15) -> 35 | CD16: =SUM(CD7:CD15) -> 0 | CE16: =SUM(CE7:CE15) -> 0 | CF16: =SUM(CF7:CF15) -> 0 | CH16: Total | CI16: =SUM(CI7:CI15) -> 36 | CJ16: =SUM(CJ7:CJ15) -> 0 | CK16: =SUM(CK7:CK15) -> 0 | CL16: =SUM(CL7:CL15) -> 0
E18: Low Net | K18: Low Net | L18: 0 | Q18: Low Net | R18: 0 | W18: Low Net | AC18: Low Net | AI18: Low Net | AO18: Low Net | AU18: Low Net | BA18: Low Net | BG18: Low Net | BM18: Low Net | BS18: Low Net | BY18: Low Net | CE18: Low Net | CK18: Low Net
E20: Total Points | F20: =SUM(F16:F19) -> 0 | K20: Total Points | L20: =SUM(L16:L19) -> 0 | Q20: Total Points | R20: =SUM(R16:R19) -> 0 | W20: Total Points | X20: =SUM(X16:X19) -> 0 | AC20: Total Points | AD20: =SUM(AD16:AD19) -> 0 | AI20: Total Points | AJ20: =SUM(AJ16:AJ19) -> 0 | AO20: Total Points | AP20: =SUM(AP16:AP19) -> 0 | AU20: Total Points | AV20: =SUM(AV16:AV19) -> 0 | BA20: Total Points | BB20: =SUM(BB16:BB19) -> 0 | BG20: Total Points | BH20: =SUM(BH16:BH19) -> 0 | BM20: Total Points | BN20: =SUM(BN16:BN19) -> 0 | BS20: Total Points | BT20: =SUM(BT16:BT19) -> 0 | BY20: Total Points | BZ20: =SUM(BZ16:BZ19) -> 0 | CE20: Total Points | CF20: =SUM(CF16:CF19) -> 0 | CK20: Total Points | CL20: =SUM(CL16:CL19) -> 0
E22: Handicap | F22: =IF(D16=0,0,E16-C16) -> 0 | K22: Handicap | L22: =IF(J16=0,0,K16-I16) -> 0 | Q22: Handicap | R22: =IF(P16=0,0,Q16-O16) -> 0 | W22: Handicap | X22: =IF(V16=0,0,W16-U16) -> 0 | AC22: Handicap | AD22: =IF(AB16=0,0,AC16-AA16) -> 0 | AI22: Handicap | AJ22: =IF(AH16=0,0,AI16-AG16) -> 0 | AO22: Handicap | AP22: =IF(AN16=0,0,AO16-AM16) -> 0 | AU22: Handicap | AV22: =IF(AT16=0,0,AU16-AS16) -> 0 | BA22: Handicap | BB22: =IF(AZ16=0,0,BA16-AY16) -> 0 | BG22: Handicap | BH22: =IF(BF16=0,0,BG16-BE16) -> 0 | BM22: Handicap | BN22: =IF(BL16=0,0,BM16-BK16) -> 0 | BS22: Handicap | BT22: =IF(BR16=0,0,BS16-BQ16) -> 0 | BY22: Handicap | BZ22: =IF(BX16=0,0,BY16-BW16) -> 0 | CE22: Handicap | CF22: =IF(CD16=0,0,CE16-CC16) -> 0 | CK22: Handicap | CL22: =IF(CJ16=0,0,CK16-CI16) -> 0
F24: =IF(D16<>0,IF(F16>4.5,"W",IF(F16=4.5,"T",IF(F16<4.5,"L"))),0) -> 0 | L24: =IF(J16<>0,IF(L16>4.5,"W",IF(L16=4.5,"T",IF(L16<4.5,"L"))),0) -> 0 | R24: =IF(P16<>0,IF(R16>4.5,"W",IF(R16=4.5,"T",IF(R16<4.5,"L"))),0) -> 0 | X24: =IF(V16<>0,IF(X16>4.5,"W",IF(X16=4.5,"T",IF(X16<4.5,"L"))),0) -> 0 | AD24: =IF(AB16<>0,IF(AD16>4.5,"W",IF(AD16=4.5,"T",IF(AD16<4.5,"L"))),0) -> 0 | AJ24: =IF(AH16<>0,IF(AJ16>4.5,"W",IF(AJ16=4.5,"T",IF(AJ16<4.5,"L"))),0) -> 0 | AP24: =IF(AN16<>0,IF(AP16>4.5,"W",IF(AP16=4.5,"T",IF(AP16<4.5,"L"))),0) -> 0 | AV24: =IF(AT16<>0,IF(AV16>4.5,"W",IF(AV16=4.5,"T",IF(AV16<4.5,"L"))),0) -> 0 | BB24: =IF(AZ16<>0,IF(BB16>4.5,"W",IF(BB16=4.5,"T",IF(BB16<4.5,"L"))),0) -> 0 | BH24: =IF(BF16<>0,IF(BH16>4.5,"W",IF(BH16=4.5,"T",IF(BH16<4.5,"L"))),0) -> 0 | BN24: =IF(BL16<>0,IF(BN16>4.5,"W",IF(BN16=4.5,"T",IF(BN16<4.5,"L"))),0) -> 0 | BT24: =IF(BR16<>0,IF(BT16>4.5,"W",IF(BT16=4.5,"T",IF(BT16<4.5,"L"))),0) -> 0 | BZ24: =IF(BX16<>0,IF(BZ16>4.5,"W",IF(BZ16=4.5,"T",IF(BZ16<4.5,"L"))),0) -> 0 | CF24: =IF(CD16<>0,IF(CF16>4.5,"W",IF(CF16=4.5,"T",IF(CF16<4.5,"L"))),0) -> 0 | CL24: =IF(CJ16<>0,IF(CL16>4.5,"W",IF(CL16=4.5,"T",IF(CL16<4.5,"L"))),0) -> 0
B26: Summary
D27: Adj | F27: Adj | J27: Avg Score
C28: Points | D28: Points | E28: Matches | F28: Matches | I28: Hole # | J28: by Hole | K28: Best | L28: Worst
B29: Week #1 | C29: =F20 -> 0 | D29: =C29 -> 0 | E29: =IF(D16>0,1,0) -> 0 | F29: =E29 -> 0 | I29: 1 | J29: =IFERROR(AVERAGE(D7),0) -> 0 | K29: =IFERROR(MIN(J7,V7,AH7,AT7,BF7,BR7,BX7,CJ7),0) -> 0 | L29: =IFERROR(MAX(J7,V7,AH7,AT7,BF7,BR7,BX7,CJ7),0) -> 0
B30: Week #2 | C30: =L20 -> 0 | D30: 0 | E30: =IF(J16>0,1,0) -> 0 | F30: 0 | I30: 2 | J30: =IFERROR(AVERAGE(D8),0) -> 0 | K30: =IFERROR(MIN(J8,V8,AH8,AT8,BF8,BR8,BX8,CJ8),0) -> 0 | L30: =IFERROR(MAX(J8,V8,AH8,AT8,BF8,BR8,BX8,CJ8),0) -> 0
B31: Week #3 | C31: =R20 -> 0 | D31: 0 | E31: =IF(P16>0,1,0) -> 0 | F31: 0 | I31: 3 | J31: 0 | K31: 0 | L31: 0
B32: Week #4 | C32: =X20 -> 0 | D32: 0 | E32: =IF(V16>0,1,0) -> 0 | F32: 0 | I32: 4 | J32: 0 | K32: 0 | L32: 0
B33: Week #5 | C33: =AD20 -> 0 | D33: 0 | E33: =IF(AB16>0,1,0) -> 0 | F33: 0 | I33: 5 | J33: 0 | K33: 0 | L33: 0
B34: Week #6 | C34: =AJ20 -> 0 | D34: 0 | E34: =IF(AH16>0,1,0) -> 0 | F34: 0 | I34: 6 | J34: 0 | K34: 0 | L34: 0
B35: Week #7 | C35: =AP20 -> 0 | D35: 0 | E35: =IF(AN16>0,1,0) -> 0 | F35: 0 | I35: 7 | J35: 0 | K35: 0 | L35: 0
B36: Week #8 | C36: =AV20 -> 0 | D36: 0 | E36: =IF(AT16>0,1,0) -> 0 | F36: 0 | I36: 8 | J36: 0 | K36: 0 | L36: 0
B37: Week #9 | C37: =BB20 -> 0 | D37: 0 | E37: =IF(AZ16>0,1,0) -> 0 | F37: 0 | I37: 9 | J37: 0 | K37: 0 | L37: 0
B38: Week #10 | C38: =BH20 -> 0 | D38: 0 | E38: =IF(BF16>0,1,0) -> 0 | F38: 0 | I38: Front | J38: =SUM(J29:J37) -> 0 | K38: =SUM(K29:K37) -> 0 | L38: 0
B39: Week #11 | C39: =BN20 -> 0 | D39: 0 | E39: =IF(BL16>0,1,0) -> 0 | F39: 0
B40: Week #12 | C40: =BT20 -> 0 | D40: 0 | E40: =IF(BR16>0,1,0) -> 0 | F40: 0 | I40: 10 | J40: =IFERROR(AVERAGE(J7),0) -> 0 | K40: =IFERROR(MIN(D7,P7,AB7,AN7,AZ7,BL7,CD7),0) -> 0 | L40: =IFERROR(MAX(D7,P7,AB7,AN7,AZ7,BL7,CD7),0) -> 0
B41: Week #13 | C41: =BZ20 -> 0 | D41: 0 | E41: =IF(BX16>0,1,0) -> 0 | F41: 0 | I41: 11 | J41: =IFERROR(AVERAGE(J8),0) -> 0 | K41: =IFERROR(MIN(D8,P8,AB8,AN8,AZ8,BL8,CD8),0) -> 0 | L41: =IFERROR(MAX(D8,P8,AB8,AN8,AZ8,BL8,CD8),0) -> 0
B42: Week #14 | C42: =CF20 -> 0 | D42: 0 | E42: =IF(CD16>0,1,0) -> 0 | F42: 0 | I42: 12 | J42: 0 | K42: 0 | L42: 0
B43: Week #15 | C43: =CL20 -> 0 | D43: 0 | E43: =IF(CJ16>0,1,0) -> 0 | F43: 0 | I43: 13 | J43: 0 | K43: 0 | L43: 0
B44: Total | C44: =SUM(C29:C43) -> 0 | D44: =SUM(D29:D43) -> 0 | E44: =SUM(E29:E43) -> 0 | F44: =SUM(F29:F43) -> 0 | I44: 14 | J44: 0 | K44: 0 | L44: 0
I45: 15 | J45: 0 | K45: 0 | L45: 0
B46: Summary | I46: 16 | J46: 0 | K46: 0 | L46: 0
B47: Eagles | C47: =I57+I68+I79+I90+I101+I112+I123+I134+I145+I156+I167+I178+I189+I200+I211 -> 0 | I47: 17 | J47: 0 | K47: 0 | L47: 0
B48: Birdies | C48: 0 | I48: 18 | J48: 0 | K48: 0 | L48: 0
B49: Pars | C49: 0 | I49: Back | J49: =SUM(J40:J48) -> 0 | K49: =SUM(K40:K48) -> 0 | L49: 0
B50: bogeys | C50: 0
B51: Double bogeys | C51: 0
B52: Other | C52: 0
B53: Total | C53: =SUM(C47:C52) -> 0
B55: =D4 -> 2025-04-25 | C55: Par | D55: Score
B56: =B7 -> 1 | C56: 4 | D56: 0 | E56: =IF(D56<>0,IF((D56-C56)=-1,"Birdie",IF((D56-C56)=-2,"Eagle",IF((D56-C56)=0,"Par",IF((D56-C56)=1,"bogey",IF((D56-C56)=2,"Double bogey","Other")))))," ") ->  | H56: Count
B57: 2 | C57: 4 | D57: 0 | H57: Eagle | I57: =COUNTIF(E56:E64,"Eagle") -> 0
B58: 3 | C58: 4 | D58: 0 | H58: Birdie | I58: =COUNTIF(E56:E64,"Birdie") -> 0
B59: 4 | C59: 4 | D59: 0 | H59: Par | I59: =COUNTIF(E56:E64,"Par") -> 0
B60: 5 | C60: 3 | D60: 0 | H60: bogey | I60: =COUNTIF(E56:E64,"bogey") -> 0
B61: 6 | C61: 4 | D61: 0 | H61: Double bogey | I61: =COUNTIF(E56:E64,"Double bogey") -> 0
B62: 7 | C62: 4 | D62: 0 | H62: Other | I62: =COUNTIF(E56:E64,"Other") -> 0
B63: 8 | C63: 3 | D63: 0
B64: 9 | C64: 5 | D64: 0
B66: =J4 -> 2025-05-02
B67: =H7 -> 10 | C67: 4 | D67: 0 | E67: =IF(D67<>0,IF((D67-C67)=-1,"Birdie",IF((D67-C67)=-2,"Eagle",IF((D67-C67)=0,"Par",IF((D67-C67)=1,"bogey",IF((D67-C67)=2,"Double bogey","Other")))))," ") ->  | H67: Count
B68: 11 | C68: 4 | D68: 0 | H68: Eagle | I68: =COUNTIF(E67:E75,"Eagle") -> 0
B69: 12 | C69: 3 | D69: 0 | H69: Birdie | I69: =COUNTIF(E67:E75,"Birdie") -> 0
B70: 13 | C70: 4 | D70: 0 | H70: Par | I70: =COUNTIF(E67:E75,"Par") -> 0
B71: 14 | C71: 4 | D71: 0 | H71: bogey | I71: =COUNTIF(E67:E75,"bogey") -> 0
B72: 15 | C72: 3 | D72: 0 | H72: Double bogey | I72: =COUNTIF(E67:E75,"Double bogey") -> 0
B73: 16 | C73: 5 | D73: 0 | H73: Other | I73: =COUNTIF(E67:E75,"Other") -> 0
B74: 17 | C74: 4 | D74: 0
B75: 18 | C75: 5 | D75: 0
B77: =P4 -> 2025-05-09
B78: =N7 -> 1 | C78: 4 | D78: 0 | E78: =IF(D78<>0,IF((D78-C78)=-1,"Birdie",IF((D78-C78)=-2,"Eagle",IF((D78-C78)=0,"Par",IF((D78-C78)=1,"bogey",IF((D78-C78)=2,"Double bogey","Other")))))," ") ->  | H78: Count
B79: 2 | C79: 4 | D79: 0 | H79: Eagle | I79: =COUNTIF(E78:E86,"Eagle") -> 0
B80: 3 | C80: 4 | D80: 0 | H80: Birdie | I80: =COUNTIF(E78:E86,"Birdie") -> 0
B81: 4 | C81: 4 | D81: 0 | H81: Par | I81: =COUNTIF(E78:E86,"Par") -> 0
B82: 5 | C82: 3 | D82: 0 | H82: bogey | I82: =COUNTIF(E78:E86,"bogey") -> 0
B83: 6 | C83: 4 | D83: 0 | H83: Double bogey | I83: =COUNTIF(E78:E86,"Double bogey") -> 0
B84: 7 | C84: 4 | D84: 0 | H84: Other | I84: =COUNTIF(E78:E86,"Other") -> 0
B85: 8 | C85: 3 | D85: 0
B86: 9 | C86: 5 | D86: 0
B88: =V4 -> 2025-05-16
B89: =T7 -> 10 | C89: 4 | D89: 0 | E89: =IF(D89<>0,IF((D89-C89)=-1,"Birdie",IF((D89-C89)=-2,"Eagle",IF((D89-C89)=0,"Par",IF((D89-C89)=1,"bogey",IF((D89-C89)=2,"Double bogey","Other")))))," ") ->  | H89: Count
B90: 11 | C90: 4 | D90: 0 | H90: Eagle | I90: =COUNTIF(E89:E97,"Eagle") -> 0
B91: 12 | C91: 3 | D91: 0 | H91: Birdie | I91: =COUNTIF(E89:E97,"Birdie") -> 0
B92: 13 | C92: 4 | D92: 0 | H92: Par | I92: =COUNTIF(E89:E97,"Par") -> 0
B93: 14 | C93: 4 | D93: 0 | H93: bogey | I93: =COUNTIF(E89:E97,"bogey") -> 0
B94: 15 | C94: 3 | D94: 0 | H94: Double bogey | I94: =COUNTIF(E89:E97,"Double bogey") -> 0
B95: 16 | C95: 5 | D95: 0 | H95: Other | I95: =COUNTIF(E89:E97,"Other") -> 0
B96: 17 | C96: 4 | D96: 0
B97: 18 | C97: 5 | D97: 0
B99: =AB4 -> 2025-05-23
B100: =Z7 -> 1 | C100: 4 | D100: 0 | E100: =IF(D100<>0,IF((D100-C100)=-1,"Birdie",IF((D100-C100)=-2,"Eagle",IF((D100-C100)=0,"Par",IF((D100-C100)=1,"bogey",IF((D100-C100)=2,"Double bogey","Other")))))," ") ->  | H100: Count
B101: 2 | C101: 4 | D101: 0 | H101: Eagle | I101: =COUNTIF(E100:E108,"Eagle") -> 0
B102: 3 | C102: 4 | D102: 0 | H102: Birdie | I102: =COUNTIF(E100:E108,"Birdie") -> 0
B103: 4 | C103: 4 | D103: 0 | H103: Par | I103: =COUNTIF(E100:E108,"Par") -> 0
B104: 5 | C104: 3 | D104: 0 | H104: bogey | I104: =COUNTIF(E100:E108,"bogey") -> 0
B105: 6 | C105: 4 | D105: 0 | H105: Double bogey | I105: =COUNTIF(E100:E108,"Double bogey") -> 0
B106: 7 | C106: 4 | D106: 0 | H106: Other | I106: =COUNTIF(E100:E108,"Other") -> 0
B107: 8 | C107: 3 | D107: 0
B108: 9 | C108: 5 | D108: 0
B110: =AH4 -> 2025-05-30
B111: =AF7 -> 10 | C111: 4 | D111: 0 | E111: =IF(D111<>0,IF((D111-C111)=-1,"Birdie",IF((D111-C111)=-2,"Eagle",IF((D111-C111)=0,"Par",IF((D111-C111)=1,"bogey",IF((D111-C111)=2,"Double bogey","Other")))))," ") ->  | H111: Count
B112: 11 | C112: 4 | D112: 0 | H112: Eagle | I112: =COUNTIF(E111:E119,"Eagle") -> 0
B113: 12 | C113: 3 | D113: 0 | H113: Birdie | I113: =COUNTIF(E111:E119,"Birdie") -> 0
B114: 13 | C114: 4 | D114: 0 | H114: Par | I114: =COUNTIF(E111:E119,"Par") -> 0
B115: 14 | C115: 4 | D115: 0 | H115: bogey | I115: =COUNTIF(E111:E119,"bogey") -> 0
B116: 15 | C116: 3 | D116: 0 | H116: Double bogey | I116: =COUNTIF(E111:E119,"Double bogey") -> 0
B117: 16 | C117: 5 | D117: 0 | H117: Other | I117: =COUNTIF(E111:E119,"Other") -> 0
B118: 17 | C118: 4 | D118: 0
B119: 18 | C119: 5 | D119: 0
B121: =AN4 -> 2025-06-06
B122: =AL7 -> 1 | C122: 4 | D122: 0 | E122: =IF(D122<>0,IF((D122-C122)=-1,"Birdie",IF((D122-C122)=-2,"Eagle",IF((D122-C122)=0,"Par",IF((D122-C122)=1,"bogey",IF((D122-C122)=2,"Double bogey","Other")))))," ") ->  | H122: Count
B123: 2 | C123: 4 | D123: 0 | H123: Eagle | I123: =COUNTIF(E122:E130,"Eagle") -> 0
B124: 3 | C124: 4 | D124: 0 | H124: Birdie | I124: =COUNTIF(E122:E130,"Birdie") -> 0
B125: 4 | C125: 4 | D125: 0 | H125: Par | I125: =COUNTIF(E122:E130,"Par") -> 0
B126: 5 | C126: 3 | D126: 0 | H126: bogey | I126: =COUNTIF(E122:E130,"bogey") -> 0
B127: 6 | C127: 4 | D127: 0 | H127: Double bogey | I127: =COUNTIF(E122:E130,"Double bogey") -> 0
B128: 7 | C128: 4 | D128: 0 | H128: Other | I128: =COUNTIF(E122:E130,"Other") -> 0
B129: 8 | C129: 3 | D129: 0
B130: 9 | C130: 5 | D130: 0
B132: =AT4 -> 2025-06-13
B133: =AR7 -> 10 | C133: 4 | D133: 0 | E133: =IF(D133<>0,IF((D133-C133)=-1,"Birdie",IF((D133-C133)=-2,"Eagle",IF((D133-C133)=0,"Par",IF((D133-C133)=1,"bogey",IF((D133-C133)=2,"Double bogey","Other")))))," ") ->  | H133: Count
B134: 11 | C134: 4 | D134: 0 | H134: Eagle | I134: =COUNTIF(E133:E141,"Eagle") -> 0
B135: 12 | C135: 3 | D135: 0 | H135: Birdie | I135: =COUNTIF(E133:E141,"Birdie") -> 0
B136: 13 | C136: 4 | D136: 0 | H136: Par | I136: =COUNTIF(E133:E141,"Par") -> 0
B137: 14 | C137: 4 | D137: 0 | H137: bogey | I137: =COUNTIF(E133:E141,"bogey") -> 0
B138: 15 | C138: 3 | D138: 0 | H138: Double bogey | I138: =COUNTIF(E133:E141,"Double bogey") -> 0
B139: 16 | C139: 5 | D139: 0 | H139: Other | I139: =COUNTIF(E133:E141,"Other") -> 0
B140: 17 | C140: 4 | D140: 0
B141: 18 | C141: 5 | D141: 0
B143: =AZ4 -> 2025-06-27
B144: =AX7 -> 10 | C144: 4 | D144: 0 | E144: =IF(D144<>0,IF((D144-C144)=-1,"Birdie",IF((D144-C144)=-2,"Eagle",IF((D144-C144)=0,"Par",IF((D144-C144)=1,"bogey",IF((D144-C144)=2,"Double bogey","Other")))))," ") ->  | H144: Count
